Workbook

Sheet T_Verificacion (hidden)
A1: Afectación | B1: Inversión
B3: Valores
A4: Número Proyecto | B4: Suma de Valor Final | C4: Suma de Giros (Valor en pesos)
A5: O23011601010000002213 | B5: 2631144035 | C5: 2441120257
A6: O23011601060000001653 | B6: 4402000000 | C6: 405796556
A7: O23011601060000001656 | B7: 944082964 | C7: 0
A8: O23011601060000001657 | B8: 616102431 | C8: 0
A9: O23011601060000001658 | B9: 2495678791 | C9: 0
A10: O23011601170000001642 | B10: 3110586000 | C10: 3110586000
A11: O23011601200000001646 | B11: 1338000000 | C11: 0
A12: O23011601210000001647 | B12: 2677251936 | C12: 1319470414
A13: O23011601240000001649 | B13: 690924245 | C13: 0
A14: O23011601240000001650 | B14: 445954860 | C14: 0
A15: O23011602280000001661 | B15: 300000000 | C15: 0
A16: O23011602300000001665 | B16: 1688846893 | C16: 364972700
A17: O23011602330000001670 | B17: 4022826678 | C17: 665910454
A18: O23011602340000001673 | B18: 1000000000 | C18: 0
A19: O23011602380000001675 | B19: 1228000000 | C19: 0
A20: O23011603390000001678 | B20: 351411539 | C20: 0
A21: O23011603400000001679 | B21: 1518249898 | C21: 0
A22: O23011603430000001680 | B22: 1138036790 | C22: 596553801
A23: O23011603450000001681 | B23: 817917876 | C23: 474720000
A24: O23011603480000001682 | B24: 608000000 | C24: 0
A25: O23011603480000001684 | B25: 1759983099 | C25: 0
A26: O23011605550000001689 | B26: 1232253056 | C26: 22960800
A27: O23011605570000001697 | B27: 7599444562 | C27: 5965202368
A28: O23011605570000001698 | B28: 3436544767 | C28: 2865575000
A29: O23011601010000001636 | B29: 11721749893 | C29: 11447812164
A30: O23011604490000001685 | B30: 13026421215 | C30: 170549401
A31: O23011602330000001667 | B31: 110000000 | C31: 0
A32: O23011601080000001659 | B32: 499633086 | C32: 0
A33: O23011602270000001660 | B33: 819995740 | C33: 0
A34: O23011601120000001639 | B34: 2917737923 | C34: 480289
A35: O23011601140000001640 | B35: 698000000 | C35: 0
A36: Total general | B36: 7.584677828e+10 | C36: 29851710204

Sheet RESUMEN
A3: Etiquetas de fila | B3: Suma de Valor Inicial del contrato | C3: Suma de Valor total de adiciones | D3: Suma de Valor Final | E3: Suma de Giros (Valor en pesos)
A4: Funcionamiento | B4: 2452256731 | C4: 283334162 | D4: 2735590893 | E4: 2060102671
A5: Inversión | B5: 7.019734644e+10 | C5: 5649431837 | D5: 7.584677828e+10 | E5: 29851710204
A6: Operación | B6: 81101344 | D6: 81101344 | E6: 0
A7: Total general | B7: 7.273070452e+10 | C7: 5932765999 | D7: 7.866347051e+10 | E7: 31911812875

Sheet 1. INFORMACION ACUMULADA
A2: VEEDURIA DISTRITAL - INFORMACIÓN GESTION CONTRACTUAL
A3: DEL 1 DE ENERO AL 31 DE DICIEMBRE DE 2022
A5: 1. Entidad | E5: FONDO DE DESARROLLO LOCAL RAFAEL URIBE UIRBE | H5: 2. Sector | I5: Gobierno
A6: 3. Presupuesto Disponible Inversión Directa PREDIS (BOGDATA) | E6: 78696629188 | H6: 5. Presupuesto Disponible Funcionamiento PREDIS (BOGDATA) | I6: 2848614000 | AI6: 7 Nombre de quien diligencia el formato | AK6: Mónica Yamile Quevedo Correa
A7: 4. Presupuesto Comprometido de Inversión Directa según PREDIS (BOGDATA) | E7: 75846778277 | H7: 6. Presupuesto Comprometido Funcionamiento según PREDIS (BOGDATA) | I7: 2735816993 | AI7: Cargo | AK7: Profesional Contratación
AI8: Dependencia | AK8: Contratación
AI9: Teléfono | AK9: 3212327585
AI10: Correo Electrónico | AK10: monica.quevedo@gobiernobogota.gov.co
A11: 1- INFORMACION GENERAL | V11: 2- INFORMACION FINANCIERA | AC11: 3 - PLAZOS | AI11: 4 CESION | AM11: 5. ESTADO | AN11: 6. % Avance y/o cumplimiento
A12: 1 | B12: 2 | C12: 3 | E12: 4 | F12: 5 | G12: 6 | H12: 7 | I12: 8 | N12: 9 | O12: 10 | P12: 11 | V12: 12 | W12: 13 | X12: 14 | Y12: 15 | Z12: 16 | AA12: 17 | AB12: 18 | AC12: 19 | AD12: 20 | AE12: 21 | AF12: 22 | AG12: 23 | AH12: 24 | AI12: 25 | AJ12: 26 | AK12: 27 | AL12: 28 | AM12: 29 | AN12: 30
A13: Número Contrato | B13: Año | C13: Número de proceso contractual SECOP | D13: Link proceso SECOP | E13: Tipo de contrato | F13: Modalidad de Selección | G13: Procedimiento o causal | H13: Objeto | I13: Afectación | J13: Plan de Desarrollo Distrital | K13: Número Programa | L13: Equivalencia número de programa | M13: Propósito | N13: Número Proyecto | O13: Número de proponentes | P13: Número de Identificación del contratista (Cédula o NIT sin puntos, comas ni caracteres especiales y sin digito de verificación) | Q13: Nombre del contratista (según el caso: nombres y apellidos o Razón social y Tipo societario) | R13: Naturaleza Jurídica | S13: Número de Identificación del integrante del Consorcio o U.T. (Cédula o NIT sin puntos, comas ni caracteres especiales y sin digito de verificación) | T13: Nombre del Integrante del Consorcio o U.T. y Tipo societario (Según el caso: nombres y apellidos o razón social y tipo societario) | U13: % Participación (indicar solo el numero del porcentaje, sin caracteres especiales) | V13: Vigencias futuras | W13: Valor Inicial del contrato | X13: Valor total reducciones (En valor negativo) | Y13: Número de adiciones | Z13: Valor total de adiciones | AA13: Valor Final | AB13: Giros (Valor en pesos) | AC13: Fecha de suscripción (DD/MM/AAAA) | AD13: Fecha de inicio (DD/MM/AAAA) | AE13: Fecha de terminación (DD/MM/AAAA) | AF13: Plazo en días | AG13: Número de prórrogas | AH13: Prorroga en días | AI13: Número de Identificación del cesionario (NIT sin digito de verificación) | AJ13: Nombre cesionario | AK13: Fecha cesión (DD/MM/AAAA) | AL13: Valor cesión | AM13: Estado | AN13: % Avance y/o Cumplimiento
A14: 1 | B14: 2022 | C14: FDLRUU-CD-001-2022 | D14: https://Community.seCop.gov.Co/PubliC/Tendering/OpportunityDetail/Index?notiCeUID=CO1.NTC.2557430&isFromPubliCArea=True&isModal=False | E14: Contratos de prestación de servicios profesionales y de apoyo a la gestión | F14: Contratación directa | G14: Prestación de servicios profesionales y de apoyo a la gestión, o para la ejecución de trabajos artísticos que sólo puedan encomendarse a determinadas personas naturales | H14: EL CONTRATISTA SE OBLIGA A PRESTAR SUS SERVICIOS PROFESIONALES ESPECIALIZADOS PARA APOYAR LAS ACTIVIDADES JURÍDICAS Y EL ACOMPAÑAMIENTO, CONTROL, SEGUIMIENTO DE LA GESTIÓN CONTRACTUAL DE LA ALCALDÍA LOCAL DE RAFAEL URIBE URIBE | I14: Inversión | J14: Un nuevo contrato social y ambiental para la Bogotá del Siglo XXI | K14: 57 | L14: =IF(ISERROR(VLOOKUP(K14,Proposito_programa!$C$2:$E$59,2,FALSE))," ",VLOOKUP(K14,Proposito_programa!$C$2:$E$59,2,FALSE)) -> Gestión pública local | M14: =IF(ISERROR(VLOOKUP(K14,Proposito_programa!$C$2:$E$59,3,FALSE))," ",VLOOKUP(K14,Proposito_programa!$C$2:$E$59,3,FALSE)) -> Propósito 5: Construir Bogotá - Región con gobierno abierto, transparente y ciudadanía consciente | N14: O23011605570000001697 | O14: 1 | P14: 1023888264 | Q14: MONICA DEL PILAR PARRA RANGEL | R14: Persona Natural | W14: 80300000 | Y14: 1 | Z14: 10706667 | AA14: =+W14+X14+Z14 -> 91006667 | AB14: 76406667 | AC14: 2022-01-14 | AD14: 2022-01-17 | AE14: 2023-01-15 | AF14: 330 | AG14: 1 | AH14: 44 | AM14: Terminacion Anticipada | AN14: =IF(ISERROR(AB14/AA14),"-",(AB14/AA14)) -> 0.8395721931
A15: 2 | B15: 2022 | C15: FDLRUU-CD-002-2022 | D15: https://Community.seCop.gov.Co/PubliC/Tendering/OpportunityDetail/Index?notiCeUID=CO1.NTC.2561126&isFromPubliCArea=True&isModal=False | E15: Contratos de prestación de servicios profesionales y de apoyo a la gestión | F15: Contratación directa | G15: Prestación de servicios profesionales y de apoyo a la gestión, o para la ejecución de trabajos artísticos que sólo puedan encomendarse a determinadas personas naturales | H15: PRESTAR LOS SERVICIOS PROFESIONALES PARA APOYAR AL DESPACHO DE LA ALCALDIA LOCAL DE RAFAEL URIBE URIBE EN TEMAS ECONÓMICOS Y ADMINISTRATIVOS PROPIOS DE LA GESTIÓN, ASI COMO, EN EL ANALISIS DE LOS DOCUMENTOS QUE SE LE ENCOMIENDEN, SEGUIMIENTO DE ESTRATEGIAS Y EMISIÓN DE LINEAMIENTOS QUE COADYUVEN AL FORTALECIMIENTO INSTITUCIONAL DE LA ALCALDIA LOCAL | I15: Inversión | J15: Un nuevo contrato social y ambiental para la Bogotá del Siglo XXI | K15: 57 | L15: =IF(ISERROR(VLOOKUP(K15,Proposito_programa!$C$2:$E$59,2,FALSE))," ",VLOOKUP(K15,Proposito_programa!$C$2:$E$59,2,FALSE)) -> Gestión pública local | M15: =IF(ISERROR(VLOOKUP(K15,Proposito_programa!$C$2:$E$59,3,FALSE))," ",VLOOKUP(K15,Proposito_programa!$C$2:$E$59,3,FALSE)) -> Propósito 5: Construir Bogotá - Región con gobierno abierto, transparente y ciudadanía consciente | N15: O23011605570000001697 | O15: 1 | P15: 1015402942 | Q15: JAVIER ALEJANDRO ZUÑIGA ROJAS | R15: Persona Natural | W15: 77440000 | Y15: 1 | Z15: 10325333 | AA15: 87765333 | AB15: 73685333 | AC15: 2022-01-14 | AD15: 2022-01-17 | AE15: 2023-01-05 | AF15: 330 | AG15: 1 | AH15: 44 | AM15: Terminacion Anticipada | AN15: 0.8395721919
A16: 3 | B16: 2022 | C16: FDLRUU-CD-003-2022 | D16: https://Community.seCop.gov.Co/PubliC/Tendering/OpportunityDetail/Index?notiCeUID=CO1.NTC.2579677&isFromPubliCArea=True&isModal=False | E16: Contratos de prestación de servicios profesionales y de apoyo a la gestión | F16: Contratación directa | G16: Prestación de servicios profesionales y de apoyo a la gestión, o para la ejecución de trabajos artísticos que sólo puedan encomendarse a determinadas personas naturales | H16: EL CONTRATISTA SE OBLIGA A PRESTAR SUS SERVICIOS PROFESIONALES PARA APOYAR LAS ACTIVIDADES JURÍDICAS DE LA GESTIÓN CONTRACTUAL EN TODAS LAS MODALIDADES Y ETAPAS PRECONTRACTUAL, CONTRACTUAL Y POSTCONTRACTUAL DEL ÁREA GESTIÓN DEL DESARROLLO LOCAL DE LA ALCALDÍA LOCAL DE RAFAEL URIBE URIBE. | I16: Inversión | J16: Un nuevo contrato social y ambiental para la Bogotá del Siglo XXI | K16: 57 | L16: =IF(ISERROR(VLOOKUP(K16,Proposito_programa!$C$2:$E$59,2,FALSE))," ",VLOOKUP(K16,Proposito_programa!$C$2:$E$59,2,FALSE)) -> Gestión pública local | M16: =IF(ISERROR(VLOOKUP(K16,Proposito_programa!$C$2:$E$59,3,FALSE))," ",VLOOKUP(K16,Proposito_programa!$C$2:$E$59,3,FALSE)) -> Propósito 5: Construir Bogotá - Región con gobierno abierto, transparente y ciudadanía consciente | N16: O23011605570000001697 | O16: 1 | P16: 1033734844 | Q16: IVÁN DARÍO PACHÓN BARRETO | R16: Persona Natural | W16: 75900000 | Y16: 1 | Z16: 10120000 | AA16: 86020000 | AB16: 72220000 | AC16: 2022-01-17 | AD16: 2022-01-17 | AE16: 2023-01-30 | AF16: 330 | AG16: 1 | AH16: 44 | AM16: Terminado | AN16: 0.8395721925
A17: 4 | B17: 2022 | C17: FDLRUU-CD-003-2022 | D17: https://Community.seCop.gov.Co/PubliC/Tendering/OpportunityDetail/Index?notiCeUID=CO1.NTC.2579677&isFromPubliCArea=True&isModal=False | E17: Contratos de prestación de servicios profesionales y de apoyo a la gestión | F17: Contratación directa | G17: Prestación de servicios profesionales y de apoyo a la gestión, o para la ejecución de trabajos artísticos que sólo puedan encomendarse a determinadas personas naturales | H17: PRESTAR SUS SERVICIOS PROFESIONALES PARA APOYAR LAS ACTIVIDADES JURÍDICAS DE LA GESTIÓN CONTRACTUAL EN TODAS LAS MODALIDADES Y ETAPAS PRECONTRACTUAL, CONTRACTUAL Y POSTCONTRACTUAL DEL ÁREA DE GESTIÓN DEL DESARROLLO LOCAL DE LA ALCALDÍA LOCAL DE RAFAEL URIBE URIBE | I17: Inversión | J17: Un nuevo contrato social y ambiental para la Bogotá del Siglo XXI | K17: 57 | L17: =IF(ISERROR(VLOOKUP(K17,Proposito_programa!$C$2:$E$59,2,FALSE))," ",VLOOKUP(K17,Proposito_programa!$C$2:$E$59,2,FALSE)) -> Gestión pública local | M17: =IF(ISERROR(VLOOKUP(K17,Proposito_programa!$C$2:$E$59,3,FALSE))," ",VLOOKUP(K17,Proposito_programa!$C$2:$E$59,3,FALSE)) -> Propósito 5: Construir Bogotá - Región con gobierno abierto, transparente y ciudadanía consciente | N17: O23011605570000001697 | O17: 1 | P17: 1014222182 | Q17: JOAN DAVID FERRER JIMENEZ | R17: Persona Natural | W17: 75900000 | Y17: 1 | Z17: 6900000 | AA17: 82800000 | AB17: 69000000 | AC17: 2022-01-28 | AD17: 2022-02-01 | AE17: 2023-01-26 | AF17: 330 | AG17: 1 | AH17: 30 | AM17: Terminacion Anticipada | AN17: 0.8333333333
A18: 5 | B18: 2022 | C18: FDLRUU-CD-003-2022 | D18: https://Community.seCop.gov.Co/PubliC/Tendering/OpportunityDetail/Index?notiCeUID=CO1.NTC.2579677&isFromPubliCArea=True&isModal=False | E18: Contratos de prestación de servicios profesionales y de apoyo a la gestión | F18: Contratación directa | G18: Prestación de servicios profesionales y de apoyo a la gestión, o para la ejecución de trabajos artísticos que sólo puedan encomendarse a determinadas personas naturales | H18: EL CONTRATISTA SE OBLIGA A PRESTAR SUS SERVICIOS PROFESIONALES PARA APOYAR LAS ACTIVIDADES JURÍDICAS DE LA GESTIÓN CONTRACTUAL EN TODAS LAS MODALIDADES Y ETAPAS PRECONTRACTUAL, CONTRACTUAL Y POSTCONTRACTUAL DEL ÁREA GESTIÓN DEL DESARROLLO LOCAL DE LA ALCALDÍA LOCAL DE RAFAEL URIBE URIBE | I18: Inversión | J18: Un nuevo contrato social y ambiental para la Bogotá del Siglo XXI | K18: 57 | L18: =IF(ISERROR(VLOOKUP(K18,Proposito_programa!$C$2:$E$59,2,FALSE))," ",VLOOKUP(K18,Proposito_programa!$C$2:$E$59,2,FALSE)) -> Gestión pública local | M18: =IF(ISERROR(VLOOKUP(K18,Proposito_programa!$C$2:$E$59,3,FALSE))," ",VLOOKUP(K18,Proposito_programa!$C$2:$E$59,3,FALSE)) -> Propósito 5: Construir Bogotá - Región con gobierno abierto, transparente y ciudadanía consciente | N18: O23011605570000001697 | O18: 1 | P18: 1032375829 | Q18: KAREN DAYANA PATIÑO SAENZ | R18: Persona Natural | W18: 75900000 | Y18: 1 | Z18: 6900000 | AA18: 82800000 | AB18: 69000000 | AC18: 2022-01-27 | AD18: 2022-02-01 | AE18: 2023-01-22 | AF18: 330 | AG18: 1 | AH18: 30 | AM18: Terminacion Anticipada | AN18: 0.8333333333
A19: 8 | B19: 2022 | C19: FDLRUU-CD-008-2022 | D19: https://Community.seCop.gov.Co/PubliC/Tendering/OpportunityDetail/Index?notiCeUID=CO1.NTC.2584662&isFromPubliCArea=True&isModal=False | E19: Contratos de prestación de servicios profesionales y de apoyo a la gestión | F19: Contratación directa | G19: Prestación de servicios profesionales y de apoyo a la gestión, o para la ejecución de trabajos artísticos que sólo puedan encomendarse a determinadas personas naturales | H19: EL CONTRATISTA SE OBLIGA A PRESTAR SUS SERVICIOS PROFESIONALES PARA APOYAR LA GESTIÓN CONTRATACTUAL EN SUS DIFERENTES ETAPAS AL ÁREA DE GESTIÓN DEL DESARROLLO DE LA ALCALDÍA LOCAL DE RAFAEL URIBE URIBE. | I19: Inversión | J19: Un nuevo contrato social y ambiental para la Bogotá del Siglo XXI | K19: 57 | L19: =IF(ISERROR(VLOOKUP(K19,Proposito_programa!$C$2:$E$59,2,FALSE))," ",VLOOKUP(K19,Proposito_programa!$C$2:$E$59,2,FALSE)) -> Gestión pública local | M19: =IF(ISERROR(VLOOKUP(K19,Proposito_programa!$C$2:$E$59,3,FALSE))," ",VLOOKUP(K19,Proposito_programa!$C$2:$E$59,3,FALSE)) -> Propósito 5: Construir Bogotá - Región con gobierno abierto, transparente y ciudadanía consciente | N19: O23011605570000001697 | O19: 1 | P19: 80811353 | Q19: JOHN HENRY BOHORQUEZ | R19: Persona Natural | W19: 59400000 | Y19: 1 | Z19: 7740000 | AA19: 67140000 | AB19: 56340000 | AC19: 2022-01-17 | AD19: 2022-01-18 | AE19: 2023-01-30 | AF19: 330 | AG19: 1 | AH19: 43 | AM19: Terminado | AN19: 0.8391420912
A20: 9 | B20: 2022 | C20: FDLRUU-CD-008-2022 | D20: https://Community.seCop.gov.Co/PubliC/Tendering/OpportunityDetail/Index?notiCeUID=CO1.NTC.2584662&isFromPubliCArea=True&isModal=False | E20: Contratos de prestación de servicios profesionales y de apoyo a la gestión | F20: Contratación directa | G20: Prestación de servicios profesionales y de apoyo a la gestión, o para la ejecución de trabajos artísticos que sólo puedan encomendarse a determinadas personas naturales | H20: EL CONTRATISTA SE OBLIGA A PRESTAR SUS SERVICIOS PROFESIONALES PARA APOYAR LA GESTIÓN CONTRATACTUAL EN SUS DIFERENTES ETAPAS AL ÁREA DE GESTIÓN DEL DESARROLLO DE LA ALCALDÍA LOCAL DE RAFAEL URIBE URIBE | I20: Inversión | J20: Un nuevo contrato social y ambiental para la Bogotá del Siglo XXI | K20: 57 | L20: =IF(ISERROR(VLOOKUP(K20,Proposito_programa!$C$2:$E$59,2,FALSE))," ",VLOOKUP(K20,Proposito_programa!$C$2:$E$59,2,FALSE)) -> Gestión pública local | M20: =IF(ISERROR(VLOOKUP(K20,Proposito_programa!$C$2:$E$59,3,FALSE))," ",VLOOKUP(K20,Proposito_programa!$C$2:$E$59,3,FALSE)) -> Propósito 5: Construir Bogotá - Región con gobierno abierto, transparente y ciudadanía consciente | N20: O23011605570000001697 | O20: 1 | P20: 1121839556 | Q20: MILLER OSWALDO VILLAMIZAR ROJAS | R20: Persona Natural | W20: 59400000 | Y20: 1 | Z20: 7560000 | AA20: 66960000 | AB20: 56160000 | AC20: 2022-01-17 | AD20: 2022-01-19 | AE20: 2023-01-28 | AF20: 330 | AG20: 1 | AH20: 42 | AI20: 52726734 | AJ20: ROSALBA VILLALOBOS VILLALOBOS | AK20: 2022-08-31 | AL20: 40053334 | AM20: Terminacion anticipada | AN20: 0.8387096774
A21: 10 | B21: 2022 | C21: FDLRUU-CD-008-2022 | D21: https://Community.seCop.gov.Co/PubliC/Tendering/OpportunityDetail/Index?notiCeUID=CO1.NTC.2584662&isFromPubliCArea=True&isModal=False | E21: Contratos de prestación de servicios profesionales y de apoyo a la gestión | F21: Contratación directa | G21: Prestación de servicios profesionales y de apoyo a la gestión, o para la ejecución de trabajos artísticos que sólo puedan encomendarse a determinadas personas naturales | H21: EL CONTRATISTA SE OBLIGA A PRESTAR SUS SERVICIOS PROFESIONALES PARA APOYAR LA GESTIÓN CONTRATACTUAL EN SUS DIFERENTES ETAPAS AL ÁREA DE GESTIÓN DEL DESARROLLO DE LA ALCALDÍA LOCAL DE RAFAEL URIBE URIBE | I21: Inversión | J21: Un nuevo contrato social y ambiental para la Bogotá del Siglo XXI | K21: 57 | L21: =IF(ISERROR(VLOOKUP(K21,Proposito_programa!$C$2:$E$59,2,FALSE))," ",VLOOKUP(K21,Proposito_programa!$C$2:$E$59,2,FALSE)) -> Gestión pública local | M21: =IF(ISERROR(VLOOKUP(K21,Proposito_programa!$C$2:$E$59,3,FALSE))," ",VLOOKUP(K21,Proposito_programa!$C$2:$E$59,3,FALSE)) -> Propósito 5: Construir Bogotá - Región con gobierno abierto, transparente y ciudadanía consciente | N21: O23011605570000001697 | O21: 1 | P21: 80041654 | Q21: LUIS ALEJANDRO MORENO RUEDA | R21: Persona Natural | W21: 59400000 | Y21: 1 | Z21: 7200000 | AA21: 66600000 | AB21: 55800000 | AC21: 2022-01-17 | AD21: 2022-01-21 | AE21: 2023-01-24 | AF21: 330 | AG21: 1 | AH21: 40 | AM21: Terminacion anticipada | AN21: 0.8378378378
A22: 11 | B22: 2022 | C22: FDLRUU-CD-008-2022 | D22: https://Community.seCop.gov.Co/PubliC/Tendering/OpportunityDetail/Index?notiCeUID=CO1.NTC.2584662&isFromPubliCArea=True&isModal=False | E22: Contratos de prestación de servicios profesionales y de apoyo a la gestión | F22: Contratación directa | G22: Prestación de servicios profesionales y de apoyo a la gestión, o para la ejecución de trabajos artísticos que sólo puedan encomendarse a determinadas personas naturales | H22: EL CONTRATISTA SE OBLIGA A PRESTAR SUS SERVICIOS PROFESIONALES PARA APOYAR LA GESTIÓN CONTRATACTUAL EN SUS DIFERENTES ETAPAS AL ÁREA DE GESTIÓN DEL DESARROLLO DE LA ALCALDÍA LOCAL DE RAFAEL URIBE URIBE. | I22: Inversión | J22: Un nuevo contrato social y ambiental para la Bogotá del Siglo XXI | K22: 57 | L22: =IF(ISERROR(VLOOKUP(K22,Proposito_programa!$C$2:$E$59,2,FALSE))," ",VLOOKUP(K22,Proposito_programa!$C$2:$E$59,2,FALSE)) -> Gestión pública local | M22: =IF(ISERROR(VLOOKUP(K22,Proposito_programa!$C$2:$E$59,3,FALSE))," ",VLOOKUP(K22,Proposito_programa!$C$2:$E$59,3,FALSE)) -> Propósito 5: Construir Bogotá - Región con gobierno abierto, transparente y ciudadanía consciente | N22: O23011605570000001697 | O22: 1 | P22: 79917967 | Q22: JOHAN FARID PARRA ARRIETA | R22: Persona Natural | W22: 59400000 | Y22: 1 | Z22: 6300000 | AA22: 65700000 | AB22: 54900000 | AC22: 2022-01-24 | AD22: 2022-01-26 | AE22: 2023-01-30 | AF22: 330 | AG22: 1 | AH22: 35 | AM22: Terminado | AN22: 0.8356164384
A23: 12 | B23: 2022 | C23: FDLRUU-CD-008-2022 | D23: https://Community.seCop.gov.Co/PubliC/Tendering/OpportunityDetail/Index?notiCeUID=CO1.NTC.2584662&isFromPubliCArea=True&isModal=False | E23: Contratos de prestación de servicios profesionales y de apoyo a la gestión | F23: Contratación directa | G23: Prestación de servicios profesionales y de apoyo a la gestión, o para la ejecución de trabajos artísticos que sólo puedan encomendarse a determinadas personas naturales | H23: EL CONTRATISTA SE OBLIGA A PRESTAR SUS SERVICIOS PROFESIONALES PARA APOYAR LA GESTIÓN CONTRATACTUAL EN SUS DIFERENTES ETAPAS AL ÁREA DE GESTIÓN DEL DESARROLLO DE LA ALCALDÍA LOCAL DE RAFAEL URIBE URIBE. | I23: Inversión | J23: Un nuevo contrato social y ambiental para la Bogotá del Siglo XXI | K23: 57 | L23: =IF(ISERROR(VLOOKUP(K23,Proposito_programa!$C$2:$E$59,2,FALSE))," ",VLOOKUP(K23,Proposito_programa!$C$2:$E$59,2,FALSE)) -> Gestión pública local | M23: =IF(ISERROR(VLOOKUP(K23,Proposito_programa!$C$2:$E$59,3,FALSE))," ",VLOOKUP(K23,Proposito_programa!$C$2:$E$59,3,FALSE)) -> Propósito 5: Construir Bogotá - Región con gobierno abierto, transparente y ciudadanía consciente | N23: O23011605570000001697 | O23: 1 | P23: 1030610164 | Q23: BRAHAN EDUARDO GARCIA LOPEZ | R23: Persona Natural | W23: 59400000 | Y23: 1 | Z23: 5400000 | AA23: 64800000 | AB23: =2340000+AL23 -> 50940000 | AC23: 2022-01-27 | AD23: 2022-02-01 | AE23: 2023-01-30 | AF23: 330 | AG23: 1 | AH23: 30 | AI23: 80001279 | AJ23: SERGIO FERNEY ROMERO CARRILLO | AK23: 2022-11-18 | AL23: 48600000 | AM23: Terminado | AN23: 0.7861111111
A24: 13 | B24: 2022 | C24: FDLRUU-CD-013-2022 | D24: https://Community.seCop.gov.Co/PubliC/Tendering/OpportunityDetail/Index?notiCeUID=CO1.NTC.2588502&isFromPubliCArea=True&isModal=False | E24: Contratos de prestación de servicios profesionales y de apoyo a la gestión | F24: Contratación directa | G24: Prestación de servicios profesionales y de apoyo a la gestión, o para la ejecución de trabajos artísticos que sólo puedan encomendarse a determinadas personas naturales | H24: PRESTAR LOS SERVICIOS PROFESIONALES PARA APOYAR LA REVISIÓN Y/O ELABORACIÓN DE LOS DOCUMENTOS Y GESTIONES PROVENIENTES DE LAS DIFERENTES ÁREAS RELACIONADAS CON TEMAS ADMINISTRATIVOS CONTABLES Y FINANCIEROS DE LOS PROCESOS Y CONTRATOS DEL FONDO DE DESARROLLO LOCAL DE RAFAEL URIBE URIBE | I24: Inversión | J24: Un nuevo contrato social y ambiental para la Bogotá del Siglo XXI | K24: 57 | L24: =IF(ISERROR(VLOOKUP(K24,Proposito_programa!$C$2:$E$59,2,FALSE))," ",VLOOKUP(K24,Proposito_programa!$C$2:$E$59,2,FALSE)) -> Gestión pública local | M24: =IF(ISERROR(VLOOKUP(K24,Proposito_programa!$C$2:$E$59,3,FALSE))," ",VLOOKUP(K24,Proposito_programa!$C$2:$E$59,3,FALSE)) -> Propósito 5: Construir Bogotá - Región con gobierno abierto, transparente y ciudadanía consciente | N24: O23011605570000001697 | O24: 1 | P24: 53077157 | Q24: MONICA YAMILE QUEVEDO CORREA | R24: Persona Natural | W24: 75900000 | Y24: 1 | Z24: 2760000 | AA24: 78660000 | AB24: 71760000 | AC24: 2022-01-17 | AD24: 2022-01-19 | AE24: 2022-12-31 | AF24: 330 | AG24: 1 | AH24: 12 | AM24: Terminado | AN24: 0.9122807018
A25: 14 | B25: 2022 | C25: FDLRUU-CD-014-2022 | D25: https://Community.seCop.gov.Co/PubliC/Tendering/OpportunityDetail/Index?notiCeUID=CO1.NTC.2588474&isFromPubliCArea=True&isModal=False | E25: Contratos de prestación de servicios profesionales y de apoyo a la gestión | F25: Contratación directa | G25: Prestación de servicios profesionales y de apoyo a la gestión, o para la ejecución de trabajos artísticos que sólo puedan encomendarse a determinadas personas naturales | H25: EL CONTRATISTA SE OBLIGA A PRESTAR SUS SERVICIOS PROFESIONALES EN LA CONSOLIDACION DE LA INFORMACION DE LA GESTIÓN CONTRACTUAL A CARGO DEL ÁREA DE GESTION DE DESARROLLO LOCAL DE LA ALCALDÍA LOCAL DE RAFAEL URIBE URIBE | I25: Inversión | J25: Un nuevo contrato social y ambiental para la Bogotá del Siglo XXI | K25: 57 | L25: =IF(ISERROR(VLOOKUP(K25,Proposito_programa!$C$2:$E$59,2,FALSE))," ",VLOOKUP(K25,Proposito_programa!$C$2:$E$59,2,FALSE)) -> Gestión pública local | M25: =IF(ISERROR(VLOOKUP(K25,Proposito_programa!$C$2:$E$59,3,FALSE))," ",VLOOKUP(K25,Proposito_programa!$C$2:$E$59,3,FALSE)) -> Propósito 5: Construir Bogotá - Región con gobierno abierto, transparente y ciudadanía consciente | N25: O23011605570000001697 | O25: 1 | P25: 1018463623 | Q25: FABIO ALEXANDER ALZATE FRANCO | R25: Persona Natural | W25: 59400000 | Y25: 1 | Z25: 7560000 | AA25: 66960000 | AB25: 56160000 | AC25: 2022-01-17 | AD25: 2022-01-19 | AE25: 2023-01-17 | AF25: 330 | AG25: 1 | AH25: 42 | AM25: Terminacion Anticipada | AN25: 0.8387096774
A26: 15 | B26: 2022 | C26: FDLRUU-CD-015-2022 | D26: https://Community.seCop.gov.Co/PubliC/Tendering/OpportunityDetail/Index?notiCeUID=CO1.NTC.2588342&isFromPubliCArea=True&isModal=False | E26: Contratos de prestación de servicios profesionales y de apoyo a la gestión | F26: Contratación directa | G26: Prestación de servicios profesionales y de apoyo a la gestión, o para la ejecución de trabajos artísticos que sólo puedan encomendarse a determinadas personas naturales | H26: PRESTAR LOS SERVICIOS PROFESIONALES EN EL ÁREA DE GESTIÓN DE DESARROLLO LOCAL APOYANDO LA GESTION, ANALISIS Y SEGUIMIENTO DE LA INFORMACIÓN FINANCIERA Y CONTABLE EN CUMPLIMIENTO AL MARCO NORMATIVO CONTABLE. | I26: Inversión | J26: Un nuevo contrato social y ambiental para la Bogotá del Siglo XXI | K26: 57 | L26: =IF(ISERROR(VLOOKUP(K26,Proposito_programa!$C$2:$E$59,2,FALSE))," ",VLOOKUP(K26,Proposito_programa!$C$2:$E$59,2,FALSE)) -> Gestión pública local | M26: =IF(ISERROR(VLOOKUP(K26,Proposito_programa!$C$2:$E$59,3,FALSE))," ",VLOOKUP(K26,Proposito_programa!$C$2:$E$59,3,FALSE)) -> Propósito 5: Construir Bogotá - Región con gobierno abierto, transparente y ciudadanía consciente | N26: O23011605570000001697 | O26: 1 | P26: 1033762488 | Q26: TANIA XIMENA MORALES CASTIBLANCO | R26: Persona Natural | W26: 50600000 | Y26: 1 | Z26: 6440000 | AA26: 57040000 | AB26: 47840000 | AC26: 2022-01-17 | AD26: 2022-01-19 | AE26: 2023-01-22 | AF26: 330 | AG26: 1 | AH26: 42 | AM26: Terminacion Anticipada | AN26: 0.8387096774
A27: 16 | B27: 2022 | C27: FDLRUU-CD-016-2022 | D27: https://Community.seCop.gov.Co/PubliC/Tendering/OpportunityDetail/Index?notiCeUID=CO1.NTC.2586339&isFromPubliCArea=True&isModal=False | E27: Contratos de prestación de servicios profesionales y de apoyo a la gestión | F27: Contratación directa | G27: Prestación de servicios profesionales y de apoyo a la gestión, o para la ejecución de trabajos artísticos que sólo puedan encomendarse a determinadas personas naturales | H27: EL CONTRATISTA SE OBLIGA A PRESTAR SUS SERVICIOS DE APOYO EN LAS ACTIVIDADES ADMINISTRATIVAS Y OPERATIVAS REQUERIDAS DENTRO DE LOS PROCESOS DE CONTRATACIÓN Y SOPORTE EN LA PLATAFORMA SECOP II EN EL ÁREA DE GESTIÓN DEL DESARROLLO LOCAL EN LA ALCALDÍA LOCAL DE RAFAEL URIBE URIBE | I27: Inversión | J27: Un nuevo contrato social y ambiental para la Bogotá del Siglo XXI | K27: 57 | L27: =IF(ISERROR(VLOOKUP(K27,Proposito_programa!$C$2:$E$59,2,FALSE))," ",VLOOKUP(K27,Proposito_programa!$C$2:$E$59,2,FALSE)) -> Gestión pública local | M27: =IF(ISERROR(VLOOKUP(K27,Proposito_programa!$C$2:$E$59,3,FALSE))," ",VLOOKUP(K27,Proposito_programa!$C$2:$E$59,3,FALSE)) -> Propósito 5: Construir Bogotá - Región con gobierno abierto, transparente y ciudadanía consciente | N27: O23011605570000001697 | O27: 1 | P27: 1020839818 | Q27: PAULA NATALIA FARFAN PAEZ | R27: Persona Natural | W27: 44000000 | Y27: 1 | Z27: 5733333 | AA27: 49733333 | AB27: 41733333 | AC27: 2022-01-17 | AD27: 2022-01-18 | AE27: 2023-01-30 | AF27: 330 | AG27: 1 | AH27: 43 | AM27: Terminado | AN27: 0.8391420901
A28: 17 | B28: 2022 | C28: FDLRUU-CD-017-2022 | D28: https://Community.seCop.gov.Co/PubliC/Tendering/OpportunityDetail/Index?notiCeUID=CO1.NTC.2590524&isFromPubliCArea=True&isModal=False | E28: Contratos de prestación de servicios profesionales y de apoyo a la gestión | F28: Contratación directa | G28: Prestación de servicios profesionales y de apoyo a la gestión, o para la ejecución de trabajos artísticos que sólo puedan encomendarse a determinadas personas naturales | H28: APOYAR ADMINISTRATIVA Y ASISTENCIALMENTE AL ÁREA DE GESTION DE DESARROLLO LOCAL CONTRATACIÓN DE LA ALCALDÍA LOCAL DE RAFAEL URIBE URIBE | I28: Inversión | J28: Un nuevo contrato social y ambiental para la Bogotá del Siglo XXI | K28: 57 | L28: =IF(ISERROR(VLOOKUP(K28,Proposito_programa!$C$2:$E$59,2,FALSE))," ",VLOOKUP(K28,Proposito_programa!$C$2:$E$59,2,FALSE)) -> Gestión pública local | M28: =IF(ISERROR(VLOOKUP(K28,Proposito_programa!$C$2:$E$59,3,FALSE))," ",VLOOKUP(K28,Proposito_programa!$C$2:$E$59,3,FALSE)) -> Propósito 5: Construir Bogotá - Región con gobierno abierto, transparente y ciudadanía consciente | N28: O23011605570000001697 | O28: 1 | P28: 1031170465 | Q28: MARIA ANGELICA VINCHIRA SANCHEZ | R28: Persona Natural | W28: 29700000 | Y28: 1 | Z28: 3600000 | AA28: 33300000 | AB28: 27900000 | AC28: 2022-01-17 | AD28: 2022-01-21 | AE28: 2023-01-23 | AF28: 330 | AG28: 1 | AH28: 40 | AM28: Terminacion Anticipada | AN28: 0.8378378378
A29: 18 | B29: 2022 | C29: FDLRUU-CD-017-2022 | D29: https://Community.seCop.gov.Co/PubliC/Tendering/OpportunityDetail/Index?notiCeUID=CO1.NTC.2590524&isFromPubliCArea=True&isModal=False | E29: Contratos de prestación de servicios profesionales y de apoyo a la gestión | F29: Contratación directa | G29: Prestación de servicios profesionales y de apoyo a la gestión, o para la ejecución de trabajos artísticos que sólo puedan encomendarse a determinadas personas naturales | H29: APOYAR ADMINISTRATIVA Y ASISTENCIALMENTE AL ÁREA DE GESTION DE DESARROLLO LOCAL CONTRATACIÓN DE LA ALCALDÍA LOCAL DE RAFAEL URIBE URIBE | I29: Inversión | J29: Un nuevo contrato social y ambiental para la Bogotá del Siglo XXI | K29: 57 | L29: =IF(ISERROR(VLOOKUP(K29,Proposito_programa!$C$2:$E$59,2,FALSE))," ",VLOOKUP(K29,Proposito_programa!$C$2:$E$59,2,FALSE)) -> Gestión pública local | M29: =IF(ISERROR(VLOOKUP(K29,Proposito_programa!$C$2:$E$59,3,FALSE))," ",VLOOKUP(K29,Proposito_programa!$C$2:$E$59,3,FALSE)) -> Propósito 5: Construir Bogotá - Región con gobierno abierto, transparente y ciudadanía consciente | N29: O23011605570000001697 | O29: 1 | P29: 1094896721 | Q29: KARINE ROMAN PARDO | R29: Persona Natural | W29: 29700000 | Y29: 1 | Z29: 3780000 | AA29: 33480000 | AB29: 28080000 | AC29: 2022-01-17 | AD29: 2022-01-19 | AE29: 2023-01-30 | AF29: 330 | AG29: 1 | AH29: 42 | AM29: Terminado | AN29: 0.8387096774
A30: 19 | B30: 2022 | C30: FDLRUU-CD-019-2022 | D30: https://Community.seCop.gov.Co/PubliC/Tendering/OpportunityDetail/Index?notiCeUID=CO1.NTC.2618333&isFromPubliCArea=True&isModal=False | E30: Contratos de prestación de servicios profesionales y de apoyo a la gestión | F30: Contratación directa | G30: Prestación de servicios profesionales y de apoyo a la gestión, o para la ejecución de trabajos artísticos que sólo puedan encomendarse a determinadas personas naturales | H30: PRESTAR LOS SERVICIOS ESPECIALIZADOS PARA APOYAR AL DESPACHO DE LA ALCALDÍA LOCAL DE RAFAEL URIBE URIBE EN EL DISEÑO DE ESTRATEGIAS Y EMISIÓN DE LINEAMIENTOS QUE COADYUVEN AL FORTALECIMIENTO INSTITUCIONAL ENTORNO A LAS ACTIVIDADES QUE REALIZA LA ALCALDÍA LOCAL EN SUS DIFERENTES DEPENDENCIAS | I30: Inversión | J30: Un nuevo contrato social y ambiental para la Bogotá del Siglo XXI | K30: 57 | L30: =IF(ISERROR(VLOOKUP(K30,Proposito_programa!$C$2:$E$59,2,FALSE))," ",VLOOKUP(K30,Proposito_programa!$C$2:$E$59,2,FALSE)) -> Gestión pública local | M30: =IF(ISERROR(VLOOKUP(K30,Proposito_programa!$C$2:$E$59,3,FALSE))," ",VLOOKUP(K30,Proposito_programa!$C$2:$E$59,3,FALSE)) -> Propósito 5: Construir Bogotá - Región con gobierno abierto, transparente y ciudadanía consciente | N30: O23011605570000001697 | O30: 1 | P30: 67001801 | Q30: MARLYN CAROLINA RIVERA | R30: Persona Natural | W30: 85800000 | Y30: 1 | Z30: 10400000 | AA30: 96200000 | AB30: 80600000 | AC30: 2022-01-20 | AD30: 2022-01-21 | AE30: 2023-01-15 | AF30: 330 | AG30: 1 | AH30: 40 | AM30: Terminacion Anticipada | AN30: 0.8378378378
A31: 20 | B31: 2022 | C31: FDLRUU-CD020-2022 | D31: https://Community.seCop.gov.Co/PubliC/Tendering/OpportunityDetail/Index?notiCeUID=CO1.NTC.2595789&isFromPubliCArea=True&isModal=False | E31: Contratos de prestación de servicios profesionales y de apoyo a la gestión | F31: Contratación directa | G31: Prestación de servicios profesionales y de apoyo a la gestión, o para la ejecución de trabajos artísticos que sólo puedan encomendarse a determinadas personas naturales | H31: APOYAR JURÍDICAMENTE LAS ACCIONES REQUERIDAS PARA LA DEPURACIÓN DE LAS ACTUACIONES ADMINISTRATIVAS QUE CURSAN EN LA ALCALDÍA LOCAL DE RAFAEL URIBE URIBE. | I31: Inversión | J31: Un nuevo contrato social y ambiental para la Bogotá del Siglo XXI | K31: 57 | L31: =IF(ISERROR(VLOOKUP(K31,Proposito_programa!$C$2:$E$59,2,FALSE))," ",VLOOKUP(K31,Proposito_programa!$C$2:$E$59,2,FALSE)) -> Gestión pública local | M31: =IF(ISERROR(VLOOKUP(K31,Proposito_programa!$C$2:$E$59,3,FALSE))," ",VLOOKUP(K31,Proposito_programa!$C$2:$E$59,3,FALSE)) -> Propósito 5: Construir Bogotá - Región con gobierno abierto, transparente y ciudadanía consciente | N31: O23011605570000001698 | O31: 1 | P31: 52857075 | Q31: MONICA GOMEZ GUZMAN | R31: Persona Natural | W31: 59400000 | Y31: 1 | Z31: 7380000 | AA31: 66780000 | AB31: 55980000 | AC31: 2022-01-18 | AD31: 2022-01-20 | AE31: 2023-01-22 | AF31: 330 | AG31: 1 | AH31: 41 | AM31: Terminacion Anticipada | AN31: 0.8382749326
A32: 21 | B32: 2022 | C32: FDLRUU-CD020-2022 | D32: https://Community.seCop.gov.Co/PubliC/Tendering/OpportunityDetail/Index?notiCeUID=CO1.NTC.2595789&isFromPubliCArea=True&isModal=False | E32: Contratos de prestación de servicios profesionales y de apoyo a la gestión | F32: Contratación directa | G32: Prestación de servicios profesionales y de apoyo a la gestión, o para la ejecución de trabajos artísticos que sólo puedan encomendarse a determinadas personas naturales | H32: APOYAR JURÍDICAMENTE LAS ACCIONES REQUERIDAS PARA LA DEPURACIÓN DE LAS ACTUACIONES ADMINISTRATIVAS QUE CURSAN EN LA ALCALDÍA LOCAL DE RAFAEL URIBE URIBE. | I32: Inversión | J32: Un nuevo contrato social y ambiental para la Bogotá del Siglo XXI | K32: 57 | L32: =IF(ISERROR(VLOOKUP(K32,Proposito_programa!$C$2:$E$59,2,FALSE))," ",VLOOKUP(K32,Proposito_programa!$C$2:$E$59,2,FALSE)) -> Gestión pública local | M32: =IF(ISERROR(VLOOKUP(K32,Proposito_programa!$C$2:$E$59,3,FALSE))," ",VLOOKUP(K32,Proposito_programa!$C$2:$E$59,3,FALSE)) -> Propósito 5: Construir Bogotá - Región con gobierno abierto, transparente y ciudadanía consciente | N32: O23011605570000001698 | O32: 1 | P32: 79816247 | Q32: JOSE YIMMY MIRANDA ROCHA | R32: Persona Natural | W32: 59400000 | Y32: 1 | Z32: 7380000 | AA32: 66780000 | AB32: =7560000+AL32 -> 55980000 | AC32: 2022-01-18 | AD32: 2022-01-20 | AE32: 2023-01-30 | AF32: 330 | AG32: 1 | AH32: 41 | AI32: 1101175034 | AJ32: JESICA DAYANA PEÑA QUINTERO | AK32: 2022-10-19 | AL32: 48420000 | AM32: Terminado | AN32: 0.8382749326
A33: 22 | B33: 2022 | C33: FDLRUU-CD020-2022 | D33: https://Community.seCop.gov.Co/PubliC/Tendering/OpportunityDetail/Index?notiCeUID=CO1.NTC.2595789&isFromPubliCArea=True&isModal=False | E33: Contratos de prestación de servicios profesionales y de apoyo a la gestión | F33: Contratación directa | G33: Prestación de servicios profesionales y de apoyo a la gestión, o para la ejecución de trabajos artísticos que sólo puedan encomendarse a determinadas personas naturales | H33: APOYAR JURÍDICAMENTE LAS ACCIONES REQUERIDAS PARA LA DEPURACIÓN DE LAS ACTUACIONES ADMINISTRATIVAS QUE CURSAN EN LA ALCALDÍA LOCAL DE RAFAEL URIBE URIBE. | I33: Inversión | J33: Un nuevo contrato social y ambiental para la Bogotá del Siglo XXI | K33: 57 | L33: =IF(ISERROR(VLOOKUP(K33,Proposito_programa!$C$2:$E$59,2,FALSE))," ",VLOOKUP(K33,Proposito_programa!$C$2:$E$59,2,FALSE)) -> Gestión pública local | M33: =IF(ISERROR(VLOOKUP(K33,Proposito_programa!$C$2:$E$59,3,FALSE))," ",VLOOKUP(K33,Proposito_programa!$C$2:$E$59,3,FALSE)) -> Propósito 5: Construir Bogotá - Región con gobierno abierto, transparente y ciudadanía consciente | N33: O23011605570000001698 | O33: 1 | P33: 52484426 | Q33: NUBIA ESPERANZA SANTAFE CASTELLANOS | R33: Persona Natural | W33: 59400000 | Y33: 1 | Z33: 7200000 | AA33: 66600000 | AB33: 55800000 | AC33: 2022-01-19 | AD33: 2022-01-21 | AE33: 2023-01-30 | AF33: 330 | AG33: 1 | AH33: 40 | AM33: Terminado | AN33: 0.8378378378
A34: 23 | B34: 2022 | C34: FDLRUU-CD020-2022 | D34: https://Community.seCop.gov.Co/PubliC/Tendering/OpportunityDetail/Index?notiCeUID=CO1.NTC.2595789&isFromPubliCArea=True&isModal=False | E34: Contratos de prestación de servicios profesionales y de apoyo a la gestión | F34: Contratación directa | G34: Prestación de servicios profesionales y de apoyo a la gestión, o para la ejecución de trabajos artísticos que sólo puedan encomendarse a determinadas personas naturales | H34: APOYAR JURÍDICAMENTE LAS ACCIONES REQUERIDAS PARA LA DEPURACIÓN DE LAS ACTUACIONES ADMINISTRATIVAS QUE CURSAN EN LA ALCALDÍA LOCAL DE RAFAEL URIBE URIBE. | I34: Inversión | J34: Un nuevo contrato social y ambiental para la Bogotá del Siglo XXI | K34: 57 | L34: =IF(ISERROR(VLOOKUP(K34,Proposito_programa!$C$2:$E$59,2,FALSE))," ",VLOOKUP(K34,Proposito_programa!$C$2:$E$59,2,FALSE)) -> Gestión pública local | M34: =IF(ISERROR(VLOOKUP(K34,Proposito_programa!$C$2:$E$59,3,FALSE))," ",VLOOKUP(K34,Proposito_programa!$C$2:$E$59,3,FALSE)) -> Propósito 5: Construir Bogotá - Región con gobierno abierto, transparente y ciudadanía consciente | N34: O23011605570000001698 | O34: 1 | P34: 1022402850 | Q34: WILMER JAVIER HERNANDEZ LASSO | R34: Persona Natural | W34: 59400000 | Y34: 1 | Z34: 4860000 | AA34: 64260000 | AB34: 53460000 | AC34: 2022-01-21 | AD34: 2022-02-04 | AE34: 2023-01-23 | AF34: 330 | AG34: 1 | AH34: 27 | AM34: Terminacion Anticipada | AN34: 0.8319327731
A35: 24 | B35: 2022 | C35: FDLRUU-CD020-2022 | D35: https://Community.seCop.gov.Co/PubliC/Tendering/OpportunityDetail/Index?notiCeUID=CO1.NTC.2595789&isFromPubliCArea=True&isModal=False | E35: Contratos de prestación de servicios profesionales y de apoyo a la gestión | F35: Contratación directa | G35: Prestación de servicios profesionales y de apoyo a la gestión, o para la ejecución de trabajos artísticos que sólo puedan encomendarse a determinadas personas naturales | H35: APOYAR JURÍDICAMENTE LAS ACCIONES REQUERIDAS PARA LA DEPURACIÓN DE LAS ACTUACIONES ADMINISTRATIVAS QUE CURSAN EN LA ALCALDÍA LOCAL DE RAFAEL URIBE URIBE. | I35: Inversión | J35: Un nuevo contrato social y ambiental para la Bogotá del Siglo XXI | K35: 57 | L35: =IF(ISERROR(VLOOKUP(K35,Proposito_programa!$C$2:$E$59,2,FALSE))," ",VLOOKUP(K35,Proposito_programa!$C$2:$E$59,2,FALSE)) -> Gestión pública local | M35: =IF(ISERROR(VLOOKUP(K35,Proposito_programa!$C$2:$E$59,3,FALSE))," ",VLOOKUP(K35,Proposito_programa!$C$2:$E$59,3,FALSE)) -> Propósito 5: Construir Bogotá - Región con gobierno abierto, transparente y ciudadanía consciente | N35: O23011605570000001698 | O35: 1 | P35: 79627943 | Q35: YUSED MAURICIO ROJAS TORRES | R35: Persona Natural | W35: 26460000 | AA35: 26460000 | AB35: 26460000 | AC35: 2022-01-21 | AD35: 2022-01-28 | AE35: 2022-06-25 | AF35: 330 | AM35: Terminacion Anticipada | AN35: 1
A36: 25 | B36: 2022 | C36: FDLRUU-CD020-2022 | D36: https://Community.seCop.gov.Co/PubliC/Tendering/OpportunityDetail/Index?notiCeUID=CO1.NTC.2595789&isFromPubliCArea=True&isModal=False | E36: Contratos de prestación de servicios profesionales y de apoyo a la gestión | F36: Contratación directa | G36: Prestación de servicios profesionales y de apoyo a la gestión, o para la ejecución de trabajos artísticos que sólo puedan encomendarse a determinadas personas naturales | H36: APOYAR JURÍDICAMENTE LAS ACCIONES REQUERIDAS PARA LA DEPURACIÓN DE LAS ACTUACIONES ADMINISTRATIVAS QUE CURSAN EN LA ALCALDÍA LOCAL DE RAFAEL URIBE URIBE. | I36: Inversión | J36: Un nuevo contrato social y ambiental para la Bogotá del Siglo XXI | K36: 57 | L36: =IF(ISERROR(VLOOKUP(K36,Proposito_programa!$C$2:$E$59,2,FALSE))," ",VLOOKUP(K36,Proposito_programa!$C$2:$E$59,2,FALSE)) -> Gestión pública local | M36: =IF(ISERROR(VLOOKUP(K36,Proposito_programa!$C$2:$E$59,3,FALSE))," ",VLOOKUP(K36,Proposito_programa!$C$2:$E$59,3,FALSE)) -> Propósito 5: Construir Bogotá - Región con gobierno abierto, transparente y ciudadanía consciente | N36: O23011605570000001698 | O36: 1 | P36: 1026250913 | Q36: MARIA ALEJANDRA ARIAS MATEUS | R36: Persona Natural | W36: 59400000 | Y36: 1 | Z36: 6300000 | AA36: 65700000 | AB36: 54900000 | AC36: 2022-01-25 | AD36: 2022-01-26 | AE36: 2023-01-30 | AF36: 330 | AG36: 1 | AH36: 35 | AM36: Terminado | AN36: 0.8356164384
A37: 26 | B37: 2022 | C37: FDLRUU-CD020-2022 | D37: https://Community.seCop.gov.Co/PubliC/Tendering/OpportunityDetail/Index?notiCeUID=CO1.NTC.2595789&isFromPubliCArea=True&isModal=False | E37: Contratos de prestación de servicios profesionales y de apoyo a la gestión | F37: Contratación directa | G37: Prestación de servicios profesionales y de apoyo a la gestión, o para la ejecución de trabajos artísticos que sólo puedan encomendarse a determinadas personas naturales | H37: APOYAR JURÍDICAMENTE LAS ACCIONES REQUERIDAS PARA LA DEPURACIÓN DE LAS ACTUACIONES ADMINISTRATIVAS QUE CURSAN EN LA ALCALDÍA LOCAL DE RAFAEL URIBE URIBE. | I37: Inversión | J37: Un nuevo contrato social y ambiental para la Bogotá del Siglo XXI | K37: 57 | L37: =IF(ISERROR(VLOOKUP(K37,Proposito_programa!$C$2:$E$59,2,FALSE))," ",VLOOKUP(K37,Proposito_programa!$C$2:$E$59,2,FALSE)) -> Gestión pública local | M37: =IF(ISERROR(VLOOKUP(K37,Proposito_programa!$C$2:$E$59,3,FALSE))," ",VLOOKUP(K37,Proposito_programa!$C$2:$E$59,3,FALSE)) -> Propósito 5: Construir Bogotá - Región con gobierno abierto, transparente y ciudadanía consciente | N37: O23011605570000001698 | O37: 1 | P37: 51966940 | Q37: ALEYRA CAPERA RODRIGUEZ | R37: Persona Natural | W37: 59400000 | Y37: 1 | Z37: 5220000 | AA37: 64620000 | AB37: 53820000 | AC37: 2022-01-28 | AD37: 2022-02-02 | AE37: 2023-01-23 | AF37: 330 | AG37: 1 | AH37: 29 | AM37: Terminacion Anticipada | AN37: 0.8328690808
A38: 27 | B38: 2022 | C38: FDLRUU-CD020-2022 | D38: https://Community.seCop.gov.Co/PubliC/Tendering/OpportunityDetail/Index?notiCeUID=CO1.NTC.2595789&isFromPubliCArea=True&isModal=False | E38: Contratos de prestación de servicios profesionales y de apoyo a la gestión | F38: Contratación directa | G38: Prestación de servicios profesionales y de apoyo a la gestión, o para la ejecución de trabajos artísticos que sólo puedan encomendarse a determinadas personas naturales | H38: APOYAR JURÍDICAMENTE LAS ACCIONES REQUERIDAS PARA LA DEPURACIÓN DE LAS ACTUACIONES ADMINISTRATIVAS QUE CURSAN EN LA ALCALDÍA LOCAL DE RAFAEL URIBE URIBE. | I38: Inversión | J38: Un nuevo contrato social y ambiental para la Bogotá del Siglo XXI | K38: 57 | L38: =IF(ISERROR(VLOOKUP(K38,Proposito_programa!$C$2:$E$59,2,FALSE))," ",VLOOKUP(K38,Proposito_programa!$C$2:$E$59,2,FALSE)) -> Gestión pública local | M38: =IF(ISERROR(VLOOKUP(K38,Proposito_programa!$C$2:$E$59,3,FALSE))," ",VLOOKUP(K38,Proposito_programa!$C$2:$E$59,3,FALSE)) -> Propósito 5: Construir Bogotá - Región con gobierno abierto, transparente y ciudadanía consciente | N38: O23011605570000001698 | O38: 1 | P38: 13958948 | Q38: JIMMY LEANDRO NAVARRETE QUINTERO | R38: Persona Natural | W38: 59400000 | Y38: 1 | Z38: 5400000 | AA38: 64800000 | AB38: 48600000 | AC38: 2022-01-27 | AD38: 2022-02-01 | AE38: 2023-01-30 | AF38: 330 | AG38: 1 | AH38: 30 | AM38: Terminado | AN38: 0.75
A39: 28 | B39: 2022 | C39: FDLRUU-CD020-2022 | D39: https://Community.seCop.gov.Co/PubliC/Tendering/OpportunityDetail/Index?notiCeUID=CO1.NTC.2595789&isFromPubliCArea=True&isModal=False | E39: Contratos de prestación de servicios profesionales y de apoyo a la gestión | F39: Contratación directa | G39: Prestación de servicios profesionales y de apoyo a la gestión, o para la ejecución de trabajos artísticos que sólo puedan encomendarse a determinadas personas naturales | H39: APOYAR JURÍDICAMENTE LAS ACCIONES REQUERIDAS PARA LA DEPURACIÓN DE LAS ACTUACIONES ADMINISTRATIVAS QUE CURSAN EN LA ALCALDÍA LOCAL DE RAFAEL URIBE URIBE. | I39: Inversión | J39: Un nuevo contrato social y ambiental para la Bogotá del Siglo XXI | K39: 57 | L39: =IF(ISERROR(VLOOKUP(K39,Proposito_programa!$C$2:$E$59,2,FALSE))," ",VLOOKUP(K39,Proposito_programa!$C$2:$E$59,2,FALSE)) -> Gestión pública local | M39: =IF(ISERROR(VLOOKUP(K39,Proposito_programa!$C$2:$E$59,3,FALSE))," ",VLOOKUP(K39,Proposito_programa!$C$2:$E$59,3,FALSE)) -> Propósito 5: Construir Bogotá - Región con gobierno abierto, transparente y ciudadanía consciente | N39: O23011605570000001698 | O39: 1 | P39: 1010173898 | Q39: DOMMY MARGARITA ESCORCIA OTERO | R39: Persona Natural | W39: 59400000 | AA39: 59400000 | AB39: 27000000 | AC39: 2022-01-28 | AD39: 2022-02-01 | AE39: 2022-07-19 | AF39: 330 | AM39: Terminacion Anticipada | AN39: 0.4545454545
A40: 29 | B40: 2022 | C40: FDLRUU-CD020-2022 | D40: https://Community.seCop.gov.Co/PubliC/Tendering/OpportunityDetail/Index?notiCeUID=CO1.NTC.2595789&isFromPubliCArea=True&isModal=False | E40: Contratos de prestación de servicios profesionales y de apoyo a la gestión | F40: Contratación directa | G40: Prestación de servicios profesionales y de apoyo a la gestión, o para la ejecución de trabajos artísticos que sólo puedan encomendarse a determinadas personas naturales | H40: APOYAR JURÍDICAMENTE LAS ACCIONES REQUERIDAS PARA LA DEPURACIÓN DE LAS ACTUACIONES ADMINISTRATIVAS QUE CURSAN EN LA ALCALDÍA LOCAL DE RAFAEL URIBE URIBE. | I40: Inversión | J40: Un nuevo contrato social y ambiental para la Bogotá del Siglo XXI | K40: 57 | L40: =IF(ISERROR(VLOOKUP(K40,Proposito_programa!$C$2:$E$59,2,FALSE))," ",VLOOKUP(K40,Proposito_programa!$C$2:$E$59,2,FALSE)) -> Gestión pública local | M40: =IF(ISERROR(VLOOKUP(K40,Proposito_programa!$C$2:$E$59,3,FALSE))," ",VLOOKUP(K40,Proposito_programa!$C$2:$E$59,3,FALSE)) -> Propósito 5: Construir Bogotá - Región con gobierno abierto, transparente y ciudadanía consciente | N40: O23011605570000001698 | O40: 1 | P40: 79569262 | Q40: JUAN ANTONIO ESPINOSA ACEVEDO | R40: Persona Natural | W40: 59400000 | Y40: 1 | Z40: 5400000 | AA40: 64800000 | AB40: 54000000 | AC40: 2022-01-28 | AD40: 2022-02-01 | AE40: 2023-01-22 | AF40: 330 | AG40: 1 | AH40: 30 | AM40: Terminacion Anticipada | AN40: 0.8333333333
A41: 30 | B41: 2022 | C41: FDLRUU-CD-030-2022 | D41: https://Community.seCop.gov.Co/PubliC/Tendering/OpportunityDetail/Index?notiCeUID=CO1.NTC.2595538&isFromPubliCArea=True&isModal=False | E41: Contratos de prestación de servicios profesionales y de apoyo a la gestión | F41: Contratación directa | G41: Prestación de servicios profesionales y de apoyo a la gestión, o para la ejecución de trabajos artísticos que sólo puedan encomendarse a determinadas personas naturales | H41: PRESTACIÓN DE SERVICIOS PROFESIONALES EN EL AREA DE GESTION DE DESARROLLO LOCAL PARA APOYAR LAS ETAPAS PRECONTRACTUAL, CONTRACTUAL Y POSTCONTRACTUAL CONFORME A LO ESTABLECIDO EN LA LEY PARA LOS PROCESOS DE ADQUISICIÓN DE BIENES Y SERVICIOS POR PARTE DEL FONDO DE DESARROLLO LOCAL DE RAFAEL URIBE URIBE | I41: Inversión | J41: Un nuevo contrato social y ambiental para la Bogotá del Siglo XXI | K41: 57 | L41: =IF(ISERROR(VLOOKUP(K41,Proposito_programa!$C$2:$E$59,2,FALSE))," ",VLOOKUP(K41,Proposito_programa!$C$2:$E$59,2,FALSE)) -> Gestión pública local | M41: =IF(ISERROR(VLOOKUP(K41,Proposito_programa!$C$2:$E$59,3,FALSE))," ",VLOOKUP(K41,Proposito_programa!$C$2:$E$59,3,FALSE)) -> Propósito 5: Construir Bogotá - Región con gobierno abierto, transparente y ciudadanía consciente | N41: O23011605570000001697 | O41: 1 | P41: 1022985336 | Q41: CRISTHIAN STEVENS VERA ESCOBAR | R41: Persona Natural | W41: 68200000 | Y41: 1 | Z41: 8680000 | AA41: 76880000 | AB41: 64480000 | AC41: 2022-01-18 | AD41: 2022-01-19 | AE41: 2023-01-17 | AF41: 330 | AG41: 1 | AH41: 42 | AM41: Terminacion Anticipada | AN41: 0.8387096774
A42: 31 | B42: 2022 | C42: FDLRUU-CD-031-2022 | D42: https://Community.seCop.gov.Co/PubliC/Tendering/OpportunityDetail/Index?notiCeUID=CO1.NTC.2601664&isFromPubliCArea=True&isModal=False | E42: Contratos de prestación de servicios profesionales y de apoyo a la gestión | F42: Contratación directa | G42: Prestación de servicios profesionales y de apoyo a la gestión, o para la ejecución de trabajos artísticos que sólo puedan encomendarse a determinadas personas naturales | H42: APOYAR LA GESTIÓN DOCUMENTAL DE LA ALCALDÍA LOCAL DE RAFAEL URIBE URIBE EN LA IMPLEMENTACIÓN DE LOS PROCESOS DE CLASIFICACIÓN, ORDENACIÓN, SELECCIÓN NATURAL, FOLIACIÓN, IDENTIFICACIÓN, LEVANTAMIENTO DE INVENTARIOS, ALMACENAMIENTO Y APLICACIÓN DE PROTOCOLOS DE ELIMINACIÓN Y TRANSFERENCIAS DOCUMENTALES | I42: Inversión | J42: Un nuevo contrato social y ambiental para la Bogotá del Siglo XXI | K42: 57 | L42: =IF(ISERROR(VLOOKUP(K42,Proposito_programa!$C$2:$E$59,2,FALSE))," ",VLOOKUP(K42,Proposito_programa!$C$2:$E$59,2,FALSE)) -> Gestión pública local | M42: =IF(ISERROR(VLOOKUP(K42,Proposito_programa!$C$2:$E$59,3,FALSE))," ",VLOOKUP(K42,Proposito_programa!$C$2:$E$59,3,FALSE)) -> Propósito 5: Construir Bogotá - Región con gobierno abierto, transparente y ciudadanía consciente | N42: O23011605570000001697 | O42: 1 | P42: 1193381360 | Q42: VALENTINA RODIRGUEZ CRUZ | R42: Persona Natural | W42: 29700000 | AA42: 29700000 | AB42: =4500000+AL42 -> 27540000 | AC42: 2022-01-18 | AD42: 2022-01-25 | AE42: 2022-12-24 | AF42: 330 | AI42: 53049635 | AJ42: JOHANA CONSTANZA CRUZ PRIETO | AK42: 2022-10-10 | AL42: 23040000 | AM42: Terminado | AN42: 0.9272727273
A43: 32 | B43: 2022 | C43: FDLRUU-CD-031-2022 | D43: https://Community.seCop.gov.Co/PubliC/Tendering/OpportunityDetail/Index?notiCeUID=CO1.NTC.2601664&isFromPubliCArea=True&isModal=False | E43: Contratos de prestación de servicios profesionales y de apoyo a la gestión | F43: Contratación directa | G43: Prestación de servicios profesionales y de apoyo a la gestión, o para la ejecución de trabajos artísticos que sólo puedan encomendarse a determinadas personas naturales | H43: APOYAR LA GESTIÓN DOCUMENTAL DE LA ALCALDÍA LOCAL DE RAFAEL URIBE URIBE EN LA IMPLEMENTACIÓN DE LOS PROCESOS DE CLASIFICACIÓN, ORDENACIÓN, SELECCIÓN NATURAL, FOLIACIÓN, IDENTIFICACIÓN, LEVANTAMIENTO DE INVENTARIOS, ALMACENAMIENTO Y APLICACIÓN DE PROTOCOLOS DE ELIMINACIÓN Y TRANSFERENCIA DOCUMENTALES. | I43: Inversión | J43: Un nuevo contrato social y ambiental para la Bogotá del Siglo XXI | K43: 57 | L43: =IF(ISERROR(VLOOKUP(K43,Proposito_programa!$C$2:$E$59,2,FALSE))," ",VLOOKUP(K43,Proposito_programa!$C$2:$E$59,2,FALSE)) -> Gestión pública local | M43: =IF(ISERROR(VLOOKUP(K43,Proposito_programa!$C$2:$E$59,3,FALSE))," ",VLOOKUP(K43,Proposito_programa!$C$2:$E$59,3,FALSE)) -> Propósito 5: Construir Bogotá - Región con gobierno abierto, transparente y ciudadanía consciente | N43: O23011605570000001697 | O43: 1 | P43: 79806948 | Q43: OMAR ALEXANDER SALVADOR ROMERO | R43: Persona Natural | W43: 29700000 | Y43: 1 | Z43: 3690000 | AA43: 33390000 | AB43: 27990000 | AC43: 2022-01-19 | AD43: 2022-01-20 | AE43: 2023-01-30 | AF43: 330 | AG43: 1 | AH43: 41 | AM43: Terminado | AN43: 0.8382749326
A44: 33 | B44: 2022 | C44: FDLRUU-CD-031-2022 | D44: https://Community.seCop.gov.Co/PubliC/Tendering/OpportunityDetail/Index?notiCeUID=CO1.NTC.2601664&isFromPubliCArea=True&isModal=False | E44: Contratos de prestación de servicios profesionales y de apoyo a la gestión | F44: Contratación directa | G44: Prestación de servicios profesionales y de apoyo a la gestión, o para la ejecución de trabajos artísticos que sólo puedan encomendarse a determinadas personas naturales | H44: APOYAR LA GESTIÓN DOCUMENTAL DE LA ALCALDÍA LOCAL DE RAFAEL URIBE URIBE EN LA IMPLEMENTACIÓN DE LOS PROCESOS DE CLASIFICACIÓN, ORDENACIÓN, SELECCIÓN NATURAL, FOLIACIÓN, IDENTIFICACIÓN, LEVANTAMIENTO DE INVENTARIOS, ALMACENAMIENTO Y APLICACIÓN DE PROTOCOLOS DE ELIMINACIÓN Y TRANSFERENCIA DOCUMENTALES | I44: Inversión | J44: Un nuevo contrato social y ambiental para la Bogotá del Siglo XXI | K44: 57 | L44: =IF(ISERROR(VLOOKUP(K44,Proposito_programa!$C$2:$E$59,2,FALSE))," ",VLOOKUP(K44,Proposito_programa!$C$2:$E$59,2,FALSE)) -> Gestión pública local | M44: =IF(ISERROR(VLOOKUP(K44,Proposito_programa!$C$2:$E$59,3,FALSE))," ",VLOOKUP(K44,Proposito_programa!$C$2:$E$59,3,FALSE)) -> Propósito 5: Construir Bogotá - Región con gobierno abierto, transparente y ciudadanía consciente | N44: O23011605570000001697 | O44: 1 | P44: 19234849 | Q44: FABIO ALBERTO RINCON RUIZ | R44: Persona Natural | W44: 29700000 | Y44: 1 | Z44: 3600000 | AA44: 33300000 | AB44: 27900000 | AC44: 2022-01-19 | AD44: 2022-01-21 | AE44: 2023-01-22 | AF44: 330 | AG44: 1 | AH44: 40 | AM44: Terminacion Anticipada | AN44: 0.8378378378
A45: 34 | B45: 2022 | C45: FDLRUU-CD-031-2022 | D45: https://Community.seCop.gov.Co/PubliC/Tendering/OpportunityDetail/Index?notiCeUID=CO1.NTC.2601664&isFromPubliCArea=True&isModal=False | E45: Contratos de prestación de servicios profesionales y de apoyo a la gestión | F45: Contratación directa | G45: Prestación de servicios profesionales y de apoyo a la gestión, o para la ejecución de trabajos artísticos que sólo puedan encomendarse a determinadas personas naturales | H45: APOYAR LA GESTIÓN DOCUMENTAL DE LA ALCALDÍA LOCAL DE RAFAEL URIBE URIBE EN LA IMPLEMENTACIÓN DE LOS PROCESOS DE CLASIFICACIÓN, ORDENACIÓN, SELECCIÓN NATURAL, FOLIACIÓN, IDENTIFICACIÓN, LEVANTAMIENTO DE INVENTARIOS, ALMACENAMIENTO Y APLICACIÓN DE PROTOCOLOS DE ELIMINACIÓN Y TRANSFERENCIA DOCUMENTALES | I45: Inversión | J45: Un nuevo contrato social y ambiental para la Bogotá del Siglo XXI | K45: 57 | L45: =IF(ISERROR(VLOOKUP(K45,Proposito_programa!$C$2:$E$59,2,FALSE))," ",VLOOKUP(K45,Proposito_programa!$C$2:$E$59,2,FALSE)) -> Gestión pública local | M45: =IF(ISERROR(VLOOKUP(K45,Proposito_programa!$C$2:$E$59,3,FALSE))," ",VLOOKUP(K45,Proposito_programa!$C$2:$E$59,3,FALSE)) -> Propósito 5: Construir Bogotá - Región con gobierno abierto, transparente y ciudadanía consciente | N45: O23011605570000001697 | O45: 1 | P45: 51556234 | Q45: MARIA MERCEDES TAMAYO MEDINA | R45: Persona Natural | W45: 29700000 | AA45: 29700000 | AB45: 26730000 | AC45: 2022-01-21 | AD45: 2022-02-04 | AE45: 2023-01-03 | AF45: 330 | AM45: Terminado | AN45: 0.9
A46: 35 | B46: 2022 | C46: FDLRUU-CD-031-2022 | D46: https://Community.seCop.gov.Co/PubliC/Tendering/OpportunityDetail/Index?notiCeUID=CO1.NTC.2601664&isFromPubliCArea=True&isModal=False | E46: Contratos de prestación de servicios profesionales y de apoyo a la gestión | F46: Contratación directa | G46: Prestación de servicios profesionales y de apoyo a la gestión, o para la ejecución de trabajos artísticos que sólo puedan encomendarse a determinadas personas naturales | H46: APOYAR LA GESTIÓN DOCUMENTAL DE LA ALCALDÍA LOCAL DE RAFAEL URIBE URIBE EN LA IMPLEMENTACIÓN DE LOS PROCESOS DE CLASIFICACIÓN, ORDENACIÓN, SELECCIÓN NATURAL, FOLIACIÓN, IDENTIFICACIÓN, LEVANTAMIENTO DE INVENTARIOS, ALMACENAMIENTO Y APLICACIÓN DE PROTOCOLOS DE ELIMINACIÓN Y TRANSFERENCIA DOCUMENTALES | I46: Inversión | J46: Un nuevo contrato social y ambiental para la Bogotá del Siglo XXI | K46: 57 | L46: =IF(ISERROR(VLOOKUP(K46,Proposito_programa!$C$2:$E$59,2,FALSE))," ",VLOOKUP(K46,Proposito_programa!$C$2:$E$59,2,FALSE)) -> Gestión pública local | M46: =IF(ISERROR(VLOOKUP(K46,Proposito_programa!$C$2:$E$59,3,FALSE))," ",VLOOKUP(K46,Proposito_programa!$C$2:$E$59,3,FALSE)) -> Propósito 5: Construir Bogotá - Región con gobierno abierto, transparente y ciudadanía consciente | N46: O23011605570000001697 | O46: 1 | P46: 17654733 | Q46: JUAN CARLOS JIMENEZ MENESES | R46: Persona Natural | W46: 29700000 | Y46: 1 | Z46: 3060000 | AA46: 32760000 | AB46: 27360000 | AC46: 2022-01-26 | AD46: 2022-01-27 | AE46: 2023-01-26 | AF46: 330 | AG46: 1 | AH46: 34 | AM46: Terminacion Anticipada | AN46: 0.8351648352
A47: 36 | B47: 2022 | C47: FDLRUU-CD-031-2022 | D47: https://Community.seCop.gov.Co/PubliC/Tendering/OpportunityDetail/Index?notiCeUID=CO1.NTC.2601664&isFromPubliCArea=True&isModal=False | E47: Contratos de prestación de servicios profesionales y de apoyo a la gestión | F47: Contratación directa | G47: Prestación de servicios profesionales y de apoyo a la gestión, o para la ejecución de trabajos artísticos que sólo puedan encomendarse a determinadas personas naturales | H47: APOYAR LA GESTIÓN DOCUMENTAL DE LA ALCALDÍA LOCAL DE RAFAEL URIBE URIBE EN LA IMPLEMENTACIÓN DE LOS PROCESOS DE CLASIFICACIÓN, ORDENACIÓN, SELECCIÓN NATURAL, FOLIACIÓN, IDENTIFICACIÓN, LEVANTAMIENTO DE INVENTARIOS, ALMACENAMIENTO Y APLICACIÓN DE PROTOCOLOS DE ELIMINACIÓN Y TRANSFERENCIAS DOCUMENTALES | I47: Inversión | J47: Un nuevo contrato social y ambiental para la Bogotá del Siglo XXI | K47: 57 | L47: =IF(ISERROR(VLOOKUP(K47,Proposito_programa!$C$2:$E$59,2,FALSE))," ",VLOOKUP(K47,Proposito_programa!$C$2:$E$59,2,FALSE)) -> Gestión pública local | M47: =IF(ISERROR(VLOOKUP(K47,Proposito_programa!$C$2:$E$59,3,FALSE))," ",VLOOKUP(K47,Proposito_programa!$C$2:$E$59,3,FALSE)) -> Propósito 5: Construir Bogotá - Región con gobierno abierto, transparente y ciudadanía consciente | N47: O23011605570000001697 | O47: 1 | P47: 19487926 | Q47: JOSE GUILLERMO PINILLA RODRIGUEZ | R47: Persona Natural | W47: 29700000 | Y47: 1 | Z47: 2430000 | AA47: 32130000 | AB47: 26730000 | AC47: 2022-01-28 | AD47: 2022-02-04 | AE47: 2023-01-19 | AF47: 330 | AG47: 1 | AH47: 27 | AM47: Terminacion Anticipada | AN47: 0.8319327731
A48: 37 | B48: 2022 | C48: FDLRUU-CD-037-2022 | D48: https://Community.seCop.gov.Co/PubliC/Tendering/OpportunityDetail/Index?notiCeUID=CO1.NTC.2605523&isFromPubliCArea=True&isModal=False | E48: Contratos de prestación de servicios profesionales y de apoyo a la gestión | F48: Contratación directa | G48: Prestación de servicios profesionales y de apoyo a la gestión, o para la ejecución de trabajos artísticos que sólo puedan encomendarse a determinadas personas naturales | H48: PRESTAR LOS SERVICIOS PROFESIONALES AL DESPACHO DE LA ALCALDÍA LOCAL DE RAFAEL URIBE URIBE EN ACTIVIDADES DE ORDEN ADMINISTRATIVO Y DE GESTION QUE SE LE SOLICITEN | I48: Inversión | J48: Un nuevo contrato social y ambiental para la Bogotá del Siglo XXI | K48: 57 | L48: =IF(ISERROR(VLOOKUP(K48,Proposito_programa!$C$2:$E$59,2,FALSE))," ",VLOOKUP(K48,Proposito_programa!$C$2:$E$59,2,FALSE)) -> Gestión pública local | M48: =IF(ISERROR(VLOOKUP(K48,Proposito_programa!$C$2:$E$59,3,FALSE))," ",VLOOKUP(K48,Proposito_programa!$C$2:$E$59,3,FALSE)) -> Propósito 5: Construir Bogotá - Región con gobierno abierto, transparente y ciudadanía consciente | N48: O23011605570000001697 | O48: 1 | P48: 52442869 | Q48: MATILDE DEL PILAR CAMARGO PINTO | R48: Persona Natural | W48: 50600000 | Y48: 1 | Z48: 6133333 | AA48: 56733333 | AB48: 47533333 | AC48: 2022-01-18 | AD48: 2022-01-21 | AE48: 2023-01-30 | AF48: 330 | AG48: 1 | AH48: 40 | AM48: Terminado | AN48: 0.8378378369
A49: 38 | B49: 2022 | C49: FDLRUU-CD038-2021 | D49: https://Community.seCop.gov.Co/PubliC/Tendering/OpportunityDetail/Index?notiCeUID=CO1.NTC.2611856&isFromPubliCArea=True&isModal=False | E49: Contratos de prestación de servicios profesionales y de apoyo a la gestión | F49: Contratación directa | G49: Prestación de servicios profesionales y de apoyo a la gestión, o para la ejecución de trabajos artísticos que sólo puedan encomendarse a determinadas personas naturales | H49: APOYAR LAS LABORES DE ENTREGA Y RECIBO DE LAS COMUNICACIONES EMITIDAS O RECIBIDAS POR LAS INSPECCIONES DE POLICÍA DE LA LOCALIDAD | I49: Inversión | J49: Un nuevo contrato social y ambiental para la Bogotá del Siglo XXI | K49: 57 | L49: =IF(ISERROR(VLOOKUP(K49,Proposito_programa!$C$2:$E$59,2,FALSE))," ",VLOOKUP(K49,Proposito_programa!$C$2:$E$59,2,FALSE)) -> Gestión pública local | M49: =IF(ISERROR(VLOOKUP(K49,Proposito_programa!$C$2:$E$59,3,FALSE))," ",VLOOKUP(K49,Proposito_programa!$C$2:$E$59,3,FALSE)) -> Propósito 5: Construir Bogotá - Región con gobierno abierto, transparente y ciudadanía consciente | N49: O23011605570000001698 | O49: 1 | P49: 79303323 | Q49: ALVARO CASTAÑEDA ALDANA | R49: Persona Natural | W49: 27500000 | Y49: 1 | Z49: 2916667 | AA49: 30416667 | AB49: 25416667 | AC49: 2022-01-19 | AD49: 2022-01-26 | AE49: 2023-01-30 | AF49: 330 | AG49: 1 | AH49: 35 | AM49: Terminado | AN49: 0.8356164402
A50: 39 | B50: 2022 | C50: FDLRUU-CD-039-2022 | D50: https://Community.seCop.gov.Co/PubliC/Tendering/OpportunityDetail/Index?notiCeUID=CO1.NTC.2611434&isFromPubliCArea=True&isModal=False | E50: Contratos de prestación de servicios profesionales y de apoyo a la gestión | F50: Contratación directa | G50: Prestación de servicios profesionales y de apoyo a la gestión, o para la ejecución de trabajos artísticos que sólo puedan encomendarse a determinadas personas naturales | H50: PRESTAR SUS SERVICIOS ASISTENCIALES PARA LA GESTIÓN DEL RIESGO, EN EL MARCO DEL PROYECTO 1665 VIGÍAS DEL RIESGO DE LA LOCALIDAD DE RAFAEL URIBE URIBE , A LA LUZ DEL PLAN DE DESARROLLO 2021 2024 'UN NUEVO CONTRATO AMBIENTAL Y SOCIAL. | I50: Inversión | J50: Un nuevo contrato social y ambiental para la Bogotá del Siglo XXI | K50: 30 | L50: =IF(ISERROR(VLOOKUP(K50,Proposito_programa!$C$2:$E$59,2,FALSE))," ",VLOOKUP(K50,Proposito_programa!$C$2:$E$59,2,FALSE)) -> Eficiencia en la atención de emergencias | M50: =IF(ISERROR(VLOOKUP(K50,Proposito_programa!$C$2:$E$59,3,FALSE))," ",VLOOKUP(K50,Proposito_programa!$C$2:$E$59,3,FALSE)) -> Propósito 2 : Cambiar Nuestros Hábitos de Vida para Reverdecer a Bogotá y Adaptarnos y Mitigar la Crisis Climática | N50: O23011602300000001665 | O50: 1 | P50: 80882081 | Q50: JEISSON CAMILO RAMIREZ MALAGÓN | R50: Persona Natural | W50: 19800000 | Y50: 1 | Z50: 2400000 | AA50: 22200000 | AB50: 18600000 | AC50: 2022-01-19 | AD50: 2022-01-21 | AE50: 2023-01-22 | AF50: 330 | AG50: 1 | AH50: 40 | AM50: Terminacion Anticipada | AN50: 0.8378378378
A51: 40 | B51: 2022 | C51: FDLRUU-CD-039-2022 | D51: https://Community.seCop.gov.Co/PubliC/Tendering/OpportunityDetail/Index?notiCeUID=CO1.NTC.2611434&isFromPubliCArea=True&isModal=False | E51: Contratos de prestación de servicios profesionales y de apoyo a la gestión | F51: Contratación directa | G51: Prestación de servicios profesionales y de apoyo a la gestión, o para la ejecución de trabajos artísticos que sólo puedan encomendarse a determinadas personas naturales | H51: PRESTAR SUS SERVICIOS ASISTENCIALES PARA LA GESTIÓN DEL RIESGO, EN EL MARCO DEL PROYECTO 1665 VIGÍAS DEL RIESGO DE LA LOCALIDAD DE RAFAEL URIBE URIBE , A LA LUZ DEL PLAN DE DESARROLLO 2021 2024 'UN NUEVO CONTRATO AMBIENTAL Y SOCIAL. | I51: Inversión | J51: Un nuevo contrato social y ambiental para la Bogotá del Siglo XXI | K51: 30 | L51: =IF(ISERROR(VLOOKUP(K51,Proposito_programa!$C$2:$E$59,2,FALSE))," ",VLOOKUP(K51,Proposito_programa!$C$2:$E$59,2,FALSE)) -> Eficiencia en la atención de emergencias | M51: =IF(ISERROR(VLOOKUP(K51,Proposito_programa!$C$2:$E$59,3,FALSE))," ",VLOOKUP(K51,Proposito_programa!$C$2:$E$59,3,FALSE)) -> Propósito 2 : Cambiar Nuestros Hábitos de Vida para Reverdecer a Bogotá y Adaptarnos y Mitigar la Crisis Climática | N51: O23011602300000001665 | O51: 1 | P51: 79742551 | Q51: WILSON HERNANDO ALFONSO MORENO | R51: Persona Natural | W51: 19800000 | Y51: 1 | Z51: 2220000 | AA51: 22020000 | AB51: 18420000 | AC51: 2022-01-20 | AD51: 2022-01-24 | AE51: 2023-01-22 | AF51: 330 | AG51: 1 | AH51: 37 | AM51: Terminacion Anticipada | AN51: 0.8365122616
A52: 41 | B52: 2022 | C52: FDLRUU-CD-039-2022 | D52: https://Community.seCop.gov.Co/PubliC/Tendering/OpportunityDetail/Index?notiCeUID=CO1.NTC.2611434&isFromPubliCArea=True&isModal=False | E52: Contratos de prestación de servicios profesionales y de apoyo a la gestión | F52: Contratación directa | G52: Prestación de servicios profesionales y de apoyo a la gestión, o para la ejecución de trabajos artísticos que sólo puedan encomendarse a determinadas personas naturales | H52: PRESTAR SUS SERVICIOS ASISTENCIALES PARA LA GESTIÓN DEL RIESGO, EN EL MARCO DEL PROYECTO 1665 VIGÍAS DEL RIESGO DE LA LOCALIDAD DE RAFAEL URIBE URIBE , A LA LUZ DEL PLAN DE DESARROLLO 2021 2024 'UN NUEVO CONTRATO AMBIENTAL Y SOCIAL. | I52: Inversión | J52: Un nuevo contrato social y ambiental para la Bogotá del Siglo XXI | K52: 30 | L52: =IF(ISERROR(VLOOKUP(K52,Proposito_programa!$C$2:$E$59,2,FALSE))," ",VLOOKUP(K52,Proposito_programa!$C$2:$E$59,2,FALSE)) -> Eficiencia en la atención de emergencias | M52: =IF(ISERROR(VLOOKUP(K52,Proposito_programa!$C$2:$E$59,3,FALSE))," ",VLOOKUP(K52,Proposito_programa!$C$2:$E$59,3,FALSE)) -> Propósito 2 : Cambiar Nuestros Hábitos de Vida para Reverdecer a Bogotá y Adaptarnos y Mitigar la Crisis Climática | N52: O23011602300000001665 | O52: 1 | P52: 1024492481 | Q52: CAROLINA MENDOZA GUTIERREZ | R52: Persona Natural | W52: 19800000 | Y52: 1 | Z52: 2040000 | AA52: 21840000 | AB52: 18240000 | AC52: 2022-01-21 | AD52: 2022-01-27 | AE52: 2023-01-24 | AF52: 330 | AG52: 1 | AH52: 34 | AM52: Terminacion Anticipada | AN52: 0.8351648352
A53: 42 | B53: 2022 | C53: FDLRUU-CD-039-2022 | D53: https://Community.seCop.gov.Co/PubliC/Tendering/OpportunityDetail/Index?notiCeUID=CO1.NTC.2611434&isFromPubliCArea=True&isModal=False | E53: Contratos de prestación de servicios profesionales y de apoyo a la gestión | F53: Contratación directa | G53: Prestación de servicios profesionales y de apoyo a la gestión, o para la ejecución de trabajos artísticos que sólo puedan encomendarse a determinadas personas naturales | H53: PRESTAR SUS SERVICIOS ASISTENCIALES PARA LA GESTIÓN DEL RIESGO, EN EL MARCO DEL PROYECTO 1665 VIGÍAS DEL RIESGO DE LA LOCALIDAD DE RAFAEL URIBE URIBE , A LA LUZ DEL PLAN DE DESARROLLO 2021 2024 'UN NUEVO CONTRATO AMBIENTAL Y SOCIAL. | I53: Inversión | J53: Un nuevo contrato social y ambiental para la Bogotá del Siglo XXI | K53: 30 | L53: =IF(ISERROR(VLOOKUP(K53,Proposito_programa!$C$2:$E$59,2,FALSE))," ",VLOOKUP(K53,Proposito_programa!$C$2:$E$59,2,FALSE)) -> Eficiencia en la atención de emergencias | M53: =IF(ISERROR(VLOOKUP(K53,Proposito_programa!$C$2:$E$59,3,FALSE))," ",VLOOKUP(K53,Proposito_programa!$C$2:$E$59,3,FALSE)) -> Propósito 2 : Cambiar Nuestros Hábitos de Vida para Reverdecer a Bogotá y Adaptarnos y Mitigar la Crisis Climática | N53: O23011602300000001665 | O53: 1 | P53: 39647356 | Q53: CLELIA ESTRID PINEDA ORTIZ | R53: Persona Natural | W53: 19800000 | Y53: 1 | Z53: 2400000 | AA53: 22200000 | AB53: 18600000 | AC53: 2022-01-20 | AD53: 2022-01-21 | AE53: 2023-01-30 | AF53: 330 | AG53: 1 | AH53: 40 | AM53: Terminado | AN53: 0.8378378378
A54: 43 | B54: 2022 | C54: FDLRUU-CD-039-2022 | D54: https://Community.seCop.gov.Co/PubliC/Tendering/OpportunityDetail/Index?notiCeUID=CO1.NTC.2611434&isFromPubliCArea=True&isModal=False | E54: Contratos de prestación de servicios profesionales y de apoyo a la gestión | F54: Contratación directa | G54: Prestación de servicios profesionales y de apoyo a la gestión, o para la ejecución de trabajos artísticos que sólo puedan encomendarse a determinadas personas naturales | H54: PRESTAR SUS SERVICIOS ASISTENCIALES PARA LA GESTIÓN DEL RIESGO, EN EL MARCO DEL PROYECTO 1665 VIGÍAS DEL RIESGO DE LA LOCALIDAD DE RAFAEL URIBE URIBE , A LA LUZ DEL PLAN DE DESARROLLO 2021 2024 'UN NUEVO CONTRATO AMBIENTAL Y SOCIAL. | I54: Inversión | J54: Un nuevo contrato social y ambiental para la Bogotá del Siglo XXI | K54: 30 | L54: =IF(ISERROR(VLOOKUP(K54,Proposito_programa!$C$2:$E$59,2,FALSE))," ",VLOOKUP(K54,Proposito_programa!$C$2:$E$59,2,FALSE)) -> Eficiencia en la atención de emergencias | M54: =IF(ISERROR(VLOOKUP(K54,Proposito_programa!$C$2:$E$59,3,FALSE))," ",VLOOKUP(K54,Proposito_programa!$C$2:$E$59,3,FALSE)) -> Propósito 2 : Cambiar Nuestros Hábitos de Vida para Reverdecer a Bogotá y Adaptarnos y Mitigar la Crisis Climática | N54: O23011602300000001665 | O54: 1 | P54: 52025495 | Q54: SANDRA BIBIANA ROMERO CALDERON | R54: Persona Natural | W54: 19800000 | Y54: 1 | Z54: 2100000 | AA54: 21900000 | AB54: 18300000 | AC54: 2022-01-25 | AD54: 2022-01-26 | AE54: 2023-01-22 | AF54: 330 | AG54: 1 | AH54: 35 | AM54: Terminacion Anticipada | AN54: 0.8356164384
A55: 44 | B55: 2022 | C55: FDLRUU-CD-039-2022 | D55: https://Community.seCop.gov.Co/PubliC/Tendering/OpportunityDetail/Index?notiCeUID=CO1.NTC.2611434&isFromPubliCArea=True&isModal=False | E55: Contratos de prestación de servicios profesionales y de apoyo a la gestión | F55: Contratación directa | G55: Prestación de servicios profesionales y de apoyo a la gestión, o para la ejecución de trabajos artísticos que sólo puedan encomendarse a determinadas personas naturales | H55: PRESTAR SUS SERVICIOS ASISTENCIALES PARA LA GESTIÓN DEL RIESGO,EN EL MARCO DEL PROYECTO 1665 VIGÍAS DEL RIESGO DE LA LOCALIDAD DE RAFAEL URIBE URIBE A LA LUZ DEL PLAN DE DESARROLLO 2021 2024 'UN NUEVO CONTRATO AMBIENTAL Y SOCIAL | I55: Inversión | J55: Un nuevo contrato social y ambiental para la Bogotá del Siglo XXI | K55: 30 | L55: =IF(ISERROR(VLOOKUP(K55,Proposito_programa!$C$2:$E$59,2,FALSE))," ",VLOOKUP(K55,Proposito_programa!$C$2:$E$59,2,FALSE)) -> Eficiencia en la atención de emergencias | M55: =IF(ISERROR(VLOOKUP(K55,Proposito_programa!$C$2:$E$59,3,FALSE))," ",VLOOKUP(K55,Proposito_programa!$C$2:$E$59,3,FALSE)) -> Propósito 2 : Cambiar Nuestros Hábitos de Vida para Reverdecer a Bogotá y Adaptarnos y Mitigar la Crisis Climática | N55: O23011602300000001665 | O55: 1 | P55: 79515849 | Q55: JUAN CARLOS ALVAREZ SANABRIA | R55: Persona Natural | W55: 19800000 | AA55: 19800000 | AB55: 17880000 | AC55: 2022-01-22 | AD55: 2022-02-03 | AE55: 2023-01-02 | AF55: 330 | AM55: Terminado | AN55: 0.903030303
A56: 45 | B56: 2022 | C56: FDLRUU-CD-039-2022 | D56: https://Community.seCop.gov.Co/PubliC/Tendering/OpportunityDetail/Index?notiCeUID=CO1.NTC.2611434&isFromPubliCArea=True&isModal=False | E56: Contratos de prestación de servicios profesionales y de apoyo a la gestión | F56: Contratación directa | G56: Prestación de servicios profesionales y de apoyo a la gestión, o para la ejecución de trabajos artísticos que sólo puedan encomendarse a determinadas personas naturales | H56: PRESTAR SUS SERVICIOS ASISTENCIALES PARA LA GESTIÓN DEL RIESGO, EN EL MARCO DEL PROYECTO 1665 VIGÍAS DEL RIESGO DE LA LOCALIDAD DE RAFAEL URIBE URIBE, A LA LUZ DEL PLAN DE DESARROLLO 2021 2024 'UN NUEVO CONTRATO AMBIENTAL Y SOCIAL | I56: Inversión | J56: Un nuevo contrato social y ambiental para la Bogotá del Siglo XXI | K56: 30 | L56: =IF(ISERROR(VLOOKUP(K56,Proposito_programa!$C$2:$E$59,2,FALSE))," ",VLOOKUP(K56,Proposito_programa!$C$2:$E$59,2,FALSE)) -> Eficiencia en la atención de emergencias | M56: =IF(ISERROR(VLOOKUP(K56,Proposito_programa!$C$2:$E$59,3,FALSE))," ",VLOOKUP(K56,Proposito_programa!$C$2:$E$59,3,FALSE)) -> Propósito 2 : Cambiar Nuestros Hábitos de Vida para Reverdecer a Bogotá y Adaptarnos y Mitigar la Crisis Climática | N56: O23011602300000001665 | O56: 1 | P56: 1013593717 | Q56: NANCY PAOLA BOLIVAR MACA | R56: Persona Natural | W56: 19800000 | Y56: 1 | Z56: 1800000 | AA56: 21600000 | AB56: 18000000 | AC56: 2022-01-28 | AD56: 2022-02-01 | AE56: 2023-01-30 | AF56: 330 | AG56: 1 | AH56: 30 | AM56: Terminado | AN56: 0.8333333333
A57: 46 | B57: 2022 | C57: FDLRUU-CD-039-2022 | D57: https://Community.seCop.gov.Co/PubliC/Tendering/OpportunityDetail/Index?notiCeUID=CO1.NTC.2611434&isFromPubliCArea=True&isModal=False | E57: Contratos de prestación de servicios profesionales y de apoyo a la gestión | F57: Contratación directa | G57: Prestación de servicios profesionales y de apoyo a la gestión, o para la ejecución de trabajos artísticos que sólo puedan encomendarse a determinadas personas naturales | H57: PRESTAR SUS SERVICIOS ASISTENCIALES PARA LA GESTIÓN DEL RIESGO, EN EL MARCO DEL PROYECTO 1665 VIGÍAS DEL RIESGO DE LA LOCALIDAD DE RAFAEL URIBE URIBE , A LA LUZ DEL PLAN DE DESARROLLO 2021 2024 'UN NUEVO CONTRATO AMBIENTAL Y SOCIAL | I57: Inversión | J57: Un nuevo contrato social y ambiental para la Bogotá del Siglo XXI | K57: 30 | L57: =IF(ISERROR(VLOOKUP(K57,Proposito_programa!$C$2:$E$59,2,FALSE))," ",VLOOKUP(K57,Proposito_programa!$C$2:$E$59,2,FALSE)) -> Eficiencia en la atención de emergencias | M57: =IF(ISERROR(VLOOKUP(K57,Proposito_programa!$C$2:$E$59,3,FALSE))," ",VLOOKUP(K57,Proposito_programa!$C$2:$E$59,3,FALSE)) -> Propósito 2 : Cambiar Nuestros Hábitos de Vida para Reverdecer a Bogotá y Adaptarnos y Mitigar la Crisis Climática | N57: O23011602300000001665 | O57: 1 | P57: 1000346902 | Q57: DAVID GUSTAVO ALVAREZ LOPEZ | R57: Persona Natural | W57: 19800000 | Y57: 1 | Z57: 1800000 | AA57: 21600000 | AB57: 18000000 | AC57: 2022-01-27 | AD57: 2022-02-01 | AE57: 2023-01-30 | AF57: 330 | AG57: 1 | AH57: 30 | AM57: Terminado | AN57: 0.8333333333
A58: 47 | B58: 2022 | C58: FDLRUU-CD-039-2022 | D58: https://Community.seCop.gov.Co/PubliC/Tendering/OpportunityDetail/Index?notiCeUID=CO1.NTC.2611434&isFromPubliCArea=True&isModal=False | E58: Contratos de prestación de servicios profesionales y de apoyo a la gestión | F58: Contratación directa | G58: Prestación de servicios profesionales y de apoyo a la gestión, o para la ejecución de trabajos artísticos que sólo puedan encomendarse a determinadas personas naturales | H58: "PRESTAR SUS SERVICIOS ASISTENCIALES PARA LA GESTIÓN DEL RIESGO, EN EL MARCO DEL PROYECTO 1665 VIGÍAS DEL RIESGO DE LA LOCALIDAD DE RAFAEL URIBE URIBE , A LA LUZ DEL PLAN DE DESARROLLO 2021 2024 'UN NUEVO CONTRATO AMBIENTAL Y SOCIAL | I58: Inversión | J58: Un nuevo contrato social y ambiental para la Bogotá del Siglo XXI | K58: 30 | L58: =IF(ISERROR(VLOOKUP(K58,Proposito_programa!$C$2:$E$59,2,FALSE))," ",VLOOKUP(K58,Proposito_programa!$C$2:$E$59,2,FALSE)) -> Eficiencia en la atención de emergencias | M58: =IF(ISERROR(VLOOKUP(K58,Proposito_programa!$C$2:$E$59,3,FALSE))," ",VLOOKUP(K58,Proposito_programa!$C$2:$E$59,3,FALSE)) -> Propósito 2 : Cambiar Nuestros Hábitos de Vida para Reverdecer a Bogotá y Adaptarnos y Mitigar la Crisis Climática | N58: O23011602300000001665 | O58: 1 | P58: 1030639805 | Q58: JEFERSON PARRA TRIVIÑO | R58: Persona Natural | W58: 19800000 | AA58: 19800000 | AB58: 16080000 | AC58: 2022-01-27 | AD58: 2022-02-04 | AE58: 2023-01-03 | AF58: 330 | AM58: Terminado | AN58: 0.8121212121
A59: 48 | B59: 2022 | C59: FDLRUU-CD-039-2022 | D59: https://Community.seCop.gov.Co/PubliC/Tendering/OpportunityDetail/Index?notiCeUID=CO1.NTC.2611434&isFromPubliCArea=True&isModal=False | E59: Contratos de prestación de servicios profesionales y de apoyo a la gestión | F59: Contratación directa | G59: Prestación de servicios profesionales y de apoyo a la gestión, o para la ejecución de trabajos artísticos que sólo puedan encomendarse a determinadas personas naturales | H59: PRESTAR LOS SERVICIOS TECNICOS PARA DESARROLLAR ACTIVIDADES TENDIENTES A GARANTIZAR LA SALUD Y LA ATENCIÓN DE LAS EMERGENCIAS Y DESASTRES QUE SE PRESENTEN EN LA LOCALIDAD RAFAEL URIBE URIBE EN MARCO DEL PROYECTO 1665 | I59: Inversión | J59: Un nuevo contrato social y ambiental para la Bogotá del Siglo XXI | K59: 30 | L59: =IF(ISERROR(VLOOKUP(K59,Proposito_programa!$C$2:$E$59,2,FALSE))," ",VLOOKUP(K59,Proposito_programa!$C$2:$E$59,2,FALSE)) -> Eficiencia en la atención de emergencias | M59: =IF(ISERROR(VLOOKUP(K59,Proposito_programa!$C$2:$E$59,3,FALSE))," ",VLOOKUP(K59,Proposito_programa!$C$2:$E$59,3,FALSE)) -> Propósito 2 : Cambiar Nuestros Hábitos de Vida para Reverdecer a Bogotá y Adaptarnos y Mitigar la Crisis Climática | N59: O23011602300000001665 | O59: 1 | P59: 71337316 | Q59: JOHN JAIRO OSPINA AGUDELO | R59: Persona Natural | W59: 19800000 | AA59: 19800000 | AB59: 17940000 | AC59: 2022-01-28 | AD59: 2022-02-02 | AE59: 2023-01-01 | AF59: 330 | AM59: Terminado | AN59: 0.9060606061
A60: 49 | B60: 2022 | C60: FDLRUU-CD-049-2022 | D60: https://Community.seCop.gov.Co/PubliC/Tendering/OpportunityDetail/Index?notiCeUID=CO1.NTC.2620309&isFromPubliCArea=True&isModal=False | E60: Contratos de prestación de servicios profesionales y de apoyo a la gestión | F60: Contratación directa | G60: Prestación de servicios profesionales y de apoyo a la gestión, o para la ejecución de trabajos artísticos que sólo puedan encomendarse a determinadas personas naturales | H60: APOYAR JURÍDICAMENTE LA EJECUCIÓN DE LAS ACCIONES REQUERIDAS PARA EL TRÁMITE E IMPULSO PROCESAL DE LAS ACTUACIONES CONTRAVENCIONALES Y/O QUERELLAS QUE CURSEN EN LAS INSPECCIONES DE POLICÍA DE LA LOCALIDAD DE RAFAEL URIBE URIBE | I60: Inversión | J60: Un nuevo contrato social y ambiental para la Bogotá del Siglo XXI | K60: 57 | L60: =IF(ISERROR(VLOOKUP(K60,Proposito_programa!$C$2:$E$59,2,FALSE))," ",VLOOKUP(K60,Proposito_programa!$C$2:$E$59,2,FALSE)) -> Gestión pública local | M60: =IF(ISERROR(VLOOKUP(K60,Proposito_programa!$C$2:$E$59,3,FALSE))," ",VLOOKUP(K60,Proposito_programa!$C$2:$E$59,3,FALSE)) -> Propósito 5: Construir Bogotá - Región con gobierno abierto, transparente y ciudadanía consciente | N60: O23011605570000001698 | O60: 1 | P60: 79536725 | Q60: JHON FREDY HERRERA TORRES | R60: Persona Natural | W60: 59400000 | Y60: 1 | Z60: 6480000 | AA60: 65880000 | AB60: 55080000 | AC60: 2022-01-19 | AD60: 2022-01-25 | AE60: 2023-01-19 | AF60: 330 | AG60: 1 | AH60: 36 | AM60: Terminacion Anticipada | AN60: 0.8360655738
A61: 50 | B61: 2022 | C61: FDLRUU-CD-049-2022 | D61: https://Community.seCop.gov.Co/PubliC/Tendering/OpportunityDetail/Index?notiCeUID=CO1.NTC.2620309&isFromPubliCArea=True&isModal=False | E61: Contratos de prestación de servicios profesionales y de apoyo a la gestión | F61: Contratación directa | G61: Prestación de servicios profesionales y de apoyo a la gestión, o para la ejecución de trabajos artísticos que sólo puedan encomendarse a determinadas personas naturales | H61: APOYAR JURÍDICAMENTE LA EJECUCIÓN DE LAS ACCIONES REQUERIDAS PARA EL TRÁMITE E IMPULSO PROCESAL DE LAS ACTUACIONES CONTRAVENCIONALES Y/O QUERELLAS QUE CURSEN EN LAS INSPECCIONES DE POLICÍA DE LA LOCALIDAD DE RAFAEL URIBE URIBE | I61: Inversión | J61: Un nuevo contrato social y ambiental para la Bogotá del Siglo XXI | K61: 57 | L61: =IF(ISERROR(VLOOKUP(K61,Proposito_programa!$C$2:$E$59,2,FALSE))," ",VLOOKUP(K61,Proposito_programa!$C$2:$E$59,2,FALSE)) -> Gestión pública local | M61: =IF(ISERROR(VLOOKUP(K61,Proposito_programa!$C$2:$E$59,3,FALSE))," ",VLOOKUP(K61,Proposito_programa!$C$2:$E$59,3,FALSE)) -> Propósito 5: Construir Bogotá - Región con gobierno abierto, transparente y ciudadanía consciente | N61: O23011605570000001698 | O61: 1 | P61: 79307654 | Q61: ALVARO GOMEZ GÓMEZ | R61: Persona Natural | W61: 59400000 | Y61: 1 | Z61: 6120000 | AA61: 65520000 | AB61: =14220000+AL61 -> 54720000 | AC61: 2022-01-22 | AD61: 2022-01-27 | AE61: 2023-01-30 | AF61: 330 | AG61: 1 | AH61: 34 | AI61: 1022372371 | AJ61: JUAN DAVID VARGAS VILLAREAL | AK61: 2022-09-13 | AL61: 40500000 | AM61: Terminado | AN61: 0.8351648352
A62: 51 | B62: 2022 | C62: FDLRUU-CD-049-2022 | D62: https://Community.seCop.gov.Co/PubliC/Tendering/OpportunityDetail/Index?notiCeUID=CO1.NTC.2620309&isFromPubliCArea=True&isModal=False | E62: Contratos de prestación de servicios profesionales y de apoyo a la gestión | F62: Contratación directa | G62: Prestación de servicios profesionales y de apoyo a la gestión, o para la ejecución de trabajos artísticos que sólo puedan encomendarse a determinadas personas naturales | H62: APOYAR JURÍDICAMENTE LA EJECUCIÓN DE LAS ACCIONES REQUERIDAS PARA EL TRÁMITE E IMPULSO PROCESAL DE LAS ACTUACIONES CONTRAVENCIONALES Y/O QUERELLAS QUE CURSEN EN LAS INSPECCIONES DE POLICÍA DE LA LOCALIDAD DE RAFAEL URIBE URIBE | I62: Inversión | J62: Un nuevo contrato social y ambiental para la Bogotá del Siglo XXI | K62: 57 | L62: =IF(ISERROR(VLOOKUP(K62,Proposito_programa!$C$2:$E$59,2,FALSE))," ",VLOOKUP(K62,Proposito_programa!$C$2:$E$59,2,FALSE)) -> Gestión pública local | M62: =IF(ISERROR(VLOOKUP(K62,Proposito_programa!$C$2:$E$59,3,FALSE))," ",VLOOKUP(K62,Proposito_programa!$C$2:$E$59,3,FALSE)) -> Propósito 5: Construir Bogotá - Región con gobierno abierto, transparente y ciudadanía consciente | N62: O23011605570000001698 | O62: 1 | P62: 18933787 | Q62: JAIME ARIAS CASTRO | R62: Persona Natural | W62: 59400000 | AA62: 59400000 | AB62: 47340000 | AC62: 2022-01-24 | AD62: 2022-02-08 | AE62: 2023-01-07 | AF62: 330 | AM62: Terminado | AN62: 0.796969697
A63: 52 | B63: 2022 | C63: FDLRUU-CD-049-2022 | D63: https://Community.seCop.gov.Co/PubliC/Tendering/OpportunityDetail/Index?notiCeUID=CO1.NTC.2620309&isFromPubliCArea=True&isModal=False | E63: Contratos de prestación de servicios profesionales y de apoyo a la gestión | F63: Contratación directa | G63: Prestación de servicios profesionales y de apoyo a la gestión, o para la ejecución de trabajos artísticos que sólo puedan encomendarse a determinadas personas naturales | H63: APOYAR JURÍDICAMENTE LA EJECUCIÓN DE LAS ACCIONES REQUERIDAS PARA EL TRÁMITE E IMPULSO PROCESAL DE LAS ACTUACIONES CONTRAVENCIONALES Y/O QUERELLAS QUE CURSEN EN LAS INSPECCIONES DE POLICÍA DE LA LOCALIDAD. | I63: Inversión | J63: Un nuevo contrato social y ambiental para la Bogotá del Siglo XXI | K63: 57 | L63: =IF(ISERROR(VLOOKUP(K63,Proposito_programa!$C$2:$E$59,2,FALSE))," ",VLOOKUP(K63,Proposito_programa!$C$2:$E$59,2,FALSE)) -> Gestión pública local | M63: =IF(ISERROR(VLOOKUP(K63,Proposito_programa!$C$2:$E$59,3,FALSE))," ",VLOOKUP(K63,Proposito_programa!$C$2:$E$59,3,FALSE)) -> Propósito 5: Construir Bogotá - Región con gobierno abierto, transparente y ciudadanía consciente | N63: O23011605570000001698 | O63: 1 | P63: 79450983 | Q63: JUAN ANTONIO CARDENAS ACEVEDO | R63: Persona Natural | W63: 59400000 | Y63: 1 | Z63: 5940000 | AA63: 65340000 | AB63: 54540000 | AC63: 2022-01-26 | AD63: 2022-01-28 | AE63: 2023-01-30 | AF63: 330 | AG63: 1 | AH63: 33 | AM63: Terminado | AN63: 0.8347107438
A64: 53 | B64: 2022 | C64: FDLRUU-CD-049-2022 | D64: https://Community.seCop.gov.Co/PubliC/Common/GoogleReCaptCha/Index?previouSURl=https%3a%2f%2fCommunity.seCop.gov.Co%2fPubliC%2fTendering%2fOpportunityDetail%2fIndex%3fnotiCeUID%3dCO1.NTC.2620309%26isFromPubliCArea%3dTrue%26isModal%3dFalse | E64: Contratos de prestación de servicios profesionales y de apoyo a la gestión | F64: Contratación directa | G64: Prestación de servicios profesionales y de apoyo a la gestión, o para la ejecución de trabajos artísticos que sólo puedan encomendarse a determinadas personas naturales | H64: "APOYAR JURÍDICAMENTE LA EJECUCIÓN DE LAS ACCIONES REQUERIDAS PARA EL TRÁMITE E IMPULSO PROCESAL DE LAS ACTUACIONES CONTRAVENCIONALES Y/O QUERELLAS QUE CURSEN EN LAS INSPECCIONES DE POLICÍA DE LA LOCALIDAD." | I64: Inversión | J64: Un nuevo contrato social y ambiental para la Bogotá del Siglo XXI | K64: 57 | L64: =IF(ISERROR(VLOOKUP(K64,Proposito_programa!$C$2:$E$59,2,FALSE))," ",VLOOKUP(K64,Proposito_programa!$C$2:$E$59,2,FALSE)) -> Gestión pública local | M64: =IF(ISERROR(VLOOKUP(K64,Proposito_programa!$C$2:$E$59,3,FALSE))," ",VLOOKUP(K64,Proposito_programa!$C$2:$E$59,3,FALSE)) -> Propósito 5: Construir Bogotá - Región con gobierno abierto, transparente y ciudadanía consciente | N64: O23011605570000001698 | O64: 1 | P64: 79455376 | Q64: FELIPE ANDRES BARRAGAN MARTINEZ | R64: Persona Natural | W64: 59400000 | AA64: 59400000 | AB64: 53460000 | AC64: 2022-01-28 | AD64: 2022-02-04 | AE64: 2023-01-03 | AF64: 330 | AM64: Terminado | AN64: 0.9
A65: 54 | B65: 2022 | C65: FDLRUU-CD-049-2022 | D65: https://Community.seCop.gov.Co/PubliC/Common/GoogleReCaptCha/Index?previouSURl=https%3a%2f%2fCommunity.seCop.gov.Co%2fPubliC%2fTendering%2fOpportunityDetail%2fIndex%3fnotiCeUID%3dCO1.NTC.2620309%26isFromPubliCArea%3dTrue%26isModal%3dFalse | E65: Contratos de prestación de servicios profesionales y de apoyo a la gestión | F65: Contratación directa | G65: Prestación de servicios profesionales y de apoyo a la gestión, o para la ejecución de trabajos artísticos que sólo puedan encomendarse a determinadas personas naturales | H65: APOYAR JURÍDICAMENTE LA EJECUCIÓN DE LAS ACCIONES REQUERIDAS PARA EL TRÁMITE E IMPULSO PROCESAL DE LAS ACTUACIONES CONTRAVENCIONALES Y/O QUERELLAS QUE CURSEN EN LAS INSPECCIONES DE POLICÍA DE LA LOCALIDAD | I65: Inversión | J65: Un nuevo contrato social y ambiental para la Bogotá del Siglo XXI | K65: 57 | L65: =IF(ISERROR(VLOOKUP(K65,Proposito_programa!$C$2:$E$59,2,FALSE))," ",VLOOKUP(K65,Proposito_programa!$C$2:$E$59,2,FALSE)) -> Gestión pública local | M65: =IF(ISERROR(VLOOKUP(K65,Proposito_programa!$C$2:$E$59,3,FALSE))," ",VLOOKUP(K65,Proposito_programa!$C$2:$E$59,3,FALSE)) -> Propósito 5: Construir Bogotá - Región con gobierno abierto, transparente y ciudadanía consciente | N65: O23011605570000001698 | O65: 1 | P65: 52072284 | Q65: DELIA MARLEN PINTO BERNAL | R65: Persona Natural | W65: 59400000 | Y65: 1 | Z65: 5400000 | AA65: 64800000 | AB65: 54000000 | AC65: 2022-01-27 | AD65: 2022-02-01 | AE65: 2023-01-30 | AF65: 330 | AG65: 1 | AH65: 30 | AM65: Terminado | AN65: 0.8333333333
A66: 55 | B66: 2022 | C66: FDLRUU-CD-049-2022 | D66: https://Community.seCop.gov.Co/PubliC/Common/GoogleReCaptCha/Index?previouSURl=https%3a%2f%2fCommunity.seCop.gov.Co%2fPubliC%2fTendering%2fOpportunityDetail%2fIndex%3fnotiCeUID%3dCO1.NTC.2620309%26isFromPubliCArea%3dTrue%26isModal%3dFalse | E66: Contratos de prestación de servicios profesionales y de apoyo a la gestión | F66: Contratación directa | G66: Prestación de servicios profesionales y de apoyo a la gestión, o para la ejecución de trabajos artísticos que sólo puedan encomendarse a determinadas personas naturales | H66: APOYAR JURÍDICAMENTE LA EJECUCIÓN DE LAS ACCIONES REQUERIDAS PARA EL TRÁMITE E IMPULSO PROCESAL DE LAS ACTUACIONES CONTRAVENCIONALES Y/O QUERELLAS QUE CURSEN EN LAS INSPECCIONES DE POLICÍA DE LA LOCALIDAD | I66: Inversión | J66: Un nuevo contrato social y ambiental para la Bogotá del Siglo XXI | K66: 57 | L66: =IF(ISERROR(VLOOKUP(K66,Proposito_programa!$C$2:$E$59,2,FALSE))," ",VLOOKUP(K66,Proposito_programa!$C$2:$E$59,2,FALSE)) -> Gestión pública local | M66: =IF(ISERROR(VLOOKUP(K66,Proposito_programa!$C$2:$E$59,3,FALSE))," ",VLOOKUP(K66,Proposito_programa!$C$2:$E$59,3,FALSE)) -> Propósito 5: Construir Bogotá - Región con gobierno abierto, transparente y ciudadanía consciente | N66: O23011605570000001698 | O66: 1 | P66: 52525366 | Q66: ANYI PATRICIA BARON SALAMANCA | R66: Persona Natural | W66: 59400000 | AA66: 59400000 | AB66: 48780000 | AC66: 2022-01-28 | AD66: 2022-02-07 | AE66: 2023-01-23 | AF66: 330 | AM66: Terminacion Anticipada | AN66: 0.8212121212
A67: 56 | B67: 2022 | C67: FDLRUU-CD-049-2022 | D67: https://Community.seCop.gov.Co/PubliC/Common/GoogleReCaptCha/Index?previouSURl=https%3a%2f%2fCommunity.seCop.gov.Co%2fPubliC%2fTendering%2fOpportunityDetail%2fIndex%3fnotiCeUID%3dCO1.NTC.2620309%26isFromPubliCArea%3dTrue%26isModal%3dFalse | E67: Contratos de prestación de servicios profesionales y de apoyo a la gestión | F67: Contratación directa | G67: Prestación de servicios profesionales y de apoyo a la gestión, o para la ejecución de trabajos artísticos que sólo puedan encomendarse a determinadas personas naturales | H67: APOYAR JURÍDICAMENTE LA EJECUCIÓN DE LAS ACCIONES REQUERIDAS PARA EL TRÁMITE E IMPULSO PROCESAL DE LAS ACTUACIONES CONTRAVENCIONALES Y/O QUERELLAS QUE CURSEN EN LAS INSPECCIONES DE POLICÍA DE LA LOCALIDAD | I67: Inversión | J67: Un nuevo contrato social y ambiental para la Bogotá del Siglo XXI | K67: 57 | L67: =IF(ISERROR(VLOOKUP(K67,Proposito_programa!$C$2:$E$59,2,FALSE))," ",VLOOKUP(K67,Proposito_programa!$C$2:$E$59,2,FALSE)) -> Gestión pública local | M67: =IF(ISERROR(VLOOKUP(K67,Proposito_programa!$C$2:$E$59,3,FALSE))," ",VLOOKUP(K67,Proposito_programa!$C$2:$E$59,3,FALSE)) -> Propósito 5: Construir Bogotá - Región con gobierno abierto, transparente y ciudadanía consciente | N67: O23011605570000001698 | O67: 1 | P67: 1098675891 | Q67: SILVIA PATRICIA GOMEZ JAIMES | R67: Persona Natural | W67: 59400000 | Y67: 1 | Z67: 5040000 | AA67: 64440000 | AB67: 53640000 | AC67: 2022-01-28 | AD67: 2022-02-03 | AE67: 2023-01-25 | AF67: 330 | AG67: 1 | AH67: 28 | AM67: Terminacion Anticipada | AN67: 0.8324022346
A68: 57 | B68: 2022 | C68: FDLRUU-CD-049-2022 | D68: https://Community.seCop.gov.Co/PubliC/Common/GoogleReCaptCha/Index?previouSURl=https%3a%2f%2fCommunity.seCop.gov.Co%2fPubliC%2fTendering%2fOpportunityDetail%2fIndex%3fnotiCeUID%3dCO1.NTC.2620309%26isFromPubliCArea%3dTrue%26isModal%3dFalse | E68: Contratos de prestación de servicios profesionales y de apoyo a la gestión | F68: Contratación directa | G68: Prestación de servicios profesionales y de apoyo a la gestión, o para la ejecución de trabajos artísticos que sólo puedan encomendarse a determinadas personas naturales | H68: APOYAR JURÍDICAMENTE LA EJECUCIÓN DE LAS ACCIONES REQUERIDAS PARA EL TRÁMITE E IMPULSO PROCESAL DE LAS ACTUACIONES CONTRAVENCIONALES Y/O QUERELLAS QUE CURSEN EN LAS INSPECCIONES DE POLICÍA DE LA LOCALIDAD | I68: Inversión | J68: Un nuevo contrato social y ambiental para la Bogotá del Siglo XXI | K68: 57 | L68: =IF(ISERROR(VLOOKUP(K68,Proposito_programa!$C$2:$E$59,2,FALSE))," ",VLOOKUP(K68,Proposito_programa!$C$2:$E$59,2,FALSE)) -> Gestión pública local | M68: =IF(ISERROR(VLOOKUP(K68,Proposito_programa!$C$2:$E$59,3,FALSE))," ",VLOOKUP(K68,Proposito_programa!$C$2:$E$59,3,FALSE)) -> Propósito 5: Construir Bogotá - Región con gobierno abierto, transparente y ciudadanía consciente | N68: O23011605570000001698 | O68: 1 | P68: 52874586 | Q68: DANCY LUDITH RODRIGUEZ RIVERA | R68: Persona Natural | W68: 59400000 | Y68: 1 | Z68: 5400000 | AA68: 64800000 | AB68: 54000000 | AC68: 2022-01-28 | AD68: 2022-02-01 | AE68: 2023-01-23 | AF68: 330 | AG68: 1 | AH68: 30 | AM68: Terminacion Anticipada | AN68: 0.8333333333
A69: 58 | B69: 2022 | C69: FDLRUU-CD-058-2022 | D69: https://Community.seCop.gov.Co/PubliC/Tendering/OpportunityDetail/Index?notiCeUID=CO1.NTC.2657540&isFromPubliCArea=True&isModal=False | E69: Contratos de prestación de servicios profesionales y de apoyo a la gestión | F69: Contratación directa | G69: Prestación de servicios profesionales y de apoyo a la gestión, o para la ejecución de trabajos artísticos que sólo puedan encomendarse a determinadas personas naturales | H69: APOYAR TÉCNICAMENTE LAS DISTINTAS ETAPAS DE LOS PROCESOS DE COMPETENCIA DE LAS INSPECCIONES DE POLICÍA DE LA LOCALIDAD, SEGÚN REPARTO | I69: Inversión | J69: Un nuevo contrato social y ambiental para la Bogotá del Siglo XXI | K69: 57 | L69: =IF(ISERROR(VLOOKUP(K69,Proposito_programa!$C$2:$E$59,2,FALSE))," ",VLOOKUP(K69,Proposito_programa!$C$2:$E$59,2,FALSE)) -> Gestión pública local | M69: =IF(ISERROR(VLOOKUP(K69,Proposito_programa!$C$2:$E$59,3,FALSE))," ",VLOOKUP(K69,Proposito_programa!$C$2:$E$59,3,FALSE)) -> Propósito 5: Construir Bogotá - Región con gobierno abierto, transparente y ciudadanía consciente | N69: O23011605570000001698 | O69: 1 | P69: 79347561 | Q69: JUAN CARLOS USSA LIZARAZO | R69: Persona Natural | W69: 59400000 | Y69: 1 | Z69: 6120000 | AA69: 65520000 | AB69: 54720000 | AC69: 2022-01-22 | AD69: 2022-01-27 | AE69: 2023-01-22 | AF69: 330 | AG69: 1 | AH69: 34 | AM69: Terminacion Anticipada | AN69: 0.8351648352
A70: 59 | B70: 2022 | C70: FDLRUU-CD-059-2022 | D70: https://Community.seCop.gov.Co/PubliC/Tendering/OpportunityDetail/Index?notiCeUID=CO1.NTC.2641872&isFromPubliCArea=True&isModal=False | E70: Contratos de prestación de servicios profesionales y de apoyo a la gestión | F70: Contratación directa | G70: Prestación de servicios profesionales y de apoyo a la gestión, o para la ejecución de trabajos artísticos que sólo puedan encomendarse a determinadas personas naturales | H70: PRESTAR LOS SERVICIOS PROFESIONALES DE APOYO EN EL ÁREA DE GESTIÓN DE DESARROLLO LOCAL PARA ADELANTAR LAS ACTIVIDADES, TRAMITES Y PROCEDIMIENTOS RELACIONADOS CON EL MARCO NORMATIVO PRESUPUESTAL. | I70: Inversión | J70: Un nuevo contrato social y ambiental para la Bogotá del Siglo XXI | K70: 57 | L70: =IF(ISERROR(VLOOKUP(K70,Proposito_programa!$C$2:$E$59,2,FALSE))," ",VLOOKUP(K70,Proposito_programa!$C$2:$E$59,2,FALSE)) -> Gestión pública local | M70: =IF(ISERROR(VLOOKUP(K70,Proposito_programa!$C$2:$E$59,3,FALSE))," ",VLOOKUP(K70,Proposito_programa!$C$2:$E$59,3,FALSE)) -> Propósito 5: Construir Bogotá - Región con gobierno abierto, transparente y ciudadanía consciente | N70: O23011605570000001697 | O70: 1 | P70: 79489811 | Q70: LUIS JONNY CARRILLO BOMBIELA | R70: Persona Natural | W70: 59400000 | Y70: 1 | Z70: 6660000 | AA70: 66060000 | AB70: 55260000 | AC70: 2022-01-21 | AD70: 2022-01-24 | AE70: 2023-01-30 | AF70: 330 | AG70: 1 | AH70: 37 | AM70: Terminado | AN70: 0.8365122616
A71: 60 | B71: 2022 | C71: FDLRUU-CD-060-2022 | D71: https://Community.seCop.gov.Co/PubliC/Tendering/OpportunityDetail/Index?notiCeUID=CO1.NTC.2715173&isFromPubliCArea=True&isModal=False | E71: Contratos de prestación de servicios profesionales y de apoyo a la gestión | F71: Contratación directa | G71: Prestación de servicios profesionales y de apoyo a la gestión, o para la ejecución de trabajos artísticos que sólo puedan encomendarse a determinadas personas naturales | H71: APOYAR TÉCNICAMENTE LAS DISTINTAS ETAPAS DE LOS PROCESOS DE COMPETENCIA DE LAS INSPECCIONES DE POLICÍA DE LA LOCALIDAD, SEGÚN REPARTO | I71: Inversión | J71: Un nuevo contrato social y ambiental para la Bogotá del Siglo XXI | K71: 57 | L71: =IF(ISERROR(VLOOKUP(K71,Proposito_programa!$C$2:$E$59,2,FALSE))," ",VLOOKUP(K71,Proposito_programa!$C$2:$E$59,2,FALSE)) -> Gestión pública local | M71: =IF(ISERROR(VLOOKUP(K71,Proposito_programa!$C$2:$E$59,3,FALSE))," ",VLOOKUP(K71,Proposito_programa!$C$2:$E$59,3,FALSE)) -> Propósito 5: Construir Bogotá - Región con gobierno abierto, transparente y ciudadanía consciente | N71: O23011605570000001698 | O71: 1 | P71: 19338480 | Q71: JORGE HERNANDO RODRIGUEZ SANTANA | R71: Persona Natural | W71: 59400000 | Y71: 1 | Z71: 5400000 | AA71: 64800000 | AB71: 54000000 | AC71: 2022-01-25 | AD71: 2022-02-01 | AE71: 2023-01-24 | AF71: 330 | AG71: 1 | AH71: 30 | AM71: Terminacion Anticipada | AN71: 0.8333333333
A72: 61 | B72: 2022 | C72: FDLRUU-CD-061-2022 | D72: https://Community.seCop.gov.Co/PubliC/Tendering/OpportunityDetail/Index?notiCeUID=CO1.NTC.2676288&isFromPubliCArea=True&isModal=False | E72: Contratos de prestación de servicios profesionales y de apoyo a la gestión | F72: Contratación directa | G72: Prestación de servicios profesionales y de apoyo a la gestión, o para la ejecución de trabajos artísticos que sólo puedan encomendarse a determinadas personas naturales | H72: PRESTAR LOS SERVICIOS DE APOYO TECNICO EN EL AREA DE GESTION DE DESARROLLO LOCAL EN LOS TEMAS ASOCIADOS A LAS OBLIGACIONES POR PAGAR MEDIANTE EL SEGUIMIENTO A PAGOS, LA ACTUALIZACIÓN Y DEPURACIÓN DE LOS CONTRATOS QUE SE ENCUENTRAN ENEjecucion Y/O OBLIGACIONES POR PAGAR DE VIGENCIAS ANTERIORES VIGENTES EN EL FONDO DE DESARROLLO LOCAL DE RAFAEL URIBE URIBE. | I72: Inversión | J72: Un nuevo contrato social y ambiental para la Bogotá del Siglo XXI | K72: 57 | L72: =IF(ISERROR(VLOOKUP(K72,Proposito_programa!$C$2:$E$59,2,FALSE))," ",VLOOKUP(K72,Proposito_programa!$C$2:$E$59,2,FALSE)) -> Gestión pública local | M72: =IF(ISERROR(VLOOKUP(K72,Proposito_programa!$C$2:$E$59,3,FALSE))," ",VLOOKUP(K72,Proposito_programa!$C$2:$E$59,3,FALSE)) -> Propósito 5: Construir Bogotá - Región con gobierno abierto, transparente y ciudadanía consciente | N72: O23011605570000001697 | O72: 1 | P72: 1097332656 | Q72: VIANEY LUCIA ARDILA AVILA | R72: Persona Natural | W72: 44000000 | Y72: 1 | Z72: 4666667 | AA72: 48666667 | AB72: 40666667 | AC72: 2022-01-23 | AD72: 2022-01-26 | AE72: 2023-01-30 | AF72: 330 | AG72: 1 | AH72: 35 | AM72: Terminado | AN72: 0.8356164395
A73: 62 | B73: 2022 | C73: FDLRUU-CD-061-2022 | D73: https://Community.seCop.gov.Co/PubliC/Tendering/OpportunityDetail/Index?notiCeUID=CO1.NTC.2676288&isFromPubliCArea=True&isModal=False | E73: Contratos de prestación de servicios profesionales y de apoyo a la gestión | F73: Contratación directa | G73: Prestación de servicios profesionales y de apoyo a la gestión, o para la ejecución de trabajos artísticos que sólo puedan encomendarse a determinadas personas naturales | H73: PRESTAR LOS SERVICIOS DE APOYO TECNICO EN EL AREA DE GESTION DE DESARROLLO LOCAL EN LOS TEMAS ASOCIADOS A LAS OBLIGACIONES POR PAGAR MEDIANTE EL SEGUIMIENTO A PAGOS, LA ACTUALIZACIÓN Y DEPURACIÓN DE LOS CONTRATOS QUE SE ENCUENTRAN ENEjecucion Y/O OBLIGACIONES POR PAGAR DE VIGENCIAS ANTERIORES VIGENTES EN EL FONDO DE DESARROLLO LOCAL DE RAFAEL URIBE URIBE. | I73: Inversión | J73: Un nuevo contrato social y ambiental para la Bogotá del Siglo XXI | K73: 57 | L73: =IF(ISERROR(VLOOKUP(K73,Proposito_programa!$C$2:$E$59,2,FALSE))," ",VLOOKUP(K73,Proposito_programa!$C$2:$E$59,2,FALSE)) -> Gestión pública local | M73: =IF(ISERROR(VLOOKUP(K73,Proposito_programa!$C$2:$E$59,3,FALSE))," ",VLOOKUP(K73,Proposito_programa!$C$2:$E$59,3,FALSE)) -> Propósito 5: Construir Bogotá - Región con gobierno abierto, transparente y ciudadanía consciente | N73: O23011605570000001697 | O73: 1 | P73: 1026568078 | Q73: Monica Tatiana Ariza Ardila | R73: Persona Natural | W73: 44000000 | Y73: 1 | Z73: 4533333 | AA73: 48533333 | AB73: =8666667+AL73 -> 40533333 | AC73: 2022-01-23 | AD73: 2022-01-27 | AE73: 2023-01-30 | AF73: 330 | AG73: 1 | AH73: 34 | AI73: 80833968 | AJ73: DAVID RICARDO ALARCON LOPEZ | AK73: 2022-09-26 | AL73: 31866666 | AM73: Terminado | AN73: 0.835164834
A74: 63 | B74: 2022 | C74: FDLRUU-CD-063-2022 | D74: https://Community.seCop.gov.Co/PubliC/Tendering/OpportunityDetail/Index?notiCeUID=CO1.NTC.2676785&isFromPubliCArea=True&isModal=False | E74: Contratos de prestación de servicios profesionales y de apoyo a la gestión | F74: Contratación directa | G74: Prestación de servicios profesionales y de apoyo a la gestión, o para la ejecución de trabajos artísticos que sólo puedan encomendarse a determinadas personas naturales | H74: PRESTAR LOS SERVICIOS PROFESIONALES PARA APOYAR LA FORMULACION, EJECUCIÓN Y SEGUIMIENTO DE LOS PROYECTOS DE INVERSIÓN EN EL MARCO DEL CUMPLIMIENTO DEL PLAN DE DESARROLLO LOCAL DE LA ALCALDÍA LOCAL DE RAFAEL URIBE URIBE 2021 2024 | I74: Inversión | J74: Un nuevo contrato social y ambiental para la Bogotá del Siglo XXI | K74: 57 | L74: =IF(ISERROR(VLOOKUP(K74,Proposito_programa!$C$2:$E$59,2,FALSE))," ",VLOOKUP(K74,Proposito_programa!$C$2:$E$59,2,FALSE)) -> Gestión pública local | M74: =IF(ISERROR(VLOOKUP(K74,Proposito_programa!$C$2:$E$59,3,FALSE))," ",VLOOKUP(K74,Proposito_programa!$C$2:$E$59,3,FALSE)) -> Propósito 5: Construir Bogotá - Región con gobierno abierto, transparente y ciudadanía consciente | N74: O23011605570000001697 | O74: 1 | P74: 1075267896 | Q74: MARTHA LILIANA SILVA ESQUIVEL | R74: Persona Natural | W74: 59400000 | Y74: 1 | Z74: 4320000 | AA74: 63720000 | AB74: 53280000 | AC74: 2022-01-23 | AD74: 2022-02-07 | AE74: 2023-01-22 | AF74: 330 | AG74: 1 | AH74: 24 | AM74: Terminacion Anticipada | AN74: 0.8361581921
A75: 64 | B75: 2022 | C75: FDLRUU-CD-064-2022 | D75: https://Community.seCop.gov.Co/PubliC/Tendering/OpportunityDetail/Index?notiCeUID=CO1.NTC.2677280&isFromPubliCArea=True&isModal=False | E75: Contratos de prestación de servicios profesionales y de apoyo a la gestión | F75: Contratación directa | G75: Prestación de servicios profesionales y de apoyo a la gestión, o para la ejecución de trabajos artísticos que sólo puedan encomendarse a determinadas personas naturales | H75: PRESTAR LOS SERVICIOS PROFESIONALES DE APOYO JURIDICO AL AREA DE GESTION POLICIVA JURIDICA DE LA ALCALDIA LOCAL DE RAFAEL URIBE URIBE EN EL DESEMPEÑO DE LAS FUNCIONES ASIGNADAS | I75: Inversión | J75: Un nuevo contrato social y ambiental para la Bogotá del Siglo XXI | K75: 57 | L75: =IF(ISERROR(VLOOKUP(K75,Proposito_programa!$C$2:$E$59,2,FALSE))," ",VLOOKUP(K75,Proposito_programa!$C$2:$E$59,2,FALSE)) -> Gestión pública local | M75: =IF(ISERROR(VLOOKUP(K75,Proposito_programa!$C$2:$E$59,3,FALSE))," ",VLOOKUP(K75,Proposito_programa!$C$2:$E$59,3,FALSE)) -> Propósito 5: Construir Bogotá - Región con gobierno abierto, transparente y ciudadanía consciente | N75: O23011605570000001698 | O75: 1 | P75: 1105781137 | Q75: SANDRA PATRICIA PINTO GARAY | R75: Persona Natural | W75: 70400000 | Y75: 1 | Z75: 7466667 | AA75: 77866667 | AB75: 65066667 | AC75: 2022-01-24 | AD75: 2022-01-26 | AE75: 2023-01-25 | AF75: 330 | AG75: 1 | AH75: 35 | AM75: Terminacion anticipada | AN75: 0.8356164391
A76: 65 | B76: 2022 | C76: FDLRUU-CD-065-2022 | D76: https://Community.seCop.gov.Co/PubliC/Tendering/OpportunityDetail/Index?notiCeUID=CO1.NTC.2699201&isFromPubliCArea=True&isModal=False | E76: Contratos de prestación de servicios profesionales y de apoyo a la gestión | F76: Contratación directa | G76: Prestación de servicios profesionales y de apoyo a la gestión, o para la ejecución de trabajos artísticos que sólo puedan encomendarse a determinadas personas naturales | H76: PRESTAR SERVICIOS DE APOYO ADMINISTRATIVO Y ASISTENCIAL A LA ALCALDÍA LOCAL DE RAFAEL URIBE URIBE EN EL CENTRO DE INFORMACIÓN Y DOCUMENTACIÓN (CDI), PARA LA ENTREGA Y NOTIFICACIÓN DE CORRESPONDENCIA GENERADA POR LA ENTIDAD | I76: Inversión | J76: Un nuevo contrato social y ambiental para la Bogotá del Siglo XXI | K76: 57 | L76: =IF(ISERROR(VLOOKUP(K76,Proposito_programa!$C$2:$E$59,2,FALSE))," ",VLOOKUP(K76,Proposito_programa!$C$2:$E$59,2,FALSE)) -> Gestión pública local | M76: =IF(ISERROR(VLOOKUP(K76,Proposito_programa!$C$2:$E$59,3,FALSE))," ",VLOOKUP(K76,Proposito_programa!$C$2:$E$59,3,FALSE)) -> Propósito 5: Construir Bogotá - Región con gobierno abierto, transparente y ciudadanía consciente | N76: O23011605570000001697 | O76: 1 | P76: 79536458 | Q76: WILSON MIGUEL CARRANZA SIERRA | R76: Persona Natural | W76: 20680000 | Y76: 1 | Z76: 2193333 | AA76: 22873333 | AB76: 19113333 | AC76: 2022-01-25 | AD76: 2022-01-26 | AE76: 2023-01-19 | AF76: 330 | AG76: 1 | AH76: 35 | AM76: Terminacion anticipada | AN76: 0.835616436
A77: 66 | B77: 2022 | C77: FDLRUU-CD-066-2022 | D77: https://Community.seCop.gov.Co/PubliC/Tendering/OpportunityDetail/Index?notiCeUID=CO1.NTC.2681931&isFromPubliCArea=True&isModal=False | E77: Contratos de prestación de servicios profesionales y de apoyo a la gestión | F77: Contratación directa | G77: Prestación de servicios profesionales y de apoyo a la gestión, o para la ejecución de trabajos artísticos que sólo puedan encomendarse a determinadas personas naturales | H77: PRESTAR LOS SERVICIOS PERSONALES DE APOYO A LA GESTIÓN EN LA CONDUCCIÓN DE LOS VEHÍCULOS LIVIANOS A CARGO DEL FONDO DE DESARROLLO LOCAL DE RAFAEL URIBE URIBE | I77: Inversión | J77: Un nuevo contrato social y ambiental para la Bogotá del Siglo XXI | K77: 57 | L77: =IF(ISERROR(VLOOKUP(K77,Proposito_programa!$C$2:$E$59,2,FALSE))," ",VLOOKUP(K77,Proposito_programa!$C$2:$E$59,2,FALSE)) -> Gestión pública local | M77: =IF(ISERROR(VLOOKUP(K77,Proposito_programa!$C$2:$E$59,3,FALSE))," ",VLOOKUP(K77,Proposito_programa!$C$2:$E$59,3,FALSE)) -> Propósito 5: Construir Bogotá - Región con gobierno abierto, transparente y ciudadanía consciente | N77: O23011605570000001697 | O77: 1 | P77: 334775 | Q77: JOSE ALFONSO GARZON CABEZAS | R77: Persona Natural | W77: 29700000 | Y77: 1 | Z77: 2700000 | AA77: 32400000 | AB77: 27000000 | AC77: 2022-01-24 | AD77: 2022-02-01 | AE77: 2023-01-19 | AF77: 330 | AG77: 1 | AH77: 30 | AM77: Terminacion anticipada | AN77: 0.8333333333
A78: 67 | B78: 2022 | C78: FDLRUU-CD-066-2022 | D78: https://Community.seCop.gov.Co/PubliC/Tendering/OpportunityDetail/Index?notiCeUID=CO1.NTC.2681931&isFromPubliCArea=True&isModal=False | E78: Contratos de prestación de servicios profesionales y de apoyo a la gestión | F78: Contratación directa | G78: Prestación de servicios profesionales y de apoyo a la gestión, o para la ejecución de trabajos artísticos que sólo puedan encomendarse a determinadas personas naturales | H78: PRESTAR LOS SERVICIOS PERSONALES DE APOYO A LA GESTIÓN EN LA CONDUCCIÓN DE LOS VEHÍCULOS LIVIANOS A CARGO DEL FONDO DE DESARROLLO LOCAL DE RAFAEL URIBE URIBE | I78: Inversión | J78: Un nuevo contrato social y ambiental para la Bogotá del Siglo XXI | K78: 57 | L78: =IF(ISERROR(VLOOKUP(K78,Proposito_programa!$C$2:$E$59,2,FALSE))," ",VLOOKUP(K78,Proposito_programa!$C$2:$E$59,2,FALSE)) -> Gestión pública local | M78: =IF(ISERROR(VLOOKUP(K78,Proposito_programa!$C$2:$E$59,3,FALSE))," ",VLOOKUP(K78,Proposito_programa!$C$2:$E$59,3,FALSE)) -> Propósito 5: Construir Bogotá - Región con gobierno abierto, transparente y ciudadanía consciente | N78: O23011605570000001697 | O78: 1 | P78: 79740493 | Q78: JAVIER BASTIDAS ROMERO | R78: Persona Natural | W78: 29700000 | Y78: 1 | Z78: 3240000 | AA78: =+W78+X78+Z78 -> 32940000 | AB78: 27540000 | AC78: 2022-01-24 | AD78: 2022-01-25 | AE78: 2023-01-19 | AF78: 330 | AG78: 1 | AH78: 36 | AM78: Terminacion anticipada | AN78: =IF(ISERROR(AB78/AA78),"-",(AB78/AA78)) -> 0.8360655738
A79: 68 | B79: 2022 | C79: FDLRUU-CD-066-2022 | D79: https://Community.seCop.gov.Co/PubliC/Tendering/OpportunityDetail/Index?notiCeUID=CO1.NTC.2681931&isFromPubliCArea=True&isModal=False | E79: Contratos de prestación de servicios profesionales y de apoyo a la gestión | F79: Contratación directa | G79: Prestación de servicios profesionales y de apoyo a la gestión, o para la ejecución de trabajos artísticos que sólo puedan encomendarse a determinadas personas naturales | H79: PRESTAR LOS SERVICIOS PERSONALES DE APOYO A LA GESTIÓN EN LA CONDUCCIÓN DE LOS VEHÍCULOS LIVIANOS A CARGO DEL FONDO DE DESARROLLO LOCAL DE RAFAEL URIBE URIBE | I79: Inversión | J79: Un nuevo contrato social y ambiental para la Bogotá del Siglo XXI | K79: 57 | L79: =IF(ISERROR(VLOOKUP(K79,Proposito_programa!$C$2:$E$59,2,FALSE))," ",VLOOKUP(K79,Proposito_programa!$C$2:$E$59,2,FALSE)) -> Gestión pública local | M79: =IF(ISERROR(VLOOKUP(K79,Proposito_programa!$C$2:$E$59,3,FALSE))," ",VLOOKUP(K79,Proposito_programa!$C$2:$E$59,3,FALSE)) -> Propósito 5: Construir Bogotá - Región con gobierno abierto, transparente y ciudadanía consciente | N79: O23011605570000001697 | O79: 1 | P79: 79258775 | Q79: VICTOR JAIME SANCHEZ CARDOZO | R79: Persona Natural | W79: 29700000 | Y79: 1 | Z79: 3240000 | AA79: 32940000 | AB79: 27540000 | AC79: 2022-01-24 | AD79: 2022-01-25 | AE79: 2023-01-19 | AF79: 330 | AG79: 1 | AH79: 36 | AM79: Terminacion anticipada | AN79: 0.8360655738
A80: 69 | B80: 2022 | C80: FDLRUU-CD-066-2022 | D80: https://Community.seCop.gov.Co/PubliC/Tendering/OpportunityDetail/Index?notiCeUID=CO1.NTC.2681931&isFromPubliCArea=True&isModal=False | E80: Contratos de prestación de servicios profesionales y de apoyo a la gestión | F80: Contratación directa | G80: Prestación de servicios profesionales y de apoyo a la gestión, o para la ejecución de trabajos artísticos que sólo puedan encomendarse a determinadas personas naturales | H80: PRESTAR LOS SERVICIOS PERSONALES DE APOYO A LA GESTIÓN EN LA CONDUCCIÓN DE LOS VEHÍCULOS LIVIANOS A CARGO DEL FONDO DE DESARROLLO LOCAL DE RAFAEL URIBE URIBE | I80: Inversión | J80: Un nuevo contrato social y ambiental para la Bogotá del Siglo XXI | K80: 57 | L80: =IF(ISERROR(VLOOKUP(K80,Proposito_programa!$C$2:$E$59,2,FALSE))," ",VLOOKUP(K80,Proposito_programa!$C$2:$E$59,2,FALSE)) -> Gestión pública local | M80: =IF(ISERROR(VLOOKUP(K80,Proposito_programa!$C$2:$E$59,3,FALSE))," ",VLOOKUP(K80,Proposito_programa!$C$2:$E$59,3,FALSE)) -> Propósito 5: Construir Bogotá - Región con gobierno abierto, transparente y ciudadanía consciente | N80: O23011605570000001697 | O80: 1 | P80: 79533887 | Q80: HERNANDO RUIZ SEGURA | R80: Persona Natural | W80: 29700000 | Y80: 1 | Z80: 3150000 | AA80: 32850000 | AB80: 27450000 | AC80: 2022-01-25 | AD80: 2022-01-26 | AE80: 2023-01-22 | AF80: 330 | AG80: 1 | AH80: 35 | AM80: Terminacion Anticipada | AN80: 0.8356164384
A81: 70 | B81: 2022 | C81: FDLRUU-CD-066-2022 | D81: https://Community.seCop.gov.Co/PubliC/Tendering/OpportunityDetail/Index?notiCeUID=CO1.NTC.2681931&isFromPubliCArea=True&isModal=False | E81: Contratos de prestación de servicios profesionales y de apoyo a la gestión | F81: Contratación directa | G81: Prestación de servicios profesionales y de apoyo a la gestión, o para la ejecución de trabajos artísticos que sólo puedan encomendarse a determinadas personas naturales | H81: PRESTAR LOS SERVICIOS PERSONALES DE APOYO A LA GESTIÓN EN LA CONDUCCIÓN DE LOS VEHÍCULOS LIVIANOS A CARGO DEL FONDO DE DESARROLLO LOCAL DE RAFAEL URIBE URIBE | I81: Inversión | J81: Un nuevo contrato social y ambiental para la Bogotá del Siglo XXI | K81: 57 | L81: =IF(ISERROR(VLOOKUP(K81,Proposito_programa!$C$2:$E$59,2,FALSE))," ",VLOOKUP(K81,Proposito_programa!$C$2:$E$59,2,FALSE)) -> Gestión pública local | M81: =IF(ISERROR(VLOOKUP(K81,Proposito_programa!$C$2:$E$59,3,FALSE))," ",VLOOKUP(K81,Proposito_programa!$C$2:$E$59,3,FALSE)) -> Propósito 5: Construir Bogotá - Región con gobierno abierto, transparente y ciudadanía consciente | N81: O23011605570000001697 | O81: 1 | P81: 1000834541 | Q81: LUIS ANGEL QUINTERO PEREZ | R81: Persona Natural | W81: 29700000 | Y81: 1 | Z81: 2430000 | AA81: 32130000 | AB81: 24030000 | AC81: 2022-01-28 | AD81: 2022-02-04 | AE81: 2023-01-27 | AF81: 330 | AG81: 1 | AH81: 27 | AI81: 1013603721 | AJ81: EDUARD FABIAN RUCINQUE RODRIGUEZ | AK81: 2022-11-22 | AL81: 24030000 | AM81: Terminacion anticipada | AN81: 0.7478991597
A82: 71 | B82: 2022 | C82: FDLRUU-CD-071-2022 | D82: https://Community.seCop.gov.Co/PubliC/Tendering/OpportunityDetail/Index?notiCeUID=CO1.NTC.2683479&isFromPubliCArea=True&isModal=False | E82: Contratos de prestación de servicios profesionales y de apoyo a la gestión | F82: Contratación directa | G82: Prestación de servicios profesionales y de apoyo a la gestión, o para la ejecución de trabajos artísticos que sólo puedan encomendarse a determinadas personas naturales | H82: PRESTAR SERVICIOS DE APOYO ADMINISTRATIVO ASISTENCIAL AL AREA DE GESTION POLICIVA EN TRÁMITES DE COMPARENDOS Y QUERELLAS DE CONFORMIDAD CON CON EL CODIGO NACIONAL DE POLICIA LEY 1801 DE 2016 DE LA ALCALDÍA LOCAL DE RAFAEL URIBE URIBE. | I82: Inversión | J82: Un nuevo contrato social y ambiental para la Bogotá del Siglo XXI | K82: 57 | L82: =IF(ISERROR(VLOOKUP(K82,Proposito_programa!$C$2:$E$59,2,FALSE))," ",VLOOKUP(K82,Proposito_programa!$C$2:$E$59,2,FALSE)) -> Gestión pública local | M82: =IF(ISERROR(VLOOKUP(K82,Proposito_programa!$C$2:$E$59,3,FALSE))," ",VLOOKUP(K82,Proposito_programa!$C$2:$E$59,3,FALSE)) -> Propósito 5: Construir Bogotá - Región con gobierno abierto, transparente y ciudadanía consciente | N82: O23011605570000001698 | O82: 1 | P82: 80810407 | Q82: ANDRES CAMILO REDONDO RENGIFO | R82: Persona Natural | W82: 29700000 | Y82: 1 | Z82: 3150000 | AA82: 32850000 | AB82: 27450000 | AC82: 2022-01-24 | AD82: 2022-01-26 | AE82: 2023-01-23 | AF82: 330 | AG82: 1 | AH82: 35 | AM82: Terminacion anticipada | AN82: 0.8356164384
A83: 72 | B83: 2022 | C83: FDLRUU-CD-071-2022 | D83: https://Community.seCop.gov.Co/PubliC/Tendering/OpportunityDetail/Index?notiCeUID=CO1.NTC.2683479&isFromPubliCArea=True&isModal=False | E83: Contratos de prestación de servicios profesionales y de apoyo a la gestión | F83: Contratación directa | G83: Prestación de servicios profesionales y de apoyo a la gestión, o para la ejecución de trabajos artísticos que sólo puedan encomendarse a determinadas personas naturales | H83: PRESTAR SERVICIOS DE APOYO ADMINISTRATIVO ASISTENCIAL AL AREA DE GESTION POLICIVA EN TRÁMITES DE COMPARENDOS Y QUERELLAS DE CONFORMIDAD CON CON EL CODIGO NACIONAL DE POLICIA LEY 1801 DE 2016 DE LA ALCALDÍA LOCAL DE RAFAEL URIBE URIBE. | I83: Inversión | J83: Un nuevo contrato social y ambiental para la Bogotá del Siglo XXI | K83: 57 | L83: =IF(ISERROR(VLOOKUP(K83,Proposito_programa!$C$2:$E$59,2,FALSE))," ",VLOOKUP(K83,Proposito_programa!$C$2:$E$59,2,FALSE)) -> Gestión pública local | M83: =IF(ISERROR(VLOOKUP(K83,Proposito_programa!$C$2:$E$59,3,FALSE))," ",VLOOKUP(K83,Proposito_programa!$C$2:$E$59,3,FALSE)) -> Propósito 5: Construir Bogotá - Región con gobierno abierto, transparente y ciudadanía consciente | N83: O23011605570000001698 | O83: 1 | P83: 1033764978 | Q83: ANDREA DEL PILAR RODRIGUEZ RODRIGUEZ | R83: Persona Natural | W83: 29700000 | Y83: 1 | Z83: 3060000 | AA83: 32760000 | AB83: 27360000 | AC83: 2022-01-24 | AD83: 2022-01-27 | AE83: 2023-01-30 | AF83: 330 | AG83: 1 | AH83: 34 | AM83: Terminado | AN83: 0.8351648352
A84: 73 | B84: 2022 | C84: FDLRUU-CD-073-2022 | D84: https://Community.seCop.gov.Co/PubliC/Tendering/OpportunityDetail/Index?notiCeUID=CO1.NTC.2690935&isFromPubliCArea=True&isModal=False | E84: Contratos de prestación de servicios profesionales y de apoyo a la gestión | F84: Contratación directa | G84: Prestación de servicios profesionales y de apoyo a la gestión, o para la ejecución de trabajos artísticos que sólo puedan encomendarse a determinadas personas naturales | H84: PRESTAR APOYO ASISTENCIAL A LOS PROCESOS ADMINISTRATIVOS PARA LA ATENCIÓN A LA CIUDADANÍA, TRANSCRIPCIÓN DE ACTAS, PROYECCIÓN DE COMUNICACIONES, ASISTENCIA A SESIONES Y APOYO A LA GESTIÓN DOCUMENTAL DE LOS DOCUMENTOS GENERADOS POR LA JUNTA ADMINISTRADORA LOCAL | I84: Inversión | J84: Un nuevo contrato social y ambiental para la Bogotá del Siglo XXI | K84: 57 | L84: =IF(ISERROR(VLOOKUP(K84,Proposito_programa!$C$2:$E$59,2,FALSE))," ",VLOOKUP(K84,Proposito_programa!$C$2:$E$59,2,FALSE)) -> Gestión pública local | M84: =IF(ISERROR(VLOOKUP(K84,Proposito_programa!$C$2:$E$59,3,FALSE))," ",VLOOKUP(K84,Proposito_programa!$C$2:$E$59,3,FALSE)) -> Propósito 5: Construir Bogotá - Región con gobierno abierto, transparente y ciudadanía consciente | N84: O23011605570000001697 | O84: 1 | P84: 1033808967 | Q84: YAZMIN CLARIBETH INFANTE BUSTOS | R84: Persona Natural | W84: 29700000 | Y84: 1 | Z84: 2610000 | AA84: 32310000 | AB84: 26910000 | AC84: 2022-01-25 | AD84: 2022-02-02 | AE84: 2023-01-22 | AF84: 330 | AG84: 1 | AH84: 29 | AM84: Terminacion anticipada | AN84: 0.8328690808
A85: 74 | B85: 2022 | C85: FDLRUU-CD-074-2022 | D85: https://Community.seCop.gov.Co/PubliC/Tendering/OpportunityDetail/Index?notiCeUID=CO1.NTC.2689251&isFromPubliCArea=True&isModal=False | E85: Contratos de prestación de servicios profesionales y de apoyo a la gestión | F85: Contratación directa | G85: Prestación de servicios profesionales y de apoyo a la gestión, o para la ejecución de trabajos artísticos que sólo puedan encomendarse a determinadas personas naturales | H85: PRESTAR LOS SERVICIOS TECNICOS Y ADMINISTRATIVOS PARA LA ATENCIÓN A LA CIUDADANÍA, TRANSCRIPCIÓN DE ACTAS, PROYECCIÓN DE COMUNICACIONES, ASISTENCIA A SESIONES Y APOYO A LA GESTIÓN DOCUMENTAL DE LOS DOCUMENTOS GENERADOS POR LA JUNTA ADMINISTRADORA LOCAL | I85: Inversión | J85: Un nuevo contrato social y ambiental para la Bogotá del Siglo XXI | K85: 57 | L85: =IF(ISERROR(VLOOKUP(K85,Proposito_programa!$C$2:$E$59,2,FALSE))," ",VLOOKUP(K85,Proposito_programa!$C$2:$E$59,2,FALSE)) -> Gestión pública local | M85: =IF(ISERROR(VLOOKUP(K85,Proposito_programa!$C$2:$E$59,3,FALSE))," ",VLOOKUP(K85,Proposito_programa!$C$2:$E$59,3,FALSE)) -> Propósito 5: Construir Bogotá - Región con gobierno abierto, transparente y ciudadanía consciente | N85: O23011605570000001697 | O85: 1 | P85: 80071371 | Q85: JAIME ALEXANDER BARBOSA VILLALBA | R85: Persona Natural | W85: 37400000 | Y85: 1 | Z85: 3966667 | AA85: 41366667 | AB85: 34566667 | AC85: 2022-01-25 | AD85: 2022-01-26 | AE85: 2023-01-23 | AF85: 330 | AG85: 1 | AH85: 35 | AM85: Terminacion anticipada | AN85: 0.8356164397
A86: 75 | B86: 2022 | C86: FDLRUU-CD-075-2022 | D86: https://Community.seCop.gov.Co/PubliC/Tendering/OpportunityDetail/Index?notiCeUID=CO1.NTC.2692626&isFromPubliCArea=True&isModal=False | E86: Contratos de prestación de servicios profesionales y de apoyo a la gestión | F86: Contratación directa | G86: Prestación de servicios profesionales y de apoyo a la gestión, o para la ejecución de trabajos artísticos que sólo puedan encomendarse a determinadas personas naturales | H86: PRESTAR LOS SERVICIOS PROFESIONALES PARA APOYAR LA FORMULACION, EJECUCIÓN Y SEGUIMIENTO DE LOS PROYECTOS DE INVERSIÓN EN EL MARCO DEL CUMPLIMIENTO DEL PLAN DE DESARROLLO LOCAL DE LA ALCALDÍA LOCAL DE RAFAEL URIBE URIBE 2021 2024 | I86: Inversión | J86: Un nuevo contrato social y ambiental para la Bogotá del Siglo XXI | K86: 57 | L86: =IF(ISERROR(VLOOKUP(K86,Proposito_programa!$C$2:$E$59,2,FALSE))," ",VLOOKUP(K86,Proposito_programa!$C$2:$E$59,2,FALSE)) -> Gestión pública local | M86: =IF(ISERROR(VLOOKUP(K86,Proposito_programa!$C$2:$E$59,3,FALSE))," ",VLOOKUP(K86,Proposito_programa!$C$2:$E$59,3,FALSE)) -> Propósito 5: Construir Bogotá - Región con gobierno abierto, transparente y ciudadanía consciente | N86: O23011605570000001697 | O86: 1 | P86: 1033679200 | Q86: JEIMMY ELIZABETH SANCHEZ SUAREZ | R86: Persona Natural | W86: 59400000 | Y86: 1 | Z86: 6300000 | AA86: 65700000 | AB86: 54900000 | AC86: 2022-01-25 | AD86: 2022-01-26 | AE86: 2023-01-19 | AF86: 330 | AG86: 1 | AH86: 35 | AM86: Terminacion anticipada | AN86: 0.8356164384
A87: 76 | B87: 2022 | C87: FDLRUU-CD-076-2022 | D87: https://Community.seCop.gov.Co/PubliC/Tendering/OpportunityDetail/Index?notiCeUID=CO1.NTC.2708656&isFromPubliCArea=True&isModal=False | E87: Contratos de prestación de servicios profesionales y de apoyo a la gestión | F87: Contratación directa | G87: Prestación de servicios profesionales y de apoyo a la gestión, o para la ejecución de trabajos artísticos que sólo puedan encomendarse a determinadas personas naturales | H87: PRESTAR LOS SERVICIOS PROFESIONALES EN EL ÁREA DE GESTIÓN DE DESARROLLO LOCAL APOYANDO LA GESTION, ANALISIS Y SEGUIMIENTO DE LA INFORMACIÓN FINANCIERA Y PRESUPUESTAL EN CUMPLIMIENTO ALMARCO NORMATIVO | I87: Inversión | J87: Un nuevo contrato social y ambiental para la Bogotá del Siglo XXI | K87: 57 | L87: =IF(ISERROR(VLOOKUP(K87,Proposito_programa!$C$2:$E$59,2,FALSE))," ",VLOOKUP(K87,Proposito_programa!$C$2:$E$59,2,FALSE)) -> Gestión pública local | M87: =IF(ISERROR(VLOOKUP(K87,Proposito_programa!$C$2:$E$59,3,FALSE))," ",VLOOKUP(K87,Proposito_programa!$C$2:$E$59,3,FALSE)) -> Propósito 5: Construir Bogotá - Región con gobierno abierto, transparente y ciudadanía consciente | N87: O23011605570000001697 | O87: 1 | P87: 1026276229 | Q87: ERIKA LIZETH ROJAS RONDON | R87: Persona Natural | W87: 50600000 | Y87: 1 | Z87: 4600000 | AA87: 55200000 | AB87: 46000000 | AC87: 2022-02-25 | AD87: 2022-02-01 | AE87: 2023-01-30 | AF87: 330 | AG87: 1 | AH87: 30 | AM87: Terminado | AN87: 0.8333333333
A88: 77 | B88: 2022 | C88: FDLRUU-CD-077-2022 | D88: https://Community.seCop.gov.Co/PubliC/Tendering/OpportunityDetail/Index?notiCeUID=CO1.NTC.2697947&isFromPubliCArea=True&isModal=False | E88: Contratos de prestación de servicios profesionales y de apoyo a la gestión | F88: Contratación directa | G88: Prestación de servicios profesionales y de apoyo a la gestión, o para la ejecución de trabajos artísticos que sólo puedan encomendarse a determinadas personas naturales | H88: PRESTAR SUS SERVICIOS PROFESIONALES PARA APOYAR EL ALCALDE LOCAL EN LA GESTIÓN DE LOS ASUNTOS RELACIONADOS CON SEGURIDAD CIUDADANA, CONVIVENCIA Y PREVENCIÓN DE CONFLICTIVIDADES, VIOLENCIAS Y DELITOS EN LA LOCALIDAD, DE CONFORMIDAD CON EL MARCO NORMATIVO APLICABLE EN LA MATERIA EN LA ALCALDÍA LOCAL DE RAFAEL URIBE URIBE. | I88: Inversión | J88: Un nuevo contrato social y ambiental para la Bogotá del Siglo XXI | K88: 57 | L88: =IF(ISERROR(VLOOKUP(K88,Proposito_programa!$C$2:$E$59,2,FALSE))," ",VLOOKUP(K88,Proposito_programa!$C$2:$E$59,2,FALSE)) -> Gestión pública local | M88: =IF(ISERROR(VLOOKUP(K88,Proposito_programa!$C$2:$E$59,3,FALSE))," ",VLOOKUP(K88,Proposito_programa!$C$2:$E$59,3,FALSE)) -> Propósito 5: Construir Bogotá - Región con gobierno abierto, transparente y ciudadanía consciente | N88: O23011605570000001698 | O88: 1 | P88: 52501843 | Q88: LIDIA JESUSA LOPEZ DULCEY | R88: Persona Natural | W88: 75900000 | Y88: 1 | Z88: 7820000 | AA88: 83720000 | AB88: 69920000 | AC88: 2022-01-25 | AD88: 2022-01-27 | AE88: 2023-01-22 | AF88: 330 | AG88: 1 | AH88: 34 | AM88: Terminacion anticipada | AN88: 0.8351648352
A89: 78 | B89: 2022 | C89: FDLRUU-CD-078-2022 | D89: https://Community.seCop.gov.Co/PubliC/Tendering/OpportunityDetail/Index?notiCeUID=CO1.NTC.2688122&isFromPubliCArea=True&isModal=False | E89: Contratos de prestación de servicios profesionales y de apoyo a la gestión | F89: Contratación directa | G89: Prestación de servicios profesionales y de apoyo a la gestión, o para la ejecución de trabajos artísticos que sólo puedan encomendarse a determinadas personas naturales | H89: APOYA EL CUBRIMIENTO DE LAS ACTIVIDADES, CRONOGRAMAS Y AGENDA DE LA ALCALDÍA LOCAL A NIVEL INTERNO Y EXTERNO, ASÍ COMO LA GENERACIÓN DE CONTENIDOS PERIODÍSTICOS | I89: Inversión | J89: Un nuevo contrato social y ambiental para la Bogotá del Siglo XXI | K89: 57 | L89: =IF(ISERROR(VLOOKUP(K89,Proposito_programa!$C$2:$E$59,2,FALSE))," ",VLOOKUP(K89,Proposito_programa!$C$2:$E$59,2,FALSE)) -> Gestión pública local | M89: =IF(ISERROR(VLOOKUP(K89,Proposito_programa!$C$2:$E$59,3,FALSE))," ",VLOOKUP(K89,Proposito_programa!$C$2:$E$59,3,FALSE)) -> Propósito 5: Construir Bogotá - Región con gobierno abierto, transparente y ciudadanía consciente | N89: O23011605570000001697 | O89: 1 | P89: 1032457982 | Q89: JUAN MANUEL CARDENAS GARZON | R89: Persona Natural | W89: 59400000 | Y89: 1 | Z89: 5400000 | AA89: 64800000 | AB89: 54000000 | AC89: 2022-01-25 | AD89: 2022-02-01 | AE89: 2023-01-30 | AF89: 330 | AG89: 1 | AH89: 30 | AM89: Terminado | AN89: 0.8333333333
A90: 79 | B90: 2022 | C90: FDLRUU-CD-079-2022 | D90: https://Community.seCop.gov.Co/PubliC/Tendering/OpportunityDetail/Index?notiCeUID=CO1.NTC.2690994&isFromPubliCArea=True&isModal=False | E90: Contratos de prestación de servicios profesionales y de apoyo a la gestión | F90: Contratación directa | G90: Prestación de servicios profesionales y de apoyo a la gestión, o para la ejecución de trabajos artísticos que sólo puedan encomendarse a determinadas personas naturales | H90: APOYAR AL EQUIPO DE PRENSA Y COMUNICACIONES DE LA ALCALDÍA LOCAL EN LA CREACIÓN, REALIZACIÓN, PRODUCCIÓN Y EDICIÓN DE VÍDEOS, ASÍ COMO EL REGISTRO, EDICIÓN Y LA PRESENTACIÓN DE FOTOGRAFÍAS DE LOS ACONTECIMIENTOS, HECHOS Y EVENTOS EXTERNOS E INTERNOS DE LA ALCALDÍA PARA SER UTILIZADOS COMO INSUMOS DE COMUNICACIÓN EN LOS MEDIOS, ESPECIALMENTE ESCRITOS, DIGITALES Y AUDIOVISUALES. | I90: Inversión | J90: Un nuevo contrato social y ambiental para la Bogotá del Siglo XXI | K90: 57 | L90: =IF(ISERROR(VLOOKUP(K90,Proposito_programa!$C$2:$E$59,2,FALSE))," ",VLOOKUP(K90,Proposito_programa!$C$2:$E$59,2,FALSE)) -> Gestión pública local | M90: =IF(ISERROR(VLOOKUP(K90,Proposito_programa!$C$2:$E$59,3,FALSE))," ",VLOOKUP(K90,Proposito_programa!$C$2:$E$59,3,FALSE)) -> Propósito 5: Construir Bogotá - Región con gobierno abierto, transparente y ciudadanía consciente | N90: O23011605570000001697 | O90: 1 | P90: 1013661860 | Q90: JOAN SEBASTIAN CALVO CONDE | R90: Persona Natural | W90: 59400000 | Y90: 1 | Z90: 6120000 | AA90: 65520000 | AB90: 54720000 | AC90: 2022-01-25 | AD90: 2022-01-27 | AE90: 2023-01-22 | AF90: 330 | AG90: 1 | AH90: 34 | AM90: Terminacion anticipada | AN90: 0.8351648352
A91: 81 | B91: 2022 | C91: FDLRUU-CD-081-2022 | D91: https://Community.seCop.gov.Co/PubliC/Tendering/OpportunityDetail/Index?notiCeUID=CO1.NTC.2695527&isFromPubliCArea=True&isModal=False | E91: Contratos de prestación de servicios profesionales y de apoyo a la gestión | F91: Contratación directa | G91: Prestación de servicios profesionales y de apoyo a la gestión, o para la ejecución de trabajos artísticos que sólo puedan encomendarse a determinadas personas naturales | H91: PRESTAR LOS SERVICIOS PROFESIONALES PARA APOYAR LA FORMULACION, EJECUCIÓN Y SEGUIMIENTO DE LOS PROYECTOS DE INVERSIÓN EN EL MARCO DEL CUMPLIMIENTO DEL PLAN DE DESARROLLO LOCAL DE LA ALCALDÍA LOCAL DE RAFAEL URIBE URIBE 2021 2024 | I91: Inversión | J91: Un nuevo contrato social y ambiental para la Bogotá del Siglo XXI | K91: 57 | L91: =IF(ISERROR(VLOOKUP(K91,Proposito_programa!$C$2:$E$59,2,FALSE))," ",VLOOKUP(K91,Proposito_programa!$C$2:$E$59,2,FALSE)) -> Gestión pública local | M91: =IF(ISERROR(VLOOKUP(K91,Proposito_programa!$C$2:$E$59,3,FALSE))," ",VLOOKUP(K91,Proposito_programa!$C$2:$E$59,3,FALSE)) -> Propósito 5: Construir Bogotá - Región con gobierno abierto, transparente y ciudadanía consciente | N91: O23011605570000001697 | O91: 1 | P91: 1014213321 | Q91: MARIBEL NEUSA SOTELO | R91: Persona Natural | W91: 59400000 | Y91: 1 | Z91: 5400000 | AA91: 64800000 | AB91: 54000000 | AC91: 2022-01-25 | AD91: 2022-02-01 | AE91: 2023-01-25 | AF91: 330 | AG91: 1 | AH91: 30 | AM91: Terminacion anticipada | AN91: 0.8333333333
A92: 82 | B92: 2022 | C92: FDLRUU-CD-082-2022 | D92: https://Community.seCop.gov.Co/PubliC/Tendering/OpportunityDetail/Index?notiCeUID=CO1.NTC.2687705&isFromPubliCArea=True&isModal=False | E92: Contratos de prestación de servicios profesionales y de apoyo a la gestión | F92: Contratación directa | G92: Prestación de servicios profesionales y de apoyo a la gestión, o para la ejecución de trabajos artísticos que sólo puedan encomendarse a determinadas personas naturales | H92: PRESTAR LOS SERVICIOS PROFESIONALES PARA APOYAR LA FORMULACION, EJECUCIÓN Y SEGUIMIENTO DE LOS PROYECTOS DE INVERSIÓN EN EL MARCO DEL CUMPLIMIENTO DEL PLAN DE DESARROLLO LOCAL DE LA ALCALDÍA LOCAL DE RAFAEL URIBE URIBE 2021 2024 | I92: Inversión | J92: Un nuevo contrato social y ambiental para la Bogotá del Siglo XXI | K92: 57 | L92: =IF(ISERROR(VLOOKUP(K92,Proposito_programa!$C$2:$E$59,2,FALSE))," ",VLOOKUP(K92,Proposito_programa!$C$2:$E$59,2,FALSE)) -> Gestión pública local | M92: =IF(ISERROR(VLOOKUP(K92,Proposito_programa!$C$2:$E$59,3,FALSE))," ",VLOOKUP(K92,Proposito_programa!$C$2:$E$59,3,FALSE)) -> Propósito 5: Construir Bogotá - Región con gobierno abierto, transparente y ciudadanía consciente | N92: O23011605570000001697 | O92: 1 | P92: 1013620667 | Q92: CRISTHIAN DAVID GUTIERREZ MEDINA | R92: Persona Natural | W92: 59400000 | Y92: 1 | Z92: 6120000 | AA92: 65520000 | AB92: 54720000 | AC92: 2022-01-24 | AD92: 2022-01-27 | AE92: 2023-01-23 | AF92: 330 | AG92: 1 | AH92: 34 | AM92: Terminacion anticipada | AN92: 0.8351648352
A93: 83 | B93: 2022 | C93: FDLRUU-CD-083-2022 | D93: https://Community.seCop.gov.Co/PubliC/Tendering/OpportunityDetail/Index?notiCeUID=CO1.NTC.2688413&isFromPubliCArea=True&isModal=False | E93: Contratos de prestación de servicios profesionales y de apoyo a la gestión | F93: Contratación directa | G93: Prestación de servicios profesionales y de apoyo a la gestión, o para la ejecución de trabajos artísticos que sólo puedan encomendarse a determinadas personas naturales | H93: PRESTAR LOS SERVICIOS PROFESIONALES ESPECIALIZADOS PARA APOYAR EL AREA DE GESTION DE DESARROLLO LOCAL DEL FONDO DE DESARROLLO LOCAL DE RAFAEL URIBE URIBE A FIN DE ORGANIZAR Y ORIENTAR LA EJECUCIÓN Y SEGUIMIENTO DE LAS ACTIVIDADES DE LOS PROCESOS ASOCIADOS CON EL ÁREA, ASÍ COMO DE LOS PROYECTOS DE INVERSIÓN DEL PLAN DE DESARROLLO LOCAL VIGENCIA 2021 2024 | I93: Inversión | J93: Un nuevo contrato social y ambiental para la Bogotá del Siglo XXI | K93: 57 | L93: =IF(ISERROR(VLOOKUP(K93,Proposito_programa!$C$2:$E$59,2,FALSE))," ",VLOOKUP(K93,Proposito_programa!$C$2:$E$59,2,FALSE)) -> Gestión pública local | M93: =IF(ISERROR(VLOOKUP(K93,Proposito_programa!$C$2:$E$59,3,FALSE))," ",VLOOKUP(K93,Proposito_programa!$C$2:$E$59,3,FALSE)) -> Propósito 5: Construir Bogotá - Región con gobierno abierto, transparente y ciudadanía consciente | N93: O23011605570000001697 | O93: 1 | P93: 79380897 | Q93: JESUS BAYRO MUÑOZ FELIX | R93: Persona Natural | W93: 78100000 | Y93: 1 | Z93: 8046667 | AA93: 86146667 | AB93: 71946667 | AC93: 2022-01-25 | AD93: 2022-01-27 | AE93: 2023-01-25 | AF93: 330 | AG93: 1 | AH93: 34 | AI93: 7143459 | AJ93: SAUL ANIBAL RODRIGUEZ GONZALEZ | AK93: 2022-03-01 | AL93: 8046667 | AM93: Terminacion anticipada | AN93: 0.8351648358
A94: 84 | B94: 2022 | C94: FDLRUU-CD-084-2022 | D94: https://Community.seCop.gov.Co/PubliC/Tendering/OpportunityDetail/Index?notiCeUID=CO1.NTC.2689559&isFromPubliCArea=True&isModal=False | E94: Contratos de prestación de servicios profesionales y de apoyo a la gestión | F94: Contratación directa | G94: Prestación de servicios profesionales y de apoyo a la gestión, o para la ejecución de trabajos artísticos que sólo puedan encomendarse a determinadas personas naturales | H94: PRESTAR LOS SERVICIOS PROFESIONALES PARA APOYAR LA FORMULACION, EJECUCIÓN Y SEGUIMIENTO DE LOS PROYECTOS DE INVERSIÓN EN EL MARCO DEL CUMPLIMIENTO DEL PLAN DE DESARROLLO LOCAL DE LA ALCALDÍA LOCAL DE RAFAEL URIBE URIBE 2021 2024 | I94: Inversión | J94: Un nuevo contrato social y ambiental para la Bogotá del Siglo XXI | K94: 57 | L94: =IF(ISERROR(VLOOKUP(K94,Proposito_programa!$C$2:$E$59,2,FALSE))," ",VLOOKUP(K94,Proposito_programa!$C$2:$E$59,2,FALSE)) -> Gestión pública local | M94: =IF(ISERROR(VLOOKUP(K94,Proposito_programa!$C$2:$E$59,3,FALSE))," ",VLOOKUP(K94,Proposito_programa!$C$2:$E$59,3,FALSE)) -> Propósito 5: Construir Bogotá - Región con gobierno abierto, transparente y ciudadanía consciente | N94: O23011605570000001697 | O94: 1 | P94: 1070962440 | Q94: YEFFERSON ANTOLYN ALTAMIRANDA BUITRAGO | R94: Persona Natural | W94: 59400000 | Y94: 1 | Z94: 6300000 | AA94: 65700000 | AB94: 54900000 | AC94: 2022-01-24 | AD94: 2022-01-26 | AE94: 2023-01-26 | AF94: 330 | AG94: 1 | AH94: 35 | AM94: Terminacion anticipada | AN94: 0.8356164384
A95: 85 | B95: 2022 | C95: FDLRUU-CD-085-2022 | D95: https://Community.seCop.gov.Co/PubliC/Tendering/OpportunityDetail/Index?notiCeUID=CO1.NTC.2692157&isFromPubliCArea=True&isModal=False | E95: Contratos de prestación de servicios profesionales y de apoyo a la gestión | F95: Contratación directa | G95: Prestación de servicios profesionales y de apoyo a la gestión, o para la ejecución de trabajos artísticos que sólo puedan encomendarse a determinadas personas naturales | H95: PRESTAR LOS SERVICIOS PROFESIONALES PARA APOYAR LA FORMULACION, EJECUCIÓN Y SEGUIMIENTO DE LOS PROYECTOS DE INVERSIÓN EN EL MARCO DEL CUMPLIMIENTO DEL PLAN DE DESARROLLO LOCAL DE LA ALCALDÍA LOCAL DE RAFAEL URIBE URIBE 2021 2024 | I95: Inversión | J95: Un nuevo contrato social y ambiental para la Bogotá del Siglo XXI | K95: 57 | L95: =IF(ISERROR(VLOOKUP(K95,Proposito_programa!$C$2:$E$59,2,FALSE))," ",VLOOKUP(K95,Proposito_programa!$C$2:$E$59,2,FALSE)) -> Gestión pública local | M95: =IF(ISERROR(VLOOKUP(K95,Proposito_programa!$C$2:$E$59,3,FALSE))," ",VLOOKUP(K95,Proposito_programa!$C$2:$E$59,3,FALSE)) -> Propósito 5: Construir Bogotá - Región con gobierno abierto, transparente y ciudadanía consciente | N95: O23011605570000001697 | O95: 1 | P95: 1077859493 | Q95: YANDRY PATRICIA AMAYA CULMA | R95: Persona Natural | W95: 59400000 | Y95: 1 | Z95: 5940000 | AA95: 65340000 | AB95: 54540000 | AC95: 2022-01-25 | AD95: 2022-01-28 | AE95: 2023-01-30 | AF95: 330 | AG95: 1 | AH95: 33 | AM95: Terminado | AN95: 0.8347107438
A96: 86 | B96: 2022 | C96: FDLRUU-CD-086-2022 | D96: https://Community.seCop.gov.Co/PubliC/Tendering/OpportunityDetail/Index?notiCeUID=CO1.NTC.2689790&isFromPubliCArea=True&isModal=False | E96: Contratos de prestación de servicios profesionales y de apoyo a la gestión | F96: Contratación directa | G96: Prestación de servicios profesionales y de apoyo a la gestión, o para la ejecución de trabajos artísticos que sólo puedan encomendarse a determinadas personas naturales | H96: PRESTAR SERVICIOS DE APOYO A LA GESTIÓN LOCAL Y TERRITORIAL DE LOS TEMAS DE SEGURIDAD Y CONVIVENCIA CIUDADANA PARA LA ALCALDÍA LOCAL DE RAFAEL URIBE URIBE EN EL MARCO DEL PROYECTO DE INVERSION 1680 CIUDADANOS MÁS SEGUROS Y CON CONFIANZA EN LA JUSTICIA EN RAFAEL | I96: Inversión | J96: Un nuevo contrato social y ambiental para la Bogotá del Siglo XXI | K96: 43 | L96: =IF(ISERROR(VLOOKUP(K96,Proposito_programa!$C$2:$E$59,2,FALSE))," ",VLOOKUP(K96,Proposito_programa!$C$2:$E$59,2,FALSE)) -> Cultura ciudadana para la confianza, la convivencia y la participación desde la vida cotidiana | M96: =IF(ISERROR(VLOOKUP(K96,Proposito_programa!$C$2:$E$59,3,FALSE))," ",VLOOKUP(K96,Proposito_programa!$C$2:$E$59,3,FALSE)) -> Propósito 3: Inspirar confianza y legitimidad para vivir sin miedo y ser epicentro de cultura ciudadana, paz y reconciliación | N96: O23011603430000001680 | O96: 1 | P96: 79908252 | Q96: ALEXANDER ARAGON ORTEGA | R96: Persona Natural | W96: 25300000 | Y96: 1 | Z96: 2300000 | AA96: 27600000 | AB96: 23000000 | AC96: 2022-01-25 | AD96: 2022-02-01 | AE96: 2023-01-22 | AF96: 330 | AG96: 1 | AH96: 30 | AM96: Terminacion anticipada | AN96: 0.8333333333
A97: 87 | B97: 2022 | C97: FDLRUU-CD-086-2022 | D97: https://Community.seCop.gov.Co/PubliC/Tendering/OpportunityDetail/Index?notiCeUID=CO1.NTC.2689790&isFromPubliCArea=True&isModal=False | E97: Contratos de prestación de servicios profesionales y de apoyo a la gestión | F97: Contratación directa | G97: Prestación de servicios profesionales y de apoyo a la gestión, o para la ejecución de trabajos artísticos que sólo puedan encomendarse a determinadas personas naturales | H97: PRESTAR SERVICIOS DE APOYO A LA GESTIÓN LOCAL Y TERRITORIAL DE LOS TEMAS DE SEGURIDAD Y CONVIVENCIA CIUDADANA PARA LA ALCALDÍA LOCAL DE RAFAEL URIBE URIBE EN EL MARCO DEL PROYECTO DE INVERSION 1680 CIUDADANOS MÁS SEGUROS Y CON CONFIANZA EN LA JUSTICIA EN RAFAEL | I97: Inversión | J97: Un nuevo contrato social y ambiental para la Bogotá del Siglo XXI | K97: 43 | L97: =IF(ISERROR(VLOOKUP(K97,Proposito_programa!$C$2:$E$59,2,FALSE))," ",VLOOKUP(K97,Proposito_programa!$C$2:$E$59,2,FALSE)) -> Cultura ciudadana para la confianza, la convivencia y la participación desde la vida cotidiana | M97: =IF(ISERROR(VLOOKUP(K97,Proposito_programa!$C$2:$E$59,3,FALSE))," ",VLOOKUP(K97,Proposito_programa!$C$2:$E$59,3,FALSE)) -> Propósito 3: Inspirar confianza y legitimidad para vivir sin miedo y ser epicentro de cultura ciudadana, paz y reconciliación | N97: O23011603430000001680 | O97: 1 | P97: 3232660 | Q97: FERNANDO PEDRAZA | R97: Persona Natural | W97: 25300000 | Y97: 1 | Z97: 2606667 | AA97: 27906667 | AB97: 23306667 | AC97: 2022-01-25 | AD97: 2022-01-27 | AE97: 2023-01-22 | AF97: 330 | AG97: 1 | AH97: 34 | AM97: Terminacion anticipada | AN97: 0.8351648371
A98: 88 | B98: 2022 | C98: FDLRUU-CD-086-2022 | D98: https://Community.seCop.gov.Co/PubliC/Tendering/OpportunityDetail/Index?notiCeUID=CO1.NTC.2689790&isFromPubliCArea=True&isModal=False | E98: Contratos de prestación de servicios profesionales y de apoyo a la gestión | F98: Contratación directa | G98: Prestación de servicios profesionales y de apoyo a la gestión, o para la ejecución de trabajos artísticos que sólo puedan encomendarse a determinadas personas naturales | H98: PRESTAR SERVICIOS DE APOYO A LA GESTIÓN LOCAL Y TERRITORIAL DE LOS TEMAS DE SEGURIDAD Y CONVIVENCIA CIUDADANA PARA LA ALCALDÍA LOCAL DE RAFAEL URIBE URIBE EN EL MARCO DEL PROYECTO DE INVERSION 1680 CIUDADANOS MÁS SEGUROS Y CON CONFIANZA EN LA JUSTICIA EN RAFAEL | I98: Inversión | J98: Un nuevo contrato social y ambiental para la Bogotá del Siglo XXI | K98: 43 | L98: =IF(ISERROR(VLOOKUP(K98,Proposito_programa!$C$2:$E$59,2,FALSE))," ",VLOOKUP(K98,Proposito_programa!$C$2:$E$59,2,FALSE)) -> Cultura ciudadana para la confianza, la convivencia y la participación desde la vida cotidiana | M98: =IF(ISERROR(VLOOKUP(K98,Proposito_programa!$C$2:$E$59,3,FALSE))," ",VLOOKUP(K98,Proposito_programa!$C$2:$E$59,3,FALSE)) -> Propósito 3: Inspirar confianza y legitimidad para vivir sin miedo y ser epicentro de cultura ciudadana, paz y reconciliación | N98: O23011603430000001680 | O98: 1 | P98: 1023882603 | Q98: MANUEL DUVAN GONZALO VELASQUEZ GRACIA | R98: Persona Natural | W98: 25300000 | Y98: 1 | Z98: 2606667 | AA98: 27906667 | AB98: 23306667 | AC98: 2022-01-25 | AD98: 2022-01-27 | AE98: 2023-01-22 | AF98: 330 | AG98: 1 | AH98: 34 | AM98: Terminacion anticipada | AN98: 0.8351648371
A99: 89 | B99: 2022 | C99: FDLRUU-CD-086-2022 | D99: https://Community.seCop.gov.Co/PubliC/Tendering/OpportunityDetail/Index?notiCeUID=CO1.NTC.2689790&isFromPubliCArea=True&isModal=False | E99: Contratos de prestación de servicios profesionales y de apoyo a la gestión | F99: Contratación directa | G99: Prestación de servicios profesionales y de apoyo a la gestión, o para la ejecución de trabajos artísticos que sólo puedan encomendarse a determinadas personas naturales | H99: PRESTAR SERVICIOS DE APOYO A LA GESTIÓN LOCAL Y TERRITORIAL DE LOS TEMAS DE SEGURIDAD Y CONVIVENCIA CIUDADANA PARA LA ALCALDÍA LOCAL DE RAFAEL URIBE URIBE EN EL MARCO DEL PROYECTO DE INVERSION 1680 CIUDADANOS MÁS SEGUROS Y CON CONFIANZA EN LA JUSTICIA EN RAFAEL | I99: Inversión | J99: Un nuevo contrato social y ambiental para la Bogotá del Siglo XXI | K99: 43 | L99: =IF(ISERROR(VLOOKUP(K99,Proposito_programa!$C$2:$E$59,2,FALSE))," ",VLOOKUP(K99,Proposito_programa!$C$2:$E$59,2,FALSE)) -> Cultura ciudadana para la confianza, la convivencia y la participación desde la vida cotidiana | M99: =IF(ISERROR(VLOOKUP(K99,Proposito_programa!$C$2:$E$59,3,FALSE))," ",VLOOKUP(K99,Proposito_programa!$C$2:$E$59,3,FALSE)) -> Propósito 3: Inspirar confianza y legitimidad para vivir sin miedo y ser epicentro de cultura ciudadana, paz y reconciliación | N99: O23011603430000001680 | O99: 1 | P99: 53002331 | Q99: SANDRA LILIANA HERNANDEZ ARAGON | R99: Persona Natural | W99: 25300000 | Y99: 1 | Z99: 2606667 | AA99: 27906667 | AB99: 23306667 | AC99: 2022-01-25 | AD99: 2022-01-27 | AE99: 2023-01-22 | AF99: 330 | AG99: 1 | AH99: 34 | AM99: Terminacion anticipada | AN99: 0.8351648371
A100: 90 | B100: 2022 | C100: FDLRUU-CD-086-2022 | D100: https://Community.seCop.gov.Co/PubliC/Tendering/OpportunityDetail/Index?notiCeUID=CO1.NTC.2689790&isFromPubliCArea=True&isModal=False | E100: Contratos de prestación de servicios profesionales y de apoyo a la gestión | F100: Contratación directa | G100: Prestación de servicios profesionales y de apoyo a la gestión, o para la ejecución de trabajos artísticos que sólo puedan encomendarse a determinadas personas naturales | H100: PRESTAR SERVICIOS DE APOYO A LA GESTIÓN LOCAL Y TERRITORIAL DE LOS TEMAS DE SEGURIDAD Y CONVIVENCIA CIUDADANA PARA LA ALCALDÍA LOCAL DE RAFAEL URIBE URIBE EN EL MARCO DEL PROYECTO DE INVERSION 1680 CIUDADANOS MÁS SEGUROS Y CON CONFIANZA EN LA JUSTICIA EN RAFAEL | I100: Inversión | J100: Un nuevo contrato social y ambiental para la Bogotá del Siglo XXI | K100: 43 | L100: =IF(ISERROR(VLOOKUP(K100,Proposito_programa!$C$2:$E$59,2,FALSE))," ",VLOOKUP(K100,Proposito_programa!$C$2:$E$59,2,FALSE)) -> Cultura ciudadana para la confianza, la convivencia y la participación desde la vida cotidiana | M100: =IF(ISERROR(VLOOKUP(K100,Proposito_programa!$C$2:$E$59,3,FALSE))," ",VLOOKUP(K100,Proposito_programa!$C$2:$E$59,3,FALSE)) -> Propósito 3: Inspirar confianza y legitimidad para vivir sin miedo y ser epicentro de cultura ciudadana, paz y reconciliación | N100: O23011603430000001680 | O100: 1 | P100: 1032410626 | Q100: YESID ALEJANDRO MORENO MARTINEZ | R100: Persona Natural | W100: 25300000 | Y100: 1 | Z100: 2606667 | AA100: 27906667 | AB100: 23306667 | AC100: 2022-01-25 | AD100: 2022-01-27 | AE100: 2023-01-23 | AF100: 330 | AG100: 1 | AH100: 34 | AM100: Terminacion anticipada | AN100: 0.8351648371
A101: 91 | B101: 2022 | C101: FDLRUU-CD-086-2022 | D101: https://Community.seCop.gov.Co/PubliC/Tendering/OpportunityDetail/Index?notiCeUID=CO1.NTC.2689790&isFromPubliCArea=True&isModal=False | E101: Contratos de prestación de servicios profesionales y de apoyo a la gestión | F101: Contratación directa | G101: Prestación de servicios profesionales y de apoyo a la gestión, o para la ejecución de trabajos artísticos que sólo puedan encomendarse a determinadas personas naturales | H101: PRESTAR SERVICIOS DE APOYO A LA GESTIÓN LOCAL Y TERRITORIAL DE LOS TEMAS DE SEGURIDAD Y CONVIVENCIA CIUDADANA PARA LA ALCALDÍA LOCAL DE RAFAEL URIBE URIBE EN EL MARCO DEL PROYECTO DE INVERSION 1680 CIUDADANOS MÁS SEGUROS Y CON CONFIANZA EN LA JUSTICIA EN RAFAEL | I101: Inversión | J101: Un nuevo contrato social y ambiental para la Bogotá del Siglo XXI | K101: 43 | L101: =IF(ISERROR(VLOOKUP(K101,Proposito_programa!$C$2:$E$59,2,FALSE))," ",VLOOKUP(K101,Proposito_programa!$C$2:$E$59,2,FALSE)) -> Cultura ciudadana para la confianza, la convivencia y la participación desde la vida cotidiana | M101: =IF(ISERROR(VLOOKUP(K101,Proposito_programa!$C$2:$E$59,3,FALSE))," ",VLOOKUP(K101,Proposito_programa!$C$2:$E$59,3,FALSE)) -> Propósito 3: Inspirar confianza y legitimidad para vivir sin miedo y ser epicentro de cultura ciudadana, paz y reconciliación | N101: O23011603430000001680 | O101: 1 | P101: 52951502 | Q101: MONICA MARIA SAENZ DELGADILLO | R101: Persona Natural | W101: 25300000 | Y101: 1 | Z101: 2530000 | AA101: 27830000 | AB101: =4600000+AL101 -> 23230000 | AC101: 2022-01-25 | AD101: 2022-01-28 | AE101: 2023-01-26 | AF101: 330 | AG101: 1 | AH101: 33 | AI101: 79496051 | AJ101: RAFAEL GALVIS MONCADA | AK101: 2022-09-29 | AL101: 18630000 | AM101: Terminacion anticipada | AN101: 0.8347107438
A102: 92 | B102: 2022 | C102: FDLRUU-CD-086-2022 | D102: https://Community.seCop.gov.Co/PubliC/Tendering/OpportunityDetail/Index?notiCeUID=CO1.NTC.2689790&isFromPubliCArea=True&isModal=False | E102: Contratos de prestación de servicios profesionales y de apoyo a la gestión | F102: Contratación directa | G102: Prestación de servicios profesionales y de apoyo a la gestión, o para la ejecución de trabajos artísticos que sólo puedan encomendarse a determinadas personas naturales | H102: PRESTAR SERVICIOS DE APOYO A LA GESTIÓN LOCAL Y TERRITORIAL DE LOS TEMAS DE SEGURIDAD Y CONVIVENCIA CIUDADANA PARA LA ALCALDÍA LOCAL DE RAFAEL URIBE URIBE EN EL MARCO DEL PROYECTO DE INVERSION 1680 CIUDADANOS MÁS SEGUROS Y CON CONFIANZA EN LA JUSTICIA EN RAFAEL | I102: Inversión | J102: Un nuevo contrato social y ambiental para la Bogotá del Siglo XXI | K102: 43 | L102: =IF(ISERROR(VLOOKUP(K102,Proposito_programa!$C$2:$E$59,2,FALSE))," ",VLOOKUP(K102,Proposito_programa!$C$2:$E$59,2,FALSE)) -> Cultura ciudadana para la confianza, la convivencia y la participación desde la vida cotidiana | M102: =IF(ISERROR(VLOOKUP(K102,Proposito_programa!$C$2:$E$59,3,FALSE))," ",VLOOKUP(K102,Proposito_programa!$C$2:$E$59,3,FALSE)) -> Propósito 3: Inspirar confianza y legitimidad para vivir sin miedo y ser epicentro de cultura ciudadana, paz y reconciliación | N102: O23011603430000001680 | O102: 1 | P102: 1022444715 | Q102: ARLY JOHANA LIMAS ROJAS | R102: Persona Natural | W102: 25300000 | Y102: 1 | Z102: 2530000 | AA102: 27830000 | AB102: 23230000 | AC102: 2022-01-26 | AD102: 2022-01-28 | AE102: 2023-01-19 | AF102: 330 | AG102: 1 | AH102: 33 | AM102: Terminacion anticipada | AN102: 0.8347107438
A103: 93 | B103: 2022 | C103: FDLRUU-CD-086-2022 | D103: https://Community.seCop.gov.Co/PubliC/Tendering/OpportunityDetail/Index?notiCeUID=CO1.NTC.2689790&isFromPubliCArea=True&isModal=False | E103: Contratos de prestación de servicios profesionales y de apoyo a la gestión | F103: Contratación directa | G103: Prestación de servicios profesionales y de apoyo a la gestión, o para la ejecución de trabajos artísticos que sólo puedan encomendarse a determinadas personas naturales | H103: PRESTAR SERVICIOS DE APOYO A LA GESTIÓN LOCAL Y TERRITORIAL DE LOS TEMAS DE SEGURIDAD Y CONVIVENCIA CIUDADANA PARA LA ALCALDÍA LOCAL DE RAFAEL URIBE URIBE EN EL MARCO DEL PROYECTO DE INVERSION 1680 CIUDADANOS MÁS SEGUROS Y CON CONFIANZA EN LA JUSTICIA EN RAFAEL | I103: Inversión | J103: Un nuevo contrato social y ambiental para la Bogotá del Siglo XXI | K103: 43 | L103: =IF(ISERROR(VLOOKUP(K103,Proposito_programa!$C$2:$E$59,2,FALSE))," ",VLOOKUP(K103,Proposito_programa!$C$2:$E$59,2,FALSE)) -> Cultura ciudadana para la confianza, la convivencia y la participación desde la vida cotidiana | M103: =IF(ISERROR(VLOOKUP(K103,Proposito_programa!$C$2:$E$59,3,FALSE))," ",VLOOKUP(K103,Proposito_programa!$C$2:$E$59,3,FALSE)) -> Propósito 3: Inspirar confianza y legitimidad para vivir sin miedo y ser epicentro de cultura ciudadana, paz y reconciliación | N103: O23011603430000001680 | O103: 1 | P103: 51912017 | Q103: ANA DOLORES SANABRIA QUIROGA | R103: Persona Natural | W103: 25300000 | Y103: 1 | Z103: 2530000 | AA103: 27830000 | AB103: 23230000 | AC103: 2022-01-26 | AD103: 2022-01-28 | AE103: 2023-01-19 | AF103: 330 | AG103: 1 | AH103: 33 | AM103: Terminacion anticipada | AN103: 0.8347107438
A104: 94 | B104: 2022 | C104: FDLRUU-CD-086-2022 | D104: https://Community.seCop.gov.Co/PubliC/Tendering/OpportunityDetail/Index?notiCeUID=CO1.NTC.2689790&isFromPubliCArea=True&isModal=False | E104: Contratos de prestación de servicios profesionales y de apoyo a la gestión | F104: Contratación directa | G104: Prestación de servicios profesionales y de apoyo a la gestión, o para la ejecución de trabajos artísticos que sólo puedan encomendarse a determinadas personas naturales | H104: PRESTAR SERVICIOS DE APOYO A LA GESTIÓN LOCAL Y TERRITORIAL DE LOS TEMAS DE SEGURIDAD Y CONVIVENCIA CIUDADANA PARA LA ALCALDÍA LOCAL DE RAFAEL URIBE URIBE EN EL MARCO DEL PROYECTO DE INVERSION 1680 CIUDADANOS MÁS SEGUROS Y CON CONFIANZA EN LA JUSTICIA EN RAFAEL | I104: Inversión | J104: Un nuevo contrato social y ambiental para la Bogotá del Siglo XXI | K104: 43 | L104: =IF(ISERROR(VLOOKUP(K104,Proposito_programa!$C$2:$E$59,2,FALSE))," ",VLOOKUP(K104,Proposito_programa!$C$2:$E$59,2,FALSE)) -> Cultura ciudadana para la confianza, la convivencia y la participación desde la vida cotidiana | M104: =IF(ISERROR(VLOOKUP(K104,Proposito_programa!$C$2:$E$59,3,FALSE))," ",VLOOKUP(K104,Proposito_programa!$C$2:$E$59,3,FALSE)) -> Propósito 3: Inspirar confianza y legitimidad para vivir sin miedo y ser epicentro de cultura ciudadana, paz y reconciliación | N104: O23011603430000001680 | O104: 1 | P104: 2970813 | Q104: GUILLERMO MORENO | R104: Persona Natural | W104: 25300000 | Y104: 1 | Z104: 2530000 | AA104: 27830000 | AB104: 23230000 | AC104: 2022-01-27 | AD104: 2022-01-28 | AE104: 2023-01-19 | AF104: 330 | AG104: 1 | AH104: 33 | AM104: Terminacion anticipada | AN104: 0.8347107438
A105: 95 | B105: 2022 | C105: FDLRUU-CD-086-2022 | D105: https://Community.seCop.gov.Co/PubliC/Tendering/OpportunityDetail/Index?notiCeUID=CO1.NTC.2689790&isFromPubliCArea=True&isModal=False | E105: Contratos de prestación de servicios profesionales y de apoyo a la gestión | F105: Contratación directa | G105: Prestación de servicios profesionales y de apoyo a la gestión, o para la ejecución de trabajos artísticos que sólo puedan encomendarse a determinadas personas naturales | H105: PRESTAR SERVICIOS DE APOYO A LA GESTIÓN LOCAL Y TERRITORIAL DE LOS TEMAS DE SEGURIDAD Y CONVIVENCIA CIUDADANA PARA LA ALCALDÍA LOCAL DE RAFAEL URIBE URIBE EN EL MARCO DEL PROYECTO DE INVER SION 1680 CIUDADANOS MÁS SEGUROS Y CON CONFIANZA EN LA JUSTICIA EN RAFAEL URIBE URIBE | I105: Inversión | J105: Un nuevo contrato social y ambiental para la Bogotá del Siglo XXI | K105: 43 | L105: =IF(ISERROR(VLOOKUP(K105,Proposito_programa!$C$2:$E$59,2,FALSE))," ",VLOOKUP(K105,Proposito_programa!$C$2:$E$59,2,FALSE)) -> Cultura ciudadana para la confianza, la convivencia y la participación desde la vida cotidiana | M105: =IF(ISERROR(VLOOKUP(K105,Proposito_programa!$C$2:$E$59,3,FALSE))," ",VLOOKUP(K105,Proposito_programa!$C$2:$E$59,3,FALSE)) -> Propósito 3: Inspirar confianza y legitimidad para vivir sin miedo y ser epicentro de cultura ciudadana, paz y reconciliación | N105: O23011603430000001680 | O105: 1 | P105: 1023892888 | Q105: KAREN MAYERLY MORENO MARIN | R105: Persona Natural | W105: 25300000 | Y105: 1 | Z105: 2530000 | AA105: 27830000 | AB105: 23230000 | AC105: 2022-01-26 | AD105: 2022-01-28 | AE105: 2023-01-19 | AF105: 330 | AG105: 1 | AH105: 33 | AM105: Terminacion anticipada | AN105: 0.8347107438
A106: 96 | B106: 2022 | C106: FDLRUU-CD-086-2022 | D106: https://Community.seCop.gov.Co/PubliC/Tendering/OpportunityDetail/Index?notiCeUID=CO1.NTC.2689790&isFromPubliCArea=True&isModal=False | E106: Contratos de prestación de servicios profesionales y de apoyo a la gestión | F106: Contratación directa | G106: Prestación de servicios profesionales y de apoyo a la gestión, o para la ejecución de trabajos artísticos que sólo puedan encomendarse a determinadas personas naturales | H106: PRESTAR SERVICIOS DE APOYO A LA GESTIÓN LOCAL Y TERRITORIAL DE LOS TEMAS DE SEGURIDAD Y CONVIVENCIA CIUDADANA PARA LA ALCALDÍA LOCAL DE RAFAEL URIBE URIBE EN EL MARCO DEL PROYECTO DE INVERSION 1680 CIUDADANOS MÁS SEGUROS Y CON CONFIANZA EN LA JUSTICIA EN RAFAEL URIBE URIBE | I106: Inversión | J106: Un nuevo contrato social y ambiental para la Bogotá del Siglo XXI | K106: 43 | L106: =IF(ISERROR(VLOOKUP(K106,Proposito_programa!$C$2:$E$59,2,FALSE))," ",VLOOKUP(K106,Proposito_programa!$C$2:$E$59,2,FALSE)) -> Cultura ciudadana para la confianza, la convivencia y la participación desde la vida cotidiana | M106: =IF(ISERROR(VLOOKUP(K106,Proposito_programa!$C$2:$E$59,3,FALSE))," ",VLOOKUP(K106,Proposito_programa!$C$2:$E$59,3,FALSE)) -> Propósito 3: Inspirar confianza y legitimidad para vivir sin miedo y ser epicentro de cultura ciudadana, paz y reconciliación | N106: O23011603430000001680 | O106: 1 | P106: 79640008 | Q106: WILLIAM BOLIVAR MACA | R106: Persona Natural | W106: 25300000 | Y106: 1 | Z106: 2530000 | AA106: 27830000 | AB106: 23230000 | AC106: 2022-01-26 | AD106: 2022-01-28 | AE106: 2023-01-25 | AF106: 330 | AG106: 1 | AH106: 33 | AM106: Terminacion anticipada | AN106: 0.8347107438
A107: 97 | B107: 2022 | C107: FDLRUU-CD-086-2022 | D107: https://Community.seCop.gov.Co/PubliC/Tendering/OpportunityDetail/Index?notiCeUID=CO1.NTC.2689790&isFromPubliCArea=True&isModal=False | E107: Contratos de prestación de servicios profesionales y de apoyo a la gestión | F107: Contratación directa | G107: Prestación de servicios profesionales y de apoyo a la gestión, o para la ejecución de trabajos artísticos que sólo puedan encomendarse a determinadas personas naturales | H107: PRESTAR SERVICIOS DE APOYO A LA GESTIÓN LOCAL Y TERRITORIAL DE LOS TEMAS DE SEGURIDAD Y CONVIVENCIA CIUDADANA PARA LA ALCALDÍA LOCAL DE RAFAEL URIBE URIBE EN EL MARCO DEL PROYECTO DE INVER SION 1680 CIUDADANOS MÁS SEGUROS Y CON CONFIANZA EN LA JUSTICIA EN RAFAEL URIBE URIBE | I107: Inversión | J107: Un nuevo contrato social y ambiental para la Bogotá del Siglo XXI | K107: 43 | L107: =IF(ISERROR(VLOOKUP(K107,Proposito_programa!$C$2:$E$59,2,FALSE))," ",VLOOKUP(K107,Proposito_programa!$C$2:$E$59,2,FALSE)) -> Cultura ciudadana para la confianza, la convivencia y la participación desde la vida cotidiana | M107: =IF(ISERROR(VLOOKUP(K107,Proposito_programa!$C$2:$E$59,3,FALSE))," ",VLOOKUP(K107,Proposito_programa!$C$2:$E$59,3,FALSE)) -> Propósito 3: Inspirar confianza y legitimidad para vivir sin miedo y ser epicentro de cultura ciudadana, paz y reconciliación | N107: O23011603430000001680 | O107: 1 | P107: 1013642971 | Q107: VANESSA MOLANO GALEANO | R107: Persona Natural | W107: 25300000 | AA107: 25300000 | AB107: 22386667 | AC107: 2022-01-28 | AD107: 2022-02-09 | AE107: 2023-01-08 | AF107: 330 | AM107: Terminado | AN107: 0.884848498
A108: 98 | B108: 2022 | C108: FDLRUU-CD-086-2022 | D108: https://Community.seCop.gov.Co/PubliC/Tendering/OpportunityDetail/Index?notiCeUID=CO1.NTC.2689790&isFromPubliCArea=True&isModal=False | E108: Contratos de prestación de servicios profesionales y de apoyo a la gestión | F108: Contratación directa | G108: Prestación de servicios profesionales y de apoyo a la gestión, o para la ejecución de trabajos artísticos que sólo puedan encomendarse a determinadas personas naturales | H108: PRESTAR SERVICIOS DE APOYO A LA GESTIÓN LOCAL Y TERRITORIAL DE LOS TEMAS DE SEGURIDAD Y CONVIVENCIA CIUDADANA PARA LA ALCALDÍA LOCAL DE RAFAEL URIBE URIBE EN EL MARCO DEL PROYECTO DE INVERSION 1680 CIUDADANOS MÁS SEGUROS Y CON CONFIANZA EN LA JUSTICIA EN RAFAEL | I108: Inversión | J108: Un nuevo contrato social y ambiental para la Bogotá del Siglo XXI | K108: 43 | L108: =IF(ISERROR(VLOOKUP(K108,Proposito_programa!$C$2:$E$59,2,FALSE))," ",VLOOKUP(K108,Proposito_programa!$C$2:$E$59,2,FALSE)) -> Cultura ciudadana para la confianza, la convivencia y la participación desde la vida cotidiana | M108: =IF(ISERROR(VLOOKUP(K108,Proposito_programa!$C$2:$E$59,3,FALSE))," ",VLOOKUP(K108,Proposito_programa!$C$2:$E$59,3,FALSE)) -> Propósito 3: Inspirar confianza y legitimidad para vivir sin miedo y ser epicentro de cultura ciudadana, paz y reconciliación | N108: O23011603430000001680 | O108: 1 | P108: 1013643216 | Q108: EVELYN ESTEFANY MOSQUERA DAVILA | R108: Persona Natural | W108: 25300000 | Y108: 1 | Z108: 2530000 | AA108: 27830000 | AB108: 23230000 | AC108: 2022-01-26 | AD108: 2022-01-28 | AE108: 2023-01-19 | AF108: 330 | AG108: 1 | AH108: 33 | AM108: Terminacion anticipada | AN108: 0.8347107438
A109: 99 | B109: 2022 | C109: FDLRUU-CD-086-2022 | D109: https://Community.seCop.gov.Co/PubliC/Tendering/OpportunityDetail/Index?notiCeUID=CO1.NTC.2689790&isFromPubliCArea=True&isModal=False | E109: Contratos de prestación de servicios profesionales y de apoyo a la gestión | F109: Contratación directa | G109: Prestación de servicios profesionales y de apoyo a la gestión, o para la ejecución de trabajos artísticos que sólo puedan encomendarse a determinadas personas naturales | H109: PRESTAR SERVICIOS DE APOYO A LA GESTIÓN LOCAL Y TERRITORIAL DE LOS TEMAS DE SEGURIDAD Y CONVIVENCIA CIUDADANA PARA LA ALCALDÍA LOCAL DE RAFAEL URIBE URIBE EN EL MARCO DEL PROYECTO DE INVERSION 1680 CIUDADANOS MÁS SEGUROS Y CON CONFIANZA EN LA JUSTICIA EN RAFAEL | I109: Inversión | J109: Un nuevo contrato social y ambiental para la Bogotá del Siglo XXI | K109: 43 | L109: =IF(ISERROR(VLOOKUP(K109,Proposito_programa!$C$2:$E$59,2,FALSE))," ",VLOOKUP(K109,Proposito_programa!$C$2:$E$59,2,FALSE)) -> Cultura ciudadana para la confianza, la convivencia y la participación desde la vida cotidiana | M109: =IF(ISERROR(VLOOKUP(K109,Proposito_programa!$C$2:$E$59,3,FALSE))," ",VLOOKUP(K109,Proposito_programa!$C$2:$E$59,3,FALSE)) -> Propósito 3: Inspirar confianza y legitimidad para vivir sin miedo y ser epicentro de cultura ciudadana, paz y reconciliación | N109: O23011603430000001680 | O109: 1 | P109: 80911828 | Q109: ELISEO ROMERO | R109: Persona Natural | W109: 25300000 | Y109: 1 | Z109: 2300000 | AA109: 27600000 | AB109: 23000000 | AC109: 2022-01-26 | AD109: 2022-02-01 | AE109: 2023-01-25 | AF109: 330 | AG109: 1 | AH109: 30 | AM109: Terminacion anticipada | AN109: 0.8333333333
A110: 100 | B110: 2022 | C110: FDLRUU-CD-086-2022 | D110: https://Community.seCop.gov.Co/PubliC/Tendering/OpportunityDetail/Index?notiCeUID=CO1.NTC.2689790&isFromPubliCArea=True&isModal=False | E110: Contratos de prestación de servicios profesionales y de apoyo a la gestión | F110: Contratación directa | G110: Prestación de servicios profesionales y de apoyo a la gestión, o para la ejecución de trabajos artísticos que sólo puedan encomendarse a determinadas personas naturales | H110: PRESTAR SERVICIOS DE APOYO A LA GESTIÓN LOCAL Y TERRITORIAL DE LOS TEMAS DE SEGURIDAD Y CONVIVENCIA CIUDADANA PARA LA ALCALDÍA LOCAL DE RAFAEL URIBE URIBE EN EL MARCO DEL PROYECTO DE INVERSION 1680 CIUDADANOS MÁS SEGUROS Y CON CONFIANZA EN LA JUSTICIA EN RAFAEL | I110: Inversión | J110: Un nuevo contrato social y ambiental para la Bogotá del Siglo XXI | K110: 43 | L110: =IF(ISERROR(VLOOKUP(K110,Proposito_programa!$C$2:$E$59,2,FALSE))," ",VLOOKUP(K110,Proposito_programa!$C$2:$E$59,2,FALSE)) -> Cultura ciudadana para la confianza, la convivencia y la participación desde la vida cotidiana | M110: =IF(ISERROR(VLOOKUP(K110,Proposito_programa!$C$2:$E$59,3,FALSE))," ",VLOOKUP(K110,Proposito_programa!$C$2:$E$59,3,FALSE)) -> Propósito 3: Inspirar confianza y legitimidad para vivir sin miedo y ser epicentro de cultura ciudadana, paz y reconciliación | N110: O23011603430000001680 | O110: 1 | P110: 1031172956 | Q110: CAMILO ANDRES MARROQUIN RUIZ | R110: Persona Natural | W110: 25300000 | Y110: 1 | Z110: 2300000 | AA110: 27600000 | AB110: 23000000 | AC110: 2022-01-26 | AD110: 2022-02-01 | AE110: 2023-01-30 | AF110: 330 | AG110: 1 | AH110: 30 | AM110: Terminado | AN110: 0.8333333333
A111: 101 | B111: 2022 | C111: FDLRUU-CD-086-2022 | D111: https://Community.seCop.gov.Co/PubliC/Tendering/OpportunityDetail/Index?notiCeUID=CO1.NTC.2689790&isFromPubliCArea=True&isModal=False | E111: Contratos de prestación de servicios profesionales y de apoyo a la gestión | F111: Contratación directa | G111: Prestación de servicios profesionales y de apoyo a la gestión, o para la ejecución de trabajos artísticos que sólo puedan encomendarse a determinadas personas naturales | H111: "PRESTAR SERVICIOS DE APOYO A LA GESTIÓN LOCAL Y TERRITORIAL DE LOS TEMAS DE SEGURIDAD Y CONVIVENCIA CIUDADANA PARA LA ALCALDÍA LOCAL DE RAFAEL URIBE URIBE EN EL MARCO DEL PROYECTO DE INVERSION 1680 CIUDADANOS MÁS SEGUROS Y CON CONFIANZA EN LA JUSTICIA EN RAFAEL.". | I111: Inversión | J111: Un nuevo contrato social y ambiental para la Bogotá del Siglo XXI | K111: 43 | L111: =IF(ISERROR(VLOOKUP(K111,Proposito_programa!$C$2:$E$59,2,FALSE))," ",VLOOKUP(K111,Proposito_programa!$C$2:$E$59,2,FALSE)) -> Cultura ciudadana para la confianza, la convivencia y la participación desde la vida cotidiana | M111: =IF(ISERROR(VLOOKUP(K111,Proposito_programa!$C$2:$E$59,3,FALSE))," ",VLOOKUP(K111,Proposito_programa!$C$2:$E$59,3,FALSE)) -> Propósito 3: Inspirar confianza y legitimidad para vivir sin miedo y ser epicentro de cultura ciudadana, paz y reconciliación | N111: O23011603430000001680 | O111: 1 | P111: 80029346 | Q111: GUSTAVO ALEXANDER CAMARGO REYES | R111: Persona Natural | W111: 25300000 | Y111: 1 | Z111: 2300000 | AA111: 27600000 | AB111: 23000000 | AC111: 2022-01-26 | AD111: 2022-02-01 | AE111: 2023-01-23 | AF111: 330 | AG111: 1 | AH111: 30 | AM111: Terminacion Anticipada | AN111: 0.8333333333
A112: 102 | B112: 2022 | C112: FDLRUU-CD-086-2022 | D112: https://Community.seCop.gov.Co/PubliC/Tendering/OpportunityDetail/Index?notiCeUID=CO1.NTC.2689790&isFromPubliCArea=True&isModal=False | E112: Contratos de prestación de servicios profesionales y de apoyo a la gestión | F112: Contratación directa | G112: Prestación de servicios profesionales y de apoyo a la gestión, o para la ejecución de trabajos artísticos que sólo puedan encomendarse a determinadas personas naturales | H112: "PRESTAR SERVICIOS DE APOYO A LA GESTIÓN LOCAL Y TERRITORIAL DE LOS TEMAS DE SEGURIDAD Y CONVIVENCIA CIUDADANA PARA LA ALCALDÍA LOCAL DE RAFAEL URIBE URIBE EN EL MARCO DEL PROYECTO DE INVERSION 1680 CIUDADANOS MÁS SEGUROS Y CON CONFIANZA EN LA JUSTICIA EN RAFAEL.". | I112: Inversión | J112: Un nuevo contrato social y ambiental para la Bogotá del Siglo XXI | K112: 43 | L112: =IF(ISERROR(VLOOKUP(K112,Proposito_programa!$C$2:$E$59,2,FALSE))," ",VLOOKUP(K112,Proposito_programa!$C$2:$E$59,2,FALSE)) -> Cultura ciudadana para la confianza, la convivencia y la participación desde la vida cotidiana | M112: =IF(ISERROR(VLOOKUP(K112,Proposito_programa!$C$2:$E$59,3,FALSE))," ",VLOOKUP(K112,Proposito_programa!$C$2:$E$59,3,FALSE)) -> Propósito 3: Inspirar confianza y legitimidad para vivir sin miedo y ser epicentro de cultura ciudadana, paz y reconciliación | N112: O23011603430000001680 | O112: 1 | P112: 52538269 | Q112: GLORIA YISETH RINCON HENAO | R112: Persona Natural | W112: 25300000 | Y112: 1 | Z112: 2300000 | AA112: 27600000 | AB112: 23000000 | AC112: 2022-01-28 | AD112: 2022-02-01 | AE112: 2023-01-25 | AF112: 330 | AG112: 1 | AH112: 30 | AM112: Terminacion anticipada | AN112: 0.8333333333
A113: 103 | B113: 2022 | C113: FDLRUU-CD-086-2022 | D113: https://Community.seCop.gov.Co/PubliC/Tendering/OpportunityDetail/Index?notiCeUID=CO1.NTC.2689790&isFromPubliCArea=True&isModal=False | E113: Contratos de prestación de servicios profesionales y de apoyo a la gestión | F113: Contratación directa | G113: Prestación de servicios profesionales y de apoyo a la gestión, o para la ejecución de trabajos artísticos que sólo puedan encomendarse a determinadas personas naturales | H113: "PRESTAR SERVICIOS DE APOYO A LA GESTIÓN LOCAL Y TERRITORIAL DE LOS TEMAS DE SEGURIDAD Y CONVIVENCIA CIUDADANA PARA LA ALCALDÍA LOCAL DE RAFAEL URIBE URIBE EN EL MARCO DEL PROYECTO DE INVERSION 1680 CIUDADANOS MÁS SEGUROS Y CON CONFIANZA EN LA JUSTICIA EN RAFAEL.". | I113: Inversión | J113: Un nuevo contrato social y ambiental para la Bogotá del Siglo XXI | K113: 43 | L113: =IF(ISERROR(VLOOKUP(K113,Proposito_programa!$C$2:$E$59,2,FALSE))," ",VLOOKUP(K113,Proposito_programa!$C$2:$E$59,2,FALSE)) -> Cultura ciudadana para la confianza, la convivencia y la participación desde la vida cotidiana | M113: =IF(ISERROR(VLOOKUP(K113,Proposito_programa!$C$2:$E$59,3,FALSE))," ",VLOOKUP(K113,Proposito_programa!$C$2:$E$59,3,FALSE)) -> Propósito 3: Inspirar confianza y legitimidad para vivir sin miedo y ser epicentro de cultura ciudadana, paz y reconciliación | N113: O23011603430000001680 | O113: 1 | P113: 1031148872 | Q113: SANDRA MILENA MUÑOZ NAVARRO | R113: Persona Natural | W113: 25300000 | Y113: 1 | Z113: 2300000 | AA113: 27600000 | AB113: 23000000 | AC113: 2022-01-26 | AD113: 2022-02-01 | AE113: 2023-01-26 | AF113: 330 | AG113: 1 | AH113: 30 | AM113: Terminacion anticipada | AN113: 0.8333333333
A114: 104 | B114: 2022 | C114: FDLRUU-CD-086-2022 | D114: https://Community.seCop.gov.Co/PubliC/Tendering/OpportunityDetail/Index?notiCeUID=CO1.NTC.2689790&isFromPubliCArea=True&isModal=False | E114: Contratos de prestación de servicios profesionales y de apoyo a la gestión | F114: Contratación directa | G114: Prestación de servicios profesionales y de apoyo a la gestión, o para la ejecución de trabajos artísticos que sólo puedan encomendarse a determinadas personas naturales | H114: "PRESTAR SERVICIOS DE APOYO A LA GESTIÓN LOCAL Y TERRITORIAL DE LOS TEMAS DE SEGURIDAD Y CONVIVENCIA CIUDADANA PARA LA ALCALDÍA LOCAL DE RAFAEL URIBE URIBE EN EL MARCO DEL PROYECTO DE INVERSION 1680 CIUDADANOS MÁS SEGUROS Y CON CONFIANZA EN LA JUSTICIA EN RAFAEL.". | I114: Inversión | J114: Un nuevo contrato social y ambiental para la Bogotá del Siglo XXI | K114: 43 | L114: =IF(ISERROR(VLOOKUP(K114,Proposito_programa!$C$2:$E$59,2,FALSE))," ",VLOOKUP(K114,Proposito_programa!$C$2:$E$59,2,FALSE)) -> Cultura ciudadana para la confianza, la convivencia y la participación desde la vida cotidiana | M114: =IF(ISERROR(VLOOKUP(K114,Proposito_programa!$C$2:$E$59,3,FALSE))," ",VLOOKUP(K114,Proposito_programa!$C$2:$E$59,3,FALSE)) -> Propósito 3: Inspirar confianza y legitimidad para vivir sin miedo y ser epicentro de cultura ciudadana, paz y reconciliación | N114: O23011603430000001680 | O114: 1 | P114: 1031150866 | Q114: KEVIN PAEZ UBAQUE | R114: Persona Natural | W114: 25300000 | Y114: 1 | Z114: 2300000 | AA114: 27600000 | AB114: 23000000 | AC114: 2022-01-27 | AD114: 2022-02-01 | AE114: 2023-01-30 | AF114: 330 | AG114: 1 | AH114: 30 | AM114: Terminado | AN114: 0.8333333333
A115: 105 | B115: 2022 | C115: FDLRUU-CD-086-2022 | D115: https://Community.seCop.gov.Co/PubliC/Tendering/OpportunityDetail/Index?notiCeUID=CO1.NTC.2689790&isFromPubliCArea=True&isModal=False | E115: Contratos de prestación de servicios profesionales y de apoyo a la gestión | F115: Contratación directa | G115: Prestación de servicios profesionales y de apoyo a la gestión, o para la ejecución de trabajos artísticos que sólo puedan encomendarse a determinadas personas naturales | H115: "PRESTAR SERVICIOS DE APOYO A LA GESTIÓN LOCAL Y TERRITORIAL DE LOS TEMAS DE SEGURIDAD Y CONVIVENCIA CIUDADANA PARA LA ALCALDÍA LOCAL DE RAFAEL URIBE URIBE EN EL MARCO DEL PROYECTO DE INVERSION 1680 CIUDADANOS MÁS SEGUROS Y CON CONFIANZA EN LA JUSTICIA EN RAFAEL.". | I115: Inversión | J115: Un nuevo contrato social y ambiental para la Bogotá del Siglo XXI | K115: 43 | L115: =IF(ISERROR(VLOOKUP(K115,Proposito_programa!$C$2:$E$59,2,FALSE))," ",VLOOKUP(K115,Proposito_programa!$C$2:$E$59,2,FALSE)) -> Cultura ciudadana para la confianza, la convivencia y la participación desde la vida cotidiana | M115: =IF(ISERROR(VLOOKUP(K115,Proposito_programa!$C$2:$E$59,3,FALSE))," ",VLOOKUP(K115,Proposito_programa!$C$2:$E$59,3,FALSE)) -> Propósito 3: Inspirar confianza y legitimidad para vivir sin miedo y ser epicentro de cultura ciudadana, paz y reconciliación | N115: O23011603430000001680 | O115: 1 | P115: 28224210 | Q115: MATILDE RAMIREZ GUEVARA | R115: Persona Natural | W115: 25300000 | Y115: 1 | Z115: 2300000 | AA115: 27600000 | AB115: 23000000 | AC115: 2022-01-27 | AD115: 2022-02-01 | AE115: 2023-01-25 | AF115: 330 | AG115: 1 | AH115: 30 | AM115: Terminacion anticipada | AN115: 0.8333333333
A116: 106 | B116: 2022 | C116: FDLRUU-CD-086-2022 | D116: https://Community.seCop.gov.Co/PubliC/Tendering/OpportunityDetail/Index?notiCeUID=CO1.NTC.2689790&isFromPubliCArea=True&isModal=False | E116: Contratos de prestación de servicios profesionales y de apoyo a la gestión | F116: Contratación directa | G116: Prestación de servicios profesionales y de apoyo a la gestión, o para la ejecución de trabajos artísticos que sólo puedan encomendarse a determinadas personas naturales | H116: "PRESTAR SERVICIOS DE APOYO A LA GESTIÓN LOCAL Y TERRITORIAL DE LOS TEMAS DE SEGURIDAD Y CONVIVENCIA CIUDADANA PARA LA ALCALDÍA LOCAL DE RAFAEL URIBE URIBE EN EL MARCO DEL PROYECTO DE INVERSION 1680 CIUDADANOS MÁS SEGUROS Y CON CONFIANZA EN LA JUSTICIA EN RAFAEL.". | I116: Inversión | J116: Un nuevo contrato social y ambiental para la Bogotá del Siglo XXI | K116: 43 | L116: =IF(ISERROR(VLOOKUP(K116,Proposito_programa!$C$2:$E$59,2,FALSE))," ",VLOOKUP(K116,Proposito_programa!$C$2:$E$59,2,FALSE)) -> Cultura ciudadana para la confianza, la convivencia y la participación desde la vida cotidiana | M116: =IF(ISERROR(VLOOKUP(K116,Proposito_programa!$C$2:$E$59,3,FALSE))," ",VLOOKUP(K116,Proposito_programa!$C$2:$E$59,3,FALSE)) -> Propósito 3: Inspirar confianza y legitimidad para vivir sin miedo y ser epicentro de cultura ciudadana, paz y reconciliación | N116: O23011603430000001680 | O116: 1 | P116: 1031150465 | Q116: FREDY ALEJANDRO MONROY ARDILA | R116: Persona Natural | W116: 25300000 | Y116: 1 | Z116: 2223333 | AA116: 27523333 | AB116: 22923333 | AC116: 2022-01-28 | AD116: 2022-02-02 | AE116: 2023-01-23 | AF116: 330 | AG116: 1 | AH116: 29 | AM116: Terminacion Anticipada | AN116: 0.8328690788
A117: 107 | B117: 2022 | C117: FDLRUU-CD-086-2022 | D117: https://Community.seCop.gov.Co/PubliC/Tendering/OpportunityDetail/Index?notiCeUID=CO1.NTC.2689790&isFromPubliCArea=True&isModal=False | E117: Contratos de prestación de servicios profesionales y de apoyo a la gestión | F117: Contratación directa | G117: Prestación de servicios profesionales y de apoyo a la gestión, o para la ejecución de trabajos artísticos que sólo puedan encomendarse a determinadas personas naturales | H117: "PRESTAR SERVICIOS DE APOYO A LA GESTIÓN LOCAL Y TERRITORIAL DE LOS TEMAS DE SEGURIDAD Y CONVIVENCIA CIUDADANA PARA LA ALCALDÍA LOCAL DE RAFAEL URIBE URIBE EN EL MARCO DEL PROYECTO DE INVERSION 1680 CIUDADANOS MÁS SEGUROS Y CON CONFIANZA EN LA JUSTICIA EN RAFAEL.". | I117: Inversión | J117: Un nuevo contrato social y ambiental para la Bogotá del Siglo XXI | K117: 43 | L117: =IF(ISERROR(VLOOKUP(K117,Proposito_programa!$C$2:$E$59,2,FALSE))," ",VLOOKUP(K117,Proposito_programa!$C$2:$E$59,2,FALSE)) -> Cultura ciudadana para la confianza, la convivencia y la participación desde la vida cotidiana | M117: =IF(ISERROR(VLOOKUP(K117,Proposito_programa!$C$2:$E$59,3,FALSE))," ",VLOOKUP(K117,Proposito_programa!$C$2:$E$59,3,FALSE)) -> Propósito 3: Inspirar confianza y legitimidad para vivir sin miedo y ser epicentro de cultura ciudadana, paz y reconciliación | N117: O23011603430000001680 | O117: 1 | P117: 80808223 | Q117: HAYDUK RODRIGUEZ UBAQUE | R117: Persona Natural | W117: 25300000 | Y117: 1 | Z117: 2300000 | AA117: 27600000 | AB117: 23000000 | AC117: 2022-01-28 | AD117: 2022-02-01 | AE117: 2023-01-24 | AF117: 330 | AG117: 1 | AH117: 30 | AM117: Terminacion anticipada | AN117: 0.8333333333
A118: 108 | B118: 2022 | C118: FDLRUU-CD-086-2022 | D118: https://Community.seCop.gov.Co/PubliC/Tendering/OpportunityDetail/Index?notiCeUID=CO1.NTC.2689790&isFromPubliCArea=True&isModal=False | E118: Contratos de prestación de servicios profesionales y de apoyo a la gestión | F118: Contratación directa | G118: Prestación de servicios profesionales y de apoyo a la gestión, o para la ejecución de trabajos artísticos que sólo puedan encomendarse a determinadas personas naturales | H118: "PRESTAR SERVICIOS DE APOYO A LA GESTIÓN LOCAL Y TERRITORIAL DE LOS TEMAS DE SEGURIDAD Y CONVIVENCIA CIUDADANA PARA LA ALCALDÍA LOCAL DE RAFAEL URIBE URIBE EN EL MARCO DEL PROYECTO DE INVERSION 1680 CIUDADANOS MÁS SEGUROS Y CON CONFIANZA EN LA JUSTICIA EN RAFAEL.". | I118: Inversión | J118: Un nuevo contrato social y ambiental para la Bogotá del Siglo XXI | K118: 43 | L118: =IF(ISERROR(VLOOKUP(K118,Proposito_programa!$C$2:$E$59,2,FALSE))," ",VLOOKUP(K118,Proposito_programa!$C$2:$E$59,2,FALSE)) -> Cultura ciudadana para la confianza, la convivencia y la participación desde la vida cotidiana | M118: =IF(ISERROR(VLOOKUP(K118,Proposito_programa!$C$2:$E$59,3,FALSE))," ",VLOOKUP(K118,Proposito_programa!$C$2:$E$59,3,FALSE)) -> Propósito 3: Inspirar confianza y legitimidad para vivir sin miedo y ser epicentro de cultura ciudadana, paz y reconciliación | N118: O23011603430000001680 | O118: 1 | P118: 1031182726 | Q118: GABRIELA SILVA CAICEDO | R118: Persona Natural | W118: 25300000 | Y118: 1 | Z118: 2223333 | AA118: 27523333 | AB118: 22923333 | AC118: 2022-01-28 | AD118: 2022-02-02 | AE118: 2023-01-26 | AF118: 330 | AG118: 1 | AH118: 29 | AM118: Terminacion anticipada | AN118: 0.8328690788
A119: 109 | B119: 2022 | C119: FDLRUU-CD-086-2022 | D119: https://Community.seCop.gov.Co/PubliC/Tendering/OpportunityDetail/Index?notiCeUID=CO1.NTC.2689790&isFromPubliCArea=True&isModal=False | E119: Contratos de prestación de servicios profesionales y de apoyo a la gestión | F119: Contratación directa | G119: Prestación de servicios profesionales y de apoyo a la gestión, o para la ejecución de trabajos artísticos que sólo puedan encomendarse a determinadas personas naturales | H119: "PRESTAR SERVICIOS DE APOYO A LA GESTIÓN LOCAL Y TERRITORIAL DE LOS TEMAS DE SEGURIDAD Y CONVIVENCIA CIUDADANA PARA LA ALCALDÍA LOCAL DE RAFAEL URIBE URIBE EN EL MARCO DEL PROYECTO DE INVERSION 1680 CIUDADANOS MÁS SEGUROS Y CON CONFIANZA EN LA JUSTICIA EN RAFAEL.". | I119: Inversión | J119: Un nuevo contrato social y ambiental para la Bogotá del Siglo XXI | K119: 43 | L119: =IF(ISERROR(VLOOKUP(K119,Proposito_programa!$C$2:$E$59,2,FALSE))," ",VLOOKUP(K119,Proposito_programa!$C$2:$E$59,2,FALSE)) -> Cultura ciudadana para la confianza, la convivencia y la participación desde la vida cotidiana | M119: =IF(ISERROR(VLOOKUP(K119,Proposito_programa!$C$2:$E$59,3,FALSE))," ",VLOOKUP(K119,Proposito_programa!$C$2:$E$59,3,FALSE)) -> Propósito 3: Inspirar confianza y legitimidad para vivir sin miedo y ser epicentro de cultura ciudadana, paz y reconciliación | N119: O23011603430000001680 | O119: 1 | P119: 79826479 | Q119: ALEXANDER GONZALEZ GAITAN | R119: Persona Natural | W119: 25300000 | Y119: 1 | Z119: 2300000 | AA119: 27600000 | AB119: 23000000 | AC119: 2022-01-28 | AD119: 2022-02-01 | AE119: 2023-01-25 | AF119: 330 | AG119: 1 | AH119: 30 | AM119: Terminacion anticipada | AN119: 0.8333333333
A120: 110 | B120: 2022 | C120: FDLRUU-CD-086-2022 | D120: https://Community.seCop.gov.Co/PubliC/Tendering/OpportunityDetail/Index?notiCeUID=CO1.NTC.2689790&isFromPubliCArea=True&isModal=False | E120: Contratos de prestación de servicios profesionales y de apoyo a la gestión | F120: Contratación directa | G120: Prestación de servicios profesionales y de apoyo a la gestión, o para la ejecución de trabajos artísticos que sólo puedan encomendarse a determinadas personas naturales | H120: "PRESTAR SERVICIOS DE APOYO A LA GESTIÓN LOCAL Y TERRITORIAL DE LOS TEMAS DE SEGURIDAD Y CONVIVENCIA CIUDADANA PARA LA ALCALDÍA LOCAL DE RAFAEL URIBE URIBE EN EL MARCO DEL PROYECTO DE INVERSION 1680 CIUDADANOS MÁS SEGUROS Y CON CONFIANZA EN LA JUSTICIA EN RAFAEL.". | I120: Inversión | J120: Un nuevo contrato social y ambiental para la Bogotá del Siglo XXI | K120: 43 | L120: =IF(ISERROR(VLOOKUP(K120,Proposito_programa!$C$2:$E$59,2,FALSE))," ",VLOOKUP(K120,Proposito_programa!$C$2:$E$59,2,FALSE)) -> Cultura ciudadana para la confianza, la convivencia y la participación desde la vida cotidiana | M120: =IF(ISERROR(VLOOKUP(K120,Proposito_programa!$C$2:$E$59,3,FALSE))," ",VLOOKUP(K120,Proposito_programa!$C$2:$E$59,3,FALSE)) -> Propósito 3: Inspirar confianza y legitimidad para vivir sin miedo y ser epicentro de cultura ciudadana, paz y reconciliación | N120: O23011603430000001680 | O120: 1 | P120: 79637330 | Q120: JUAN MANUEL MARTIN BERMUDEZ | R120: Persona Natural | W120: 25300000 | Y120: 1 | Z120: 2070000 | AA120: 27370000 | AB120: 22770000 | AC120: 2022-01-28 | AD120: 2022-02-04 | AE120: 2023-01-30 | AF120: 330 | AG120: 1 | AH120: 27 | AM120: Terminado | AN120: 0.8319327731
A121: 111 | B121: 2022 | C121: FDLRUU-CD-111-2022 | D121: https://community.secop.gov.co/Public/Tendering/OpportunityDetail/Index?noticeUID=CO1.NTC.2744543&isFromPublicArea=True&isModal=False | E121: Contratos de prestación de servicios profesionales y de apoyo a la gestión | F121: Contratación directa | G121: Prestación de servicios profesionales y de apoyo a la gestión, o para la ejecución de trabajos artísticos que sólo puedan encomendarse a determinadas personas naturales | H121: APOYAR ADMINISTRATIVA Y ASISTENCIALMENTE A LAS INSPECCIONES DE POLICÍA DE LA LOCALIDAD DE RAFAEL URIBE URIBE | I121: Inversión | J121: Un nuevo contrato social y ambiental para la Bogotá del Siglo XXI | K121: 57 | L121: =IF(ISERROR(VLOOKUP(K121,Proposito_programa!$C$2:$E$59,2,FALSE))," ",VLOOKUP(K121,Proposito_programa!$C$2:$E$59,2,FALSE)) -> Gestión pública local | M121: =IF(ISERROR(VLOOKUP(K121,Proposito_programa!$C$2:$E$59,3,FALSE))," ",VLOOKUP(K121,Proposito_programa!$C$2:$E$59,3,FALSE)) -> Propósito 5: Construir Bogotá - Región con gobierno abierto, transparente y ciudadanía consciente | N121: O23011605570000001698 | O121: 1 | P121: 1023955863 | Q121: ALLISON KATHERINE PEREZ MENDEZ | R121: Persona Natural | W121: 20680000 | Y121: 1 | Z121: 1880000 | AA121: 22560000 | AB121: 18800000 | AC121: 2022-01-27 | AD121: 2022-02-01 | AE121: 2023-01-30 | AF121: 330 | AG121: 1 | AH121: 30 | AM121: Terminado | AN121: 0.8333333333
A122: 112 | B122: 2022 | C122: FDLRUU-CD-112-2022 | D122: https://Community.seCop.gov.Co/PubliC/Tendering/OpportunityDetail/Index?notiCeUID=CO1.NTC.2691537&isFromPubliCArea=True&isModal=False | E122: Contratos de prestación de servicios profesionales y de apoyo a la gestión | F122: Contratación directa | G122: Prestación de servicios profesionales y de apoyo a la gestión, o para la ejecución de trabajos artísticos que sólo puedan encomendarse a determinadas personas naturales | H122: PRESTAR LOS SERVICIOS PROFESIONALES PARA LA REVISIÓN Y/O ELABORACIÓN DE LOS DOCUMENTOS Y GESTIONES PROVENIENTES DE LAS DIFERENTES ÁREAS RELACIONADAS CON TEMAS ADMINISTRATIVOS CONTABLES Y FINANCIEROS DEL FONDO DE DESARROLLO LOCAL DE RAFAEL URIBE URIBE | I122: Inversión | J122: Un nuevo contrato social y ambiental para la Bogotá del Siglo XXI | K122: 57 | L122: =IF(ISERROR(VLOOKUP(K122,Proposito_programa!$C$2:$E$59,2,FALSE))," ",VLOOKUP(K122,Proposito_programa!$C$2:$E$59,2,FALSE)) -> Gestión pública local | M122: =IF(ISERROR(VLOOKUP(K122,Proposito_programa!$C$2:$E$59,3,FALSE))," ",VLOOKUP(K122,Proposito_programa!$C$2:$E$59,3,FALSE)) -> Propósito 5: Construir Bogotá - Región con gobierno abierto, transparente y ciudadanía consciente | N122: O23011605570000001697 | O122: 1 | P122: 51913151 | Q122: CLARA INÉS ROMERO REYES | R122: Persona Natural | W122: 50600000 | Y122: 1 | Z122: 5213333 | AA122: 55813333 | AB122: 46613333 | AC122: 2022-01-26 | AD122: 2022-01-27 | AE122: 2023-01-30 | AF122: 330 | AG122: 1 | AH122: 34 | AM122: Terminado | AN122: 0.8351648342
A123: 113 | B123: 2022 | C123: FDLRUU-CD-113-2022 | D123: https://Community.seCop.gov.Co/PubliC/Tendering/OpportunityDetail/Index?notiCeUID=CO1.NTC.2754075&isFromPubliCArea=True&isModal=False | E123: Contratos de prestación de servicios profesionales y de apoyo a la gestión | F123: Contratación directa | G123: Prestación de servicios profesionales y de apoyo a la gestión, o para la ejecución de trabajos artísticos que sólo puedan encomendarse a determinadas personas naturales | H123: "PRESTAR SERVICIOS PROFESIONALES PARA INCENTIVAR PROCESOS DE PARTICIPACIÓN, CONVIVENCIA CIUDADANA Y EL USO DEL ESPACIO PÚBLICO DESDE UNA PERSPECTIVA DE PAZ Y DIALOGO, LLEVANDO A CABO ACUERDOS CIUDADANOS EN EL MARCO DEL PROYECTO 1681.". | I123: Inversión | J123: Un nuevo contrato social y ambiental para la Bogotá del Siglo XXI | K123: 45 | L123: =IF(ISERROR(VLOOKUP(K123,Proposito_programa!$C$2:$E$59,2,FALSE))," ",VLOOKUP(K123,Proposito_programa!$C$2:$E$59,2,FALSE)) -> Espacio público más seguro y construido colectivamente | M123: =IF(ISERROR(VLOOKUP(K123,Proposito_programa!$C$2:$E$59,3,FALSE))," ",VLOOKUP(K123,Proposito_programa!$C$2:$E$59,3,FALSE)) -> Propósito 3: Inspirar confianza y legitimidad para vivir sin miedo y ser epicentro de cultura ciudadana, paz y reconciliación | N123: O23011603450000001681 | O123: 1 | P123: 80129534 | Q123: CARLOS ANDRES MENDEZ MOJICA | R123: Persona Natural | W123: 31200000 | Y123: 1 | Z123: 15600000 | AA123: 46800000 | AB123: 46626667 | AC123: 2022-01-27 | AD123: 2022-02-02 | AE123: 2022-11-01 | AF123: 180 | AG123: 1 | AH123: 90 | AM123: Terminado | AN123: 0.9962963034
A124: 114 | B124: 2022 | C124: FDLRUU-CD-114-2022 | D124: https://Community.seCop.gov.Co/PubliC/Tendering/OpportunityDetail/Index?notiCeUID=CO1.NTC.2697875&isFromPubliCArea=True&isModal=False | E124: Contratos de prestación de servicios profesionales y de apoyo a la gestión | F124: Contratación directa | G124: Prestación de servicios profesionales y de apoyo a la gestión, o para la ejecución de trabajos artísticos que sólo puedan encomendarse a determinadas personas naturales | H124: APOYAR ADMINISTRATIVA Y ASISTENCIALMENTE A LAS INSPECCIONES DE POLICÍA DE LA LOCALIDAD DE RAFAEL URIBE URIBE | I124: Inversión | J124: Un nuevo contrato social y ambiental para la Bogotá del Siglo XXI | K124: 57 | L124: =IF(ISERROR(VLOOKUP(K124,Proposito_programa!$C$2:$E$59,2,FALSE))," ",VLOOKUP(K124,Proposito_programa!$C$2:$E$59,2,FALSE)) -> Gestión pública local | M124: =IF(ISERROR(VLOOKUP(K124,Proposito_programa!$C$2:$E$59,3,FALSE))," ",VLOOKUP(K124,Proposito_programa!$C$2:$E$59,3,FALSE)) -> Propósito 5: Construir Bogotá - Región con gobierno abierto, transparente y ciudadanía consciente | N124: O23011605570000001698 | O124: 1 | P124: 80124179 | Q124: CARLOS ANDRES TORRES ROMERO | R124: Persona Natural | W124: 20680000 | Y124: 1 | Z124: 1880000 | AA124: 22560000 | AB124: 18800000 | AC124: 2022-01-25 | AD124: 2022-01-27 | AE124: 2023-01-30 | AF124: 330 | AG124: 1 | AH124: 30 | AM124: Terminado | AN124: 0.8333333333
A125: 115 | B125: 2022 | C125: FDLRUU-CD-115-2022 | D125: https://Community.seCop.gov.Co/PubliC/Tendering/OpportunityDetail/Index?notiCeUID=CO1.NTC.2699300&isFromPubliCArea=True&isModal=False | E125: Contratos de prestación de servicios profesionales y de apoyo a la gestión | F125: Contratación directa | G125: Prestación de servicios profesionales y de apoyo a la gestión, o para la ejecución de trabajos artísticos que sólo puedan encomendarse a determinadas personas naturales | H125: PRESTAR LOS SERVICIOS TECNICOS PARA DESARROLLAR ACTIVIDADES TENDIENTES A GARANTIZAR LA SALUD Y LA ATENCIÓN DE LAS EMERGENCIAS Y DESASTRES QUE SE PRESENTEN EN LA LOCALIDAD RAFAEL URIBE URIBE EL MARCO DEL PROYECTO 1665 | I125: Inversión | J125: Un nuevo contrato social y ambiental para la Bogotá del Siglo XXI | K125: 30 | L125: =IF(ISERROR(VLOOKUP(K125,Proposito_programa!$C$2:$E$59,2,FALSE))," ",VLOOKUP(K125,Proposito_programa!$C$2:$E$59,2,FALSE)) -> Eficiencia en la atención de emergencias | M125: =IF(ISERROR(VLOOKUP(K125,Proposito_programa!$C$2:$E$59,3,FALSE))," ",VLOOKUP(K125,Proposito_programa!$C$2:$E$59,3,FALSE)) -> Propósito 2 : Cambiar Nuestros Hábitos de Vida para Reverdecer a Bogotá y Adaptarnos y Mitigar la Crisis Climática | N125: O23011602300000001665 | O125: 1 | P125: 1032417994 | Q125: EDWIN FABIAN UMAÑAN RUEDA | R125: Persona Natural | W125: 30250000 | Y125: 1 | Z125: 2750000 | AA125: 33000000 | AB125: 27500000 | AC125: 2022-01-25 | AD125: 2022-02-01 | AE125: 2023-01-30 | AF125: 330 | AG125: 1 | AH125: 30 | AM125: Terminado | AN125: 0.8333333333
A126: 116 | B126: 2022 | C126: FDLRUU-CD-116-2022 | D126: https://Community.seCop.gov.Co/PubliC/Tendering/OpportunityDetail/Index?notiCeUID=CO1.NTC.2698782&isFromPubliCArea=True&isModal=False | E126: Contratos de prestación de servicios profesionales y de apoyo a la gestión | F126: Contratación directa | G126: Prestación de servicios profesionales y de apoyo a la gestión, o para la ejecución de trabajos artísticos que sólo puedan encomendarse a determinadas personas naturales | H126: APOYAR ADMINISTRATIVA Y ASISTENCIALMENTE A LAS INSPECCIONES DE POLICÍA DE LA LOCALIDAD DE RAFAEL URIBE URIBE | I126: Inversión | J126: Un nuevo contrato social y ambiental para la Bogotá del Siglo XXI | K126: 57 | L126: =IF(ISERROR(VLOOKUP(K126,Proposito_programa!$C$2:$E$59,2,FALSE))," ",VLOOKUP(K126,Proposito_programa!$C$2:$E$59,2,FALSE)) -> Gestión pública local | M126: =IF(ISERROR(VLOOKUP(K126,Proposito_programa!$C$2:$E$59,3,FALSE))," ",VLOOKUP(K126,Proposito_programa!$C$2:$E$59,3,FALSE)) -> Propósito 5: Construir Bogotá - Región con gobierno abierto, transparente y ciudadanía consciente | N126: O23011605570000001698 | O126: 1 | P126: 1014239291 | Q126: NATHALIA MILENA MELO LANDAZABAL | R126: Persona Natural | W126: 20680000 | Y126: 1 | Z126: 2130667 | AA126: 22810667 | AB126: 19050667 | AC126: 2022-01-25 | AD126: 2022-01-27 | AE126: 2023-01-30 | AF126: 330 | AG126: 1 | AH126: 34 | AM126: Terminado | AN126: 0.8351648376
A127: 117 | B127: 2022 | C127: FDLRUU-CD-117-2022 | D127: https://Community.seCop.gov.Co/PubliC/Tendering/OpportunityDetail/Index?notiCeUID=CO1.NTC.2703171&isFromPubliCArea=True&isModal=False | E127: Contratos de prestación de servicios profesionales y de apoyo a la gestión | F127: Contratación directa | G127: Prestación de servicios profesionales y de apoyo a la gestión, o para la ejecución de trabajos artísticos que sólo puedan encomendarse a determinadas personas naturales | H127: PRESTAR LOS SERVICIOS PROFESIONALES DE APOYO JURIDICO AL AREA DE GESTION POLICIVA JURIDICA DE LA ALCALDIA LOCAL DE RAFAEL URIBE URIBE EN EL DESEMPEÑO DE LAS FUNCIONES ASIGNADAS | I127: Inversión | J127: Un nuevo contrato social y ambiental para la Bogotá del Siglo XXI | K127: 57 | L127: =IF(ISERROR(VLOOKUP(K127,Proposito_programa!$C$2:$E$59,2,FALSE))," ",VLOOKUP(K127,Proposito_programa!$C$2:$E$59,2,FALSE)) -> Gestión pública local | M127: =IF(ISERROR(VLOOKUP(K127,Proposito_programa!$C$2:$E$59,3,FALSE))," ",VLOOKUP(K127,Proposito_programa!$C$2:$E$59,3,FALSE)) -> Propósito 5: Construir Bogotá - Región con gobierno abierto, transparente y ciudadanía consciente | N127: O23011605570000001698 | O127: 1 | P127: 1121832284 | Q127: MARIA CATALINA ALVAREZ RAMIREZ | R127: Persona Natural | W127: 70400000 | Y127: 1 | Z127: 7253333 | AA127: 77653333 | AB127: 58453333 | AC127: 2022-01-25 | AD127: 2022-01-27 | AE127: 2023-01-30 | AF127: 330 | AG127: 1 | AH127: 34 | AM127: Terminado | AN127: 0.7527472517
A128: 118 | B128: 2022 | C128: FDLRUU-CD-118-2022 | D128: https://Community.seCop.gov.Co/PubliC/Tendering/OpportunityDetail/Index?notiCeUID=CO1.NTC.2744780&isFromPubliCArea=True&isModal=False | E128: Contratos de prestación de servicios profesionales y de apoyo a la gestión | F128: Contratación directa | G128: Prestación de servicios profesionales y de apoyo a la gestión, o para la ejecución de trabajos artísticos que sólo puedan encomendarse a determinadas personas naturales | H128: PRESTAR LOS SERVICIOS PROFESIONALES PARA LA OPERACIÓN, SEGUIMIENTO Y CUMPLIMIENTO DE LOS PROCESOS Y PROCEDIMIENTOS DEL SERVICIO APOYO ECONÓMICO TIPO C, REQUERIDOS PARA EL OPORTUNO Y ADECUADO REGISTRO, CRUCE Y REPORTE DE LOS DATOS EN EL SISTEMA MISIONAL SIRBE, QUE CONTRIBUYAN A LA GARANTÍA DE LOS DERECHOS DE LA POBLACIÓN MAYOR EN EL MARCO DE LA POLÍTICA PÚBLICA SOCIAL PARA EL ENVEJECIMIENTO Y LA VEJEZ EN EL DISTRITO CAPITAL A CARGO DE LA ALCALDÍA LOCAL. | I128: Inversión | J128: Un nuevo contrato social y ambiental para la Bogotá del Siglo XXI | K128: 1 | L128: =IF(ISERROR(VLOOKUP(K128,Proposito_programa!$C$2:$E$59,2,FALSE))," ",VLOOKUP(K128,Proposito_programa!$C$2:$E$59,2,FALSE)) -> Subsidios y transferencias para la equidad | M128: =IF(ISERROR(VLOOKUP(K128,Proposito_programa!$C$2:$E$59,3,FALSE))," ",VLOOKUP(K128,Proposito_programa!$C$2:$E$59,3,FALSE)) -> Propósito 1: Hacer un nuevo contrato social para incrementar la inclusión social, productiva y política | N128: O23011601010000001636 | O128: 1 | P128: 1026272955 | Q128: VIVIANA CAROLINA MALDONADO VIRGUEZ | R128: Persona Natural | W128: 59400000 | Y128: 1 | Z128: 5400000 | AA128: 64800000 | AB128: 54000000 | AC128: 2022-01-27 | AD128: 2022-02-01 | AE128: 2023-01-22 | AF128: 330 | AG128: 1 | AH128: 30 | AM128: Terminacion Anticipada | AN128: 0.8333333333
A129: 119 | B129: 2022 | C129: FDLRUU-CD-119-2022 | D129: https://Community.seCop.gov.Co/PubliC/Tendering/OpportunityDetail/Index?notiCeUID=CO1.NTC.2746517&isFromPubliCArea=True&isModal=False | E129: Contratos de prestación de servicios profesionales y de apoyo a la gestión | F129: Contratación directa | G129: Prestación de servicios profesionales y de apoyo a la gestión, o para la ejecución de trabajos artísticos que sólo puedan encomendarse a determinadas personas naturales | H129: PRESTAR LOS SERVICIOS PROFESIONALES PARA LA OPERACIÓN, SEGUIMIENTO Y CUMPLIMIENTO DE LOS PROCESOS Y PROCEDIMIENTOS DEL SERVICIO APOYO ECONÓMICO TIPO C, REQUERIDOS PARA EL OPORTUNO Y ADECUADO REGISTRO, CRUCE Y REPORTE DE LOS DATOS EN EL SISTEMA MISIONAL SIRBE, QUE CONTRIBUYAN A LA GARANTÍA DE LOS DERECHOS DE LA POBLACIÓN MAYOR EN EL MARCO DE LA POLÍTICA PÚBLICA SOCIAL PARA EL ENVEJECIMIENTO Y LA VEJEZ EN EL DISTRITO CAPITAL A CARGO DE LA ALCALDÍA LOCAL. | I129: Inversión | J129: Un nuevo contrato social y ambiental para la Bogotá del Siglo XXI | K129: 1 | L129: =IF(ISERROR(VLOOKUP(K129,Proposito_programa!$C$2:$E$59,2,FALSE))," ",VLOOKUP(K129,Proposito_programa!$C$2:$E$59,2,FALSE)) -> Subsidios y transferencias para la equidad | M129: =IF(ISERROR(VLOOKUP(K129,Proposito_programa!$C$2:$E$59,3,FALSE))," ",VLOOKUP(K129,Proposito_programa!$C$2:$E$59,3,FALSE)) -> Propósito 1: Hacer un nuevo contrato social para incrementar la inclusión social, productiva y política | N129: O23011601010000001636 | O129: 1 | P129: 80114984 | Q129: SERGIO ENRIQUE MORALES GIL | R129: Persona Natural | W129: 59400000 | Y129: 1 | Z129: 5400000 | AA129: 64800000 | AB129: 54000000 | AC129: 2022-01-27 | AD129: 2022-02-01 | AE129: 2023-01-23 | AF129: 330 | AG129: 1 | AH129: 30 | AM129: Terminacion Anticipada | AN129: 0.8333333333
A130: 120 | B130: 2022 | C130: FDLRUU-CD-120-2022 | D130: https://Community.seCop.gov.Co/PubliC/Tendering/ContraCtNotiCePhases/View?PPI=CO1.PPI.17234241&isFromPubliCArea=True&isModal=False | E130: Contratos de prestación de servicios profesionales y de apoyo a la gestión | F130: Contratación directa | G130: Prestación de servicios profesionales y de apoyo a la gestión, o para la ejecución de trabajos artísticos que sólo puedan encomendarse a determinadas personas naturales | H130: PRESTAR LOS SERVICIOS PROFESIONALES PARA LA OPERACIÓN, SEGUIMIENTO Y CUMPLIMIENTO DE LOS PROCESOS Y PROCEDIMIENTOS DEL SERVICIO APOYO ECONÓMICO TIPO C, REQUERIDOS PARA EL OPORTUNO Y ADECUADO REGISTRO, CRUCE Y REPORTE DE LOS DATOS EN EL SISTEMA MISIONAL SIRBE, QUE CONTRIBUYAN A LA GARANTÍA DE LOS DERECHOS DE LA POBLACIÓN MAYOR EN EL MARCO DE LA POLÍTICA PÚBLICA SOCIAL PARA EL ENVEJECIMIENTO Y LA VEJEZ EN EL DISTRITO CAPITAL A CARGO DE LA ALCALDÍA LOCAL. | I130: Inversión | J130: Un nuevo contrato social y ambiental para la Bogotá del Siglo XXI | K130: 1 | L130: =IF(ISERROR(VLOOKUP(K130,Proposito_programa!$C$2:$E$59,2,FALSE))," ",VLOOKUP(K130,Proposito_programa!$C$2:$E$59,2,FALSE)) -> Subsidios y transferencias para la equidad | M130: =IF(ISERROR(VLOOKUP(K130,Proposito_programa!$C$2:$E$59,3,FALSE))," ",VLOOKUP(K130,Proposito_programa!$C$2:$E$59,3,FALSE)) -> Propósito 1: Hacer un nuevo contrato social para incrementar la inclusión social, productiva y política | N130: O23011601010000001636 | O130: 1 | P130: 1012369383 | Q130: kimberly Mendoza Moreno | R130: Persona Natural | W130: 59400000 | Y130: 1 | Z130: 5400000 | AA130: 64800000 | AB130: =27000000+AL130 -> 54000000 | AC130: 2022-01-27 | AD130: 2022-02-01 | AE130: 2023-01-23 | AF130: 330 | AG130: 1 | AH130: 30 | AI130: 80913594 | AJ130: CARLOS ALEXANDER CASTILLO MUÑOZ | AK130: 2022-07-01 | AL130: 27000000 | AM130: Terminacion Anticipada | AN130: 0.8333333333
A131: 121 | B131: 2022 | C131: FDLRUU-CD-121-2022 | D131: https://Community.seCop.gov.Co/PubliC/Tendering/OpportunityDetail/Index?notiCeUID=CO1.NTC.2708526&isFromPubliCArea=True&isModal=False | E131: Contratos de prestación de servicios profesionales y de apoyo a la gestión | F131: Contratación directa | G131: Prestación de servicios profesionales y de apoyo a la gestión, o para la ejecución de trabajos artísticos que sólo puedan encomendarse a determinadas personas naturales | H131: PRESTAR LOS SERVICIOS PROFESIONALES PARA LA OPERACIÓN, SEGUIMIENTO Y CUMPLIMIENTO DE LOS PROCESOS Y PROCEDIMIENTOS DEL SERVICIO APOYO ECONÓMICO TIPO C, REQUERIDOS PARA EL OPORTUNO Y ADECUADO REGISTRO, CRUCE Y REPORTE DE LOS DATOS EN EL SISTEMA MISIONAL SIRBE, QUE CONTRIBUYAN A LA GARANTÍA DE LOS DERECHOS DE LA POBLACIÓN MAYOR EN EL MARCO DE LA POLÍTICA PÚBLICA SOCIAL PARA EL ENVEJECIMIENTO Y LA VEJEZ EN EL DISTRITO CAPITAL A CARGO DE LA ALCALDÍA LOCAL. | I131: Inversión | J131: Un nuevo contrato social y ambiental para la Bogotá del Siglo XXI | K131: 1 | L131: =IF(ISERROR(VLOOKUP(K131,Proposito_programa!$C$2:$E$59,2,FALSE))," ",VLOOKUP(K131,Proposito_programa!$C$2:$E$59,2,FALSE)) -> Subsidios y transferencias para la equidad | M131: =IF(ISERROR(VLOOKUP(K131,Proposito_programa!$C$2:$E$59,3,FALSE))," ",VLOOKUP(K131,Proposito_programa!$C$2:$E$59,3,FALSE)) -> Propósito 1: Hacer un nuevo contrato social para incrementar la inclusión social, productiva y política | N131: O23011601010000001636 | O131: 1 | P131: 1033710335 | Q131: JENNIFER ARIAS TAVERA | R131: Persona Natural | W131: 59400000 | Y131: 1 | Z131: 5400000 | AA131: 64800000 | AB131: 54000000 | AC131: 2022-01-26 | AD131: 2022-01-27 | AE131: 2023-01-22 | AF131: 330 | AG131: 1 | AH131: 30 | AM131: Terminacion Anticipada | AN131: 0.8333333333
A132: 122 | B132: 2022 | C132: FDLRUU-CD-121-2022 | D132: https://Community.seCop.gov.Co/PubliC/Tendering/OpportunityDetail/Index?notiCeUID=CO1.NTC.2708526&isFromPubliCArea=True&isModal=False | E132: Contratos de prestación de servicios profesionales y de apoyo a la gestión | F132: Contratación directa | G132: Prestación de servicios profesionales y de apoyo a la gestión, o para la ejecución de trabajos artísticos que sólo puedan encomendarse a determinadas personas naturales | H132: PRESTAR LOS SERVICIOS PROFESIONALES PARA LA OPERACIÓN, SEGUIMIENTO Y CUMPLIMIENTO DE LOS PROCESOS Y PROCEDIMIENTOS DEL SERVICIO APOYO ECONÓMICO TIPO C, REQUERIDOS PARA EL OPORTUNO Y ADECUADO REGISTRO, CRUCE Y REPORTE DE LOS DATOS EN EL SISTEMA MISIONAL SIRBE, QUE CONTRIBUYAN A LA GARANTÍA DE LOS DERECHOS DE LA POBLACIÓN MAYOR EN EL MARCO DE LA POLÍTICA PÚBLICA SOCIAL PARA EL ENVEJECIMIENTO Y LA VEJEZ EN EL DISTRITO CAPITAL A CARGO DE LA ALCALDÍA LOCAL. | I132: Inversión | J132: Un nuevo contrato social y ambiental para la Bogotá del Siglo XXI | K132: 1 | L132: =IF(ISERROR(VLOOKUP(K132,Proposito_programa!$C$2:$E$59,2,FALSE))," ",VLOOKUP(K132,Proposito_programa!$C$2:$E$59,2,FALSE)) -> Subsidios y transferencias para la equidad | M132: =IF(ISERROR(VLOOKUP(K132,Proposito_programa!$C$2:$E$59,3,FALSE))," ",VLOOKUP(K132,Proposito_programa!$C$2:$E$59,3,FALSE)) -> Propósito 1: Hacer un nuevo contrato social para incrementar la inclusión social, productiva y política | N132: O23011601010000001636 | O132: 1 | P132: 1031156309 | Q132: DAILY JASBLEIDY ALBARRACIN BENITEZ | R132: Persona Natural | W132: 59400000 | Y132: 1 | Z132: 5400000 | AA132: 64800000 | AB132: 54000000 | AC132: 2022-01-25 | AD132: 2022-01-27 | AE132: 2023-01-22 | AF132: 330 | AG132: 1 | AH132: 30 | AM132: Terminacion Anticipada | AN132: 0.8333333333
A133: 123 | B133: 2022 | C133: FDLRUU-CD-123-2022 | D133: https://Community.seCop.gov.Co/PubliC/Tendering/OpportunityDetail/Index?notiCeUID=CO1.NTC.2713559&isFromPubliCArea=True&isModal=False | E133: Contratos de prestación de servicios profesionales y de apoyo a la gestión | F133: Contratación directa | G133: Prestación de servicios profesionales y de apoyo a la gestión, o para la ejecución de trabajos artísticos que sólo puedan encomendarse a determinadas personas naturales | H133: PRESTAR LOS SERVICIOS PROFESIONALES PARA LA OPERACIÓN, SEGUIMIENTO Y CUMPLIMIENTO DE LOS PROCESOS Y PROCEDIMIENTOS DEL SERVICIO APOYO ECONÓMICO TIPO C, REQUERIDOS PARA EL OPORTUNO Y ADECUADO REGISTRO, CRUCE Y REPORTE DE LOS DATOS EN EL SISTEMA MISIONAL SIRBE, QUE CONTRIBUYAN A LA GARANTÍA DE LOS DERECHOS DE LA POBLACIÓN MAYOR EN EL MARCO DE LA POLÍTICA PÚBLICA SOCIAL PARA EL ENVEJECIMIENTO Y LA VEJEZ EN EL DISTRITO CAPITAL A CARGO DE LA ALCALDÍA LOCAL | I133: Inversión | J133: Un nuevo contrato social y ambiental para la Bogotá del Siglo XXI | K133: 1 | L133: =IF(ISERROR(VLOOKUP(K133,Proposito_programa!$C$2:$E$59,2,FALSE))," ",VLOOKUP(K133,Proposito_programa!$C$2:$E$59,2,FALSE)) -> Subsidios y transferencias para la equidad | M133: =IF(ISERROR(VLOOKUP(K133,Proposito_programa!$C$2:$E$59,3,FALSE))," ",VLOOKUP(K133,Proposito_programa!$C$2:$E$59,3,FALSE)) -> Propósito 1: Hacer un nuevo contrato social para incrementar la inclusión social, productiva y política | N133: O23011601010000001636 | O133: 1 | P133: 29705959 | Q133: LUZ ANGELA ACEVEDO RUIZ | R133: Persona Natural | W133: 59400000 | AA133: 59400000 | AB133: 52560000 | AC133: 2022-01-26 | AD133: 2022-02-09 | AE133: 2023-01-08 | AF133: 330 | AM133: Terminado | AN133: 0.8848484848
A134: 124 | B134: 2022 | C134: FDLRUU-CD-124-2022 | D134: https://Community.seCop.gov.Co/PubliC/Tendering/ContraCtNotiCePhases/View?PPI=CO1.PPI.17181586&isFromPubliCArea=True&isModal=False | E134: Contratos de prestación de servicios profesionales y de apoyo a la gestión | F134: Contratación directa | G134: Prestación de servicios profesionales y de apoyo a la gestión, o para la ejecución de trabajos artísticos que sólo puedan encomendarse a determinadas personas naturales | H134: APOYAR LA FORMULACIÓN, EJECUCIÓN, SEGUIMIENTO Y MEJORA CONTINUA DE LAS HERRAMIENTAS QUE CONFORMAN LA GESTIÓN AMBIENTAL INSTITUCIONAL DE LA ALCALDÍA LOCAL | I134: Inversión | J134: Un nuevo contrato social y ambiental para la Bogotá del Siglo XXI | K134: 57 | L134: =IF(ISERROR(VLOOKUP(K134,Proposito_programa!$C$2:$E$59,2,FALSE))," ",VLOOKUP(K134,Proposito_programa!$C$2:$E$59,2,FALSE)) -> Gestión pública local | M134: =IF(ISERROR(VLOOKUP(K134,Proposito_programa!$C$2:$E$59,3,FALSE))," ",VLOOKUP(K134,Proposito_programa!$C$2:$E$59,3,FALSE)) -> Propósito 5: Construir Bogotá - Región con gobierno abierto, transparente y ciudadanía consciente | N134: O23011605570000001697 | O134: 1 | P134: 1020797579 | Q134: LAURA NATHALIA VALENCIA ORTIZ | R134: Persona Natural | W134: 27600000 | Y134: 1 | Z134: 13800000 | AA134: 41400000 | AB134: 41400000 | AC134: 2022-01-26 | AD134: 2022-02-01 | AE134: 2022-10-31 | AF134: 180 | AG134: 1 | AH134: 90 | AM134: Terminado | AN134: 1
A135: 125 | B135: 2022 | C135: FDLRUU-CD-125-2022 | D135: https://Community.seCop.gov.Co/PubliC/Tendering/OpportunityDetail/Index?notiCeUID=CO1.NTC.2731516&isFromPubliCArea=True&isModal=False | E135: Contratos de prestación de servicios profesionales y de apoyo a la gestión | F135: Contratación directa | G135: Prestación de servicios profesionales y de apoyo a la gestión, o para la ejecución de trabajos artísticos que sólo puedan encomendarse a determinadas personas naturales | H135: LIDERAR Y GARANTIZAR LA IMPLEMENTACIÓN Y SEGUIMIENTO DE LOS PROCESOS Y PROCEDIMIENTOS DEL SERVICIO SOCIAL PARA SUBSIDIO TIPO C DE LA ALCALDÍA LOCAL | I135: Inversión | J135: Un nuevo contrato social y ambiental para la Bogotá del Siglo XXI | K135: 1 | L135: =IF(ISERROR(VLOOKUP(K135,Proposito_programa!$C$2:$E$59,2,FALSE))," ",VLOOKUP(K135,Proposito_programa!$C$2:$E$59,2,FALSE)) -> Subsidios y transferencias para la equidad | M135: =IF(ISERROR(VLOOKUP(K135,Proposito_programa!$C$2:$E$59,3,FALSE))," ",VLOOKUP(K135,Proposito_programa!$C$2:$E$59,3,FALSE)) -> Propósito 1: Hacer un nuevo contrato social para incrementar la inclusión social, productiva y política | N135: O23011601010000001636 | O135: 1 | P135: 52409679 | Q135: ANA MILENA CARDONA MORA | R135: Persona Natural | W135: 66000000 | Y135: 1 | Z135: 6000000 | AA135: 72000000 | AB135: 60000000 | AC135: 2022-01-26 | AD135: 2022-02-01 | AE135: 2023-01-30 | AF135: 330 | AG135: 1 | AH135: 30 | AM135: Terminado | AN135: 0.8333333333
A136: 126 | B136: 2022 | C136: FDLRUU-CD-126-2022 | D136: https://Community.seCop.gov.Co/PubliC/Tendering/OpportunityDetail/Index?notiCeUID=CO1.NTC.2729320&isFromPubliCArea=True&isModal=False | E136: Contratos de prestación de servicios profesionales y de apoyo a la gestión | F136: Contratación directa | G136: Prestación de servicios profesionales y de apoyo a la gestión, o para la ejecución de trabajos artísticos que sólo puedan encomendarse a determinadas personas naturales | H136: PRESTAR LOS SERVICIOS PROFESIONALES PARA APOYAR LA FORMULACION, EJECUCIÓN Y SEGUIMIENTO DE LOS PROYECTOS DE INVERSIÓN EN EL MARCO DEL CUMPLIMIENTO DEL PLAN DE DESARROLLO LOCAL DE LA ALCALDÍA LOCAL DE RAFAEL URIBE URIBE 2021 2024 | I136: Inversión | J136: Un nuevo contrato social y ambiental para la Bogotá del Siglo XXI | K136: 57 | L136: =IF(ISERROR(VLOOKUP(K136,Proposito_programa!$C$2:$E$59,2,FALSE))," ",VLOOKUP(K136,Proposito_programa!$C$2:$E$59,2,FALSE)) -> Gestión pública local | M136: =IF(ISERROR(VLOOKUP(K136,Proposito_programa!$C$2:$E$59,3,FALSE))," ",VLOOKUP(K136,Proposito_programa!$C$2:$E$59,3,FALSE)) -> Propósito 5: Construir Bogotá - Región con gobierno abierto, transparente y ciudadanía consciente | N136: O23011605570000001697 | O136: 1 | P136: 1020713661 | Q136: CESAR MAURICIO RUIZ LONDOÑO | R136: Persona Natural | W136: 59400000 | Y136: 1 | Z136: 5400000 | AA136: 64800000 | AB136: 54000000 | AC136: 2022-01-26 | AD136: 2022-02-01 | AE136: 2023-01-24 | AF136: 330 | AG136: 1 | AH136: 30 | AM136: Terminacion anticipada | AN136: 0.8333333333
A137: 127 | B137: 2022 | C137: FDLRUU-CD-127-2022 | D137: https://community.secop.gov.co/Public/Tendering/OpportunityDetail/Index?noticeUID=CO1.NTC.2738344&isFromPublicArea=True&isModal=False | E137: Contratos de prestación de servicios profesionales y de apoyo a la gestión | F137: Contratación directa | G137: Prestación de servicios profesionales y de apoyo a la gestión, o para la ejecución de trabajos artísticos que sólo puedan encomendarse a determinadas personas naturales | H137: PRESTAR LOS SERVICIOS TECNICOS PARA DESARROLLAR ACTIVIDADES TENDIENTES A GARANTIZAR LA SALUD Y LA ATENCIÓN DE LAS EMERGENCIAS Y DESASTRES QUE SE PRESENTEN EN LA LOCALIDAD RAFAEL URIBE URIBE EN MARCO DEL PROYECTO 1665 | I137: Inversión | J137: Un nuevo contrato social y ambiental para la Bogotá del Siglo XXI | K137: 30 | L137: =IF(ISERROR(VLOOKUP(K137,Proposito_programa!$C$2:$E$59,2,FALSE))," ",VLOOKUP(K137,Proposito_programa!$C$2:$E$59,2,FALSE)) -> Eficiencia en la atención de emergencias | M137: =IF(ISERROR(VLOOKUP(K137,Proposito_programa!$C$2:$E$59,3,FALSE))," ",VLOOKUP(K137,Proposito_programa!$C$2:$E$59,3,FALSE)) -> Propósito 2 : Cambiar Nuestros Hábitos de Vida para Reverdecer a Bogotá y Adaptarnos y Mitigar la Crisis Climática | N137: O23011602300000001665 | O137: 1 | P137: 1010201479 | Q137: ANGIE LORENA RIAÑO RAMOS | R137: Persona Natural | W137: 30250000 | Y137: 1 | Z137: 3025000 | AA137: 33275000 | AB137: 27775000 | AC137: 2022-01-26 | AD137: 2022-01-28 | AE137: 2023-01-30 | AF137: 330 | AG137: 1 | AH137: 33 | AM137: Terminado | AN137: 0.8347107438
A138: 128 | B138: 2022 | C138: FDLRUU-CD-128-2022 | D138: https://Community.seCop.gov.Co/PubliC/Tendering/OpportunityDetail/Index?notiCeUID=CO1.NTC.2725475&isFromPubliCArea=True&isModal=False | E138: Contratos de prestación de servicios profesionales y de apoyo a la gestión | F138: Contratación directa | G138: Prestación de servicios profesionales y de apoyo a la gestión, o para la ejecución de trabajos artísticos que sólo puedan encomendarse a determinadas personas naturales | H138: PRESTAR LOS SERVICIOS PROFESIONALES PARA LA OPERACIÓN, SEGUIMIENTO Y CUMPLIMIENTO DE LOS PROCESOS Y PROCEDIMIENTOS DEL SERVICIO APOYO ECONÓMICO TIPO C, REQUERIDOS PARA EL OPORTUNO Y ADECUADO REGISTRO, CRUCE Y REPORTE DE LOS DATOS EN EL SISTEMA MISIONAL SIRBE, QUE CONTRIBUYAN A LA GARANTÍA DE LOS DERECHOS DE LA POBLACIÓN MAYOR EN EL MARCO DE LA POLÍTICA PÚBLICA SOCIAL PARA EL ENVEJECIMIENTO Y LA VEJEZ EN EL DISTRITO CAPITAL A CARGO DE LA ALCALDÍA LOCAL. | I138: Inversión | J138: Un nuevo contrato social y ambiental para la Bogotá del Siglo XXI | K138: 1 | L138: =IF(ISERROR(VLOOKUP(K138,Proposito_programa!$C$2:$E$59,2,FALSE))," ",VLOOKUP(K138,Proposito_programa!$C$2:$E$59,2,FALSE)) -> Subsidios y transferencias para la equidad | M138: =IF(ISERROR(VLOOKUP(K138,Proposito_programa!$C$2:$E$59,3,FALSE))," ",VLOOKUP(K138,Proposito_programa!$C$2:$E$59,3,FALSE)) -> Propósito 1: Hacer un nuevo contrato social para incrementar la inclusión social, productiva y política | N138: O23011601010000001636 | O138: 1 | P138: 1024469143 | Q138: PABLO JULIO CARDENAS SANDOVAL | R138: Persona Natural | W138: 59400000 | Y138: 1 | Z138: 4860000 | AA138: 64260000 | AB138: 53460000 | AC138: 2022-01-26 | AD138: 2022-02-04 | AE138: 2023-01-23 | AF138: 330 | AG138: 1 | AH138: 27 | AM138: Terminacion Anticipada | AN138: 0.8319327731
A139: 129 | B139: 2022 | C139: FDLRUU-CD-129-2022 | D139: https://Community.seCop.gov.Co/PubliC/Tendering/OpportunityDetail/Index?notiCeUID=CO1.NTC.2726148&isFromPubliCArea=True&isModal=False | E139: Contratos de prestación de servicios profesionales y de apoyo a la gestión | F139: Contratación directa | G139: Prestación de servicios profesionales y de apoyo a la gestión, o para la ejecución de trabajos artísticos que sólo puedan encomendarse a determinadas personas naturales | H139: PRESTAR LOS SERVICIOS PROFESIONALES PARA LA OPERACIÓN, SEGUIMIENTO Y CUMPLIMIENTO DE LOS PROCESOS Y PROCEDIMIENTOS DEL SERVICIO APOYO ECONÓMICO TIPO C, REQUERIDOS PARA EL OPORTUNO Y ADECUADO REGISTRO, CRUCE Y REPORTE DE LOS DATOS EN EL SISTEMA MISIONAL SIRBE, QUE CONTRIBUYAN A LA GARANTÍA DE LOS DERECHOS DE LA POBLACIÓN MAYOR EN EL MARCO DE LA POLÍTICA PÚBLICA SOCIAL PARA EL ENVEJECIMIENTO Y LA VEJEZ EN EL DISTRITO CAPITAL A CARGO DE LA ALCALDÍA LOCAL | I139: Inversión | J139: Un nuevo contrato social y ambiental para la Bogotá del Siglo XXI | K139: 1 | L139: =IF(ISERROR(VLOOKUP(K139,Proposito_programa!$C$2:$E$59,2,FALSE))," ",VLOOKUP(K139,Proposito_programa!$C$2:$E$59,2,FALSE)) -> Subsidios y transferencias para la equidad | M139: =IF(ISERROR(VLOOKUP(K139,Proposito_programa!$C$2:$E$59,3,FALSE))," ",VLOOKUP(K139,Proposito_programa!$C$2:$E$59,3,FALSE)) -> Propósito 1: Hacer un nuevo contrato social para incrementar la inclusión social, productiva y política | N139: O23011601010000001636 | O139: 1 | P139: 60340764 | Q139: REINA ESPERANZA CORDERO VARGAS | R139: Persona Natural | W139: 59400000 | Y139: 1 | Z139: 5400000 | AA139: 64800000 | AB139: 54000000 | AC139: 2022-01-26 | AD139: 2022-02-01 | AE139: 2023-01-30 | AF139: 330 | AG139: 1 | AH139: 30 | AM139: Terminado | AN139: 0.8333333333
A140: 130 | B140: 2022 | C140: FDLRUU-CD-130-2022 | D140: https://Community.seCop.gov.Co/PubliC/Tendering/OpportunityDetail/Index?notiCeUID=CO1.NTC.2714233&isFromPubliCArea=True&isModal=False | E140: Contratos de prestación de servicios profesionales y de apoyo a la gestión | F140: Contratación directa | G140: Prestación de servicios profesionales y de apoyo a la gestión, o para la ejecución de trabajos artísticos que sólo puedan encomendarse a determinadas personas naturales | H140: PRESTAR LOS SERVICIOS PROFESIONALES PARA LA OPERACIÓN, SEGUIMIENTO Y CUMPLIMIENTO DE LOS PROCESOS Y PROCEDIMIENTOS DEL SERVICIO APOYO ECONÓMICO TIPO C, REQUERIDOS PARA EL OPORTUNO Y ADECUADO REGISTRO, CRUCE Y REPORTE DE LOS DATOS EN EL SISTEMA MISIONAL SIRBE, QUE CONTRIBUYAN A LA GARANTÍA DE LOS DERECHOS DE LA POBLACIÓN MAYOR EN EL MARCO DE LA POLÍTICA PÚBLICA SOCIAL PARA EL ENVEJECIMIENTO Y LA VEJEZ EN EL DISTRITO CAPITAL A CARGO DE LA ALCALDÍA LOCAL | I140: Inversión | J140: Un nuevo contrato social y ambiental para la Bogotá del Siglo XXI | K140: 1 | L140: =IF(ISERROR(VLOOKUP(K140,Proposito_programa!$C$2:$E$59,2,FALSE))," ",VLOOKUP(K140,Proposito_programa!$C$2:$E$59,2,FALSE)) -> Subsidios y transferencias para la equidad | M140: =IF(ISERROR(VLOOKUP(K140,Proposito_programa!$C$2:$E$59,3,FALSE))," ",VLOOKUP(K140,Proposito_programa!$C$2:$E$59,3,FALSE)) -> Propósito 1: Hacer un nuevo contrato social para incrementar la inclusión social, productiva y política | N140: O23011601010000001636 | O140: 1 | P140: 1026277883 | Q140: INGRID MAYERLY BOLIVAR PAEZ | R140: Persona Natural | W140: 59400000 | Y140: 1 | Z140: 5940000 | AA140: 65340000 | AB140: 54540000 | AC140: 2022-01-26 | AD140: 2022-01-28 | AE140: 2023-01-22 | AF140: 330 | AG140: 1 | AH140: 33 | AM140: Terminacion Anticipada | AN140: 0.8347107438
A141: 131 | B141: 2022 | C141: FDLRUU-CD-131-2022 | D141: https://Community.seCop.gov.Co/PubliC/Tendering/OpportunityDetail/Index?notiCeUID=CO1.NTC.2716037&isFromPubliCArea=True&isModal=False | E141: Contratos de prestación de servicios profesionales y de apoyo a la gestión | F141: Contratación directa | G141: Prestación de servicios profesionales y de apoyo a la gestión, o para la ejecución de trabajos artísticos que sólo puedan encomendarse a determinadas personas naturales | H141: PRESTAR LOS SERVICIOS PROFESIONALES PARA LA OPERACIÓN, SEGUIMIENTO Y CUMPLIMIENTO DE LOS PROCESOS Y PROCEDIMIENTOS DEL SERVICIO APOYO ECONÓMICO TIPO C, REQUERIDOS PARA EL OPORTUNO Y ADECUADO REGISTRO, CRUCE Y REPORTE DE LOS DATOS EN EL SISTEMA MISIONAL SIRBE, QUE CONTRIBUYAN A LA GARANTÍA DE LOS DERECHOS DE LA POBLACIÓN MAYOR EN EL MARCO DE LA POLÍTICA PÚBLICA SOCIAL PARA EL ENVEJECIMIENTO Y LA VEJEZ EN EL DISTRITO CAPITAL A CARGO DE LA ALCALDÍA LOCAL | I141: Inversión | J141: Un nuevo contrato social y ambiental para la Bogotá del Siglo XXI | K141: 1 | L141: =IF(ISERROR(VLOOKUP(K141,Proposito_programa!$C$2:$E$59,2,FALSE))," ",VLOOKUP(K141,Proposito_programa!$C$2:$E$59,2,FALSE)) -> Subsidios y transferencias para la equidad | M141: =IF(ISERROR(VLOOKUP(K141,Proposito_programa!$C$2:$E$59,3,FALSE))," ",VLOOKUP(K141,Proposito_programa!$C$2:$E$59,3,FALSE)) -> Propósito 1: Hacer un nuevo contrato social para incrementar la inclusión social, productiva y política | N141: O23011601010000001636 | O141: 1 | P141: 1013611272 | Q141: ANGELA PATRICIA ROZO RODRIGUEZ | R141: Persona Natural | W141: 59400000 | Y141: 1 | Z141: 5940000 | AA141: 65340000 | AB141: 54540000 | AC141: 2022-01-26 | AD141: 2022-01-28 | AE141: 2023-01-22 | AF141: 330 | AG141: 1 | AH141: 33 | AM141: Terminacion Anticipada | AN141: 0.8347107438
A142: 132 | B142: 2022 | C142: FDLRUU-CD-132-2022 | D142: https://Community.seCop.gov.Co/PubliC/Tendering/OpportunityDetail/Index?notiCeUID=CO1.NTC.2718707&isFromPubliCArea=True&isModal=False | E142: Contratos de prestación de servicios profesionales y de apoyo a la gestión | F142: Contratación directa | G142: Prestación de servicios profesionales y de apoyo a la gestión, o para la ejecución de trabajos artísticos que sólo puedan encomendarse a determinadas personas naturales | H142: PRESTAR LOS SERVICIOS PROFESIONALES PARA LA OPERACIÓN, SEGUIMIENTO Y CUMPLIMIENTO DE LOS PROCESOS Y PROCEDIMIENTOS DEL SERVICIO APOYO ECONÓMICO TIPO C, REQUERIDOS PARA EL OPORTUNO Y ADECUADO REGISTRO, CRUCE Y REPORTE DE LOS DATOS EN EL SISTEMA MISIONAL SIRBE, QUE CONTRIBUYAN A LA GARANTÍA DE LOS DERECHOS DE LA POBLACIÓN MAYOR EN EL MARCO DE LA POLÍTICA PÚBLICA SOCIAL PARA EL ENVEJECIMIENTO Y LA VEJEZ EN EL DISTRITO CAPITAL A CARGO DE LA ALCALDÍA LOCAL | I142: Inversión | J142: Un nuevo contrato social y ambiental para la Bogotá del Siglo XXI | K142: 1 | L142: =IF(ISERROR(VLOOKUP(K142,Proposito_programa!$C$2:$E$59,2,FALSE))," ",VLOOKUP(K142,Proposito_programa!$C$2:$E$59,2,FALSE)) -> Subsidios y transferencias para la equidad | M142: =IF(ISERROR(VLOOKUP(K142,Proposito_programa!$C$2:$E$59,3,FALSE))," ",VLOOKUP(K142,Proposito_programa!$C$2:$E$59,3,FALSE)) -> Propósito 1: Hacer un nuevo contrato social para incrementar la inclusión social, productiva y política | N142: O23011601010000001636 | O142: 1 | P142: 1018453055 | Q142: LUZ MAGNOLIA TIRADO CUELLAR | R142: Persona Natural | W142: 59400000 | Y142: 1 | Z142: 5940000 | AA142: =+W142+X142+Z142 -> 65340000 | AB142: 54540000 | AC142: 2022-01-26 | AD142: 2022-01-28 | AE142: 2023-01-19 | AF142: 330 | AG142: 1 | AH142: 33 | AM142: Terminacion Anticipada | AN142: =IF(ISERROR(AB142/AA142),"-",(AB142/AA142)) -> 0.8347107438
A143: 133 | B143: 2022 | C143: FDLRUU-CD-133-2022 | D143: https://Community.seCop.gov.Co/PubliC/Tendering/OpportunityDetail/Index?notiCeUID=CO1.NTC.2772409&isFromPubliCArea=True&isModal=False | E143: Contratos de prestación de servicios profesionales y de apoyo a la gestión | F143: Contratación directa | G143: Prestación de servicios profesionales y de apoyo a la gestión, o para la ejecución de trabajos artísticos que sólo puedan encomendarse a determinadas personas naturales | H143: PRESTAR LOS SERVICIOS PROFESIONALES PARA LA OPERACIÓN, SEGUIMIENTO Y CUMPLIMIENTO DE LOS PROCESOS Y PROCEDIMIENTOS DEL SERVICIO APOYO ECONÓMICO TIPO C, REQUERIDOS PARA EL OPORTUNO Y ADECUADO REGISTRO, CRUCE Y REPORTE DE LOS DATOS EN EL SISTEMA MISIONAL SIRBE, QUE CONTRIBUYAN A LA GARANTÍA DE LOS DERECHOS DE LA POBLACIÓN MAYOR EN EL MARCO DE LA POLÍTICA PÚBLICA SOCIAL PARA EL ENVEJECIMIENTO Y LA VEJEZ EN EL DISTRITO CAPITAL A CARGO DE LA ALCALDÍA LOCAL | I143: Inversión | J143: Un nuevo contrato social y ambiental para la Bogotá del Siglo XXI | K143: 1 | L143: =IF(ISERROR(VLOOKUP(K143,Proposito_programa!$C$2:$E$59,2,FALSE))," ",VLOOKUP(K143,Proposito_programa!$C$2:$E$59,2,FALSE)) -> Subsidios y transferencias para la equidad | M143: =IF(ISERROR(VLOOKUP(K143,Proposito_programa!$C$2:$E$59,3,FALSE))," ",VLOOKUP(K143,Proposito_programa!$C$2:$E$59,3,FALSE)) -> Propósito 1: Hacer un nuevo contrato social para incrementar la inclusión social, productiva y política | N143: O23011601010000001636 | O143: 1 | P143: 1013663192 | Q143: LAURA NATALIA BETANCOURT PINILLA | R143: Persona Natural | W143: 59400000 | Y143: 1 | Z143: 5940000 | AA143: 65340000 | AB143: 54540000 | AC143: 2022-01-28 | AD143: 2022-01-28 | AE143: 2023-01-19 | AF143: 330 | AG143: 1 | AH143: 33 | AM143: Terminacion Anticipada | AN143: 0.8347107438
A144: 134 | B144: 2022 | C144: FDLRUU-CD-134-2022 | D144: https://Community.seCop.gov.Co/PubliC/Tendering/ContraCtNotiCePhases/View?PPI=CO1.PPI.17145752&isFromPubliCArea=True&isModal=False | E144: Contratos de prestación de servicios profesionales y de apoyo a la gestión | F144: Contratación directa | G144: Prestación de servicios profesionales y de apoyo a la gestión, o para la ejecución de trabajos artísticos que sólo puedan encomendarse a determinadas personas naturales | H144: PRESTAR LOS SERVICIOS TÉCNICOS PARA LA OPERACIÓN, SEGUIMIENTO Y CUMPLIMIENTO DE LOS PROCESOS Y PROCEDIMIENTOS DEL SERVICIO APOYOS PARA LA SEGURIDAD ECONÓMICA TIPO C, REQUERIDOS PARA EL OPORTUNO Y ADECUADO REGISTRO, CRUCE Y REPORTE DE LOS DATOS EN EL SISTEMA MISIONAL SIRBE, QUE CONTRIBUYAN A LA GARANTÍA DE LOS DERECHOS DE LA POBLACIÓN MAYOR EN EL MARCO DE LA POLÍTICA PÚBLICA SOCIAL PARA EL ENVEJECIMIENTO Y LA VEJEZ EN EL DISTRITO CAPITAL A CARGO DE LA ALCALDÍA LOCAL | I144: Inversión | J144: Un nuevo contrato social y ambiental para la Bogotá del Siglo XXI | K144: 1 | L144: =IF(ISERROR(VLOOKUP(K144,Proposito_programa!$C$2:$E$59,2,FALSE))," ",VLOOKUP(K144,Proposito_programa!$C$2:$E$59,2,FALSE)) -> Subsidios y transferencias para la equidad | M144: =IF(ISERROR(VLOOKUP(K144,Proposito_programa!$C$2:$E$59,3,FALSE))," ",VLOOKUP(K144,Proposito_programa!$C$2:$E$59,3,FALSE)) -> Propósito 1: Hacer un nuevo contrato social para incrementar la inclusión social, productiva y política | N144: O23011601010000001636 | O144: 1 | P144: 52374822 | Q144: JAQUELINE GALLEGO CASTELLANOS | R144: Persona Natural | W144: 37400000 | Y144: 1 | Z144: 3400000 | AA144: 40800000 | AB144: 34000000 | AC144: 2022-01-26 | AD144: 2022-02-01 | AE144: 2023-01-22 | AF144: 330 | AG144: 1 | AH144: 30 | AM144: Terminacion Anticipada | AN144: 0.8333333333
A145: 135 | B145: 2022 | C145: FDLRUU-CD-134-2022 | D145: https://community.secop.gov.co/Public/Tendering/OpportunityDetail/Index?noticeUID=CO1.NTC.2714126&isFromPublicArea=True&isModal=False | E145: Contratos de prestación de servicios profesionales y de apoyo a la gestión | F145: Contratación directa | G145: Prestación de servicios profesionales y de apoyo a la gestión, o para la ejecución de trabajos artísticos que sólo puedan encomendarse a determinadas personas naturales | H145: PRESTAR LOS SERVICIOS TÉCNICOS PARA LA OPERACIÓN, SEGUIMIENTO Y CUMPLIMIENTO DE LOS PROCESOS Y PROCEDIMIENTOS DEL SERVICIO APOYOS PARA LA SEGURIDAD ECONÓMICA TIPO C, REQUERIDOS PARA EL OPORTUNO Y ADECUADO REGISTRO, CRUCE Y REPORTE DE LOS DATOS EN EL SISTEMA MISIONAL SIRBE, QUE CONTRIBUYAN A LA GARANTÍA DE LOS DERECHOS DE LA POBLACIÓN MAYOR EN EL MARCO DE LA POLÍTICA PÚBLICA SOCIAL PARA EL ENVEJECIMIENTO Y LA VEJEZ EN EL DISTRITO CAPITAL A CARGO DE LA ALCALDÍA LOCAL | I145: Inversión | J145: Un nuevo contrato social y ambiental para la Bogotá del Siglo XXI | K145: 1 | L145: =IF(ISERROR(VLOOKUP(K145,Proposito_programa!$C$2:$E$59,2,FALSE))," ",VLOOKUP(K145,Proposito_programa!$C$2:$E$59,2,FALSE)) -> Subsidios y transferencias para la equidad | M145: =IF(ISERROR(VLOOKUP(K145,Proposito_programa!$C$2:$E$59,3,FALSE))," ",VLOOKUP(K145,Proposito_programa!$C$2:$E$59,3,FALSE)) -> Propósito 1: Hacer un nuevo contrato social para incrementar la inclusión social, productiva y política | N145: O23011601010000001636 | O145: 1 | P145: 1014197762 | Q145: Ingrid Tatiana Caro Rodríguez | R145: Persona Natural | W145: 37400000 | Y145: 1 | Z145: 3853333 | AA145: 41253333 | AB145: =30600000+AL145 -> 34453333 | AC145: 2022-01-26 | AD145: 2022-01-27 | AE145: 2023-01-23 | AF145: 330 | AG145: 1 | AH145: 34 | AI145: 52834869 | AJ145: YANILY ANDREA MONTENEGRO TRIVIÑO | AK145: 2022-03-01 | AL145: 3853333 | AM145: Terminacion Anticipada | AN145: 0.8351648338
A146: 136 | B146: 2022 | C146: FDLRUU-CD-136-2022 | D146: https://Community.seCop.gov.Co/PubliC/Tendering/OpportunityDetail/Index?notiCeUID=CO1.NTC.2729724&isFromPubliCArea=True&isModal=False | E146: Contratos de prestación de servicios profesionales y de apoyo a la gestión | F146: Contratación directa | G146: Prestación de servicios profesionales y de apoyo a la gestión, o para la ejecución de trabajos artísticos que sólo puedan encomendarse a determinadas personas naturales | H146: PRESTAR LOS SERVICIOS TÉCNICOS PARA LA OPERACIÓN, SEGUIMIENTO Y CUMPLIMIENTO DE LOS PROCESOS Y PROCEDIMIENTOS DEL SERVICIO APOYOS PARA LA SEGURIDAD ECONÓMICA TIPO C, REQUERIDOS PARA EL OPORTUNO Y ADECUADO REGISTRO, CRUCE Y REPORTE DE LOS DATOS EN EL SISTEMA MISIONAL SIRBE, QUE CONTRIBUYAN A LA GARANTÍA DE LOS DERECHOS DE LA POBLACIÓN MAYOR EN EL MARCO DE LA POLÍTICA PÚBLICA SOCIAL PARA EL ENVEJECIMIENTO Y LA VEJEZ EN EL DISTRITO CAPITAL A CARGO DE LA ALCALDÍA LOCAL | I146: Inversión | J146: Un nuevo contrato social y ambiental para la Bogotá del Siglo XXI | K146: 1 | L146: =IF(ISERROR(VLOOKUP(K146,Proposito_programa!$C$2:$E$59,2,FALSE))," ",VLOOKUP(K146,Proposito_programa!$C$2:$E$59,2,FALSE)) -> Subsidios y transferencias para la equidad | M146: =IF(ISERROR(VLOOKUP(K146,Proposito_programa!$C$2:$E$59,3,FALSE))," ",VLOOKUP(K146,Proposito_programa!$C$2:$E$59,3,FALSE)) -> Propósito 1: Hacer un nuevo contrato social para incrementar la inclusión social, productiva y política | N146: O23011601010000001636 | O146: 1 | P146: 1013610988 | Q146: ADRIANA MARCELA MURILLO GARCIA | R146: Persona Natural | W146: 37400000 | Y146: 1 | Z146: 3740000 | AA146: 41140000 | AB146: 34340000 | AC146: 2022-01-26 | AD146: 2022-01-28 | AE146: 2023-01-19 | AF146: 330 | AG146: 1 | AH146: 33 | AM146: Terminacion Anticipada | AN146: 0.8347107438
A147: 137 | B147: 2022 | C147: FDLRUU-CD-137-2022 | D147: https://Community.seCop.gov.Co/PubliC/Tendering/OpportunityDetail/Index?notiCeUID=CO1.NTC.2714597&isFromPubliCArea=True&isModal=False | E147: Contratos de prestación de servicios profesionales y de apoyo a la gestión | F147: Contratación directa | G147: Prestación de servicios profesionales y de apoyo a la gestión, o para la ejecución de trabajos artísticos que sólo puedan encomendarse a determinadas personas naturales | H147: PRESTAR LOS SERVICIOS PROFESIONALES PARA LA OPERACIÓN, SEGUIMIENTO Y CUMPLIMIENTO DE LOS PROCESOS Y PROCEDIMIENTOS DEL SERVICIO APOYO ECONÓMICO TIPO C, REQUERIDOS PARA EL OPORTUNO Y ADECUADO REGISTRO, CRUCE Y REPORTE DE LOS DATOS EN EL SISTEMA MISIONAL SIRBE, QUE CONTRIBUYAN A LA GARANTÍA DE LOS DERECHOS DE LA POBLACIÓN MAYOR EN EL MARCO DE LA POLÍTICA PÚBLICA SOCIAL PARA EL ENVEJECIMIENTO Y LA VEJEZ EN EL DISTRITO CAPITAL A CARGO DE LA ALCALDÍA LOCAL | I147: Inversión | J147: Un nuevo contrato social y ambiental para la Bogotá del Siglo XXI | K147: 1 | L147: =IF(ISERROR(VLOOKUP(K147,Proposito_programa!$C$2:$E$59,2,FALSE))," ",VLOOKUP(K147,Proposito_programa!$C$2:$E$59,2,FALSE)) -> Subsidios y transferencias para la equidad | M147: =IF(ISERROR(VLOOKUP(K147,Proposito_programa!$C$2:$E$59,3,FALSE))," ",VLOOKUP(K147,Proposito_programa!$C$2:$E$59,3,FALSE)) -> Propósito 1: Hacer un nuevo contrato social para incrementar la inclusión social, productiva y política | N147: O23011601010000001636 | O147: 1 | P147: 1022374922 | Q147: SONIA PATRICIA CUJABAN ARTUNDUAGA | R147: Persona Natural | W147: 59400000 | AA147: 59400000 | AB147: 52560000 | AC147: 2022-01-26 | AD147: 2022-02-09 | AE147: 2023-01-08 | AF147: 330 | AM147: Terminado | AN147: 0.8848484848
A148: 138 | B148: 2022 | C148: FDLRUU-CD-138-2022 | D148: https://Community.seCop.gov.Co/PubliC/Tendering/OpportunityDetail/Index?notiCeUID=CO1.NTC.2732644&isFromPubliCArea=True&isModal=False | E148: Contratos de prestación de servicios profesionales y de apoyo a la gestión | F148: Contratación directa | G148: Prestación de servicios profesionales y de apoyo a la gestión, o para la ejecución de trabajos artísticos que sólo puedan encomendarse a determinadas personas naturales | H148: PRESTAR LOS SERVICIOS PROFESIONALES PARA LA OPERACIÓN, SEGUIMIENTO Y CUMPLIMIENTO DE LOS PROCESOS Y PROCEDIMIENTOS DEL SERVICIO APOYO ECONÓMICO TIPO C, REQUERIDOS PARA EL OPORTUNO Y ADECUADO REGISTRO, CRUCE Y REPORTE DE LOS DATOS EN EL SISTEMA MISIONAL SIRBE, QUE CONTRIBUYAN A LA GARANTÍA DE LOS DERECHOS DE LA POBLACIÓN MAYOR EN EL MARCO DE LA POLÍTICA PÚBLICA SOCIAL PARA EL ENVEJECIMIENTO Y LA VEJEZ EN EL DISTRITO CAPITAL A CARGO DE LA ALCALDÍA LOCAL. | I148: Inversión | J148: Un nuevo contrato social y ambiental para la Bogotá del Siglo XXI | K148: 1 | L148: =IF(ISERROR(VLOOKUP(K148,Proposito_programa!$C$2:$E$59,2,FALSE))," ",VLOOKUP(K148,Proposito_programa!$C$2:$E$59,2,FALSE)) -> Subsidios y transferencias para la equidad | M148: =IF(ISERROR(VLOOKUP(K148,Proposito_programa!$C$2:$E$59,3,FALSE))," ",VLOOKUP(K148,Proposito_programa!$C$2:$E$59,3,FALSE)) -> Propósito 1: Hacer un nuevo contrato social para incrementar la inclusión social, productiva y política | N148: O23011601010000001636 | O148: 1 | P148: 52363835 | Q148: ERIKA YOLIMA GELVEZ RUIZ | R148: Persona Natural | W148: 59400000 | Y148: 1 | Z148: 5220000 | AA148: 64620000 | AB148: 48240000 | AC148: 2022-01-27 | AD148: 2022-02-02 | AE148: 2023-01-22 | AF148: 330 | AG148: 1 | AH148: 29 | AM148: Terminacion Anticipada | AN148: 0.7465181058
A149: 139 | B149: 2022 | C149: FDLRUU-CD-139-2022 | D149: https://Community.seCop.gov.Co/PubliC/Tendering/OpportunityDetail/Index?notiCeUID=CO1.NTC.2753678&isFromPubliCArea=True&isModal=False | E149: Contratos de prestación de servicios profesionales y de apoyo a la gestión | F149: Contratación directa | G149: Prestación de servicios profesionales y de apoyo a la gestión, o para la ejecución de trabajos artísticos que sólo puedan encomendarse a determinadas personas naturales | H149: PRESTAR LOS SERVICIOS PROFESIONALES DE APOYO EN EL ÁREA DE GESTIÓN DE DESARROLLO LOCAL PARA ADELANTAR LAS ACTIVIDADES, TRAMITES Y PROCEDIMIENTOS RELACIONADOS CON EL MARCO NORMATIVO CONTABLE. | I149: Inversión | J149: Un nuevo contrato social y ambiental para la Bogotá del Siglo XXI | K149: 57 | L149: =IF(ISERROR(VLOOKUP(K149,Proposito_programa!$C$2:$E$59,2,FALSE))," ",VLOOKUP(K149,Proposito_programa!$C$2:$E$59,2,FALSE)) -> Gestión pública local | M149: =IF(ISERROR(VLOOKUP(K149,Proposito_programa!$C$2:$E$59,3,FALSE))," ",VLOOKUP(K149,Proposito_programa!$C$2:$E$59,3,FALSE)) -> Propósito 5: Construir Bogotá - Región con gobierno abierto, transparente y ciudadanía consciente | N149: O23011605570000001697 | O149: 1 | P149: 79880521 | Q149: NICOLAS RODRIGUEZ DUCAT | R149: Persona Natural | W149: 59400000 | AA149: 59400000 | AB149: 52560000 | AC149: 2022-01-27 | AD149: 2022-02-09 | AE149: 2023-01-08 | AF149: 330 | AM149: Terminado | AN149: 0.8848484848
A150: 140 | B150: 2022 | C150: FDLRUU-CD-140-2022 | D150: https://Community.seCop.gov.Co/PubliC/Tendering/OpportunityDetail/Index?notiCeUID=CO1.NTC.2733538&isFromPubliCArea=True&isModal=False | E150: Contratos de prestación de servicios profesionales y de apoyo a la gestión | F150: Contratación directa | G150: Prestación de servicios profesionales y de apoyo a la gestión, o para la ejecución de trabajos artísticos que sólo puedan encomendarse a determinadas personas naturales | H150: APOYAR LA GESTIÓN DOCUMENTAL DE LA ALCALDÍA LOCAL DE RAFAEL URIBE URIBE PARA LA IMPLEMENTACIÓN DEL PROCESO DE VERIFICACIÓN, SOPORTE Y ACOMPAÑAMIENTO, EN EL DESARROLLO DE LAS ACTIVIDADES PROPIAS DE LOS PROCESOS Y ACTUACIONES ADMINISTRATIVAS EXISTENTES EN EL AREA DE GESTION POLICIVA Y JURIDICA. | I150: Inversión | J150: Un nuevo contrato social y ambiental para la Bogotá del Siglo XXI | K150: 57 | L150: =IF(ISERROR(VLOOKUP(K150,Proposito_programa!$C$2:$E$59,2,FALSE))," ",VLOOKUP(K150,Proposito_programa!$C$2:$E$59,2,FALSE)) -> Gestión pública local | M150: =IF(ISERROR(VLOOKUP(K150,Proposito_programa!$C$2:$E$59,3,FALSE))," ",VLOOKUP(K150,Proposito_programa!$C$2:$E$59,3,FALSE)) -> Propósito 5: Construir Bogotá - Región con gobierno abierto, transparente y ciudadanía consciente | N150: O23011605570000001698 | O150: 1 | P150: 52828741 | Q150: NINI JOHANA VALENZUELA ROMERO | R150: Persona Natural | W150: 20400000 | AA150: 20400000 | AB150: 20400000 | AC150: 2022-01-26 | AD150: 2022-01-27 | AE150: 2022-07-26 | AF150: 180 | AM150: Terminado | AN150: 1
A151: 141 | B151: 2022 | C151: FDLRUU-CD-140-2022 | D151: https://Community.seCop.gov.Co/PubliC/Tendering/OpportunityDetail/Index?notiCeUID=CO1.NTC.2733538&isFromPubliCArea=True&isModal=False | E151: Contratos de prestación de servicios profesionales y de apoyo a la gestión | F151: Contratación directa | G151: Prestación de servicios profesionales y de apoyo a la gestión, o para la ejecución de trabajos artísticos que sólo puedan encomendarse a determinadas personas naturales | H151: APOYAR LA GESTIÓN DOCUMENTAL DE LA ALCALDÍA LOCAL DE RAFAEL URIBE URIBE PARA LA IMPLEMENTACIÓN DEL PROCESO DE VERIFICACIÓN, SOPORTE Y ACOMPAÑAMIENTO, EN EL DESARROLLO DE LAS ACTIVIDADES PROPIAS DE LOS PROCESOS Y ACTUACIONES ADMINISTRATIVAS EXISTENTES EN EL AREA DE GESTION POLICIVA Y JURIDICA. | I151: Inversión | J151: Un nuevo contrato social y ambiental para la Bogotá del Siglo XXI | K151: 57 | L151: =IF(ISERROR(VLOOKUP(K151,Proposito_programa!$C$2:$E$59,2,FALSE))," ",VLOOKUP(K151,Proposito_programa!$C$2:$E$59,2,FALSE)) -> Gestión pública local | M151: =IF(ISERROR(VLOOKUP(K151,Proposito_programa!$C$2:$E$59,3,FALSE))," ",VLOOKUP(K151,Proposito_programa!$C$2:$E$59,3,FALSE)) -> Propósito 5: Construir Bogotá - Región con gobierno abierto, transparente y ciudadanía consciente | N151: O23011605570000001698 | O151: 1 | P151: 41799594 | Q151: ANA CONSUELO TRIVIÑO MORALES | R151: Persona Natural | W151: 20400000 | Y151: 1 | Z151: 10200000 | AA151: 30600000 | AB151: 30600000 | AC151: 2022-01-26 | AD151: 2022-01-27 | AE151: 2022-10-26 | AF151: 180 | AG151: 1 | AH151: 90 | AM151: Terminado | AN151: 1
A152: 142 | B152: 2022 | C152: FDLRUU-CD-142-2022 | D152: https://Community.seCop.gov.Co/PubliC/Tendering/OpportunityDetail/Index?notiCeUID=CO1.NTC.2734760&isFromPubliCArea=True&isModal=False | E152: Contratos de prestación de servicios profesionales y de apoyo a la gestión | F152: Contratación directa | G152: Prestación de servicios profesionales y de apoyo a la gestión, o para la ejecución de trabajos artísticos que sólo puedan encomendarse a determinadas personas naturales | H152: APOYAR JURIDICAMENTE EN EL ACOMPAÑAMIENTO A LOS OPERATIVOS Y JORNADAS RELACIONADAS CON ASUNTOS DE SEGURIDAD CIUDADANA, CONVIVENCIA Y PREVENCIÓN DE CONFLICTIVIDADES PARA EL AREA DE GESTION POLICIVA DE LA ALCALDIA LOCAL DE RAFAEL URIBE URIBE | I152: Inversión | J152: Un nuevo contrato social y ambiental para la Bogotá del Siglo XXI | K152: 57 | L152: =IF(ISERROR(VLOOKUP(K152,Proposito_programa!$C$2:$E$59,2,FALSE))," ",VLOOKUP(K152,Proposito_programa!$C$2:$E$59,2,FALSE)) -> Gestión pública local | M152: =IF(ISERROR(VLOOKUP(K152,Proposito_programa!$C$2:$E$59,3,FALSE))," ",VLOOKUP(K152,Proposito_programa!$C$2:$E$59,3,FALSE)) -> Propósito 5: Construir Bogotá - Región con gobierno abierto, transparente y ciudadanía consciente | N152: O23011605570000001698 | O152: 1 | P152: 79650934 | Q152: HERNAN FABIO PALMAR CONTRERAS | R152: Persona Natural | W152: 32400000 | Y152: 1 | Z152: 16200000 | AA152: 48600000 | AB152: 48600000 | AC152: 2022-01-28 | AD152: 2022-02-01 | AE152: 2022-10-31 | AF152: 180 | AG152: 1 | AH152: 90 | AM152: Terminado | AN152: 1
A153: 143 | B153: 2022 | C153: FDLRUU-CD-143-2022 | D153: https://Community.seCop.gov.Co/PubliC/Tendering/OpportunityDetail/Index?notiCeUID=CO1.NTC.2739760&isFromPubliCArea=True&isModal=False | E153: Contratos de prestación de servicios profesionales y de apoyo a la gestión | F153: Contratación directa | G153: Prestación de servicios profesionales y de apoyo a la gestión, o para la ejecución de trabajos artísticos que sólo puedan encomendarse a determinadas personas naturales | H153: APOYAR LA FORMULACIÓN, GESTIÓN Y SEGUIMIENTO DE ACTIVIDADES ENFOCADAS A LA GESTIÓN AMBIENTAL EXTERNA, ENCAMINADAS A LA MITIGACIÓN DE LOS DIFERENTES IMPACTOS AMBIENTALES Y LA CONSERVACIÓN DE LOS RECURSOS NATURALES DE LA LOCALIDAD | I153: Inversión | J153: Un nuevo contrato social y ambiental para la Bogotá del Siglo XXI | K153: 57 | L153: =IF(ISERROR(VLOOKUP(K153,Proposito_programa!$C$2:$E$59,2,FALSE))," ",VLOOKUP(K153,Proposito_programa!$C$2:$E$59,2,FALSE)) -> Gestión pública local | M153: =IF(ISERROR(VLOOKUP(K153,Proposito_programa!$C$2:$E$59,3,FALSE))," ",VLOOKUP(K153,Proposito_programa!$C$2:$E$59,3,FALSE)) -> Propósito 5: Construir Bogotá - Región con gobierno abierto, transparente y ciudadanía consciente | N153: O23011605570000001697 | O153: 1 | P153: 52538287 | Q153: MARIBEL PEÑA PRIETO | R153: Persona Natural | W153: 32400000 | AA153: 32400000 | AB153: 32400000 | AC153: 2022-01-26 | AD153: 2022-01-28 | AE153: 2022-07-27 | AF153: 180 | AM153: Terminado | AN153: 1
A154: 144 | B154: 2022 | C154: CPS-144-2022 | D154: https://Community.seCop.gov.Co/PubliC/Tendering/OpportunityDetail/Index?notiCeUID=CO1.NTC.2735938&isFromPubliCArea=True&isModal=False | E154: Contratos de prestación de servicios profesionales y de apoyo a la gestión | F154: Contratación directa | G154: Prestación de servicios profesionales y de apoyo a la gestión, o para la ejecución de trabajos artísticos que sólo puedan encomendarse a determinadas personas naturales | H154: PRESTAR LOS SERVICIOS PROFESIONALES AL DESPACHO EN EL SEGUIMIENTO E IMPLEMENTACION DE POLITICAS PUBLICAS DISTRITALES EN LA ALCALDÍA LOCAL DE RAFAEL URIBE URIBE | I154: Inversión | J154: Un nuevo contrato social y ambiental para la Bogotá del Siglo XXI | K154: 57 | L154: =IF(ISERROR(VLOOKUP(K154,Proposito_programa!$C$2:$E$59,2,FALSE))," ",VLOOKUP(K154,Proposito_programa!$C$2:$E$59,2,FALSE)) -> Gestión pública local | M154: =IF(ISERROR(VLOOKUP(K154,Proposito_programa!$C$2:$E$59,3,FALSE))," ",VLOOKUP(K154,Proposito_programa!$C$2:$E$59,3,FALSE)) -> Propósito 5: Construir Bogotá - Región con gobierno abierto, transparente y ciudadanía consciente | N154: O23011605570000001697 | O154: 1 | P154: 80442207 | Q154: LEONARDO GUERRA RAMIREZ | R154: Persona Natural | W154: 42240000 | AA154: 42240000 | AB154: 42240000 | AC154: 2022-01-28 | AD154: 2022-01-28 | AE154: 2022-07-27 | AF154: 180 | AM154: Terminado | AN154: 1
A155: 145 | B155: 2022 | C155: FDLRUU-CD-145-2022 | D155: https://Community.seCop.gov.Co/PubliC/Tendering/OpportunityDetail/Index?notiCeUID=CO1.NTC.2739687&isFromPubliCArea=True&isModal=False | E155: Contratos de prestación de servicios profesionales y de apoyo a la gestión | F155: Contratación directa | G155: Prestación de servicios profesionales y de apoyo a la gestión, o para la ejecución de trabajos artísticos que sólo puedan encomendarse a determinadas personas naturales | H155: APOYAR TÉCNICAMENTE LAS DISTINTAS ETAPAS DE LOS PROCESOS DE COMPETENCIA DE LA ALCALDÍA LOCAL PARA LA DEPURACIÓN D E LAS ACTUACIONES ADMINISTRATIVAS. | I155: Inversión | J155: Un nuevo contrato social y ambiental para la Bogotá del Siglo XXI | K155: 57 | L155: =IF(ISERROR(VLOOKUP(K155,Proposito_programa!$C$2:$E$59,2,FALSE))," ",VLOOKUP(K155,Proposito_programa!$C$2:$E$59,2,FALSE)) -> Gestión pública local | M155: =IF(ISERROR(VLOOKUP(K155,Proposito_programa!$C$2:$E$59,3,FALSE))," ",VLOOKUP(K155,Proposito_programa!$C$2:$E$59,3,FALSE)) -> Propósito 5: Construir Bogotá - Región con gobierno abierto, transparente y ciudadanía consciente | N155: O23011605570000001698 | O155: 1 | P155: 19410967 | Q155: ORLANDO MERCHAN BARRETO | R155: Persona Natural | W155: 32400000 | Y155: 1 | Z155: 16200000 | AA155: 48600000 | AB155: 48600000 | AC155: 2022-01-26 | AD155: 2022-01-28 | AE155: 2022-10-27 | AF155: 180 | AG155: 1 | AH155: 90 | AM155: Terminado | AN155: 1
A156: 146 | B156: 2022 | C156: FDLRUU-CD-146-2022 | D156: https://Community.seCop.gov.Co/PubliC/Tendering/OpportunityDetail/Index?notiCeUID=CO1.NTC.2743615&isFromPubliCArea=True&isModal=False | E156: Contratos de prestación de servicios profesionales y de apoyo a la gestión | F156: Contratación directa | G156: Prestación de servicios profesionales y de apoyo a la gestión, o para la ejecución de trabajos artísticos que sólo puedan encomendarse a determinadas personas naturales | H156: APOYAR TÉCNICAMENTE LAS DISTINTAS ETAPAS DE LOS PROCESOS DE COMPETENCIA DE LA ALCALDÍA LOCAL PARA LA DEPURACIÓN D E LAS ACTUACIONES ADMINISTRATIVAS. | I156: Inversión | J156: Un nuevo contrato social y ambiental para la Bogotá del Siglo XXI | K156: 57 | L156: =IF(ISERROR(VLOOKUP(K156,Proposito_programa!$C$2:$E$59,2,FALSE))," ",VLOOKUP(K156,Proposito_programa!$C$2:$E$59,2,FALSE)) -> Gestión pública local | M156: =IF(ISERROR(VLOOKUP(K156,Proposito_programa!$C$2:$E$59,3,FALSE))," ",VLOOKUP(K156,Proposito_programa!$C$2:$E$59,3,FALSE)) -> Propósito 5: Construir Bogotá - Región con gobierno abierto, transparente y ciudadanía consciente | N156: O23011605570000001698 | O156: 1 | P156: 79692123 | Q156: CAMPO ELIAS GUTIERREZ GARCÍA | R156: Persona Natural | W156: 32400000 | Y156: 1 | Z156: 16200000 | AA156: 48600000 | AB156: =30240000+AL156 -> 48600000 | AC156: 2022-01-26 | AD156: 2022-01-28 | AE156: 2022-10-27 | AF156: 180 | AG156: 1 | AH156: 90 | AI156: 1023886101 | AJ156: HEYDY MILENA RAMIREZ CARDENAS | AK156: 2022-05-10 | AL156: 18360000 | AM156: Terminado | AN156: 1
A157: 147 | B157: 2022 | C157: FDLRUU-CD-147-2022 | D157: https://Community.seCop.gov.Co/PubliC/Tendering/OpportunityDetail/Index?notiCeUID=CO1.NTC.2769423&isFromPubliCArea=True&isModal=False | E157: Contratos de prestación de servicios profesionales y de apoyo a la gestión | F157: Contratación directa | G157: Prestación de servicios profesionales y de apoyo a la gestión, o para la ejecución de trabajos artísticos que sólo puedan encomendarse a determinadas personas naturales | H157: APOYAR TÉCNICAMENTE LAS DISTINTAS ETAPAS DE LOS PROCESOS DE COMPETENCIA DE LA ALCALDÍA LOCAL PARA LA DEPURACIÓN DE LAS ACTUACIONES ADMINISTRATIVAS | I157: Inversión | J157: Un nuevo contrato social y ambiental para la Bogotá del Siglo XXI | K157: 57 | L157: =IF(ISERROR(VLOOKUP(K157,Proposito_programa!$C$2:$E$59,2,FALSE))," ",VLOOKUP(K157,Proposito_programa!$C$2:$E$59,2,FALSE)) -> Gestión pública local | M157: =IF(ISERROR(VLOOKUP(K157,Proposito_programa!$C$2:$E$59,3,FALSE))," ",VLOOKUP(K157,Proposito_programa!$C$2:$E$59,3,FALSE)) -> Propósito 5: Construir Bogotá - Región con gobierno abierto, transparente y ciudadanía consciente | N157: O23011605570000001698 | O157: 1 | P157: 1020753752 | Q157: CARLOS FELIPE SUAREZ PIEDRAHITA | R157: Persona Natural | W157: 32400000 | Y157: 1 | Z157: 16200000 | AA157: 48600000 | AB157: 48600000 | AC157: 2022-01-28 | AD157: 2022-02-01 | AE157: 2022-10-31 | AF157: 180 | AG157: 1 | AH157: 90 | AM157: Terminado | AN157: 1
A158: 148 | B158: 2022 | C158: FDLRUU-CD-148-2022 | D158: https://Community.seCop.gov.Co/PubliC/Tendering/OpportunityDetail/Index?notiCeUID=CO1.NTC.2756046&isFromPubliCArea=True&isModal=False | E158: Contratos de prestación de servicios profesionales y de apoyo a la gestión | F158: Contratación directa | G158: Prestación de servicios profesionales y de apoyo a la gestión, o para la ejecución de trabajos artísticos que sólo puedan encomendarse a determinadas personas naturales | H158: APOYAR TÉCNICAMENTE LAS DISTINTAS ETAPAS DE LOS PROCESOS DE COMPETENCIA DE LA ALCALDÍA LOCAL PARA LA DEPURACIÓN DE LAS ACTUACIONES ADMINISTRATIVAS. | I158: Inversión | J158: Un nuevo contrato social y ambiental para la Bogotá del Siglo XXI | K158: 57 | L158: =IF(ISERROR(VLOOKUP(K158,Proposito_programa!$C$2:$E$59,2,FALSE))," ",VLOOKUP(K158,Proposito_programa!$C$2:$E$59,2,FALSE)) -> Gestión pública local | M158: =IF(ISERROR(VLOOKUP(K158,Proposito_programa!$C$2:$E$59,3,FALSE))," ",VLOOKUP(K158,Proposito_programa!$C$2:$E$59,3,FALSE)) -> Propósito 5: Construir Bogotá - Región con gobierno abierto, transparente y ciudadanía consciente | N158: O23011605570000001698 | O158: 1 | P158: 79743591 | Q158: CAMILO ANDRES ALVAREZ GACHARNA | R158: Persona Natural | W158: 32400000 | AA158: 32400000 | AB158: 32400000 | AC158: 2022-01-27 | AD158: 2022-02-01 | AE158: 2022-07-31 | AF158: 180 | AM158: Terminado | AN158: 1
A159: 149 | B159: 2022 | C159: FDLRUU-CD-149-2022 | D159: https://Community.seCop.gov.Co/PubliC/Tendering/ContraCtNotiCePhases/View?PPI=CO1.PPI.17266334&isFromPubliCArea=True&isModal=False | E159: Contratos de prestación de servicios profesionales y de apoyo a la gestión | F159: Contratación directa | G159: Prestación de servicios profesionales y de apoyo a la gestión, o para la ejecución de trabajos artísticos que sólo puedan encomendarse a determinadas personas naturales | H159: APOYAR TÉCNICAMENTE LAS DISTINTAS ETAPAS DE LOS PROCESOS DE COMPETENCIA DE LA ALCALDÍA LOCAL PARA LA DEPURACIÓN DE LAS ACTUACIONES ADMINISTRATIVAS. | I159: Inversión | J159: Un nuevo contrato social y ambiental para la Bogotá del Siglo XXI | K159: 57 | L159: =IF(ISERROR(VLOOKUP(K159,Proposito_programa!$C$2:$E$59,2,FALSE))," ",VLOOKUP(K159,Proposito_programa!$C$2:$E$59,2,FALSE)) -> Gestión pública local | M159: =IF(ISERROR(VLOOKUP(K159,Proposito_programa!$C$2:$E$59,3,FALSE))," ",VLOOKUP(K159,Proposito_programa!$C$2:$E$59,3,FALSE)) -> Propósito 5: Construir Bogotá - Región con gobierno abierto, transparente y ciudadanía consciente | N159: O23011605570000001698 | O159: 1 | P159: 80098149 | Q159: GEOVANNY ROJAS CASTRO | R159: Persona Natural | W159: 32400000 | Y159: 1 | Z159: 16200000 | AA159: 48600000 | AB159: 48600000 | AC159: 2022-01-27 | AD159: 2022-02-01 | AE159: 2022-10-31 | AF159: 180 | AG159: 1 | AH159: 90 | AM159: Terminado | AN159: 1
A160: 150 | B160: 2022 | C160: FDLRUU-CD-150-2022 | D160: https://Community.seCop.gov.Co/PubliC/Tendering/OpportunityDetail/Index?notiCeUID=CO1.NTC.2789706&isFromPubliCArea=True&isModal=False | E160: Contratos de prestación de servicios profesionales y de apoyo a la gestión | F160: Contratación directa | G160: Prestación de servicios profesionales y de apoyo a la gestión, o para la ejecución de trabajos artísticos que sólo puedan encomendarse a determinadas personas naturales | H160: EL CONTRATISTA SE OBLIGA A PRESTAR SERVICIOS PROFESIONALES PARA REALIZAR ACUERDOS QUE GENEREN CIRCULOS O ESPACIOS PRODUCTIVOS E INICIATIVAS PARA LA FORMALIZACION DE LOS VENDEDORES INFORMALES EN RAFAEL URIBE URIBE EN EL MARCO DEL PROYECTO DE INVERSIÓN 1681 | I160: Inversión | J160: Un nuevo contrato social y ambiental para la Bogotá del Siglo XXI | K160: 45 | L160: =IF(ISERROR(VLOOKUP(K160,Proposito_programa!$C$2:$E$59,2,FALSE))," ",VLOOKUP(K160,Proposito_programa!$C$2:$E$59,2,FALSE)) -> Espacio público más seguro y construido colectivamente | M160: =IF(ISERROR(VLOOKUP(K160,Proposito_programa!$C$2:$E$59,3,FALSE))," ",VLOOKUP(K160,Proposito_programa!$C$2:$E$59,3,FALSE)) -> Propósito 3: Inspirar confianza y legitimidad para vivir sin miedo y ser epicentro de cultura ciudadana, paz y reconciliación | N160: O23011603450000001681 | O160: 1 | P160: 53043856 | Q160: NINI JOHANNA HERNANDEZ HERNANDEZ | R160: Persona Natural | W160: 57200000 | AA160: 57200000 | AB160: 52000000 | AC160: 2022-01-28 | AD160: 2022-02-01 | AE160: 2023-01-31 | AF160: 330 | AM160: Terminado | AN160: 0.9090909091
A161: 151 | B161: 2022 | C161: FDLRUU-CD-151-2022 | D161: https://Community.seCop.gov.Co/PubliC/Tendering/OpportunityDetail/Index?notiCeUID=CO1.NTC.2767520&isFromPubliCArea=True&isModal=False | E161: Contratos de prestación de servicios profesionales y de apoyo a la gestión | F161: Contratación directa | G161: Prestación de servicios profesionales y de apoyo a la gestión, o para la ejecución de trabajos artísticos que sólo puedan encomendarse a determinadas personas naturales | H161: PRESTAR SERVICIOS PROFESIONALES PARA REALIZAR ACUERDOS QUE GENEREN CIRCULOS O ESPACIOS PRODUCTIVOS E INICIATIVAS PARA LA FORMALIZACION DE LOS VENDEDORES INFORMALES EN RAFAEL URIBE URIBE EN EL MARCO DEL PROYECTO DE INVERSIÓN 1681 | I161: Inversión | J161: Un nuevo contrato social y ambiental para la Bogotá del Siglo XXI | K161: 45 | L161: =IF(ISERROR(VLOOKUP(K161,Proposito_programa!$C$2:$E$59,2,FALSE))," ",VLOOKUP(K161,Proposito_programa!$C$2:$E$59,2,FALSE)) -> Espacio público más seguro y construido colectivamente | M161: =IF(ISERROR(VLOOKUP(K161,Proposito_programa!$C$2:$E$59,3,FALSE))," ",VLOOKUP(K161,Proposito_programa!$C$2:$E$59,3,FALSE)) -> Propósito 3: Inspirar confianza y legitimidad para vivir sin miedo y ser epicentro de cultura ciudadana, paz y reconciliación | N161: O23011603450000001681 | O161: 1 | P161: 79497759 | Q161: JORGE MAURICIO CARDENAS ROBAYO | R161: Persona Natural | W161: 57200000 | Y161: 1 | Z161: 5200000 | AA161: 62400000 | AB161: 52000000 | AC161: 2022-01-28 | AD161: 2022-02-01 | AE161: 2023-01-30 | AF161: 330 | AG161: 1 | AH161: 30 | AM161: Terminado | AN161: 0.8333333333
A162: 152 | B162: 2022 | C162: FDLRUU-CD-152-2022 | D162: https://Community.seCop.gov.Co/PubliC/Tendering/OpportunityDetail/Index?notiCeUID=CO1.NTC.2772697&isFromPubliCArea=True&isModal=False | E162: Contratos de prestación de servicios profesionales y de apoyo a la gestión | F162: Contratación directa | G162: Prestación de servicios profesionales y de apoyo a la gestión, o para la ejecución de trabajos artísticos que sólo puedan encomendarse a determinadas personas naturales | H162: PRESTAR SERVICIOS PROFESIONALES PARA EL APOYO Y GESTIÓN INTERINSTUCIONAL CON LAS ENTIDADES DEL DISTRITO ENCARGADAS DE LA RECREACIÓN, DEPORTE Y CULTURA PARA FOCALIZAR LA OFERTA EN USUARIOS DE TRANSPORTE NO MOTORIZADOS Y EL BUEN USO DEL ESPACIO PÚBLICO EN RAFAEL URIBE URIBE | I162: Inversión | J162: Un nuevo contrato social y ambiental para la Bogotá del Siglo XXI | K162: 45 | L162: =IF(ISERROR(VLOOKUP(K162,Proposito_programa!$C$2:$E$59,2,FALSE))," ",VLOOKUP(K162,Proposito_programa!$C$2:$E$59,2,FALSE)) -> Espacio público más seguro y construido colectivamente | M162: =IF(ISERROR(VLOOKUP(K162,Proposito_programa!$C$2:$E$59,3,FALSE))," ",VLOOKUP(K162,Proposito_programa!$C$2:$E$59,3,FALSE)) -> Propósito 3: Inspirar confianza y legitimidad para vivir sin miedo y ser epicentro de cultura ciudadana, paz y reconciliación | N162: O23011603450000001681 | O162: 1 | P162: 1014178675 | Q162: ADRIANA MARITZA ANGULO LEON | R162: Persona Natural | W162: 57200000 | AA162: 57200000 | AB162: 50613333 | AC162: 2022-01-28 | AD162: 2022-02-09 | AE162: 2023-01-08 | AF162: 330 | AM162: Terminado | AN162: 0.884848479
A163: 153 | B163: 2022 | C163: FDLRUU-CD-153-2022 | D163: https://Community.seCop.gov.Co/PubliC/Tendering/OpportunityDetail/Index?notiCeUID=CO1.NTC.2791007&isFromPubliCArea=True&isModal=False | E163: Contratos de prestación de servicios profesionales y de apoyo a la gestión | F163: Contratación directa | G163: Prestación de servicios profesionales y de apoyo a la gestión, o para la ejecución de trabajos artísticos que sólo puedan encomendarse a determinadas personas naturales | H163: PRESTAR SERVICIOS PROFESIONALES PARA EL APOYO Y GESTIÓN INTERINSTUCIONAL CON LAS ENTIDADES DEL DISTRITO ENCARGADAS DE LA RECREACIÓN, DEPORTE Y CULTURA PARA FOCALIZAR LA OFERTA EN USUARIOS DE TRANSPORTE NO MOTORIZADOS Y EL BUEN USO DEL ESPACIO PÚBLICO EN RAFAEL URIBE URIBE. | I163: Inversión | J163: Un nuevo contrato social y ambiental para la Bogotá del Siglo XXI | K163: 45 | L163: =IF(ISERROR(VLOOKUP(K163,Proposito_programa!$C$2:$E$59,2,FALSE))," ",VLOOKUP(K163,Proposito_programa!$C$2:$E$59,2,FALSE)) -> Espacio público más seguro y construido colectivamente | M163: =IF(ISERROR(VLOOKUP(K163,Proposito_programa!$C$2:$E$59,3,FALSE))," ",VLOOKUP(K163,Proposito_programa!$C$2:$E$59,3,FALSE)) -> Propósito 3: Inspirar confianza y legitimidad para vivir sin miedo y ser epicentro de cultura ciudadana, paz y reconciliación | N163: O23011603450000001681 | O163: 1 | P163: 52968152 | Q163: DIANA MARIA MORA RAMIREZ | R163: Persona Natural | W163: 57200000 | Y163: 1 | Z163: 5026667 | AA163: 62226667 | AB163: 51826667 | AC163: 2022-01-28 | AD163: 2022-02-02 | AE163: 2023-01-30 | AF163: 330 | AG163: 1 | AH163: 29 | AM163: Terminado | AN163: 0.8328690817
A164: 154 | B164: 2022 | C164: FDLRUU-CD-154-2022 | D164: https://Community.seCop.gov.Co/PubliC/Tendering/OpportunityDetail/Index?notiCeUID=CO1.NTC.2747004&isFromPubliCArea=True&isModal=False | E164: Contratos de prestación de servicios profesionales y de apoyo a la gestión | F164: Contratación directa | G164: Prestación de servicios profesionales y de apoyo a la gestión, o para la ejecución de trabajos artísticos que sólo puedan encomendarse a determinadas personas naturales | H164: PRESTAR LOS SERVICIOS DE APOYO TÉCNICO EN LA GESTIÓN EN LAS LABORES ADMINISTRATIVAS, OPERATIVAS Y LOGÍSTICAS QUE SE REQUIERAN EN EL ÁREA DE GESTIÓN DEL DESARROLLO DE LA ALCALDÍA LOCAL DE RAFAEL URIBE URIBE | I164: Inversión | J164: Un nuevo contrato social y ambiental para la Bogotá del Siglo XXI | K164: 57 | L164: =IF(ISERROR(VLOOKUP(K164,Proposito_programa!$C$2:$E$59,2,FALSE))," ",VLOOKUP(K164,Proposito_programa!$C$2:$E$59,2,FALSE)) -> Gestión pública local | M164: =IF(ISERROR(VLOOKUP(K164,Proposito_programa!$C$2:$E$59,3,FALSE))," ",VLOOKUP(K164,Proposito_programa!$C$2:$E$59,3,FALSE)) -> Propósito 5: Construir Bogotá - Región con gobierno abierto, transparente y ciudadanía consciente | N164: O23011605570000001697 | O164: 1 | P164: 19445797 | Q164: CARLOS ALBERTO ESCOBAR LARA | R164: Persona Natural | W164: 24000000 | Y164: 1 | Z164: 12000000 | AA164: 36000000 | AB164: 36000000 | AC164: 2022-01-27 | AD164: 2022-01-28 | AE164: 2022-10-27 | AF164: 180 | AG164: 1 | AH164: 90 | AM164: Terminado | AN164: 1
A165: 155 | B165: 2022 | C165: FDLRUU-CD-155-2022 | D165: https://Community.seCop.gov.Co/PubliC/Tendering/OpportunityDetail/Index?notiCeUID=CO1.NTC.2749007&isFromPubliCArea=True&isModal=False | E165: Contratos de prestación de servicios profesionales y de apoyo a la gestión | F165: Contratación directa | G165: Prestación de servicios profesionales y de apoyo a la gestión, o para la ejecución de trabajos artísticos que sólo puedan encomendarse a determinadas personas naturales | H165: PRESTAR LOS SERVICIOS DE APOYO TÉCNICO EN LA GESTIÓN EN LAS LABORES ADMINISTRATIVAS, OPERATIVAS Y LOGÍSTICAS QUE SE REQUIERAN EN EL ÁREA DE GESTIÓN DEL DESARROLLO DE LA ALCALDÍA LOCAL DE RAFAEL URIBE URIBE | I165: Inversión | J165: Un nuevo contrato social y ambiental para la Bogotá del Siglo XXI | K165: 57 | L165: =IF(ISERROR(VLOOKUP(K165,Proposito_programa!$C$2:$E$59,2,FALSE))," ",VLOOKUP(K165,Proposito_programa!$C$2:$E$59,2,FALSE)) -> Gestión pública local | M165: =IF(ISERROR(VLOOKUP(K165,Proposito_programa!$C$2:$E$59,3,FALSE))," ",VLOOKUP(K165,Proposito_programa!$C$2:$E$59,3,FALSE)) -> Propósito 5: Construir Bogotá - Región con gobierno abierto, transparente y ciudadanía consciente | N165: O23011605570000001697 | O165: 1 | P165: 1030559488 | Q165: CARLOS GIOVANNY CASTELLANOS GUZMAN | R165: Persona Natural | W165: 24000000 | Y165: 1 | Z165: 12000000 | AA165: 36000000 | AB165: 36000000 | AC165: 2022-01-27 | AD165: 2022-01-28 | AE165: 2022-10-27 | AF165: 180 | AG165: 1 | AH165: 90 | AM165: Terminado | AN165: 1
A166: 156 | B166: 2022 | C166: FDLRUU-CD-156-2022 | D166: https://Community.seCop.gov.Co/PubliC/Tendering/OpportunityDetail/Index?notiCeUID=CO1.NTC.2741288&isFromPubliCArea=True&isModal=False | E166: Contratos de prestación de servicios profesionales y de apoyo a la gestión | F166: Contratación directa | G166: Prestación de servicios profesionales y de apoyo a la gestión, o para la ejecución de trabajos artísticos que sólo puedan encomendarse a determinadas personas naturales | H166: PRESTAR LOS SERVICIOS PROFESIONALES EN LA ALCALDÍA LOCAL DE RAFAEL URIBE URIBE EN TODAS LAS GESTIONES JURÍDICAS Y ADMINISTRATIVAS EN MATERIA DE PROPIEDAD HORIZONTAL, TRAMITES DE SOLICITUDES DE VENDEDORES INFORMALE Y ACTUACIONES ADMINISTRATIVAS. | I166: Inversión | J166: Un nuevo contrato social y ambiental para la Bogotá del Siglo XXI | K166: 57 | L166: =IF(ISERROR(VLOOKUP(K166,Proposito_programa!$C$2:$E$59,2,FALSE))," ",VLOOKUP(K166,Proposito_programa!$C$2:$E$59,2,FALSE)) -> Gestión pública local | M166: =IF(ISERROR(VLOOKUP(K166,Proposito_programa!$C$2:$E$59,3,FALSE))," ",VLOOKUP(K166,Proposito_programa!$C$2:$E$59,3,FALSE)) -> Propósito 5: Construir Bogotá - Región con gobierno abierto, transparente y ciudadanía consciente | N166: O23011605570000001698 | O166: 1 | P166: 51922807 | Q166: CLAUDIA MAYERLING RODRIGUEZ MELO | R166: Persona Natural | W166: 32400000 | AA166: 32400000 | AB166: 32400000 | AC166: 2022-01-27 | AD166: 2022-01-28 | AE166: 2022-07-27 | AF166: 180 | AM166: Terminado | AN166: 1
A167: 157 | B167: 2022 | C167: FDLRUU-CD-157-2022 | D167: https://Community.seCop.gov.Co/PubliC/Tendering/OpportunityDetail/Index?notiCeUID=CO1.NTC.2744866&isFromPubliCArea=True&isModal=False | E167: Contratos de prestación de servicios profesionales y de apoyo a la gestión | F167: Contratación directa | G167: Prestación de servicios profesionales y de apoyo a la gestión, o para la ejecución de trabajos artísticos que sólo puedan encomendarse a determinadas personas naturales | H167: PRESTAR LOS SERVICIOS PROFESIONALES PARA APOYAR LA FORMULACION, EJECUCIÓN Y SEGUIMIENTO DE LOS PROYECTOS DE INVERSIÓN DEL SECTOR AMBIENTE EN EL MARCO DEL CUMPLIMIENTO DEL PLAN DE DESARROLLO LOCAL DE LA ALCALDÍA LOCAL DE RAFAEL URIBE URIBE 2021 2024. | I167: Inversión | J167: Un nuevo contrato social y ambiental para la Bogotá del Siglo XXI | K167: 57 | L167: =IF(ISERROR(VLOOKUP(K167,Proposito_programa!$C$2:$E$59,2,FALSE))," ",VLOOKUP(K167,Proposito_programa!$C$2:$E$59,2,FALSE)) -> Gestión pública local | M167: =IF(ISERROR(VLOOKUP(K167,Proposito_programa!$C$2:$E$59,3,FALSE))," ",VLOOKUP(K167,Proposito_programa!$C$2:$E$59,3,FALSE)) -> Propósito 5: Construir Bogotá - Región con gobierno abierto, transparente y ciudadanía consciente | N167: O23011605570000001697 | O167: 1 | P167: 1018475446 | Q167: MAIRA ALEJANDRA MORENO LOZANO | R167: Persona Natural | W167: 32400000 | Y167: 1 | Z167: 16200000 | AA167: 48600000 | AB167: 48600000 | AC167: 2022-01-27 | AD167: 2022-02-01 | AE167: 2022-10-31 | AF167: 180 | AG167: 1 | AH167: 90 | AM167: Terminado | AN167: 1
A168: 158 | B168: 2022 | C168: FDLRUU-CD-158-2022 | D168: https://Community.seCop.gov.Co/PubliC/Tendering/OpportunityDetail/Index?notiCeUID=CO1.NTC.2745734&isFromPubliCArea=True&isModal=False | E168: Contratos de prestación de servicios profesionales y de apoyo a la gestión | F168: Contratación directa | G168: Prestación de servicios profesionales y de apoyo a la gestión, o para la ejecución de trabajos artísticos que sólo puedan encomendarse a determinadas personas naturales | H168: PRESTAR LOS SERVICIOS PROFESIONALES PARA APOYAR LA FORMULACION, EJECUCIÓN Y SEGUIMIENTO DE LOS PROYECTOS DE INVERSIÓN DEL SECTOR AMBIENTE EN EL MARCO DEL CUMPLIMIENTO DEL PLAN DE DESARROLLO LOCAL DE LA ALCALDÍA LOCAL DE RAFAEL URIBE URIBE 2021 2024. | I168: Inversión | J168: Un nuevo contrato social y ambiental para la Bogotá del Siglo XXI | K168: 57 | L168: =IF(ISERROR(VLOOKUP(K168,Proposito_programa!$C$2:$E$59,2,FALSE))," ",VLOOKUP(K168,Proposito_programa!$C$2:$E$59,2,FALSE)) -> Gestión pública local | M168: =IF(ISERROR(VLOOKUP(K168,Proposito_programa!$C$2:$E$59,3,FALSE))," ",VLOOKUP(K168,Proposito_programa!$C$2:$E$59,3,FALSE)) -> Propósito 5: Construir Bogotá - Región con gobierno abierto, transparente y ciudadanía consciente | N168: O23011605570000001697 | O168: 1 | P168: 1026279529 | Q168: DIANA CAROLINA PINZON PEREZ | R168: Persona Natural | W168: 32400000 | Y168: 1 | Z168: 16200000 | AA168: 48600000 | AB168: 48600000 | AC168: 2022-01-27 | AD168: 2022-01-28 | AE168: 2022-10-27 | AF168: 180 | AG168: 1 | AH168: 90 | AM168: Terminado | AN168: 1
A169: 159 | B169: 2022 | C169: FDLRUU-CD-159-2022 | D169: https://Community.seCop.gov.Co/PubliC/Tendering/OpportunityDetail/Index?notiCeUID=CO1.NTC.2746408&isFromPubliCArea=True&isModal=False | E169: Contratos de prestación de servicios profesionales y de apoyo a la gestión | F169: Contratación directa | G169: Prestación de servicios profesionales y de apoyo a la gestión, o para la ejecución de trabajos artísticos que sólo puedan encomendarse a determinadas personas naturales | H169: APOYAR JURÍDICAMENTE LAS ACCIONES REQUERIDAS PARA LA DEPURACIÓN DE LAS ACTUACIONES ADMINISTRATIVAS QUE CURSAN EN LA ALCALDÍA LOCAL DE RAFAEL URIBE URIBE. | I169: Inversión | J169: Un nuevo contrato social y ambiental para la Bogotá del Siglo XXI | K169: 57 | L169: =IF(ISERROR(VLOOKUP(K169,Proposito_programa!$C$2:$E$59,2,FALSE))," ",VLOOKUP(K169,Proposito_programa!$C$2:$E$59,2,FALSE)) -> Gestión pública local | M169: =IF(ISERROR(VLOOKUP(K169,Proposito_programa!$C$2:$E$59,3,FALSE))," ",VLOOKUP(K169,Proposito_programa!$C$2:$E$59,3,FALSE)) -> Propósito 5: Construir Bogotá - Región con gobierno abierto, transparente y ciudadanía consciente | N169: O23011605570000001698 | O169: 1 | P169: 1018467983 | Q169: MOISES DAYAN FRANCISCO GOMEZ GUERRERO | R169: Persona Natural | W169: 32400000 | Y169: 1 | Z169: 16200000 | AA169: 48600000 | AB169: 45720000 | AC169: 2022-01-27 | AD169: 2022-01-28 | AE169: 2022-11-16 | AF169: 180 | AG169: 1 | AH169: 90 | AM169: Terminado | AN169: 0.9407407407
A170: 160 | B170: 2022 | C170: FDLRUU-CD-160-2022 | D170: https://Community.seCop.gov.Co/PubliC/Tendering/OpportunityDetail/Index?notiCeUID=CO1.NTC.2764254&isFromPubliCArea=True&isModal=False | E170: Contratos de prestación de servicios profesionales y de apoyo a la gestión | F170: Contratación directa | G170: Prestación de servicios profesionales y de apoyo a la gestión, o para la ejecución de trabajos artísticos que sólo puedan encomendarse a determinadas personas naturales | H170: PRESTAR LOS SERVICIOS PROFESIONALES ESPECIALIZADOS PARA APOYAR EL SEGUIMIENTO Y LA SUPERVISIÓN DE LA EJECUCIÓN DE LOS PROYECTOS DE INVERSIÓN DESTINADOS A LA INTERVENCIÓN DE PARQUES Y DEMÁS INFRAESTRUCTURA DE LA LOCALIDAD DE RAFAEL URIBE URI | I170: Inversión | J170: Un nuevo contrato social y ambiental para la Bogotá del Siglo XXI | K170: 57 | L170: =IF(ISERROR(VLOOKUP(K170,Proposito_programa!$C$2:$E$59,2,FALSE))," ",VLOOKUP(K170,Proposito_programa!$C$2:$E$59,2,FALSE)) -> Gestión pública local | M170: =IF(ISERROR(VLOOKUP(K170,Proposito_programa!$C$2:$E$59,3,FALSE))," ",VLOOKUP(K170,Proposito_programa!$C$2:$E$59,3,FALSE)) -> Propósito 5: Construir Bogotá - Región con gobierno abierto, transparente y ciudadanía consciente | N170: O23011605570000001697 | O170: 1 | P170: 68290146 | Q170: CLAUDIA INDIRA JIMENEZ ACOSTA | R170: Persona Natural | W170: 42600000 | Y170: 1 | Z170: 21300000 | AA170: 63900000 | AB170: =52540000+AL170 -> 63900000 | AC170: 2022-01-27 | AD170: 2022-01-28 | AE170: 2022-10-27 | AF170: 180 | AG170: 1 | AH170: 90 | AI170: 80061073 | AJ170: ENVER JULIAN LOPEZ ANGEL | AK170: 2022-03-16 | AL170: 11360000 | AM170: Terminado | AN170: 1
A171: 161 | B171: 2022 | C171: FDLRUU-CD-161-2022 | D171: https://Community.seCop.gov.Co/PubliC/Tendering/OpportunityDetail/Index?notiCeUID=CO1.NTC.2740671&isFromPubliCArea=True&isModal=False | E171: Contratos de prestación de servicios profesionales y de apoyo a la gestión | F171: Contratación directa | G171: Prestación de servicios profesionales y de apoyo a la gestión, o para la ejecución de trabajos artísticos que sólo puedan encomendarse a determinadas personas naturales | H171: PRESTAR SERVICIOS PROFESIONALES ESPECIALIZADOS EN EL ÁREA DE GESTIÓN DEL DESARROLLO LOCAL PARA EL APOYO AL SEGUIMIENTO DE LA EJECUCIÓN DE LOS PROYECTOS DE INVERSIÓN DESTINADOS A LA INTERVENCIÓN DE INFRAESTRUCTURA DE LA LOCALIDAD DE RAFAEL URIBE URIBE. | I171: Inversión | J171: Un nuevo contrato social y ambiental para la Bogotá del Siglo XXI | K171: 57 | L171: =IF(ISERROR(VLOOKUP(K171,Proposito_programa!$C$2:$E$59,2,FALSE))," ",VLOOKUP(K171,Proposito_programa!$C$2:$E$59,2,FALSE)) -> Gestión pública local | M171: =IF(ISERROR(VLOOKUP(K171,Proposito_programa!$C$2:$E$59,3,FALSE))," ",VLOOKUP(K171,Proposito_programa!$C$2:$E$59,3,FALSE)) -> Propósito 5: Construir Bogotá - Región con gobierno abierto, transparente y ciudadanía consciente | N171: O23011605570000001697 | O171: 1 | P171: 79594955 | Q171: HECTOR ENRIQUE ERIRA MORENO | R171: Persona Natural | W171: 42600000 | AA171: 42600000 | AB171: 42600000 | AC171: 2022-01-26 | AD171: 2022-02-01 | AE171: 2022-07-31 | AF171: 180 | AM171: Terminado | AN171: 1
A172: 162 | B172: 2022 | C172: FDLRUU-CD-162-2022 | D172: https://community.secop.gov.co/Public/Tendering/OpportunityDetail/Index?noticeUID=CO1.NTC.2807757&isFromPublicArea=True&isModal=False | E172: Contratos de prestación de servicios profesionales y de apoyo a la gestión | F172: Contratación directa | G172: Prestación de servicios profesionales y de apoyo a la gestión, o para la ejecución de trabajos artísticos que sólo puedan encomendarse a determinadas personas naturales | H172: PRESTAR LOS SERVICIOS PROFESIONALES EN EL ÁREA DE GESTIÓN DE DESARROLLO LOCAL DESARROLLANDO LAS DIFERENTES ACTIVIDADES A CARGO DE ESTA DEPENDENCIA EN TEMAS RELACIONADOS CON LA GESTIÓN DE BIENES E INVENTARIOS DE CONFORMIDAD CON LA NATURALEZA DEL SERVICIO Y LOS ESTUDIOS PREVIOS | I172: Inversión | J172: Un nuevo contrato social y ambiental para la Bogotá del Siglo XXI | K172: 57 | L172: =IF(ISERROR(VLOOKUP(K172,Proposito_programa!$C$2:$E$59,2,FALSE))," ",VLOOKUP(K172,Proposito_programa!$C$2:$E$59,2,FALSE)) -> Gestión pública local | M172: =IF(ISERROR(VLOOKUP(K172,Proposito_programa!$C$2:$E$59,3,FALSE))," ",VLOOKUP(K172,Proposito_programa!$C$2:$E$59,3,FALSE)) -> Propósito 5: Construir Bogotá - Región con gobierno abierto, transparente y ciudadanía consciente | N172: O23011605570000001697 | O172: 1 | P172: 80779609 | Q172: FREDY ALBERTO BAQUERO MICAN | R172: Persona Natural | W172: 27600000 | AA172: 27600000 | AB172: 27600000 | AC172: 2022-01-28 | AD172: 2022-02-09 | AE172: 2022-08-08 | AF172: 180 | AM172: Terminado | AN172: 1
A173: 163 | B173: 2022 | C173: FDLRUU-CD-163-2022 | D173: https://Community.seCop.gov.Co/PubliC/Tendering/OpportunityDetail/Index?notiCeUID=CO1.NTC.2747812&isFromPubliCArea=True&isModal=False | E173: Contratos de prestación de servicios profesionales y de apoyo a la gestión | F173: Contratación directa | G173: Prestación de servicios profesionales y de apoyo a la gestión, o para la ejecución de trabajos artísticos que sólo puedan encomendarse a determinadas personas naturales | H173: PRESTAR LOS SERVICIOS PROFESIONALES COMO ABOGADO PARA APOYAR AL FONDO DE DESARROLLO LOCAL EN EL ANÁLISIS, REVISIÓN, TRÁMITE PARA COBRO PERSUASIVO Y COACTIVO, SOLICITUDES DE ENTES DE CONTROL, CORPORACIONES PÚBLICAS Y LOS CONCEPTOS JURÍDICOS QUE SE LE SOLICITEN | I173: Inversión | J173: Un nuevo contrato social y ambiental para la Bogotá del Siglo XXI | K173: 57 | L173: =IF(ISERROR(VLOOKUP(K173,Proposito_programa!$C$2:$E$59,2,FALSE))," ",VLOOKUP(K173,Proposito_programa!$C$2:$E$59,2,FALSE)) -> Gestión pública local | M173: =IF(ISERROR(VLOOKUP(K173,Proposito_programa!$C$2:$E$59,3,FALSE))," ",VLOOKUP(K173,Proposito_programa!$C$2:$E$59,3,FALSE)) -> Propósito 5: Construir Bogotá - Región con gobierno abierto, transparente y ciudadanía consciente | N173: O23011605570000001698 | O173: 1 | P173: 1033773166 | Q173: YURY TATIANA ANGULO PATIÑO | R173: Persona Natural | W173: 35400000 | Y173: 1 | Z173: 17700000 | AA173: 53100000 | AB173: 53100000 | AC173: 2022-01-27 | AD173: 2022-02-01 | AE173: 2022-10-31 | AF173: 180 | AG173: 1 | AH173: 90 | AM173: Terminado | AN173: 1
A174: 164 | B174: 2022 | C174: FDLRUU-CD-164-2022 | D174: https://Community.seCop.gov.Co/PubliC/Tendering/OpportunityDetail/Index?notiCeUID=CO1.NTC.2745525&isFromPubliCArea=True&isModal=False | E174: Contratos de prestación de servicios profesionales y de apoyo a la gestión | F174: Contratación directa | G174: Prestación de servicios profesionales y de apoyo a la gestión, o para la ejecución de trabajos artísticos que sólo puedan encomendarse a determinadas personas naturales | H174: PRESTAR SUS SERVICIOS DE APOYO ADMINISTRATIVO ASISTENCIAL AL DESPACHO DE LA ALCALDÍA LOCAL DE RAFAEL URIBE URIBE | I174: Inversión | J174: Un nuevo contrato social y ambiental para la Bogotá del Siglo XXI | K174: 57 | L174: =IF(ISERROR(VLOOKUP(K174,Proposito_programa!$C$2:$E$59,2,FALSE))," ",VLOOKUP(K174,Proposito_programa!$C$2:$E$59,2,FALSE)) -> Gestión pública local | M174: =IF(ISERROR(VLOOKUP(K174,Proposito_programa!$C$2:$E$59,3,FALSE))," ",VLOOKUP(K174,Proposito_programa!$C$2:$E$59,3,FALSE)) -> Propósito 5: Construir Bogotá - Región con gobierno abierto, transparente y ciudadanía consciente | N174: O23011605570000001697 | O174: 1 | P174: 1014266791 | Q174: ALEJANDRA RODRIGUEZ BERNAL | R174: Persona Natural | W174: 16200000 | AA174: 16200000 | AB174: 16200000 | AC174: 2022-01-27 | AD174: 2022-02-01 | AE174: 2022-07-31 | AF174: 180 | AM174: Terminado | AN174: 1
A175: 165 | B175: 2022 | C175: FDLRUU-CD-165-2022 | D175: https://Community.seCop.gov.Co/PubliC/Tendering/ContraCtNotiCePhases/View?PPI=CO1.PPI.17227836&isFromPubliCArea=True&isModal=False | E175: Contratos de prestación de servicios profesionales y de apoyo a la gestión | F175: Contratación directa | G175: Prestación de servicios profesionales y de apoyo a la gestión, o para la ejecución de trabajos artísticos que sólo puedan encomendarse a determinadas personas naturales | H175: PRESTAR LOS SERVICIOS PROFESIONALES E N LAS RESPUESTAS A LAS EMERGENCIAS QUE SE PRESENTEN EN LA LOCALIDAD, ASÍ COMO A LAS ACTUACIONES ADMINISTRATIVAS QUE SE ESTÉN ADELANTANDO CONFORME A LA NORMATIVIDAD APLICABLE EN EL MARCO DEL CONSEJO LOCAL DE GESTIÓN DEL RIESGO Y CAMBIO CLIMÁTICO (CLGR CC) DE LA ALCALDÍA LOCAL DE RAFAEL URIBE URIBE | I175: Inversión | J175: Un nuevo contrato social y ambiental para la Bogotá del Siglo XXI | K175: 57 | L175: =IF(ISERROR(VLOOKUP(K175,Proposito_programa!$C$2:$E$59,2,FALSE))," ",VLOOKUP(K175,Proposito_programa!$C$2:$E$59,2,FALSE)) -> Gestión pública local | M175: =IF(ISERROR(VLOOKUP(K175,Proposito_programa!$C$2:$E$59,3,FALSE))," ",VLOOKUP(K175,Proposito_programa!$C$2:$E$59,3,FALSE)) -> Propósito 5: Construir Bogotá - Región con gobierno abierto, transparente y ciudadanía consciente | N175: O23011605570000001698 | O175: 1 | P175: 71624800 | Q175: ELKIN DE JESUS GUTIERREZ HENAO | R175: Persona Natural | W175: 59400000 | Y175: 1 | Z175: 5940000 | AA175: 65340000 | AB175: 54540000 | AC175: 2022-01-27 | AD175: 2022-01-28 | AE175: 2023-01-30 | AF175: 330 | AG175: 1 | AH175: 33 | AM175: Terminado | AN175: 0.8347107438
A176: 166 | B176: 2022 | C176: FDLRUU-CD-167-2022 | D176: https://Community.seCop.gov.Co/PubliC/Tendering/OpportunityDetail/Index?notiCeUID=CO1.NTC.2745905&isFromPubliCArea=True&isModal=False | E176: Contratos de prestación de servicios profesionales y de apoyo a la gestión | F176: Contratación directa | G176: Prestación de servicios profesionales y de apoyo a la gestión, o para la ejecución de trabajos artísticos que sólo puedan encomendarse a determinadas personas naturales | H176: PRESTAR SERVICIOS DE APOYO TECNICO AL GRUPO DE PLANEACION PARA APOYAR LA FORMULACION,Ejecucion Y SEGUIMIENTO DE LOS PROYECTOS DE INVERSION QUE FORMAN PARTE DEL PLAN DE DESARROLLO LOCAL 2021 2024 DE LA LOCALIDAD DE RAFAEL URIBE URIBE | I176: Inversión | J176: Un nuevo contrato social y ambiental para la Bogotá del Siglo XXI | K176: 57 | L176: =IF(ISERROR(VLOOKUP(K176,Proposito_programa!$C$2:$E$59,2,FALSE))," ",VLOOKUP(K176,Proposito_programa!$C$2:$E$59,2,FALSE)) -> Gestión pública local | M176: =IF(ISERROR(VLOOKUP(K176,Proposito_programa!$C$2:$E$59,3,FALSE))," ",VLOOKUP(K176,Proposito_programa!$C$2:$E$59,3,FALSE)) -> Propósito 5: Construir Bogotá - Región con gobierno abierto, transparente y ciudadanía consciente | N176: O23011605570000001697 | O176: 1 | P176: 1019054181 | Q176: JENNY ELVIRA PRIETO OLARTE | R176: Persona Natural | W176: 24000000 | AA176: 24000000 | AB176: 24000000 | AC176: 2022-01-27 | AD176: 2022-01-28 | AE176: 2022-07-27 | AF176: 180 | AM176: Terminado | AN176: 1
A177: 167 | B177: 2022 | C177: FDLRUU-CD-167-2022 | D177: https://Community.seCop.gov.Co/PubliC/Tendering/OpportunityDetail/Index?notiCeUID=CO1.NTC.2745905&isFromPubliCArea=True&isModal=False | E177: Contratos de prestación de servicios profesionales y de apoyo a la gestión | F177: Contratación directa | G177: Prestación de servicios profesionales y de apoyo a la gestión, o para la ejecución de trabajos artísticos que sólo puedan encomendarse a determinadas personas naturales | H177: PRESTAR SERVICIOS DE APOYO TECNICO AL GRUPO DE PLANEACION PARA APOYAR LA FORMULACION,Ejecucion Y SEGUIMIENTO DE LOS PROYECTOS DE INVERSION QUE FORMAN PARTE DEL PLAN DE DESARROLLO LOCAL 2021 2024 DE LA LOCALIDAD DE RAFAEL URIBE URIBE | I177: Inversión | J177: Un nuevo contrato social y ambiental para la Bogotá del Siglo XXI | K177: 57 | L177: =IF(ISERROR(VLOOKUP(K177,Proposito_programa!$C$2:$E$59,2,FALSE))," ",VLOOKUP(K177,Proposito_programa!$C$2:$E$59,2,FALSE)) -> Gestión pública local | M177: =IF(ISERROR(VLOOKUP(K177,Proposito_programa!$C$2:$E$59,3,FALSE))," ",VLOOKUP(K177,Proposito_programa!$C$2:$E$59,3,FALSE)) -> Propósito 5: Construir Bogotá - Región con gobierno abierto, transparente y ciudadanía consciente | N177: O23011605570000001697 | O177: 1 | P177: 1033750473 | Q177: BRAYAN ANDRES MORALES CASTIBLANCO | R177: Persona Natural | W177: 24000000 | AA177: 24000000 | AB177: 24000000 | AC177: 2022-01-27 | AD177: 2022-01-28 | AE177: 2022-07-27 | AF177: 180 | AM177: Terminado | AN177: 1
A178: 168 | B178: 2022 | C178: FDLRUU-CD-167-2022 | D178: https://Community.seCop.gov.Co/PubliC/Tendering/OpportunityDetail/Index?notiCeUID=CO1.NTC.2745905&isFromPubliCArea=True&isModal=False | E178: Contratos de prestación de servicios profesionales y de apoyo a la gestión | F178: Contratación directa | G178: Prestación de servicios profesionales y de apoyo a la gestión, o para la ejecución de trabajos artísticos que sólo puedan encomendarse a determinadas personas naturales | H178: PRESTAR SERVICIOS DE APOYO TECNICO AL GRUPO DE PLANEACION PARA APOYAR LA FORMULACION,Ejecucion Y SEGUIMIENTO DE LOS PROYECTOS DE INVERSION QUE FORMAN PARTE DEL PLAN DE DESARROLLO LOCAL 2021 2024 DE LA LOCALIDAD DE RAFAEL URIBE URIBE | I178: Inversión | J178: Un nuevo contrato social y ambiental para la Bogotá del Siglo XXI | K178: 57 | L178: =IF(ISERROR(VLOOKUP(K178,Proposito_programa!$C$2:$E$59,2,FALSE))," ",VLOOKUP(K178,Proposito_programa!$C$2:$E$59,2,FALSE)) -> Gestión pública local | M178: =IF(ISERROR(VLOOKUP(K178,Proposito_programa!$C$2:$E$59,3,FALSE))," ",VLOOKUP(K178,Proposito_programa!$C$2:$E$59,3,FALSE)) -> Propósito 5: Construir Bogotá - Región con gobierno abierto, transparente y ciudadanía consciente | N178: O23011605570000001697 | O178: 1 | P178: 1031163818 | Q178: SHAMIR ALEJANDRA HERNANDEZ MARTINEZ | R178: Persona Natural | W178: 24000000 | Y178: 1 | Z178: 12000000 | AA178: 36000000 | AB178: 35600000 | AC178: 2022-01-27 | AD178: 2022-02-04 | AE178: 2022-11-03 | AF178: 180 | AG178: 1 | AH178: 90 | AM178: Terminado | AN178: 0.9888888889
A179: 169 | B179: 2022 | C179: FDLRUU-CD-169-2022 | D179: https://Community.seCop.gov.Co/PubliC/Tendering/OpportunityDetail/Index?notiCeUID=CO1.NTC.2749320&isFromPubliCArea=True&isModal=False | E179: Contratos de prestación de servicios profesionales y de apoyo a la gestión | F179: Contratación directa | G179: Prestación de servicios profesionales y de apoyo a la gestión, o para la ejecución de trabajos artísticos que sólo puedan encomendarse a determinadas personas naturales | H179: PRESTAR SUS SERVICIOS DE APOYO ADMINISTRATIVO ASISTENCIAL AL DESPACHO DE LA ALCALDÍA LOCAL DE RAFAEL URIBE URIBE | I179: Inversión | J179: Un nuevo contrato social y ambiental para la Bogotá del Siglo XXI | K179: 57 | L179: =IF(ISERROR(VLOOKUP(K179,Proposito_programa!$C$2:$E$59,2,FALSE))," ",VLOOKUP(K179,Proposito_programa!$C$2:$E$59,2,FALSE)) -> Gestión pública local | M179: =IF(ISERROR(VLOOKUP(K179,Proposito_programa!$C$2:$E$59,3,FALSE))," ",VLOOKUP(K179,Proposito_programa!$C$2:$E$59,3,FALSE)) -> Propósito 5: Construir Bogotá - Región con gobierno abierto, transparente y ciudadanía consciente | N179: O23011605570000001697 | O179: 1 | P179: 79287603 | Q179: DIEGO ANDRES LOPEZ MORENO | R179: Persona Natural | W179: 16200000 | Y179: 1 | Z179: 8100000 | AA179: 24300000 | AB179: 24300000 | AC179: 2022-01-27 | AD179: 2022-01-28 | AE179: 2022-10-27 | AF179: 180 | AG179: 1 | AH179: 90 | AM179: Terminado | AN179: 1
A180: 170 | B180: 2022 | C180: FDLRUU-CD-170-2022 | D180: https://Community.seCop.gov.Co/PubliC/Tendering/OpportunityDetail/Index?notiCeUID=CO1.NTC.2745374&isFromPubliCArea=True&isModal=False | E180: Contratos de prestación de servicios profesionales y de apoyo a la gestión | F180: Contratación directa | G180: Prestación de servicios profesionales y de apoyo a la gestión, o para la ejecución de trabajos artísticos que sólo puedan encomendarse a determinadas personas naturales | H180: PRESTAR LOS SERVICIOS PROFESIONALES PARA LA OPERACIÓN, SEGUIMIENTO Y CUMPLIMIENTO E LOS PROCESOS Y PROCEDIMIENTOS DEL SERVICIO APOYO ECONÓMICO TIPO C, REQUERIDOS PARA EL OPORTUNO Y ADECUADO REGISTRO, CRUCE Y REPORTE DE LOS DATOS EN EL SISTEMA MISIONAL SIRBE, QUE CONTRIBUYAN A LA GARANTÍA DE LOS DERECHOS DE LA POBLACIÓN MAYOR EN EL MARCO DE LA POLÍTICA PÚBLICA SOCIAL PARA EL ENVEJECIMIENTO Y LA VEJEZ EN EL DISTRITO CAPITAL A CARGO DE LA ALCALDÍA LOCAL | I180: Inversión | J180: Un nuevo contrato social y ambiental para la Bogotá del Siglo XXI | K180: 1 | L180: =IF(ISERROR(VLOOKUP(K180,Proposito_programa!$C$2:$E$59,2,FALSE))," ",VLOOKUP(K180,Proposito_programa!$C$2:$E$59,2,FALSE)) -> Subsidios y transferencias para la equidad | M180: =IF(ISERROR(VLOOKUP(K180,Proposito_programa!$C$2:$E$59,3,FALSE))," ",VLOOKUP(K180,Proposito_programa!$C$2:$E$59,3,FALSE)) -> Propósito 1: Hacer un nuevo contrato social para incrementar la inclusión social, productiva y política | N180: O23011601010000001636 | O180: 1 | P180: 1033695003 | Q180: Nancy Rojas Mendoza | R180: Persona Natural | W180: 59400000 | Y180: 1 | Z180: 5400000 | AA180: 64800000 | AB180: =17460000+AL180 -> 54000000 | AC180: 2022-01-28 | AD180: 2022-02-01 | AE180: 2023-01-30 | AF180: 330 | AG180: 1 | AH180: 30 | AI180: 1013616944 | AJ180: DANIEL VELASCO MONSALVE | AK180: 2022-08-24 | AL180: 36540000 | AM180: Terminado | AN180: 0.8333333333
A181: 171 | B181: 2022 | C181: FDLRUU-CD-171-2022 | D181: https://Community.seCop.gov.Co/PubliC/Tendering/OpportunityDetail/Index?notiCeUID=CO1.NTC.2747053&isFromPubliCArea=True&isModal=False | E181: Contratos de prestación de servicios profesionales y de apoyo a la gestión | F181: Contratación directa | G181: Prestación de servicios profesionales y de apoyo a la gestión, o para la ejecución de trabajos artísticos que sólo puedan encomendarse a determinadas personas naturales | H181: PRESTAR LOS SERVICIOS PROFESIONALES EN EL ÁREA DE GESTIÓN DE DESARROLLO LOCAL EN EL APOYO A LA SUPERVISIÓN DE LOS CONTRATOS Y/O CONVENIOS QUE LE SEAN DESIGNADOS EN SU IMPLEMENTACIÓN Y SEGUIMIENTO EN LA LOCALIDAD DE RAFAEL URIBE URIBE | I181: Inversión | J181: Un nuevo contrato social y ambiental para la Bogotá del Siglo XXI | K181: 57 | L181: =IF(ISERROR(VLOOKUP(K181,Proposito_programa!$C$2:$E$59,2,FALSE))," ",VLOOKUP(K181,Proposito_programa!$C$2:$E$59,2,FALSE)) -> Gestión pública local | M181: =IF(ISERROR(VLOOKUP(K181,Proposito_programa!$C$2:$E$59,3,FALSE))," ",VLOOKUP(K181,Proposito_programa!$C$2:$E$59,3,FALSE)) -> Propósito 5: Construir Bogotá - Región con gobierno abierto, transparente y ciudadanía consciente | N181: O23011605570000001697 | O181: 1 | P181: 80372860 | Q181: EDISON ANGULO ARIAS | R181: Persona Natural | W181: 37200000 | AA181: 37200000 | AB181: 37200000 | AC181: 2022-01-27 | AD181: 2022-01-28 | AE181: 2022-07-27 | AF181: 180 | AM181: Terminado | AN181: 1
A182: 172 | B182: 2022 | C182: FDLRUU-CD-172-2022 | D182: https://Community.seCop.gov.Co/PubliC/Tendering/OpportunityDetail/Index?notiCeUID=CO1.NTC.2770190&isFromPubliCArea=True&isModal=False | E182: Contratos de prestación de servicios profesionales y de apoyo a la gestión | F182: Contratación directa | G182: Prestación de servicios profesionales y de apoyo a la gestión, o para la ejecución de trabajos artísticos que sólo puedan encomendarse a determinadas personas naturales | H182: PRESTAR LOS SERVICIOS PROFESIONALES Y TECNICOS EN EL SEGUIMIENTO DE PAGOS, ACTUALIZACIÓN, LIQUIDACIÓN Y DEPURACIÓN DE LAS OBLIGACIONES POR PAGAR DE CONTRATOS DE OBRA PUBLICA E INFRAESTRUCTURA DE VIGENCIAS ANTERIORES QUE SE ENCUENTRAN VIGENTES EN EL FONDO DE DESARROLLO LOCAL DE RAFAEL URIBE URIBE | I182: Inversión | J182: Un nuevo contrato social y ambiental para la Bogotá del Siglo XXI | K182: 57 | L182: =IF(ISERROR(VLOOKUP(K182,Proposito_programa!$C$2:$E$59,2,FALSE))," ",VLOOKUP(K182,Proposito_programa!$C$2:$E$59,2,FALSE)) -> Gestión pública local | M182: =IF(ISERROR(VLOOKUP(K182,Proposito_programa!$C$2:$E$59,3,FALSE))," ",VLOOKUP(K182,Proposito_programa!$C$2:$E$59,3,FALSE)) -> Propósito 5: Construir Bogotá - Región con gobierno abierto, transparente y ciudadanía consciente | N182: O23011605570000001697 | O182: 1 | P182: 79956583 | Q182: JORGE ANDRES HERNAN TORRES | R182: Persona Natural | W182: 32400000 | AA182: 32400000 | AB182: 32400000 | AC182: 2022-01-28 | AD182: 2022-02-01 | AE182: 2022-07-31 | AF182: 180 | AM182: Terminado | AN182: 1
A183: 173 | B183: 2022 | C183: FDLRUU-CD-173-2022 | D183: https://Community.seCop.gov.Co/PubliC/Tendering/OpportunityDetail/Index?notiCeUID=CO1.NTC.2747790&isFromPubliCArea=True&isModal=False | E183: Contratos de prestación de servicios profesionales y de apoyo a la gestión | F183: Contratación directa | G183: Prestación de servicios profesionales y de apoyo a la gestión, o para la ejecución de trabajos artísticos que sólo puedan encomendarse a determinadas personas naturales | H183: APOYAR TÉCNICAMENTE A LA ALCALDÍA LOCAL EN EL ADECUADO MANEJO DE LOS DOCUMENTOS OFICIALES, MEDIANTE LA SOCIALIZACIÓN, IMPLEMENTACIÓN, MONITOREO Y SEGUIMIENTO AL APLICATIVO ORFEO, EN LAS DIFERENTES DEPENDENCIAS, CON ÉNFASIS EN EL CDI DEL AREA DE GESTION DE DESARROLLO LOCAL | I183: Inversión | J183: Un nuevo contrato social y ambiental para la Bogotá del Siglo XXI | K183: 57 | L183: =IF(ISERROR(VLOOKUP(K183,Proposito_programa!$C$2:$E$59,2,FALSE))," ",VLOOKUP(K183,Proposito_programa!$C$2:$E$59,2,FALSE)) -> Gestión pública local | M183: =IF(ISERROR(VLOOKUP(K183,Proposito_programa!$C$2:$E$59,3,FALSE))," ",VLOOKUP(K183,Proposito_programa!$C$2:$E$59,3,FALSE)) -> Propósito 5: Construir Bogotá - Región con gobierno abierto, transparente y ciudadanía consciente | N183: O23011605570000001697 | O183: 1 | P183: 1030587570 | Q183: STEPHANIE ANDREA ARIAS RIVERA | R183: Persona Natural | W183: 20400000 | Y183: 1 | Z183: 10200000 | AA183: 30600000 | AB183: 20400000 | AC183: 2022-01-27 | AD183: 2022-02-01 | AE183: 2022-10-31 | AF183: 180 | AG183: 1 | AH183: 90 | AM183: Terminado | AN183: 0.6666666667
A184: 174 | B184: 2022 | C184: FDLRUU-CD-174-2022 | D184: https://Community.seCop.gov.Co/PubliC/Tendering/OpportunityDetail/Index?notiCeUID=CO1.NTC.2747411&isFromPubliCArea=True&isModal=False | E184: Contratos de prestación de servicios profesionales y de apoyo a la gestión | F184: Contratación directa | G184: Prestación de servicios profesionales y de apoyo a la gestión, o para la ejecución de trabajos artísticos que sólo puedan encomendarse a determinadas personas naturales | H184: PRESTAR LOS SERVICIOS PROFESIONALES PARA APOYAR LA FORMULACION, EJECUCIÓN Y SEGUIMIENTO DE LOS PROYECTOS DE INVERSIÓN EN EL MARCO DEL CUMPLIMIENTO DEL PLAN DE DESARROLLO LOCAL DE LA ALCALDÍA LOCAL DE RAFAEL URIBE URIBE 2021 2024 | I184: Inversión | J184: Un nuevo contrato social y ambiental para la Bogotá del Siglo XXI | K184: 57 | L184: =IF(ISERROR(VLOOKUP(K184,Proposito_programa!$C$2:$E$59,2,FALSE))," ",VLOOKUP(K184,Proposito_programa!$C$2:$E$59,2,FALSE)) -> Gestión pública local | M184: =IF(ISERROR(VLOOKUP(K184,Proposito_programa!$C$2:$E$59,3,FALSE))," ",VLOOKUP(K184,Proposito_programa!$C$2:$E$59,3,FALSE)) -> Propósito 5: Construir Bogotá - Región con gobierno abierto, transparente y ciudadanía consciente | N184: O23011605570000001697 | O184: 1 | P184: 1013625644 | Q184: ANABIA JULIETH ANGARITA GALINDO | R184: Persona Natural | W184: 59400000 | AA184: 59400000 | AB184: 54540000 | AC184: 2022-01-27 | AD184: 2022-01-28 | AE184: 2022-12-27 | AF184: 330 | AM184: Terminado | AN184: 0.9181818182
A185: 175 | B185: 2022 | C185: FDLRUU-CD-175-2022 | D185: https://Community.seCop.gov.Co/PubliC/Tendering/OpportunityDetail/Index?notiCeUID=CO1.NTC.2746967&isFromPubliCArea=True&isModal=False | E185: Contratos de prestación de servicios profesionales y de apoyo a la gestión | F185: Contratación directa | G185: Prestación de servicios profesionales y de apoyo a la gestión, o para la ejecución de trabajos artísticos que sólo puedan encomendarse a determinadas personas naturales | H185: APOYAR LA GESTIÓN DOCUMENTAL DE LA ALCALDÍA LOCAL AL EQUIPO JURÍDICO DE DEPURACIÓN EN LAS LABORES OPERATIVAS QUE GENERA EL PROCESO DE IMPULSO DE LAS ACTUACIONES ADMINISTRATIVAS EXISTENTES EN LA ALCALDÍA LOCAL DE RAFAEL URIBE URIBE | I185: Inversión | J185: Un nuevo contrato social y ambiental para la Bogotá del Siglo XXI | K185: 57 | L185: =IF(ISERROR(VLOOKUP(K185,Proposito_programa!$C$2:$E$59,2,FALSE))," ",VLOOKUP(K185,Proposito_programa!$C$2:$E$59,2,FALSE)) -> Gestión pública local | M185: =IF(ISERROR(VLOOKUP(K185,Proposito_programa!$C$2:$E$59,3,FALSE))," ",VLOOKUP(K185,Proposito_programa!$C$2:$E$59,3,FALSE)) -> Propósito 5: Construir Bogotá - Región con gobierno abierto, transparente y ciudadanía consciente | N185: O23011605570000001698 | O185: 1 | P185: 52517945 | Q185: INGRIS YOHANNA MORALES SUAREZ | R185: Persona Natural | W185: 11280000 | Y185: 1 | Z185: 5640000 | AA185: 16920000 | AB185: 16920000 | AC185: 2022-01-27 | AD185: 2022-02-01 | AE185: 2022-10-31 | AF185: 180 | AG185: 1 | AH185: 90 | AM185: Terminado | AN185: 1
A186: 176 | B186: 2022 | C186: FDLRUU-CD-176-2026 | D186: https://Community.seCop.gov.Co/PubliC/Tendering/OpportunityDetail/Index?notiCeUID=CO1.NTC.2749492&isFromPubliCArea=True&isModal=False | E186: Contratos de prestación de servicios profesionales y de apoyo a la gestión | F186: Contratación directa | G186: Prestación de servicios profesionales y de apoyo a la gestión, o para la ejecución de trabajos artísticos que sólo puedan encomendarse a determinadas personas naturales | H186: APOYAR Y DAR SOPORTE TÉCNICO AL ADMINISTRADOR Y USUARIO FINAL DE LA RED DE SISTEMAS Y TECNOLOGÍA E INFORMACIÓN DE LA ALCALDÍA LOCAL. | I186: Inversión | J186: Un nuevo contrato social y ambiental para la Bogotá del Siglo XXI | K186: 57 | L186: =IF(ISERROR(VLOOKUP(K186,Proposito_programa!$C$2:$E$59,2,FALSE))," ",VLOOKUP(K186,Proposito_programa!$C$2:$E$59,2,FALSE)) -> Gestión pública local | M186: =IF(ISERROR(VLOOKUP(K186,Proposito_programa!$C$2:$E$59,3,FALSE))," ",VLOOKUP(K186,Proposito_programa!$C$2:$E$59,3,FALSE)) -> Propósito 5: Construir Bogotá - Región con gobierno abierto, transparente y ciudadanía consciente | N186: O23011605570000001697 | O186: 1 | P186: 52316051 | Q186: WALDINA CONTRERAS ALFONSO | R186: Persona Natural | W186: 24000000 | Y186: 1 | Z186: 12000000 | AA186: 36000000 | AB186: 36000000 | AC186: 2022-01-27 | AD186: 2022-01-27 | AE186: 2022-10-26 | AF186: 180 | AG186: 1 | AH186: 90 | AM186: Terminado | AN186: 1
A187: 177 | B187: 2022 | C187: FDLRUU-CD-177-2022 | D187: https://Community.seCop.gov.Co/PubliC/Tendering/OpportunityDetail/Index?notiCeUID=CO1.NTC.2749841&isFromPubliCArea=True&isModal=False | E187: Contratos de prestación de servicios profesionales y de apoyo a la gestión | F187: Contratación directa | G187: Prestación de servicios profesionales y de apoyo a la gestión, o para la ejecución de trabajos artísticos que sólo puedan encomendarse a determinadas personas naturales | H187: APOYAR Y DAR SOPORTE TÉCNICO AL ADMINISTRADOR Y USUARIO FINAL DE LA RED DE SISTEMAS Y TECNOLOGÍA E INFORMACIÓN DE LA ALCALDÍA LOCAL. | I187: Inversión | J187: Un nuevo contrato social y ambiental para la Bogotá del Siglo XXI | K187: 57 | L187: =IF(ISERROR(VLOOKUP(K187,Proposito_programa!$C$2:$E$59,2,FALSE))," ",VLOOKUP(K187,Proposito_programa!$C$2:$E$59,2,FALSE)) -> Gestión pública local | M187: =IF(ISERROR(VLOOKUP(K187,Proposito_programa!$C$2:$E$59,3,FALSE))," ",VLOOKUP(K187,Proposito_programa!$C$2:$E$59,3,FALSE)) -> Propósito 5: Construir Bogotá - Región con gobierno abierto, transparente y ciudadanía consciente | N187: O23011605570000001697 | O187: 1 | P187: 79910956 | Q187: JHON ALEXANDER OLAYA CUESTA | R187: Persona Natural | W187: 24000000 | Y187: 1 | Z187: 12000000 | AA187: 36000000 | AB187: 36000000 | AC187: 2022-01-27 | AD187: 2022-02-01 | AE187: 2022-10-31 | AF187: 180 | AG187: 1 | AH187: 90 | AM187: Terminado | AN187: 1
A188: 178 | B188: 2022 | C188: FDLRUU-CD-178-2022 | D188: https://Community.seCop.gov.Co/PubliC/Tendering/OpportunityDetail/Index?notiCeUID=CO1.NTC.2747809&isFromPubliCArea=True&isModal=False | E188: Contratos de prestación de servicios profesionales y de apoyo a la gestión | F188: Contratación directa | G188: Prestación de servicios profesionales y de apoyo a la gestión, o para la ejecución de trabajos artísticos que sólo puedan encomendarse a determinadas personas naturales | H188: APOYAR LA GESTIÓN DOCUMENTAL DE LA ALCALDÍA LOCAL, ACOMPAÑANDO AL EQUIPO JURÍDICO DE DEPURACIÓN EN LAS LABORES OPERATIVAS QUE GENERA EL PROCESO DE IMPULSO DE LAS ACTUACIONES ADMINISTRATIVAS EXISTENTES EN LA ALCALDÍA LOCAL DE RAFAEL URIBE URIBE | I188: Inversión | J188: Un nuevo contrato social y ambiental para la Bogotá del Siglo XXI | K188: 57 | L188: =IF(ISERROR(VLOOKUP(K188,Proposito_programa!$C$2:$E$59,2,FALSE))," ",VLOOKUP(K188,Proposito_programa!$C$2:$E$59,2,FALSE)) -> Gestión pública local | M188: =IF(ISERROR(VLOOKUP(K188,Proposito_programa!$C$2:$E$59,3,FALSE))," ",VLOOKUP(K188,Proposito_programa!$C$2:$E$59,3,FALSE)) -> Propósito 5: Construir Bogotá - Región con gobierno abierto, transparente y ciudadanía consciente | N188: O23011605570000001698 | O188: 1 | P188: 52993109 | Q188: YULY PAOLA LEGUIZAMON PIÑEROS | R188: Persona Natural | W188: 16200000 | Y188: 1 | Z188: 8100000 | AA188: 24300000 | AB188: =7830000+AL188 -> 24300000 | AC188: 2022-01-27 | AD188: 2022-01-28 | AE188: 2022-10-27 | AF188: 180 | AG188: 1 | AH188: 90 | AI188: 52832043 | AJ188: NANCY BRIGITTE RUIZ BUITRAGO | AK188: 2022-08-01 | AL188: 16470000 | AM188: Terminado | AN188: 1
A189: 179 | B189: 2022 | C189: FDLRUU-CD-179-2022 | D189: https://Community.seCop.gov.Co/PubliC/Tendering/OpportunityDetail/Index?notiCeUID=CO1.NTC.2770860&isFromPubliCArea=True&isModal=False | E189: Contratos de prestación de servicios profesionales y de apoyo a la gestión | F189: Contratación directa | G189: Prestación de servicios profesionales y de apoyo a la gestión, o para la ejecución de trabajos artísticos que sólo puedan encomendarse a determinadas personas naturales | H189: EL CONTRATISTA SE OBLIGA APOYAR LA GESTIÓN DOCUMENTAL DE LA ALCALDÍA LOCAL, ACOMPAÑANDO AL EQUIPO JURÍDICO DE DEPURACIÓN EN LAS LABORES OPERATIVAS QUE GENERA EL PROCESO DE IMPULSO DE LAS ACTUACIONES ADMINISTRATIVAS EXISTENTES EN LA ALCALDÍA LOCAL DE RAFAEL URIBE URIBE | I189: Inversión | J189: Un nuevo contrato social y ambiental para la Bogotá del Siglo XXI | K189: 57 | L189: =IF(ISERROR(VLOOKUP(K189,Proposito_programa!$C$2:$E$59,2,FALSE))," ",VLOOKUP(K189,Proposito_programa!$C$2:$E$59,2,FALSE)) -> Gestión pública local | M189: =IF(ISERROR(VLOOKUP(K189,Proposito_programa!$C$2:$E$59,3,FALSE))," ",VLOOKUP(K189,Proposito_programa!$C$2:$E$59,3,FALSE)) -> Propósito 5: Construir Bogotá - Región con gobierno abierto, transparente y ciudadanía consciente | N189: O23011605570000001698 | O189: 1 | P189: 1031177773 | Q189: NICOLAS MORA RODRIGUEZ | R189: Persona Natural | W189: 16200000 | Y189: 1 | Z189: 8100000 | AA189: 24300000 | AB189: 24300000 | AC189: 2022-01-28 | AD189: 2022-02-01 | AE189: 2022-10-31 | AF189: 180 | AG189: 1 | AH189: 90 | AM189: Terminado | AN189: 1
A190: 180 | B190: 2022 | C190: FDLRUU-CD-180-2022 | D190: https://Community.seCop.gov.Co/PubliC/Tendering/OpportunityDetail/Index?notiCeUID=CO1.NTC.2747091&isFromPubliCArea=True&isModal=False | E190: Contratos de prestación de servicios profesionales y de apoyo a la gestión | F190: Contratación directa | G190: Prestación de servicios profesionales y de apoyo a la gestión, o para la ejecución de trabajos artísticos que sólo puedan encomendarse a determinadas personas naturales | H190: APOYAR LA GESTIÓN DOCUMENTAL DE LA ALCALDÍA LOCAL, ACOMPAÑANDO AL EQUIPO JURÍDICO DE DEPURACIÓN EN LAS LABORES OPERATIVAS QUE GENERA EL PROCESO DE IMPULSO DE LAS ACTUACIONES ADMINISTRATIVAS EXISTENTES EN LA ALCALDÍA LOCAL DE RAFAEL URIBE URIBE | I190: Inversión | J190: Un nuevo contrato social y ambiental para la Bogotá del Siglo XXI | K190: 57 | L190: =IF(ISERROR(VLOOKUP(K190,Proposito_programa!$C$2:$E$59,2,FALSE))," ",VLOOKUP(K190,Proposito_programa!$C$2:$E$59,2,FALSE)) -> Gestión pública local | M190: =IF(ISERROR(VLOOKUP(K190,Proposito_programa!$C$2:$E$59,3,FALSE))," ",VLOOKUP(K190,Proposito_programa!$C$2:$E$59,3,FALSE)) -> Propósito 5: Construir Bogotá - Región con gobierno abierto, transparente y ciudadanía consciente | N190: O23011605570000001698 | O190: 1 | P190: 1032436573 | Q190: CRISTHIAN CAMILO GARAVITO MARTINEZ | R190: Persona Natural | W190: 16200000 | Y190: 1 | Z190: 8100000 | AA190: 24300000 | AB190: 24300000 | AC190: 2022-01-27 | AD190: 2022-01-28 | AE190: 2022-10-27 | AF190: 180 | AG190: 1 | AH190: 90 | AM190: Terminado | AN190: 1
A191: 181 | B191: 2022 | C191: FDLRUU-CD-181-2022 | D191: https://Community.seCop.gov.Co/PubliC/Tendering/OpportunityDetail/Index?notiCeUID=CO1.NTC.2776397&isFromPubliCArea=True&isModal=False | E191: Contratos de prestación de servicios profesionales y de apoyo a la gestión | F191: Contratación directa | G191: Prestación de servicios profesionales y de apoyo a la gestión, o para la ejecución de trabajos artísticos que sólo puedan encomendarse a determinadas personas naturales | H191: PRESTAR SUS SERVICIOS PROFESIONALES EN LA FORMULACION, SEGUIMIENTO Y EVALUACION DEL PROYECTO 1665 EN SU COMPONENTE DE VIGÍAS DEL RIESGO DE LA LOCALIDAD DE RAFAEL URIBE URIBE, A LA LUZ DEL PLAN DE DESARROLLO 2021 2024 'UN NUEVO CONTRATO AMBIENTAL Y SOCIAL | I191: Inversión | J191: Un nuevo contrato social y ambiental para la Bogotá del Siglo XXI | K191: 30 | L191: =IF(ISERROR(VLOOKUP(K191,Proposito_programa!$C$2:$E$59,2,FALSE))," ",VLOOKUP(K191,Proposito_programa!$C$2:$E$59,2,FALSE)) -> Eficiencia en la atención de emergencias | M191: =IF(ISERROR(VLOOKUP(K191,Proposito_programa!$C$2:$E$59,3,FALSE))," ",VLOOKUP(K191,Proposito_programa!$C$2:$E$59,3,FALSE)) -> Propósito 2 : Cambiar Nuestros Hábitos de Vida para Reverdecer a Bogotá y Adaptarnos y Mitigar la Crisis Climática | N191: O23011602300000001665 | O191: 1 | P191: 1033747880 | Q191: KEVIN ORLANDO BALLESTEROS ROJAS | R191: Persona Natural | W191: 27600000 | Y191: 1 | Z191: 13800000 | AA191: 41400000 | AB191: 41400000 | AC191: 2022-01-28 | AD191: 2022-02-01 | AE191: 2022-10-31 | AF191: 180 | AG191: 1 | AH191: 90 | AM191: Terminado | AN191: 1
A192: 182 | B192: 2022 | C192: FDLRUU-CD-182-2022 | D192: https://Community.seCop.gov.Co/PubliC/Tendering/OpportunityDetail/Index?notiCeUID=CO1.NTC.2774656&isFromPubliCArea=True&isModal=False | E192: Contratos de prestación de servicios profesionales y de apoyo a la gestión | F192: Contratación directa | G192: Prestación de servicios profesionales y de apoyo a la gestión, o para la ejecución de trabajos artísticos que sólo puedan encomendarse a determinadas personas naturales | H192: PRESTAR LOS SERVICIOS PROFESIONALES PARA APOYAR AL DESPACHO DEL ALCALDE LOCAL EN EL ANÁLISIS, REVISIÓN, TRÁMITE Y SUSCRIPCIÓN DE LOS ACTOS ADMINISTRATIVOS, DESPACHOS COMISORIOS, TUTELAS, SOLICITUDES DE ENTES DE CONTROL Y LOS CONCEPTOS JURÍDICOS QUE SE LE SOLICITEN POR PARTE DE LA ALCALDÍA LOCAL DE RAFAEL URIBE URIBE | I192: Inversión | J192: Un nuevo contrato social y ambiental para la Bogotá del Siglo XXI | K192: 57 | L192: =IF(ISERROR(VLOOKUP(K192,Proposito_programa!$C$2:$E$59,2,FALSE))," ",VLOOKUP(K192,Proposito_programa!$C$2:$E$59,2,FALSE)) -> Gestión pública local | M192: =IF(ISERROR(VLOOKUP(K192,Proposito_programa!$C$2:$E$59,3,FALSE))," ",VLOOKUP(K192,Proposito_programa!$C$2:$E$59,3,FALSE)) -> Propósito 5: Construir Bogotá - Región con gobierno abierto, transparente y ciudadanía consciente | N192: O23011605570000001698 | O192: 1 | P192: 1111791373 | Q192: FELIX EDUARDO MURILLO PLATA | R192: Persona Natural | W192: 38400000 | AA192: 38400000 | AB192: 38400000 | AC192: 2022-01-28 | AD192: 2022-02-01 | AE192: 2022-07-31 | AF192: 180 | AM192: Terminado | AN192: 1
A193: 183 | B193: 2022 | C193: FDLRUU-CD-183-2022 | D193: https://Community.seCop.gov.Co/PubliC/Tendering/OpportunityDetail/Index?notiCeUID=CO1.NTC.2755555&isFromPubliCArea=True&isModal=False | E193: Contratos de prestación de servicios profesionales y de apoyo a la gestión | F193: Contratación directa | G193: Prestación de servicios profesionales y de apoyo a la gestión, o para la ejecución de trabajos artísticos que sólo puedan encomendarse a determinadas personas naturales | H193: PRESTAR SUS SERVICIOS PROFESIONALES E N EL APOYO, SEGUIMIENTO Y CONTROL A LOS PROCEDIMIENTOS DE LA LEY 1801 DE 2016 COMO D E LOS SISTEMAS DE INFORMACIÓN VIGENTES DISPUESTOS PARA LAS ACTUACIONES DE POLICIA | I193: Inversión | J193: Un nuevo contrato social y ambiental para la Bogotá del Siglo XXI | K193: 57 | L193: =IF(ISERROR(VLOOKUP(K193,Proposito_programa!$C$2:$E$59,2,FALSE))," ",VLOOKUP(K193,Proposito_programa!$C$2:$E$59,2,FALSE)) -> Gestión pública local | M193: =IF(ISERROR(VLOOKUP(K193,Proposito_programa!$C$2:$E$59,3,FALSE))," ",VLOOKUP(K193,Proposito_programa!$C$2:$E$59,3,FALSE)) -> Propósito 5: Construir Bogotá - Región con gobierno abierto, transparente y ciudadanía consciente | N193: O23011605570000001698 | O193: 1 | P193: 1144057374 | Q193: SARHA CRISTINA GARCÍA NAVARRETE | R193: Persona Natural | W193: 32400000 | AA193: 32400000 | AB193: =27000000+AL193 -> 32400000 | AC193: 2022-01-27 | AD193: 2022-02-01 | AE193: 2022-07-31 | AF193: 180 | AI193: 1023910605 | AJ193: LUIS ARIEL MOLINA MOTOVITA | AK193: 2022-03-02 | AL193: 5400000 | AM193: Terminado | AN193: 1
A194: 184 | B194: 2022 | C194: FDLRUU-CD-184-2022 | D194: https://Community.seCop.gov.Co/PubliC/Tendering/OpportunityDetail/Index?notiCeUID=CO1.NTC.2752828&isFromPubliCArea=True&isModal=False | E194: Contratos de prestación de servicios profesionales y de apoyo a la gestión | F194: Contratación directa | G194: Prestación de servicios profesionales y de apoyo a la gestión, o para la ejecución de trabajos artísticos que sólo puedan encomendarse a determinadas personas naturales | H194: PRESTAR SERVICIOS PROFESIONALES PARA APOYAR LA EJECUCION, GESTIÓN Y PUESTA EN MARCHA DEL PROYECTO DE INVERSIÓN 1681 CULTURA CIUDADANA Y OPTIMO USO DEL ESPACIO PÚBLICO EN LA LOCALIDAD RAFAEL URIBE | I194: Inversión | J194: Un nuevo contrato social y ambiental para la Bogotá del Siglo XXI | K194: 45 | L194: =IF(ISERROR(VLOOKUP(K194,Proposito_programa!$C$2:$E$59,2,FALSE))," ",VLOOKUP(K194,Proposito_programa!$C$2:$E$59,2,FALSE)) -> Espacio público más seguro y construido colectivamente | M194: =IF(ISERROR(VLOOKUP(K194,Proposito_programa!$C$2:$E$59,3,FALSE))," ",VLOOKUP(K194,Proposito_programa!$C$2:$E$59,3,FALSE)) -> Propósito 3: Inspirar confianza y legitimidad para vivir sin miedo y ser epicentro de cultura ciudadana, paz y reconciliación | N194: O23011603450000001681 | O194: 1 | P194: 1088264048 | Q194: INDIRA CRISTINA PORTOCARREÑO OSPINA | R194: Persona Natural | W194: 32400000 | AA194: 32400000 | AB194: 10800000 | AC194: 2022-01-27 | AD194: 2022-02-01 | AE194: 2022-07-31 | AF194: 180 | AM194: Terminacion Anticipada | AN194: 0.3333333333
A195: 185 | B195: 2022 | C195: FDLRUU-CD-185-2022 | D195: https://Community.seCop.gov.Co/PubliC/Tendering/OpportunityDetail/Index?notiCeUID=CO1.NTC.2767948&isFromPubliCArea=True&isModal=False | E195: Contratos de prestación de servicios profesionales y de apoyo a la gestión | F195: Contratación directa | G195: Prestación de servicios profesionales y de apoyo a la gestión, o para la ejecución de trabajos artísticos que sólo puedan encomendarse a determinadas personas naturales | H195: EL CONTRATISTA SE OBLIGA A PRESTAR SERVICIOS PROFESIONALES PARA INCENTIVAR PROCESOS DE PARTICIPACIÓN, CONVIVENCIA CIUDADANA Y EL USO DEL ESPACIO PÚBLICO DESDE UNA PERSPECTIVA DE PAZ Y DIALOGO, LLEVANDO A CABO ACUERDOS CIUDADANOS EN EL MARCO DEL PROYECTO 1681 | I195: Inversión | J195: Un nuevo contrato social y ambiental para la Bogotá del Siglo XXI | K195: 45 | L195: =IF(ISERROR(VLOOKUP(K195,Proposito_programa!$C$2:$E$59,2,FALSE))," ",VLOOKUP(K195,Proposito_programa!$C$2:$E$59,2,FALSE)) -> Espacio público más seguro y construido colectivamente | M195: =IF(ISERROR(VLOOKUP(K195,Proposito_programa!$C$2:$E$59,3,FALSE))," ",VLOOKUP(K195,Proposito_programa!$C$2:$E$59,3,FALSE)) -> Propósito 3: Inspirar confianza y legitimidad para vivir sin miedo y ser epicentro de cultura ciudadana, paz y reconciliación | N195: O23011603450000001681 | O195: 1 | P195: 1140826131 | Q195: JULIETH DEL CARMEN PERNA BERDUGO | R195: Persona Natural | W195: 31200000 | Y195: 1 | Z195: 15600000 | AA195: 46800000 | AB195: 46800000 | AC195: 2022-01-28 | AD195: 2022-02-01 | AE195: 2022-10-31 | AF195: 180 | AG195: 1 | AH195: 90 | AM195: Terminado | AN195: 1
A196: 186 | B196: 2022 | C196: FDLRUU-CD-186-2022 | D196: https://Community.seCop.gov.Co/PubliC/Tendering/OpportunityDetail/Index?notiCeUID=CO1.NTC.2761237&isFromPubliCArea=True&isModal=False | E196: Contratos de prestación de servicios profesionales y de apoyo a la gestión | F196: Contratación directa | G196: Prestación de servicios profesionales y de apoyo a la gestión, o para la ejecución de trabajos artísticos que sólo puedan encomendarse a determinadas personas naturales | H196: PRESTAR SERVICIOS PROFESIONALES PARA INCENTIVAR PROCESOS DE PARTICIPACIÓN, CONVIVENCIA CIUDADANA Y EL USO DEL ESPACIO PÚBLICO DESDE UNA PERSPECTIVA DE PAZ Y DIALOGO, LLEVANDO A CABO ACUERDOS CIUDADANOS EN EL MARCO DEL PROYECTO 1681. | I196: Inversión | J196: Un nuevo contrato social y ambiental para la Bogotá del Siglo XXI | K196: 45 | L196: =IF(ISERROR(VLOOKUP(K196,Proposito_programa!$C$2:$E$59,2,FALSE))," ",VLOOKUP(K196,Proposito_programa!$C$2:$E$59,2,FALSE)) -> Espacio público más seguro y construido colectivamente | M196: =IF(ISERROR(VLOOKUP(K196,Proposito_programa!$C$2:$E$59,3,FALSE))," ",VLOOKUP(K196,Proposito_programa!$C$2:$E$59,3,FALSE)) -> Propósito 3: Inspirar confianza y legitimidad para vivir sin miedo y ser epicentro de cultura ciudadana, paz y reconciliación | N196: O23011603450000001681 | O196: 1 | P196: 79845438 | Q196: CARLOS ANDRES SUESCUM LESMES | R196: Persona Natural | W196: 31200000 | Y196: 1 | Z196: 15600000 | AA196: 46800000 | AB196: 46800000 | AC196: 2022-01-27 | AD196: 2022-02-01 | AE196: 2022-10-31 | AF196: 180 | AG196: 1 | AH196: 90 | AM196: Terminado | AN196: 1
A197: 187 | B197: 2022 | C197: FDLRUU-CD-187-2022 | D197: https://Community.seCop.gov.Co/PubliC/Tendering/OpportunityDetail/Index?notiCeUID=CO1.NTC.2803640&isFromPubliCArea=True&isModal=False | E197: Contratos de prestación de servicios profesionales y de apoyo a la gestión | F197: Contratación directa | G197: Prestación de servicios profesionales y de apoyo a la gestión, o para la ejecución de trabajos artísticos que sólo puedan encomendarse a determinadas personas naturales | H197: PRESTAR LOS SERVICIOS PROFESIONALES PARA LA OPERACIÓN, SEGUIMIENTO Y CUMPLIMIENTO DE LOS PROCESOS Y PROCEDIMIENTOS DEL SERVICIO APOYO ECONÓMICO TIPO C, REQUERIDOS PARA EL OPORTUNO Y ADECUADO REGISTRO, CRUCE Y REPORTE DE LOS DATOS EN EL SISTEMA MISIONAL SIRBE, QUE CONTRIBUYAN A LA GARANTÍA DE LOS DERECHOS DE LA POBLACIÓN MAYOR EN EL MARCO DE LA POLÍTICA PÚBLICA SOCIAL PARA EL ENVEJECIMIENTO Y LA VEJEZ EN EL DISTRITO CAPITAL A CARGO DE LA ALCALDÍA LOCAL | I197: Inversión | J197: Un nuevo contrato social y ambiental para la Bogotá del Siglo XXI | K197: 1 | L197: =IF(ISERROR(VLOOKUP(K197,Proposito_programa!$C$2:$E$59,2,FALSE))," ",VLOOKUP(K197,Proposito_programa!$C$2:$E$59,2,FALSE)) -> Subsidios y transferencias para la equidad | M197: =IF(ISERROR(VLOOKUP(K197,Proposito_programa!$C$2:$E$59,3,FALSE))," ",VLOOKUP(K197,Proposito_programa!$C$2:$E$59,3,FALSE)) -> Propósito 1: Hacer un nuevo contrato social para incrementar la inclusión social, productiva y política | N197: O23011601010000001636 | O197: 1 | P197: 1031134255 | Q197: DIEGO ALEXANDER GUERRERO RODRIGUEZ | R197: Persona Natural | W197: 59400000 | Y197: 1 | Z197: 4860000 | AA197: 64260000 | AB197: 53460000 | AC197: 2022-01-28 | AD197: 2022-02-04 | AE197: 2023-01-23 | AF197: 330 | AG197: 1 | AH197: 27 | AM197: Terminacion Anticipada | AN197: 0.8319327731
A198: 188 | B198: 2022 | C198: FDLRUU-CD-188-2022 | D198: https://Community.seCop.gov.Co/PubliC/Tendering/OpportunityDetail/Index?notiCeUID=CO1.NTC.2758412&isFromPubliCArea=True&isModal=False | E198: Contratos de prestación de servicios profesionales y de apoyo a la gestión | F198: Contratación directa | G198: Prestación de servicios profesionales y de apoyo a la gestión, o para la ejecución de trabajos artísticos que sólo puedan encomendarse a determinadas personas naturales | H198: PRESTAR LOS SERVICIOS PROFESIONALES PARA LA OPERACIÓN, SEGUIMIENTO Y CUMPLIMIENTO DE LOS PROCESOS Y PROCEDIMIENTOS DEL SERVICIO APOYO ECONÓMICO TIPO C, REQUERIDOS PARA EL OPORTUNO Y ADECUADO REGISTRO, CRUCE Y REPORTE DE LOS DATOS EN EL SISTEMA MISIONAL SIRBE, QUE CONTRIBUYAN A LA GARANTÍA DE LOS DERECHOS DE LA POBLACIÓN MAYOR EN EL MARCO DE LA POLÍTICA PÚBLICA SOCIAL PARA EL ENVEJECIMIENTO Y LA VEJEZ EN EL DISTRITO CAPITAL A CARGO DE LA ALCALDÍA LOCAL. | I198: Inversión | J198: Un nuevo contrato social y ambiental para la Bogotá del Siglo XXI | K198: 1 | L198: =IF(ISERROR(VLOOKUP(K198,Proposito_programa!$C$2:$E$59,2,FALSE))," ",VLOOKUP(K198,Proposito_programa!$C$2:$E$59,2,FALSE)) -> Subsidios y transferencias para la equidad | M198: =IF(ISERROR(VLOOKUP(K198,Proposito_programa!$C$2:$E$59,3,FALSE))," ",VLOOKUP(K198,Proposito_programa!$C$2:$E$59,3,FALSE)) -> Propósito 1: Hacer un nuevo contrato social para incrementar la inclusión social, productiva y política | N198: O23011601010000001636 | O198: 1 | P198: 52955747 | Q198: ANDREA ALEXANDRA ANGEL ALDANA | R198: Persona Natural | W198: 59400000 | Y198: 1 | Z198: 5400000 | AA198: 64800000 | AB198: =41940000+AL198 -> 43560000 | AC198: 2022-01-28 | AD198: 2022-02-01 | AE198: 2023-01-12 | AF198: 330 | AG198: 1 | AH198: 30 | AI198: 52811514 52844341 | AJ198: CLAUDIA MILENA AVENDAÑO DEL RIO CESION 2 CARMEN ANDREA AVELLANEDA SANTOYA | AK198: 09/02/2022 8/04/2022 | AL198: 1620000 | AM198: Terminacion Anticipada | AN198: 0.6722222222
A199: 189 | B199: 2022 | C199: FDLRUU-CD-189-2022 | D199: https://Community.seCop.gov.Co/PubliC/Tendering/OpportunityDetail/Index?notiCeUID=CO1.NTC.2749159&isFromPubliCArea=True&isModal=False | E199: Contratos de prestación de servicios profesionales y de apoyo a la gestión | F199: Contratación directa | G199: Prestación de servicios profesionales y de apoyo a la gestión, o para la ejecución de trabajos artísticos que sólo puedan encomendarse a determinadas personas naturales | H199: Apoyar téCniCamente a los responsables e integrantes de los proCesos en la implementaCión de herramientas de gestión, siguiendo los lineamientos metodológiCos estableCidos por la OfiCina Asesora de PlaneaCión de la SeCretaría Distrital de Gobierno | I199: Inversión | J199: Un nuevo contrato social y ambiental para la Bogotá del Siglo XXI | K199: 57 | L199: =IF(ISERROR(VLOOKUP(K199,Proposito_programa!$C$2:$E$59,2,FALSE))," ",VLOOKUP(K199,Proposito_programa!$C$2:$E$59,2,FALSE)) -> Gestión pública local | M199: =IF(ISERROR(VLOOKUP(K199,Proposito_programa!$C$2:$E$59,3,FALSE))," ",VLOOKUP(K199,Proposito_programa!$C$2:$E$59,3,FALSE)) -> Propósito 5: Construir Bogotá - Región con gobierno abierto, transparente y ciudadanía consciente | N199: O23011605570000001697 | O199: 1 | P199: 1000333532 | Q199: JUAN SEBASTIAN CORAL ARTEAGA | R199: Persona Natural | W199: 32400000 | Y199: 1 | Z199: 16200000 | AA199: 48600000 | AB199: =12060000+AL199 -> 48240000 | AC199: 2022-01-27 | AD199: 2022-01-28 | AE199: 2022-10-27 | AF199: 180 | AG199: 1 | AH199: 90 | AI199: 1019023768 | AJ199: BRIGGETH JOHANA MORA DUARTE | AK199: 2022-08-23 | AL199: 36180000 | AM199: Terminado | AN199: 0.9925925926
